Workbook

Sheet Title
B2: PC21 Financial Model
B4: Final Determination - May 2021
B6: Annex N
B9: Model Navigation

Sheet Navigation
A2: Model Navigation
B4: Sheets | E4: Inputs Worksheet | G4: Calculations Worksheet | I4: Solve Tariffs
B5: Inputs | E5: Inflation_Input | G5: Opex_Calc | I5: Solve_Macro
B6: Customer Versions | E6: RCV_Input | G6: PPP_Calc
B7: Calculations | E7: Capex_Input | G7: Capex_Calc
B8: Solve Tariffs | E8: WACC_Input | G8: RCV_Calc
B9: Tariffs | E9: Opex_Input | G9: Return_Calc
B10: Revenue | E10: Misc_Input | G10: Building_Blocks_Calc
B11: RG1 | C11: domestic measured water | E11: PPP_Input | G11: Financeability_Calc
B12: RG2 | C12: domestic measured sewerage | E12: Tax_Input | G12: Interest_Calc
B13: RG3 | C13: domestic unmeasured water | E13: Over_recovery_Input | G13: Tax_Calc
B14: RG4 | C14: domestic unmeasured sewerage | E14: Public_Expenditure_Input | G14: Capital_Allowances_Calc
B15: RG5 | C15: non-domestic measured water | G15: Public_Expenditure_Calc
B16: RG6 | C16: non-domestic measured sewerage
B17: RG7 | C17: non-domestic unmeasured water
B18: RG8 | C18: non-domestic unmeasured sewerage
B19: RG9 | C19: trade effluent
B20: RG10 | C20: non-tariff basket revenue
B21: Charge Cap Workings
B22: Charge Caps
B23: Revenue Map
B24: Typical Bills

Sheet Inputs
A1: Model_Navigation
B2: Years | C2: Prices | D2: Units | E2: Additional Info | G2: 2012-13 | H2: 2013-14 | I2: 2014-15 | J2: 2015-16 | K2: 2016-17 | L2: 2017-18 | M2: 2018-19 | N2: 2019-20 | O2: 2020-21 | P2: 2021-22 | Q2: 2022-23 | R2: 2023-24 | S2: 2024-25 | T2: 2025-26 | U2: 2026-27 | V2: PC21
A4: Inflation
B5: RPI | D5: nr | G5: 244.675 | H5: 251.733 | I5: 256.667 | J5: 259.433 | K5: 264.992 | L5: 274.908 | M5: 283.308 | N5: 290.642 | O5: 294.457 | P5: 302.016 | Q5: 308.354 | R5: 315.922 | S5: 324.907 | T5: 334.54 | U5: =+T5*(1+U6) -> 344.5762
B6: % Inflation | D6: % | H6: =-1+H5/G5 -> 0.02884642894 | I6: =-1+I5/H5 -> 0.01960013189 | J6: 0.01077660938 | K6: 0.02142749766 | L6: 0.03741999758 | M6: 0.03055567681 | N6: 0.02588702049 | O6: 0.01312611391 | P6: 0.02567098082 | Q6: 0.02098564314 | R6: 0.02454321981 | S6: 0.02844056444 | T6: 0.02964848403 | U6: 0.03
B8: Million | D8: 1000000
A10: RCV
B11: RCV - PC15
B12: Closing RCV (previous year) | C12: Nominal | D12: £m | J12: 2054.753 | K12: 2192.185172 | L12: 2335.369089 | M12: 2484.528381 | N12: 2640.399841 | O12: 2802.412754
B13: Indexation | C13: Nominal | D13: £m | J13: 69.861602 | K13: 74.53429585 | L13: 79.40254902 | M13: 84.47396496 | N13: 89.77359461 | O13: 95.28203364
B14: Opening RCV | C14: Nominal | D14: £m | J14: 2124.614602 | K14: 2266.719468 | L14: 2414.771638 | M14: 2569.002346 | N14: 2730.173436 | O14: 2897.694788
B15: Total Capital Expenditure | C15: Nominal | D15: £m | J15: 156.7903731 | K15: 160.6529018 | L15: 164.5021182 | M15: 168.9078238 | N15: 172.7272981 | O15: 179.1890593
B16: Grants and Contributions | C16: Nominal | D16: £m | J16: -6.307962139 | K16: -6.522432852 | L16: -6.744195569 | M16: -6.732403806 | N16: -6.961305535 | O16: -7.197989923
B17: Depreciation (net of PPP depr'n) | C17: Nominal | D17: £m | J17: -60.3870672 | K17: -62.06558612 | L17: -63.79076116 | M17: -65.56388915 | N17: -67.38630302 | O17: -69.2593727
B18: Depreciation of Capital Grants | C18: Nominal | D18: £m | J18: 4.012031838 | K18: 3.866920377 | L18: 3.838122892 | M18: 3.622439096 | N18: 3.506220203 | O18: 3.315274268
B19: Infrastructure Renewals Charge | C19: Nominal | D19: £m | J19: -25.2860707 | K19: -25.98892232 | L19: -26.7113104 | M19: -27.45377799 | N19: -28.2168832 | O19: -29.00119969
B20: Disposal of Assets | C20: Nominal | D20: £m | J20: -1.25073491 | K20: -1.293259897 | L20: -1.337230733 | M20: -1.382696578 | N20: -1.429708262 | O20: -1.478318342
B21: Closing RCV | C21: Nominal | D21: £m | J21: 2192.185172 | K21: 2335.369089 | L21: 2484.528381 | M21: 2640.399841 | N21: 2802.412754 | O21: 2973.262241
B23: RPI - PC15 Assumption | D23: nr | G23: 244.675 | H23: 251.7333333 | I23: 258.0266666 | J23: 266.7995733 | K23: 275.8707588 | L23: 285.2503646 | M23: 294.948877 | N23: 304.9771388 | O23: 315.3463615
B25: PC15 Opening RCV | C25: Nominal | D25: £m | J25: 2045.5
B27: RCV opening adjustments
B28: Logging up / down etc | C28: Nominal | D28: £m | E28: Separate spreadsheet | P28: -166.8627426
A30: Capex
B31: Capex
B32: NIAMP
B33: Maintenance Non Infrastruture | C33: 2018-19 | D33: £m | N33: 51.60347144 | O33: 69.00279343 | P33: 49.9485638 | Q33: 72.3752113 | R33: 81.01181213 | S33: 80.92177779 | T33: 79.22978101 | U33: 73.14920296 | V33: =SUM(P33:U33) -> 436.636349
B34: Enhancement Non Infrastructure | C34: 2018-19 | D34: £m | N34: 28.35310871 | O34: 37.77738525 | P34: 39.34394442 | Q34: 40.02580149 | R34: 52.79400476 | S34: 75.9834377 | T34: 73.76578999 | U34: 58.09397296 | V34: 340.0069513
B35: Maintenance Infrastruture | C35: 2018-19 | D35: £m | N35: 34.6912048 | O35: 27.71236422 | P35: 23.50660409 | Q35: 38.29806369 | R35: 42.76137181 | S35: 38.77450263 | T35: 37.60110709 | U35: 34.44836631 | V35: 215.3900156
B36: Enhancement Infrastructure | C36: 2018-19 | D36: £m | N36: 38.22605612 | O36: 26.7527925 | P36: 38.43097282 | Q36: 57.63382346 | R36: 61.7388132 | S36: 69.37477933 | T36: 76.85490324 | U36: 67.13522908 | V36: 371.1685211
B37: Capital Grants and Contributions | C37: 2018-19 | D37: £m | N37: 15.10399527 | O37: 4.297622868 | P37: 0.3897993473 | Q37: 0.1157598559 | R37: 0 | S37: 0 | T37: 0 | U37: 0 | V37: 0.5055592033
B38: Gross Capex | C38: 2018-19 | D38: £m | N38: =SUM(N33:N37) -> 167.9778363 | O38: 165.5429583 | P38: 151.6198845 | Q38: 208.4486598 | R38: 238.3060019 | S38: 265.0544974 | T38: 267.4515813 | U38: 232.8267713 | V38: 1363.707396
B39: Capital Grants and Contributions | C39: 2018-19 | D39: £m | N39: -15.10399527 | O39: -4.297622868 | P39: -0.3897993473 | Q39: -0.1157598559 | R39: 0 | S39: 0 | T39: 0 | U39: 0 | V39: -0.5055592033
B40: Revenue Contributions - Infrastructure Charge | C40: 2018-19 | D40: £m | N40: -4.667483264 | O40: -4.983242865 | P40: -4.810706624 | Q40: -4.810756422 | R40: -4.687373606 | S40: -4.6871902 | T40: -4.564274968 | U40: -4.564420045 | V40: -28.12472187
B41: Revenue Contributions - Other | C41: 2018-19 | D41: £m | N41: -7.546655042 | O41: -7.092568296 | P41: -7.187401124 | Q41: -7.281223518 | R41: -7.281404887 | S41: -7.281465582 | T41: -7.281404312 | U41: -7.281286692 | V41: -43.59418612
B42: Net Capex | C42: 2018-19 | D42: £m | N42: =SUM(N38:N41) -> 140.6597028 | O42: 149.1695242 | P42: 139.2319774 | Q42: 196.24092 | R42: 226.3372234 | S42: 253.0858417 | T42: 255.605902 | U42: 220.9810646 | V42: 1291.482929
B44: LWW
B45: Maintenance Non Infrastruture | C45: 2018-19 | D45: £m | N45: 0 | O45: 0.1943862109 | P45: 0.5525106085 | Q45: 1.292828278 | R45: 6.363811348 | S45: 18.06720776 | T45: 16.8641079 | U45: 10.00960833 | V45: =SUM(P45:U45) -> 53.15007423
B46: Enhancement Non Infrastructure | C46: 2018-19 | D46: £m | N46: 0 | O46: 0.8470775196 | P46: 12.22211984 | Q46: 8.440928341 | R46: 38.72607662 | S46: 63.02282934 | T46: 59.95024558 | U46: 57.47811954 | V46: 239.8403193
B47: Maintenance Infrastruture | C47: 2018-19 | D47: £m | N47: 0 | O47: 0 | P47: 0.2712375396 | Q47: 1.623185974 | R47: 0.634447048 | S47: 1.691957407 | T47: 3.116249026 | U47: 2.526441624 | V47: 9.863518619
B48: Enhancement Infrastructure | C48: 2018-19 | D48: £m | N48: 0 | O48: 0.643141769 | P48: 7.219346203 | Q48: 15.16321995 | R48: 15.1750167 | S48: 40.02315381 | T48: 39.14139495 | U48: 36.31445787 | V48: 153.0365895
B49: Capital Grants and Contributions | C49: 2018-19 | D49: £m | N49: 0 | O49: 0 | P49: 0 | Q49: 0 | R49: 0 | S49: 0 | T49: 0 | U49: 0 | V49: 0
B50: Gross Capex | C50: 2018-19 | D50: £m | N50: =SUM(N45:N49) -> 0 | O50: 1.684605499 | P50: 20.26521419 | Q50: 26.52016255 | R50: 60.89935172 | S50: 122.8051483 | T50: 119.0719975 | U50: 106.3286274 | V50: 455.8905016
B51: Capital Grants and Contributions | C51: 2018-19 | D51: £m | E51: Np grant assumed | N51: 0 | O51: 0 | P51: 0 | Q51: 0 | R51: 0 | S51: 0 | T51: 0 | U51: 0 | V51: 0
B52: Revenue Contributions - Infrastructure Charge | C52: 2018-19 | D52: £m | N52: 0 | O52: 0 | P52: 0 | Q52: 0 | R52: 0 | S52: 0 | T52: 0 | U52: 0 | V52: 0
B53: Revenue Contributions - Other | C53: 2018-19 | D53: £m | N53: 0 | O53: 0 | P53: 0 | Q53: 0 | R53: 0 | S53: 0 | T53: 0 | U53: 0 | V53: 0
B54: Net Capex | C54: 2018-19 | D54: £m | N54: =SUM(N50:N53) -> 0 | O54: 1.684605499 | P54: 20.26521419 | Q54: 26.52016255 | R54: 60.89935172 | S54: 122.8051483 | T54: 119.0719975 | U54: 106.3286274 | V54: 455.8905016
B56: Total
B57: Maintenance Non Infrastruture | C57: 2018-19 | D57: £m | N57: =+N33+N45 -> 51.60347144 | O57: 69.19717964 | P57: 50.5010744 | Q57: 73.66803957 | R57: 87.37562348 | S57: 98.98898555 | T57: 96.09388891 | U57: 83.1588113 | V57: =SUM(P57:U57) -> 489.7864232
B58: Enhancement Non Infrastructure | C58: 2018-19 | D58: £m | N58: 28.35310871 | O58: 38.62446277 | P58: 51.56606425 | Q58: 48.46672983 | R58: 91.52008137 | S58: 139.006267 | T58: 133.7160356 | U58: 115.5720925 | V58: 579.8472706
B59: Maintenance Infrastruture | C59: 2018-19 | D59: £m | N59: 34.6912048 | O59: 27.71236422 | P59: 23.77784163 | Q59: 39.92124967 | R59: 43.39581886 | S59: 40.46646003 | T59: 40.71735612 | U59: 36.97480793 | V59: 225.2535342
B60: Enhancement Infrastructure | C60: 2018-19 | D60: £m | N60: 38.22605612 | O60: 27.39593426 | P60: 45.65031903 | Q60: 72.79704342 | R60: 76.9138299 | S60: 109.3979331 | T60: 115.9962982 | U60: 103.4496869 | V60: 524.2051106
B61: Capital Grants and Contributions | C61: 2018-19 | D61: £m | N61: 15.10399527 | O61: 4.297622868 | P61: 0.3897993473 | Q61: 0.1157598559 | R61: 0 | S61: 0 | T61: 0 | U61: 0 | V61: 0.5055592033
B62: Gross Capex | C62: 2018-19 | D62: £m | N62: 167.9778363 | O62: 167.2275638 | P62: 171.8850987 | Q62: 234.9688223 | R62: 299.2053536 | S62: 387.8596458 | T62: 386.5235788 | U62: 339.1553987 | V62: 1819.597898
B63: Capital Grants and Contributions | C63: 2018-19 | D63: £m | N63: =+N39+N51 -> -15.10399527 | O63: -4.297622868 | P63: -0.3897993473 | Q63: -0.1157598559 | R63: 0 | S63: 0 | T63: 0 | U63: 0 | V63: -0.5055592033
B64: Revenue Contributions - Infrastructure Charge | C64: 2018-19 | D64: £m | N64: -4.667483264 | O64: -4.983242865 | P64: -4.810706624 | Q64: -4.810756422 | R64: -4.687373606 | S64: -4.6871902 | T64: -4.564274968 | U64: -4.564420045 | V64: -28.12472187
B65: Revenue Contributions - Other | C65: 2018-19 | D65: £m | N65: -7.546655042 | O65: -7.092568296 | P65: -7.187401124 | Q65: -7.281223518 | R65: -7.281404887 | S65: -7.281465582 | T65: -7.281404312 | U65: -7.281286692 | V65: -43.59418612
B66: Net Capex | C66: 2018-19 | D66: £m | N66: 140.6597028 | O66: 150.8541297 | P66: 159.4971916 | Q66: 222.7610825 | R66: 287.2365751 | S66: 375.89099 | T66: 374.6778995 | U66: 327.3096919 | V66: 1747.373431
B68: Disposals | C68: 2018-19 | D68: £m | P68: -0.6289858686 | Q68: -0.6289858686 | R68: -0.6289858686 | S68: -0.6289858686 | T68: -0.6289858686 | U68: -0.6289858686 | V68: -3.773915212
B69: Additional depreciation allowance | P69: =+'Solve Tariffs'!X67 -> 18.8 | Q69: =+P69 -> 18.8 | R69: =+Q69 -> 18.8 | S69: 18.8 | T69: 18.8 | U69: 18.8 | V69: =SUM(P69:U69) -> 112.8
A71: WACC
B72: WACC | C72: Real | D72: % | P72: 0.0221 | Q72: 0.0237 | R72: 0.021 | S72: 0.0187 | T72: 0.0171 | U72: 0.0167 | V72: =AVERAGE(P72:U72) -> 0.01988333333
B73: Gearing | D73: % | P73: 0.5
B74: Cost of Debt | C74: Nominal | D74: % | P74: 0.0411 | Q74: 0.0394 | R74: 0.0378 | S74: 0.0363 | T74: 0.0349 | U74: 0.034
B75: Discount rate for revenue profiling | C75: Nominal | P75: 0.0386
A77: Opex
B78: Operating Expenditure | C78: 2018-19 | D78: £m | P78: 168.5227374 | Q78: 168.2562074 | R78: 166.4841045 | S78: 165.7728636 | T78: 166.0351475 | U78: 166.4562332 | V78: =SUM(P78:U78) -> 1001.527294
B79: BIP | C79: 2018-19 | D79: £m | P79: 1.264537378 | Q79: 1.248652296 | R79: 0.9404537164 | S79: 0.9222726319 | T79: 0.3637893874 | U79: 0.3622087528 | V79: =SUM(P79:U79) -> 5.101914163
B80: VER | C80: 2018-19 | D80: £m | P80: 0.437724477 | Q80: 0.4322257949 | R80: 0.4232041724 | S80: 0.4150226844 | T80: 0.4092630609 | U80: 0.4074848469 | V80: =SUM(P80:U80) -> 2.524925036
A82: Misc
B83: Other income | C83: Nominal | D83: £m | E83: Project Clear Interest - for tax purposes. | P83: 1.531252556 | Q83: 1.528040795 | R83: 1.48363744 | S83: 1.356775052 | T83: 1.306011397 | U83: 1.211406039 | V83: =SUM(P83:U83) -> 8.417123279
B84: Pension Finance Costs | C84: Nominal | D84: £m | P84: 0 | Q84: 0 | R84: 0 | S84: 0 | T84: 0 | U84: 0 | V84: =SUM(P84:U84) -> 0
B85: Electricity Generation income | C85: Nominal | D85: £m | P85: 1.195357985 | Q85: 1.231512476 | R85: 1.267532516 | S85: 1.303624827 | T85: 1.342733572 | U85: 1.383015579 | V85: =SUM(P85:U85) -> 7.723776956
A87: PPP
B88: Project Clear Remaining Life | D88: Years | P88: 10
B89: Project Clear Opening RCV | D89: £m | P89: 29.263
B91: Alpha
B92: Operating Costs | C92: Nominal | D92: £m | P92: 11.58541118 | Q92: 12.71163039 | R92: 13.01021259 | S92: 13.25845761 | T92: 13.53714771 | U92: 16.94663358
B93: Capital Maintenance | C93: Nominal | D93: £m | P93: 1.516 | Q93: 1.516 | R93: 1.516 | S93: 1.516 | T93: 1.516 | U93: 1.516
B94: Capital Repayment of Finance Lease | C94: Nominal | D94: £m | P94: 4.119 | Q94: 5.052 | R94: 5.535 | S94: 6.055 | T94: 6.616 | U94: 8.823
B95: Finance Lease Interest | C95: Nominal | D95: £m | P95: 5.582 | Q95: 5.263 | R95: 4.893 | S95: 4.489 | T95: 4.047 | U95: 3.536
B97: Kinnegar
B98: Operating Costs | C98: Nominal | D98: £m | P98: 0 | Q98: 0 | R98: 0 | S98: 0 | T98: 0 | U98: 0
B99: Capital Maintenance | C99: Nominal | D99: £m | P99: 0.124 | Q99: 0.124 | R99: 0.124 | S99: 0.01033333333 | T99: 0 | U99: 0
B100: Capital Repayment of Finance Lease | C100: Nominal | D100: £m | P100: 0.243 | Q100: 0.317 | R100: 0.409 | S100: 0.046 | T100: 0 | U100: 0
B101: Finance Lease Interest | C101: Nominal | D101: £m | P101: 0.237 | Q101: 0.173 | R101: 0.089 | S101: 0.006 | T101: 0 | U101: 0
B103: Omega
B104: Operating Costs | C104: Nominal | D104: £m | P104: 13.22105817 | Q104: 13.47881782 | R104: 13.72578563 | S104: 12.82143547 | T104: 13.14020453 | U104: 13.54599799
B105: Capital Maintenance | C105: Nominal | D105: £m | P105: 2.018 | Q105: 2.018 | R105: 2.018 | S105: 2.018 | T105: 2.018 | U105: 2.018
B106: Capital Repayment of Finance Lease | C106: Nominal | D106: £m | P106: 4.306 | Q106: 5.037 | R106: 5.854 | S106: 6.765 | T106: 7.735 | U106: 8.843
B107: Finance Lease Interest | C107: Nominal | D107: £m | P107: 10.839 | Q107: 10.364 | R107: 9.81 | S107: 9.165 | T107: 8.424 | U107: 7.576
B109: Customer saving | C109: Nominal | D109: £m | P109: =5615.91461687903/1000 -> 5.615914617 | Q109: =6360.24601237473/1000 -> 6.360246012 | R109: =6516.11179929818/1000 -> 6.516111799 | S109: =6700.34023147946/1000 -> 6.700340231 | T109: =6897.20420728594/1000 -> 6.897204207 | U109: =9278.21144294129/1000 -> 9.278211443 | V109: =SUM(P109:U109) -> 41.36802831
B110: PPP amortisation | C110: Nominal | D110: £m | P110: -9.023883 | Q110: -9.31377 | R110: -9.658292 | S110: -10.01096267 | T110: -10.30582333 | U110: -10.64091733 | V110: =SUM(P110:U110) -> -58.95364833
B111: PPP Creditor Balance | C111: Nominal | D111: £m | P111: 183.49
A113: Tax
B114: Capital Allowances Pro-Rata Percentages
B115: Plant & Machinery (inc ECA) 18% | D115: % | N115: 0.2608722289 | O115: 0.2608722289 | P115: 0.2350427512 | Q115: 0.237128377 | R115: 0.2665047898 | S115: 0.2917267608 | T115: 0.2679546405 | U115: 0.2639027101
B116: Long Life Assets - Plant & Machinery 6% | D116: % | N116: 0.3601295181 | O116: 0.3601295181 | P116: 0.3543252037 | Q116: 0.4160812904 | R116: 0.4454413143 | S116: 0.474204001 | T116: 0.5095600535 | U116: 0.4960475785
B117: Structures & Buildings Allowance 2% | D117: % | N117: 0 | O117: 0 | P117: 0.04961470789 | Q117: 0.03716102265 | R117: 0.02542673902 | S117: 0.02901398386 | T117: 0.02736894402 | U117: 0.02645049089
B118: Assets qualifying as 'IRE' | D118: % | N118: 0.1713154527 | O118: 0.1713154527 | P118: 0.2023027339 | Q118: 0.1692680232 | R118: 0.1481388233 | S118: 0.1178262197 | T118: 0.110626782 | U118: 0.1196135011
B119: Assets qualifying as 'DRE' | D119: % | N119: 0.1622684166 | O119: 0.1622684166 | P119: 0.1452642606 | Q119: 0.1318707065 | R119: 0.1026288586 | S119: 0.07819802236 | T119: 0.07627445696 | U119: 0.08568181847
B120: Assets not qualifying | D120: % | N120: 0.0454143838 | O120: 0.0454143838 | P120: 0.0134503426 | Q120: 0.008490580239 | R120: 0.01185947512 | S120: 0.009031012269 | T120: 0.00821512303 | U120: 0.008303900949
D121: %
B122: Allocation of Capital Grants over CAs
B123: Plant & Machinery (inc ECA) 18% | D123: % | N123: 1 | O123: 1 | P123: 0.129183177 | Q123: 0.146745593 | R123: 0.264691768 | S123: 0.311517424 | T123: 0.2871022231 | U123: 0.2675697373
B124: Long Life Assets - Plant & Machinery 6% | D124: % | N124: 0 | O124: 0 | P124: 0.6307878248 | Q124: 0.777471865 | R124: 0.6879669741 | S124: 0.634133344 | T124: 0.6641789317 | U124: 0.6854177429
B125: Structures & Buildings Allowance 2% | D125: % | N125: 0 | O125: 0 | P125: 0.1948743652 | Q125: 0.03813750881 | R125: 0.04038096635 | S125: 0.04630762295 | T125: 0.04153283971 | U125: 0.04006305608
B126: Assets qualifying as 'IRE' | D126: % | N126: 0 | O126: 0 | P126: 0.006540118366 | Q126: 0.0125501992 | R126: 0.001354614198 | S126: 0.001031659214 | T126: 0.0008807395069 | U126: 0.000955307826
B127: Assets qualifying as 'DRE' | D127: % | N127: 0 | O127: 0 | P127: 0.02698465085 | Q127: 0.02260581691 | R127: 0 | S127: 0 | T127: 0 | U127: 0
B128: Assets not qualifying | D128: % | N128: 0 | O128: 0 | P128: 0.0116298638 | Q128: 0.002489017129 | R128: 0.005605677291 | S128: 0.007009949792 | T128: 0.006305266043 | U128: 0.005994155886
B130: Tax Assumptions
B131: General Pool Opening Balance | C131: Nominal | D131: £m | O131: 296.1263539
B132: Assets Directly to general Pool | C132: Nominal | D132: £m | O132: 2.566 | P132: 0.425 | Q132: 0.13 | R132: 0 | S132: 0 | T132: 0 | U132: 0
B133: General Pool % | D133: % | O133: 0.18
B134: Super Deduction Pool % | O134: 1.3
B135: Long Life Pool Opening Balance | C135: Nominal | D135: £m | O135: 719.5601418
B136: Assets Qualifying for 100% FYA | C136: Nominal | D136: £m | O136: -1 | P136: =-((1000000/12*9)+(200000/12*3))/1000000 -> -0.8 | Q136: -0.2 | R136: -0.2 | S136: -0.2 | T136: -0.2 | U136: -0.2
B137: Long Life Pool % | D137: % | O137: 0.06
B138: SR Pool % | O138: 0.5
B139: SBA Pool Opening Balance | C139: Nominal | D139: £m | O139: 0
B140: Structures & Buildings % | D140: % | O140: 0.02
B141: IRE Opening Balance | C141: Nominal | D141: £m | O141: 229.0805291
B142: IRE Additions | N142: 38.587
B143: Assets Direct to IRE (Hardcoded) | C143: Nominal | D143: £m | N143: -1.185 | O143: -1.2 | P143: -1.308364889 | Q143: -1.347615836 | R143: -1.388044311 | S143: -1.42968564 | T143: -1.47257621 | U143: -1.516753496
B144: DRE Opening Balance | C144: Nominal | D144: £m | O144: 173.3028978
B145: DRE Additions | N145: 12.12541295
B146: IRE Depreciation pre 31/03/18 | C146: Nominal | D146: £m | N146: -1.95082522 | O146: -2.104455626 | P146: -1.921003397 | Q146: -1.909256744 | R146: -1.913245923 | S146: -1.922540843 | T146: -1.903142749 | U146: -1.899498169
B147: DRE Depreciation pre 31/03/19 | C147: Nominal | D147: £m | N147: -14.54054534 | O147: -13.67741825 | P147: -12.78717362 | Q147: -12.58153076 | R147: -10.92438553 | S147: -10.19291686 | T147: -10.11481998 | U147: -10.08231088
B148: IRE Asset Life | D148: Years | O148: 125
B149: First Year | D149: % | O149: 0.5
B150: DRE Asset Life | D150: Years | O150: 20
B151: First Year | D151: % | O151: 0.5
B152: Disallowed costs | C152: Nominal | D152: £m | O152: 0.1
B153: Tax rate | D153: % | N153: 0.19 | O153: 0.19 | P153: 0.19 | Q153: 0.19 | R153: 0.25 | S153: 0.25 | T153: 0.25 | U153: 0.25
B155: Assumed Cash balance | C155: Nominal | D155: £m | P155: 4 | Q155: 4 | R155: 4 | S155: 4 | T155: 4 | U155: 4
A157: Over recovery
B158: PC15 Revenue over (under) recovery
B159: Revenue Group 1: dom measured water | C159: 2018-19 | D159: £m | P159: 0 | AH159: 2021-22 | AI159: 2021-22 | AJ159: =+AH159-AI159 -> 
B160: Revenue Group 2: dom measured sewerage | C160: 2018-19 | D160: £m | P160: 0 | AH160: 0 | AI160: 0 | AJ160: 0
B161: Revenue Group 3: dom unmeasured water | C161: 2018-19 | D161: £m | P161: 21.72879137 | AH161: 0 | AI161: 0 | AJ161: 0
B162: Revenue Group 4: dom unmeasured sewerage | C162: 2018-19 | D162: £m | P162: 19.68710669 | AH162: -2.052149358 | AI162: -2.052149358 | AJ162: 0
B163: Revenue Group 5: non-dom measured water | C163: 2018-19 | D163: £m | P163: 12.25222314 | AH163: -1.623845957 | AI163: -1.623845957 | AJ163: 0
B164: Revenue Group 6: non-dom measured sewerage | C164: 2018-19 | D164: £m | P164: 4.627011065 | AH164: -2.58128704 | AI164: -2.58128704 | AJ164: 0
B165: Revenue Group 7: non-dom unmeasured water | C165: 2018-19 | D165: £m | P165: 0 | AH165: -1.213854045 | AI165: -1.213854045 | AJ165: 0
B166: Revenue Group 8: non-dom unmeasured sewerage | C166: 2018-19 | D166: £m | P166: 0 | AH166: 0 | AI166: 0 | AJ166: 0
B167: Revenue Group 9: trade effluent | C167: 2018-19 | D167: £m | P167: 1.780614286 | AH167: 0 | AI167: 0 | AJ167: 0
B168: Total | C168: 2018-19 | D168: £m | P168: =SUM(P159:P167) -> 60.07574654 | AH168: -0.676664424 | AI168: -0.676664424 | AJ168: 0
AH169: -8.147800824 | AI169: -8.147800824 | AJ169: 0
B170: PC21 Years | P170: 6
A172: Public Expenditure
B173: Resource DEL
B174: Unappointed Costs | C174: Nominal | D174: £m | E174: Cash | P174: 3.271322912 | Q174: 3.430323963 | R174: 3.614449231 | S174: 3.857045226 | T174: 4.038475572 | U174: 4.228121862
B175: Non-appointed Income | C175: Nominal | D175: £m | E175: Cash | P175: =-3.61243687869584+P85 -> -2.417078894 | Q175: =-3.74008070505671+Q85 -> -2.508568229 | R175: =-4.00354384620842+R85 -> -2.73601133 | S175: =-4.49188088159467+S85 -> -3.188256054 | T175: =-4.62514802804251+T85 -> -3.282414456 | U175: =-4.76040318888378+U85 -> -3.377387609
B176: PPP costs (UK GAAP) | C176: Nominal | D176: £m | E176: Cash | P176: 27.17247187 | Q176: 27.83251474 | R176: 28.43691877 | S176: 27.30424527 | T176: 27.95422506 | U176: 28.63072364
B177: Alpha cash DEL | C177: Nominal | D177: £m | E177: Cash | P177: 11.58033403 | Q177: 11.48234178 | R177: 11.43008001 | S177: 11.31176201 | T177: 11.15794076 | U177: 10.95115968
B178: Non-Infrastructure depreciation | C178: Nominal | D178: £m | E178: Non-Cash | P178: 63.87384978 | Q178: 66.97758454 | R178: 72.12768069 | S178: 80.68774566 | T178: 91.57591987 | U178: 100.8576006
B179: Infrastructure depreciation | C179: Nominal | D179: £m | E179: Non-Cash | P179: 19.73314443 | Q179: 21.04837032 | R179: 22.45843458 | S179: 23.97342191 | T179: 25.5922304 | U179: 27.1790727
B180: NIWAL depreciation charge | C180: Nominal | D180: £m | E180: Non-Cash | P180: 0.1 | Q180: 0.1 | R180: 0.1 | S180: 0.1 | T180: 0.1 | U180: 0.1
B181: Alpha depreciation | C181: Nominal | D181: £m | E181: Non-Cash | P181: 4.161273 | Q181: 4.311145 | R181: 4.446807 | S181: 4.588764633 | T181: 4.683074737 | U181: 4.824942578
B182: Amortisation of capital grants | C182: Nominal | D182: £m | E182: Non-Cash | P182: -0.4454881276 | Q182: -1.412515147 | R182: -3.583829168 | S182: -6.264250509 | T182: -9.679022274 | U182: -12.8509362
B183: Amortisation of deferred credits | C183: Nominal | D183: £m | E183: Non-Cash | P183: -1.01897294 | Q183: -1.10002294 | R183: -1.18132294 | S183: -1.26507294 | T183: -1.34907294 | U183: -1.43562294
B185: Capital DEL
B186: Alpha PPP maintenance | C186: Nominal | D186: £m | P186: 2.938 | Q186: 2.965 | R186: 1.127 | S186: 1.248 | T186: 1.168 | U186: 1.649
B187: Residual interest in off-balance sheet PPP | C187: Nominal | D187: £m | P187: 4.124110143 | Q187: 4.227212896 | R187: 4.332893219 | S187: 4.271311549 | T187: 4.208190338 | U187: 4.313395096

Sheet Customer Versions
A1: Model_Navigation | C1: 1 | N1: 1=business plan, 2= DD / reasonable, 3 = FD
C2: 2 | N2: Chosen option = | P2: 2
C3: 3
N5: PC21 Business Plan
D6: 2 | E6: 3
C7: Units | N7: 2019-20 | O7: 2020-21 | P7: 2021-22 | Q7: 2022-23 | R7: 2023-24 | S7: 2024-25 | T7: 2025-26 | U7: 2026-27
B9: Non-Domestic Measured Water
B11: Tariff multipliers: Supply pipe size - existing customers
B12: Up to 20mm | C12: nr | N12: =IF($P$2=1,N152,IF($P$2=2,W152,AF152)) -> 60000 | O12: 60704 | P12: 59794 | Q12: 60560 | R12: 61595 | S12: 61792 | T12: 61989 | U12: 62186
B13: Over 20mm up to 25mm | C13: nr | N13: 6655 | O13: 6677 | P13: 6681 | Q13: 6697 | R13: 6743 | S13: 6765 | T13: 6787 | U13: 6809
B14: Over 25mm up to 40mm | C14: nr | N14: 1155 | O14: 1169 | P14: 1178 | Q14: 1187 | R14: 1196 | S14: 1205 | T14: 1214 | U14: 1223
B15: Over 40mm up to 50mm | C15: nr | N15: 1268 | O15: 1279 | P15: 1289 | Q15: 1299 | R15: 1309 | S15: 1319 | T15: 1329 | U15: 1339
B16: Over 50mm up to 75mm | C16: nr | N16: 930 | O16: 939 | P16: 946 | Q16: 953 | R16: 960 | S16: 967 | T16: 974 | U16: 981
B17: Over 75mm up to 100mm | C17: nr | N17: 476 | O17: 481 | P17: 485 | Q17: 489 | R17: 493 | S17: 497 | T17: 501 | U17: 505
B18: Over 100mm | C18: nr | N18: 121 | O18: 122 | P18: 123 | Q18: 124 | R18: 125 | S18: 126 | T18: 127 | U18: 128
B19: Total | C19: nr | N19: 70605 | O19: 71371 | P19: 70496 | Q19: 71309 | R19: 72421 | S19: 72671 | T19: 72921 | U19: 73171
B21: Tariff multipliers: Supply pipe size - new customers
B22: Up to 20mm | C22: nr | N22: =IF($P$2=1,N162,IF($P$2=2,W162,AF162)) -> 704 | O22: -910 | P22: 766 | Q22: 557 | R22: 197 | S22: 197 | T22: 197 | U22: 197
B23: Over 20mm up to 25mm | C23: nr | N23: 22 | O23: 4 | P23: 16 | Q23: 27 | R23: 22 | S23: 22 | T23: 22 | U23: 22
B24: Over 25mm up to 40mm | C24: nr | N24: 14 | O24: 9 | P24: 9 | Q24: 9 | R24: 9 | S24: 9 | T24: 9 | U24: 9
B25: Over 40mm up to 50mm | C25: nr | N25: 11 | O25: 10 | P25: 10 | Q25: 10 | R25: 10 | S25: 10 | T25: 10 | U25: 10
B26: Over 50mm up to 75mm | C26: nr | N26: 9 | O26: 7 | P26: 7 | Q26: 7 | R26: 7 | S26: 7 | T26: 7 | U26: 7
B27: Over 75mm up to 100mm | C27: nr | N27: 5 | O27: 4 | P27: 4 | Q27: 4 | R27: 4 | S27: 4 | T27: 4 | U27: 4
B28: Over 100mm | C28: nr | N28: 1 | O28: 1 | P28: 1 | Q28: 1 | R28: 1 | S28: 1 | T28: 1 | U28: 1
B29: Total | C29: nr | N29: 766 | O29: -875 | P29: 813 | Q29: 615 | R29: 250 | S29: 250 | T29: 250 | U29: 250
B31: Tariffs: Customer Volume
B32: Volume subject to volumetric charge - existing customers exc. DAV | C32: m3 | N32: =IF($P$2=1,N172,IF($P$2=2,W172,AF172)) -> 25735533.63 | O32: 19119769 | P32: 23936538 | Q32: 25466549 | R32: 25973953.8 | S32: 25999850.06 | T32: 26025746.32 | U32: 26051642.59
B33: Volume subject to volumetric charge - new customers | C33: m3 | N33: 247131 | O33: 66904 | P33: 7495.36 | Q33: 43492.8 | R33: 331451 | S33: 349131 | T33: 366811 | U33: 384491
B34: Total volume | C34: m3 | N34: 25982664.63 | O34: 19186673 | P34: 23944033.36 | Q34: 25510041.8 | R34: 26305404.8 | S34: 26348981.06 | T34: 26392557.32 | U34: 26436133.59
B36: Domestic Allowance
B37: Domestic Allowance Volume | C37: m3 | N37: =IF($P$2=1,N177,IF($P$2=2,W177,AF177)) -> 9299079 | O37: 9287775 | P37: 9349384 | Q37: 9433811.2 | R37: 9536359 | S37: 9570679 | T37: 9604999 | U37: 9639319
B39: Tariff multipliers: Large user Tariff Volumes
B40: Annual consumption between 0 and 100,000 m³ | C40: m2 | N40: =IF($P$2=1,N180,IF($P$2=2,W180,AF180)) -> 2036571 | O40: 1675340 | P40: 1972989 | Q40: 2014186 | R40: 2042680.713 | S40: 2044717.284 | T40: 2046753.855 | U40: 2048790.426
B41: Annual consumption between 100,000m³ and 250,000 m³ | C41: m3 | N41: 1747351.516 | O41: 1437420 | P41: 1692799 | Q41: 1728146 | R41: 1752593.571 | S41: 1754340.923 | T41: 1756088.274 | U41: 1757835.626
B42: Annual consumption between 250,000m³ and 500,000 m³ | C42: m3 | N42: 991503.6744 | O42: 815638 | P42: 960549 | Q42: 980606 | R42: 994478.1854 | S42: 995469.6891 | T42: 996461.1928 | U42: 997452.6964
B43: Annual consumption over 500,000 m³ | C43: m3 | N43: 1664297.838 | O43: 1369097 | P43: 1612338 | Q43: 1646005 | R43: 1669290.732 | S43: 1670955.03 | T43: 1672619.328 | U43: 1674283.625
B44: Total Large User annual consumption m³ | C44: m3 | N44: 6439724.029 | O44: 5297495 | P44: 6238675 | Q44: 6368943 | R44: 6459043.201 | S44: 6465482.925 | T44: 6471922.649 | U44: 6478362.373
B47: Non-Domestic Measured Sewerage
B49: Tariff multipliers: Supply pipe size - existing customers
B50: Up to 20mm | C50: nr | N50: =IF($P$2=1,N190,IF($P$2=2,W190,AF190)) -> 16458 | O50: 16752 | P50: 15610 | Q50: 16348 | R50: 17307 | S50: 17455 | T50: 17603 | U50: 17741
B51: Over 20mm up to 25mm | C51: nr | N51: 4707 | O51: 4725 | P51: 4728 | Q51: 4741 | R51: 4779 | S51: 4796 | T51: 4813 | U51: 4828
B52: Over 25mm up to 40mm | C52: nr | N52: 1048 | O52: 1060 | P52: 1067 | Q52: 1074 | R52: 1081 | S52: 1088 | T52: 1095 | U52: 1101
B53: Over 40mm up to 50mm | C53: nr | N53: 1120 | O53: 1129 | P53: 1137 | Q53: 1145 | R53: 1153 | S53: 1161 | T53: 1169 | U53: 1176
B54: Over 50mm up to 75mm | C54: nr | N54: 808 | O54: 815 | P54: 821 | Q54: 827 | R54: 833 | S54: 838 | T54: 843 | U54: 848
B55: Over 75mm up to 100mm | C55: nr | N55: 429 | O55: 433 | P55: 436 | Q55: 439 | R55: 442 | S55: 445 | T55: 448 | U55: 451
B56: Over 100mm | C56: nr | N56: 110 | O56: 111 | P56: 112 | Q56: 113 | R56: 114 | S56: 115 | T56: 116 | U56: 117
B57: Total | C57: nr | N57: 24680 | O57: 25025 | P57: 23911 | Q57: 24687 | R57: 25709 | S57: 25898 | T57: 26087 | U57: 26262
B59: Tariff multipliers: Supply pipe size - new customers
B60: Up to 20mm | C60: nr | N60: =IF($P$2=1,N200,IF($P$2=2,W200,AF200)) -> 294 | O60: -1142 | P60: 738 | Q60: 509 | R60: 148 | S60: 148 | T60: 138 | U60: 138
B61: Over 20mm up to 25mm | C61: nr | N61: 18 | O61: 3 | P61: 13 | Q61: 22 | R61: 17 | S61: 17 | T61: 15 | U61: 15
B62: Over 25mm up to 40mm | C62: nr | N62: 12 | O62: 7 | P62: 7 | Q62: 7 | R62: 7 | S62: 7 | T62: 6 | U62: 6
B63: Over 40mm up to 50mm | C63: nr | N63: 9 | O63: 8 | P63: 8 | Q63: 8 | R63: 8 | S63: 8 | T63: 7 | U63: 7
B64: Over 50mm up to 75mm | C64: nr | N64: 7 | O64: 6 | P64: 6 | Q64: 6 | R64: 5 | S64: 5 | T64: 5 | U64: 5
B65: Over 75mm up to 100mm | C65: nr | N65: 4 | O65: 3 | P65: 3 | Q65: 3 | R65: 3 | S65: 3 | T65: 3 | U65: 3
B66: Over 100mm | C66: nr | N66: 1 | O66: 1 | P66: 1 | Q66: 1 | R66: 1 | S66: 1 | T66: 1 | U66: 1
B67: Total | C67: nr | N67: 345 | O67: -1114 | P67: 776 | Q67: 556 | R67: 189 | S67: 189 | T67: 175 | U67: 175
B69: Tariffs: Customer Volume
B70: Volume subject to volumetric charge - existing customers exc. DAV | C70: m3 | N70: =IF($P$2=1,N210,IF($P$2=2,W210,AF210)) -> 9919252.578 | O70: 6990481 | P70: 9094811 | Q70: 9794542 | R70: 9996442.629 | S70: 10006409.17 | T70: 10016375.71 | U70: 10026342.26
B71: Volume subject to volumetric charge - new customers | C71: m3 | N71: 67810 | O71: -60852 | P71: 52768 | Q71: 37808 | R71: 122074 | S71: 134926 | T71: 146826 | U71: 158726
B72: Total volume | C72: m3 | N72: 9987062.578 | O72: 6929629 | P72: 9147579 | Q72: 9832350 | R72: 10118516.63 | S72: 10141335.17 | T72: 10163201.71 | U72: 10185068.26
B74: Domestic Allowance
B75: Domestic Allowance Volume | C75: m3 | N75: =IF($P$2=1,N215,IF($P$2=2,W215,AF215)) -> 3530865 | O75: 3403917 | P75: 3506349 | Q75: 3579741 | R75: 3638877 | S75: 3663825 | T75: 3686925 | U75: 3710025
B77: Tariff multipliers: Large user Tariff Volumes
B78: Annual consumption between 0 and 100,000 m³ | C78: m2 | N78: =IF($P$2=1,N218,IF($P$2=2,W218,AF218)) -> 689228.9898 | O78: 566979 | P78: 667711 | Q78: 681653 | R78: 691296.6767 | S78: 691985.9057 | T78: 692675.1347 | U78: 693364.3637
B79: Annual consumption between 100,000m³ and 250,000 m³ | C79: m3 | N79: 333980.5619 | O79: 274742 | P79: 323554 | Q79: 330310 | R79: 334982.5036 | S79: 335316.4841 | T79: 335650.4647 | U79: 335984.4453
B80: Annual consumption between 250,000m³ and 500,000 m³ | C80: m3 | N80: 0 | O80: 0 | P80: 0 | Q80: 0 | R80: 0 | S80: 0 | T80: 0 | U80: 0
B81: Annual consumption over 500,000 m³ | C81: m3 | N81: 0 | O81: 0 | P81: 0 | Q81: 0 | R81: 0 | S81: 0 | T81: 0 | U81: 0
B82: Total Large User annual consumption m³ | C82: m3 | N82: 1023209.552 | O82: 841721 | P82: 991265 | Q82: 1011963 | R82: 1026279.18 | S82: 1027302.39 | T82: 1028325.599 | U82: 1029348.809
B85: Non-Domestic Unmeasured Water
B87: Tariff multipliers: Standard
B88: Total number of billed properties | C88: nr | N88: =IF($P$2=1,N228,IF($P$2=2,W228,AF228)) -> 8422 | O88: 7772 | P88: 7397 | Q88: 7484.5 | R88: 7509.5 | S88: 7472 | T88: 7372 | U88: 7272
B89: Number of billed properties subject to separate standing charge | C89: nr | N89: 8069.520047 | O89: 7436.260961 | P89: 7071.724033 | Q89: 7163.409261 | R89: 7192.59449 | S89: 7159.279719 | T89: 7063.464947 | U89: 6967.650176
B90: Number of £1,000 Capital Value Units charges less than capped value | C90: nr | N90: 57088.74027 | O90: 52608.67661 | P90: 50029.71852 | Q90: 50678.35613 | R90: 50884.83036 | S90: 50649.14121 | T90: 49971.28868 | U90: 49293.43614
B91: Number of billed properties at capped level | C91: nr | N91: 352.4799531 | O91: 335.7390387 | P91: 325.2759672 | Q91: 321.0907386 | R91: 316.90551 | S91: 312.7202814 | T91: 308.5350528 | U91: 304.3498242
B94: Domestic Unmeasured Water
B96: Total number of billed properties | C96: nr | N96: =IF($P$2=1,N236,IF($P$2=2,W236,AF236)) -> 750064.9 | O96: 756914.9 | P96: 762840 | Q96: 770465 | R96: 778715 | S96: 786715 | T96: 794465 | U96: 801965
B97: Total number of standard customer properties subject to variable charge | C97: nr | N97: 744129.7742 | O97: 750911.724 | P97: 756769.1694 | Q97: 764326.9105 | R97: 772511.6298 | S97: 780448.3272 | T97: 788137.0029 | U97: 795577.6568
B98: Number of £1,000 Capital Value Unit charges less than capped value | C98: nr | N98: 82523434.99 | O98: 83275548.15 | P98: 83925134.46 | Q98: 84763282.29 | R98: 85670961.53 | S98: 86551135.34 | T98: 87403803.71 | U98: 88228966.66
B99: Number of billed properties at capped level | C99: nr | N99: 5935.125752 | O99: 6003.175972 | P99: 6070.830551 | Q99: 6138.089489 | R99: 6203.370224 | S99: 6266.672754 | T99: 6327.99708 | U99: 6387.343202
B102: Non-Domestic Unmeasured Sewerage
B104: Tariff multipliers: Standard
B105: Total number of billed properties | C105: nr | N105: =IF($P$2=1,N245,IF($P$2=2,W245,AF245)) -> 7207 | O105: 6666 | P105: 6351 | Q105: 6421 | R105: 6440.375 | S105: 6412.25 | T105: 6339.75 | U105: 6269.75
B106: Number of billed properties subject to separate standing charge | C106: nr | N106: 6749.710566 | O106: 6229.776209 | P106: 5927.84706 | Q106: 6002.923119 | R106: 6027.215551 | S106: 6003.849356 | T106: 5935.949534 | U106: 5870.391085
B107: Number of £1,000 Capital Value Units charges less than capped value | C107: nr | N107: 46477.61016 | O107: 42897.41126 | P107: 40818.36725 | Q107: 41335.33102 | R107: 41502.60548 | S107: 41341.70896 | T107: 40874.15981 | U107: 40422.73304
B108: Number of billed properties at capped level | C108: nr | N108: 457.289434 | O108: 436.2237906 | P108: 423.1529396 | Q108: 418.0768809 | R108: 413.1594491 | S108: 408.4006441 | T108: 403.8004659 | U108: 399.3589146
B111: Domestic Unmeasured Sewerage
B113: Total number of billed properties | C113: nr | N113: =IF($P$2=1,N253,IF($P$2=2,W253,AF253)) -> 638171.497 | O113: 643961.997 | P113: 648883 | Q113: 654983 | R113: 661383 | S113: 667383 | T113: 673008 | U113: 678258
B114: Total number of standard customer properties subject to separate standing charge | C114: nr | N114: 633384.5562 | O114: 639121.5139 | P114: 643990.2422 | Q114: 650039.2353 | R114: 656391.2287 | S114: 662346.2225 | T114: 667929.0293 | U114: 673139.6489
B115: Number of £1,000 Capital Value Unit charges less than capped value | C115: nr | N115: 67094835.8 | O115: 67702555.44 | P115: 68218302.98 | Q115: 68859076.73 | R115: 69531947.5 | S115: 70162763.85 | T115: 70754154.18 | U115: 71306118.49
B116: Number of billed properties at capped level | C116: nr | N116: 4786.940803 | O116: 4840.483125 | P116: 4892.757773 | Q116: 4943.764748 | R116: 4991.771312 | S116: 5036.777466 | T116: 5078.970736 | U116: 5118.351121
B119: Trade Effluent
B121: Annual chargeable volume (excluding large users) | N121: =IF($P$2=1,N261,IF($P$2=2,W261,AF261)) -> 4156792 | O121: 3309760 | P121: 3982384 | Q121: 4118923 | R121: 4164592 | S121: 4165192 | T121: 4165792 | U121: 4166392
B122: Annual Chargeable Consumption (Large User) | N122: 2599206 | O122: 2065812 | P122: 2482647 | Q122: 2564272 | R122: 2599206 | S122: 2599206 | T122: 2599206 | U122: 2599206
B123: Total Volume | N123: 6755998 | O123: 5375572 | P123: 6465031 | Q123: 6683195 | R123: 6763798 | S123: 6764398 | T123: 6764998 | U123: 6765598
B126: Allocations:
B128: % Revenue allocated to Revenue groups (net of non-primary revenue) | P128: =IF($P$2=1,P268,IF($P$2=2,Y268,AH268)) -> 2021-22 | Q128: =IF($P$2=1,Q268,IF($P$2=2,Z268,AI268)) -> 2022-23 | R128: =IF($P$2=1,R268,IF($P$2=2,AA268,AJ268)) -> 2023-24 | S128: =IF($P$2=1,S268,IF($P$2=2,AB268,AK268)) -> 2024-25 | T128: =IF($P$2=1,T268,IF($P$2=2,AC268,AL268)) -> 2025-26 | U128: =IF($P$2=1,U268,IF($P$2=2,AD268,AM268)) -> 2026-27
B129: Revenue Group 1: domestic measured water | P129: 0 | Q129: 0 | R129: 0 | S129: 0 | T129: 0 | U129: 0
B130: Revenue Group 2: domestic measured sewerage | P130: 0 | Q130: 0 | R130: 0 | S130: 0 | T130: 0 | U130: 0
B131: Revenue Group 3: domestic unmeasured water | P131: 0.3369937434 | Q131: 0.3377930136 | R131: 0.3388783973 | S131: 0.3327436033 | T131: 0.3249798274 | U131: 0.3232780268
B132: Revenue Group 4: domestic unmeasured sewerage | P132: 0.408080063 | Q132: 0.3992663785 | R132: 0.3956779982 | S132: 0.4015246078 | T132: 0.4086857851 | U132: 0.4100895833
B133: Revenue Group 5: non-domestic measured water | P133: 0.1064356444 | Q133: 0.1116378855 | R133: 0.1145913572 | S133: 0.1125011972 | T133: 0.1100738465 | U133: 0.1095903865
B134: Revenue Group 6: non-domestic measured sewerage | P134: 0.06696646106 | Q134: 0.07046332435 | R134: 0.07031529175 | S134: 0.0714752843 | T134: 0.07304743048 | U134: 0.07352747609
B135: Revenue Group 7: non-domestic unmeasured water | P135: 0.00461814728 | Q135: 0.004754867805 | R135: 0.004860460486 | S135: 0.004824230956 | T135: 0.004730619097 | U135: 0.004719956638
B136: Revenue Group 8: non-domestic unmeasured sewerage | P136: 0.005871153182 | Q136: 0.005912889083 | R136: 0.005982573392 | S136: 0.006151162599 | T136: 0.006309173495 | U136: 0.00637575431
B137: Revenue Group 9: trade effluent | P137: 0.07103478757 | Q137: 0.07017164119 | R137: 0.06969392169 | S137: 0.07077991388 | T137: 0.072173318 | U137: 0.0724188164
B138: Total revenue | P138: 1 | Q138: 1 | R138: 1 | S138: 1 | T138: 1 | U138: 1
B149: Non-Domestic Measured Water | N149: PC21 Business Plan | W149: Reasonable | AF149: Final Determination Figures
B151: Tariff multipliers: Supply pipe size - existing customers
B152: Up to 20mm | C152: nr | N152: 60000 | O152: 60704 | P152: 61201 | Q152: 61398 | R152: 61595 | S152: 61792 | T152: 61989 | U152: 62186 | W152: 60000 | X152: 60704 | Y152: 59794 | Z152: 60560 | AA152: =+R152 -> 61595 | AB152: =+S152 -> 61792 | AC152: =+T152 -> 61989 | AD152: 62186
B153: Over 20mm up to 25mm | C153: nr | N153: 6655 | O153: 6677 | P153: 6699 | Q153: 6721 | R153: 6743 | S153: 6765 | T153: 6787 | U153: 6809 | W153: 6655 | X153: 6677 | Y153: 6681 | Z153: 6697 | AA153: =+R153 -> 6743 | AB153: 6765 | AC153: 6787 | AD153: 6809
B154: Over 25mm up to 40mm | C154: nr | N154: 1155 | O154: 1169 | P154: 1178 | Q154: 1187 | R154: 1196 | S154: 1205 | T154: 1214 | U154: 1223 | W154: 1155 | X154: 1169 | Y154: 1178 | Z154: 1187 | AA154: 1196 | AB154: 1205 | AC154: 1214 | AD154: 1223
B155: Over 40mm up to 50mm | C155: nr | N155: 1268 | O155: 1279 | P155: 1289 | Q155: 1299 | R155: 1309 | S155: 1319 | T155: 1329 | U155: 1339 | W155: 1268 | X155: 1279 | Y155: 1289 | Z155: 1299 | AA155: 1309 | AB155: 1319 | AC155: 1329 | AD155: 1339
B156: Over 50mm up to 75mm | C156: nr | N156: 930 | O156: 939 | P156: 946 | Q156: 953 | R156: 960 | S156: 967 | T156: 974 | U156: 981 | W156: 930 | X156: 939 | Y156: 946 | Z156: 953 | AA156: 960 | AB156: 967 | AC156: 974 | AD156: 981
B157: Over 75mm up to 100mm | C157: nr | N157: 476 | O157: 481 | P157: 485 | Q157: 489 | R157: 493 | S157: 497 | T157: 501 | U157: 505 | W157: 476 | X157: 481 | Y157: 485 | Z157: 489 | AA157: 493 | AB157: 497 | AC157: 501 | AD157: 505
B158: Over 100mm | C158: nr | N158: 121 | O158: 122 | P158: 123 | Q158: 124 | R158: 125 | S158: 126 | T158: 127 | U158: 128 | W158: 121 | X158: 122 | Y158: 123 | Z158: 124 | AA158: 125 | AB158: 126 | AC158: 127 | AD158: 128
B159: Total | C159: nr | N159: =+SUM(N152:N158) -> 70605 | O159: =+SUM(O152:O158) -> 71371 | P159: 71921 | Q159: 72171 | R159: 72421 | S159: 72671 | T159: 72921 | U159: 73171 | W159: =+SUM(W152:W158) -> 70605 | X159: =+SUM(X152:X158) -> 71371 | Y159: 70496 | Z159: 71309 | AA159: 72421 | AB159: 72671 | AC159: 72921 | AD159: 73171
B161: Tariff multipliers: Supply pipe size - new customers
B162: Up to 20mm | C162: nr | N162: 704 | O162: 497 | P162: 197 | Q162: 197 | R162: 197 | S162: 197 | T162: 197 | U162: 197 | W162: 704 | X162: -910 | Y162: 766 | Z162: 557 | AA162: =+R162 -> 197 | AB162: 197 | AC162: 197 | AD162: 197
B163: Over 20mm up to 25mm | C163: nr | N163: 22 | O163: 22 | P163: 22 | Q163: 22 | R163: 22 | S163: 22 | T163: 22 | U163: 22 | W163: 22 | X163: 4 | Y163: 16 | Z163: 27 | AA163: 22 | AB163: 22 | AC163: 22 | AD163: 22
B164: Over 25mm up to 40mm | C164: nr | N164: 14 | O164: 9 | P164: 9 | Q164: 9 | R164: 9 | S164: 9 | T164: 9 | U164: 9 | W164: 14 | X164: 9 | Y164: 9 | Z164: 9 | AA164: 9 | AB164: 9 | AC164: 9 | AD164: 9
B165: Over 40mm up to 50mm | C165: nr | N165: 11 | O165: 10 | P165: 10 | Q165: 10 | R165: 10 | S165: 10 | T165: 10 | U165: 10 | W165: 11 | X165: 10 | Y165: 10 | Z165: 10 | AA165: 10 | AB165: 10 | AC165: 10 | AD165: 10
B166: Over 50mm up to 75mm | C166: nr | N166: 9 | O166: 7 | P166: 7 | Q166: 7 | R166: 7 | S166: 7 | T166: 7 | U166: 7 | W166: 9 | X166: 7 | Y166: 7 | Z166: 7 | AA166: 7 | AB166: 7 | AC166: 7 | AD166: 7
B167: Over 75mm up to 100mm | C167: nr | N167: 5 | O167: 4 | P167: 4 | Q167: 4 | R167: 4 | S167: 4 | T167: 4 | U167: 4 | W167: 5 | X167: 4 | Y167: 4 | Z167: 4 | AA167: 4 | AB167: 4 | AC167: 4 | AD167: 4
B168: Over 100mm | C168: nr | N168: 1 | O168: 1 | P168: 1 | Q168: 1 | R168: 1 | S168: 1 | T168: 1 | U168: 1 | W168: 1 | X168: 1 | Y168: 1 | Z168: 1 | AA168: 1 | AB168: 1 | AC168: 1 | AD168: 1
B169: Total | C169: nr | N169: =+SUM(N162:N168) -> 766 | O169: 550 | P169: 250 | Q169: 250 | R169: 250 | S169: 250 | T169: 250 | U169: 250 | W169: =+SUM(W162:W168) -> 766 | X169: =+SUM(X162:X168) -> -875 | Y169: 813 | Z169: 615 | AA169: 250 | AB169: 250 | AC169: 250 | AD169: 250
B171: Tariffs: Customer Volume
B172: Volume subject to volumetric charge - existing customers exc. DAV | C172: m3 | N172: 25735533.63 | O172: 25896265 | P172: 25922161.27 | Q172: 25948057.53 | R172: 25973953.8 | S172: 25999850.06 | T172: 26025746.32 | U172: 26051642.59 | W172: 25735533.63 | X172: 19119769 | Y172: 23936538 | Z172: 25466549 | AA172: =+R172 -> 25973953.8 | AB172: 25999850.06 | AC172: 26025746.32 | AD172: 26051642.59
B173: Volume subject to volumetric charge - new customers | C173: m3 | N173: 247131 | O173: 328411 | P173: 296091 | Q173: 313771 | R173: 331451 | S173: 349131 | T173: 366811 | U173: 384491 | W173: 247131 | X173: 66904 | Y173: 7495.36 | Z173: 43492.8 | AA173: 331451 | AB173: 349131 | AC173: 366811 | AD173: 384491
B174: Total volume | C174: m3 | N174: =+SUM(N172:N173) -> 25982664.63 | O174: =+SUM(O172:O173) -> 26224676 | P174: 26218252.27 | Q174: 26261828.53 | R174: 26305404.8 | S174: 26348981.06 | T174: 26392557.32 | U174: 26436133.59 | W174: =+SUM(W172:W173) -> 25982664.63 | X174: =+SUM(X172:X173) -> 19186673 | Y174: 23944033.36 | Z174: 25510041.8 | AA174: 26305404.8 | AB174: 26348981.06 | AC174: 26392557.32 | AD174: 26436133.59
B176: Domestic Allowance
B177: Domestic Allowance Volume | C177: m3 | N177: 9299079 | O177: 9483399 | P177: 9467719 | Q177: 9502039 | R177: 9536359 | S177: 9570679 | T177: 9604999 | U177: 9639319 | W177: 9299079 | X177: 9287775 | Y177: 9349384 | Z177: 9433811.2 | AA177: =+R177 -> 9536359 | AB177: =+S177 -> 9570679 | AC177: =+T177 -> 9604999 | AD177: 9639319
B179: Tariff multipliers: Large user Tariff Volumes
B180: Annual consumption between 0 and 100,000 m³ | C180: m2 | N180: 2036571 | O180: 2036571 | P180: 2038607.571 | Q180: 2040644.142 | R180: 2042680.713 | S180: 2044717.284 | T180: 2046753.855 | U180: 2048790.426 | W180: 2036571 | X180: 1675340 | Y180: 1972989 | Z180: 2014186 | AA180: =+R180 -> 2042680.713 | AB180: 2044717.284 | AC180: 2046753.855 | AD180: 2048790.426
B181: Annual consumption between 100,000m³ and 250,000 m³ | C181: m3 | N181: 1747351.516 | O181: 1747351.516 | P181: 1749098.868 | Q181: 1750846.22 | R181: 1752593.571 | S181: 1754340.923 | T181: 1756088.274 | U181: 1757835.626 | W181: 1747351.516 | X181: 1437420 | Y181: 1692799 | Z181: 1728146 | AA181: 1752593.571 | AB181: 1754340.923 | AC181: 1756088.274 | AD181: 1757835.626
B182: Annual consumption between 250,000m³ and 500,000 m³ | C182: m3 | N182: 991503.6744 | O182: 991503.6744 | P182: 992495.1781 | Q182: 993486.6817 | R182: 994478.1854 | S182: 995469.6891 | T182: 996461.1928 | U182: 997452.6964 | W182: 991503.6744 | X182: 815638 | Y182: 960549 | Z182: 980606 | AA182: 994478.1854 | AB182: 995469.6891 | AC182: 996461.1928 | AD182: 997452.6964
B183: Annual consumption over 500,000 m³ | C183: m3 | N183: 1664297.838 | O183: 1664297.838 | P183: 1665962.136 | Q183: 1667626.434 | R183: 1669290.732 | S183: 1670955.03 | T183: 1672619.328 | U183: 1674283.625 | W183: 1664297.838 | X183: 1369097 | Y183: 1612338 | Z183: 1646005 | AA183: 1669290.732 | AB183: 1670955.03 | AC183: 1672619.328 | AD183: 1674283.625
B184: Total Large User annual consumption m³ | C184: m3 | N184: =+SUM(N180:N183) -> 6439724.029 | O184: =+SUM(O180:O183) -> 6439724.029 | P184: 6446163.753 | Q184: 6452603.477 | R184: 6459043.201 | S184: 6465482.925 | T184: 6471922.649 | U184: 6478362.373 | W184: =+SUM(W180:W183) -> 6439724.029 | X184: =+SUM(X180:X183) -> 5297495 | Y184: 6238675 | Z184: 6368943 | AA184: 6459043.201 | AB184: 6465482.925 | AC184: 6471922.649 | AD184: 6478362.373
B187: Non-Domestic Measured Sewerage
B189: Tariff multipliers: Supply pipe size - existing customers
B190: Up to 20mm | C190: nr | N190: 16458 | O190: 16752 | P190: 16991 | Q190: 17149 | R190: 17307 | S190: 17455 | T190: 17603 | U190: 17741 | W190: =N190 -> 16458 | X190: 16752 | Y190: 15610 | Z190: 16348 | AA190: =R190 -> 17307 | AB190: =S190 -> 17455 | AC190: 17603 | AD190: 17741
B191: Over 20mm up to 25mm | C191: nr | N191: 4707 | O191: 4725 | P191: 4743 | Q191: 4761 | R191: 4779 | S191: 4796 | T191: 4813 | U191: 4828 | W191: 4707 | X191: 4725 | Y191: 4728 | Z191: 4741 | AA191: =R191 -> 4779 | AB191: 4796 | AC191: 4813 | AD191: 4828
B192: Over 25mm up to 40mm | C192: nr | N192: 1048 | O192: 1060 | P192: 1067 | Q192: 1074 | R192: 1081 | S192: 1088 | T192: 1095 | U192: 1101 | W192: 1048 | X192: 1060 | Y192: 1067 | Z192: 1074 | AA192: 1081 | AB192: 1088 | AC192: 1095 | AD192: 1101
B193: Over 40mm up to 50mm | C193: nr | N193: 1120 | O193: 1129 | P193: 1137 | Q193: 1145 | R193: 1153 | S193: 1161 | T193: 1169 | U193: 1176 | W193: 1120 | X193: 1129 | Y193: 1137 | Z193: 1145 | AA193: 1153 | AB193: 1161 | AC193: 1169 | AD193: 1176
B194: Over 50mm up to 75mm | C194: nr | N194: 808 | O194: 815 | P194: 821 | Q194: 827 | R194: 833 | S194: 838 | T194: 843 | U194: 848 | W194: 808 | X194: 815 | Y194: 821 | Z194: 827 | AA194: 833 | AB194: 838 | AC194: 843 | AD194: 848
B195: Over 75mm up to 100mm | C195: nr | N195: 429 | O195: 433 | P195: 436 | Q195: 439 | R195: 442 | S195: 445 | T195: 448 | U195: 451 | W195: 429 | X195: 433 | Y195: 436 | Z195: 439 | AA195: 442 | AB195: 445 | AC195: 448 | AD195: 451
B196: Over 100mm | C196: nr | N196: 110 | O196: 111 | P196: 112 | Q196: 113 | R196: 114 | S196: 115 | T196: 116 | U196: 117 | W196: 110 | X196: 111 | Y196: 112 | Z196: 113 | AA196: 114 | AB196: 115 | AC196: 116 | AD196: 117
B197: Total | C197: nr | N197: =+SUM(N190:N196) -> 24680 | O197: =+SUM(O190:O196) -> 25025 | P197: 25307 | Q197: 25508 | R197: 25709 | S197: 25898 | T197: 26087 | U197: 26262 | W197: =+SUM(W190:W196) -> 24680 | X197: =+SUM(X190:X196) -> 25025 | Y197: 23911 | Z197: 24687 | AA197: 25709 | AB197: 25898 | AC197: 26087 | AD197: 26262
B199: Tariff multipliers: Supply pipe size - new customers
B200: Up to 20mm | C200: nr | N200: 294 | O200: 239 | P200: 158 | Q200: 158 | R200: 148 | S200: 148 | T200: 138 | U200: 138 | W200: =N200 -> 294 | X200: -1142 | Y200: 738 | Z200: 509 | AA200: =R200 -> 148 | AB200: =S200 -> 148 | AC200: 138 | AD200: 138
B201: Over 20mm up to 25mm | C201: nr | N201: 18 | O201: 18 | P201: 18 | Q201: 18 | R201: 17 | S201: 17 | T201: 15 | U201: 15 | W201: =N201 -> 18 | X201: 3 | Y201: 13 | Z201: 22 | AA201: =R201 -> 17 | AB201: 17 | AC201: 15 | AD201: 15
B202: Over 25mm up to 40mm | C202: nr | N202: 12 | O202: 7 | P202: 7 | Q202: 7 | R202: 7 | S202: 7 | T202: 6 | U202: 6 | W202: 12 | X202: 7 | Y202: 7 | Z202: 7 | AA202: 7 | AB202: 7 | AC202: 6 | AD202: 6
B203: Over 40mm up to 50mm | C203: nr | N203: 9 | O203: 8 | P203: 8 | Q203: 8 | R203: 8 | S203: 8 | T203: 7 | U203: 7 | W203: 9 | X203: 8 | Y203: 8 | Z203: 8 | AA203: 8 | AB203: 8 | AC203: 7 | AD203: 7
B204: Over 50mm up to 75mm | C204: nr | N204: 7 | O204: 6 | P204: 6 | Q204: 6 | R204: 5 | S204: 5 | T204: 5 | U204: 5 | W204: 7 | X204: 6 | Y204: 6 | Z204: 6 | AA204: 5 | AB204: 5 | AC204: 5 | AD204: 5
B205: Over 75mm up to 100mm | C205: nr | N205: 4 | O205: 3 | P205: 3 | Q205: 3 | R205: 3 | S205: 3 | T205: 3 | U205: 3 | W205: 4 | X205: 3 | Y205: 3 | Z205: 3 | AA205: 3 | AB205: 3 | AC205: 3 | AD205: 3
B206: Over 100mm | C206: nr | N206: 1 | O206: 1 | P206: 1 | Q206: 1 | R206: 1 | S206: 1 | T206: 1 | U206: 1 | W206: 1 | X206: 1 | Y206: 1 | Z206: 1 | AA206: 1 | AB206: 1 | AC206: 1 | AD206: 1
B207: Total | C207: nr | N207: =+SUM(N200:N206) -> 345 | O207: 282 | P207: 201 | Q207: 201 | R207: 189 | S207: 189 | T207: 175 | U207: 175 | W207: =+SUM(W200:W206) -> 345 | X207: =+SUM(X200:X206) -> -1114 | Y207: 776 | Z207: 556 | AA207: 189 | AB207: 189 | AC207: 175 | AD207: 175
B209: Tariffs: Customer Volume
B210: Volume subject to volumetric charge - existing customers exc. DAV | C210: m3 | N210: 9919252.578 | O210: 9966543 | P210: 9976509.543 | Q210: 9986476.086 | R210: 9996442.629 | S210: 10006409.17 | T210: 10016375.71 | U210: 10026342.26 | W210: =N210 -> 9919252.578 | X210: 6990481 | Y210: 9094811 | Z210: 9794542 | AA210: =R210 -> 9996442.629 | AB210: =S210 -> 10006409.17 | AC210: 10016375.71 | AD210: 10026342.26
B211: Volume subject to volumetric charge - new customers | C211: m3 | N211: 67810 | O211: 81886 | P211: 95554 | Q211: 109222 | R211: 122074 | S211: 134926 | T211: 146826 | U211: 158726 | W211: =N211 -> 67810 | X211: -60852 | Y211: 52768 | Z211: 37808 | AA211: =R211 -> 122074 | AB211: 134926 | AC211: 146826 | AD211: 158726
B212: Total volume | C212: m3 | N212: =+SUM(N210:N211) -> 9987062.578 | O212: =+SUM(O210:O211) -> 10048429 | P212: 10072063.54 | Q212: 10095698.09 | R212: 10118516.63 | S212: 10141335.17 | T212: 10163201.71 | U212: 10185068.26 | W212: =+SUM(W210:W211) -> 9987062.578 | X212: =+SUM(X210:X211) -> 6929629 | Y212: 9147579 | Z212: 9832350 | AA212: 10118516.63 | AB212: 10141335.17 | AC212: 10163201.71 | AD212: 10185068.26
B214: Domestic Allowance
B215: Domestic Allowance Volume | C215: m3 | N215: 3530865 | O215: 3560865 | P215: 3587397 | Q215: 3613929 | R215: 3638877 | S215: 3663825 | T215: 3686925 | U215: 3710025 | W215: =N215 -> 3530865 | X215: 3403917 | Y215: 3506349 | Z215: 3579741 | AA215: =R215 -> 3638877 | AB215: =S215 -> 3663825 | AC215: 3686925 | AD215: 3710025
B217: Tariff multipliers: Large user Tariff Volumes
B218: Annual consumption between 0 and 100,000 m³ | C218: m2 | N218: 689228.9898 | O218: 689228.9898 | P218: 689918.2188 | Q218: 690607.4478 | R218: 691296.6767 | S218: 691985.9057 | T218: 692675.1347 | U218: 693364.3637 | W218: =N218 -> 689228.9898 | X218: 566979 | Y218: 667711 | Z218: 681653 | AA218: =R218 -> 691296.6767 | AB218: =S218 -> 691985.9057 | AC218: 692675.1347 | AD218: 693364.3637
B219: Annual consumption between 100,000m³ and 250,000 m³ | C219: m3 | N219: 333980.5619 | O219: 333980.5619 | P219: 334314.5425 | Q219: 334648.523 | R219: 334982.5036 | S219: 335316.4841 | T219: 335650.4647 | U219: 335984.4453 | W219: =N219 -> 333980.5619 | X219: 274742 | Y219: 323554 | Z219: 330310 | AA219: =R219 -> 334982.5036 | AB219: 335316.4841 | AC219: 335650.4647 | AD219: 335984.4453
B220: Annual consumption between 250,000m³ and 500,000 m³ | C220: m3 | N220: 0 | O220: 0 | P220: 0 | Q220: 0 | R220: 0 | S220: 0 | T220: 0 | U220: 0 | W220: =N220 -> 0 | X220: 0 | Y220: 0 | Z220: 0 | AA220: 0 | AB220: 0 | AC220: 0 | AD220: 0
B221: Annual consumption over 500,000 m³ | C221: m3 | N221: 0 | O221: 0 | P221: 0 | Q221: 0 | R221: 0 | S221: 0 | T221: 0 | U221: 0 | W221: =N221 -> 0 | X221: 0 | Y221: 0 | Z221: 0 | AA221: 0 | AB221: 0 | AC221: 0 | AD221: 0
B222: Total Large User annual consumption m³ | C222: m3 | N222: =+SUM(N218:N221) -> 1023209.552 | O222: =+SUM(O218:O221) -> 1023209.552 | P222: 1024232.761 | Q222: 1025255.971 | R222: 1026279.18 | S222: 1027302.39 | T222: 1028325.599 | U222: 1029348.809 | W222: =+SUM(W218:W221) -> 1023209.552 | X222: =+SUM(X218:X221) -> 841721 | Y222: 991265 | Z222: 1011963 | AA222: 1026279.18 | AB222: 1027302.39 | AC222: 1028325.599 | AD222: 1029348.809
B225: Non-Domestic Unmeasured Water
B227: Tariff multipliers: Standard
B228: Total number of billed properties | C228: nr | N228: 8422 | O228: 8022 | P228: 7772 | Q228: 7672 | R228: 7572 | S228: 7472 | T228: 7372 | U228: 7272 | W228: =N228 -> 8422 | X228: 7772 | Y228: 7397 | Z228: 7484.5 | AA228: 7509.5 | AB228: 7472 | AC228: 7372 | AD228: 7272
B229: Number of billed properties subject to separate standing charge | C229: nr | N229: 8069.520047 | O229: 7686.260961 | P229: 7446.724033 | Q229: 7350.909261 | R229: 7255.09449 | S229: 7159.279719 | T229: 7063.464947 | U229: 6967.650176 | W229: =SUM(W228-W231) -> 8069.520047 | X229: =SUM(X228-X231) -> 7436.260961 | Y229: 7071.724033 | Z229: 7163.409261 | AA229: 7192.59449 | AB229: 7159.279719 | AC229: 7063.464947 | AD229: 6967.650176
B230: Number of £1,000 Capital Value Units charges less than capped value | C230: nr | N230: 57088.74027 | O230: 54377.33014 | P230: 52682.69881 | Q230: 52004.84627 | R230: 51326.99374 | S230: 50649.14121 | T230: 49971.28868 | U230: 49293.43614 | W230: =W229*W232 -> 57088.74027 | X230: =X229*X232 -> 52608.67661 | Y230: 50029.71852 | Z230: 50678.35613 | AA230: 50884.83036 | AB230: 50649.14121 | AC230: 49971.28868 | AD230: 49293.43614
B231: Number of billed properties at capped level | C231: nr | N231: 352.4799531 | O231: 335.7390387 | P231: 325.2759672 | Q231: 321.0907386 | R231: 316.90551 | S231: 312.7202814 | T231: 308.5350528 | U231: 304.3498242 | W231: =N231 -> 352.4799531 | X231: 335.7390387 | Y231: 325.2759672 | Z231: 321.0907386 | AA231: 316.90551 | AB231: 312.7202814 | AC231: 308.5350528 | AD231: 304.3498242
W232: 7.074614095 | X232: 7.074614095 | Y232: 7.074614095 | Z232: 7.074614095 | AA232: 7.074614095 | AB232: 7.074614095 | AC232: 7.074614095 | AD232: 7.074614095
B234: Domestic Unmeasured Water
B236: Total number of billed properties | C236: nr | N236: =N237+N239 -> 750064.9 | O236: =O237+O239 -> 758664.9 | P236: 767214.9 | Q236: 775714.9 | R236: 783964.9 | S236: 791964.9 | T236: 799714.9 | U236: 807214.9 | W236: =N236 -> 750064.9 | X236: 756914.9 | Y236: 762840 | Z236: 770465 | AA236: 778715 | AB236: 786715 | AC236: 794465 | AD236: 801965
B237: Total number of standard customer properties subject to variable charge | C237: nr | N237: 744129.7742 | O237: 752661.724 | P237: 761144.0694 | Q237: 769576.8105 | R237: 777761.5298 | S237: 785698.2272 | T237: 793386.9029 | U237: 800827.5568 | W237: =N237 -> 744129.7742 | X237: =X236-X239 -> 750911.724 | Y237: =Y236-Y239 -> 756769.1694 | Z237: 764326.9105 | AA237: 772511.6298 | AB237: 780448.3272 | AC237: 788137.0029 | AD237: 795577.6568
B238: Number of £1,000 Capital Value Unit charges less than capped value | C238: nr | N238: 82523434.99 | O238: 83469621.84 | P238: 84410307.6 | Q238: 85345492.27 | R238: 86253171.51 | S238: 87133345.32 | T238: 87986013.69 | U238: 88811176.64 | W238: 82523434.99 | X238: =X237*X240 -> 83275548.15 | Y238: =Y237*Y240 -> 83925134.46 | Z238: 84763282.29 | AA238: 85670961.53 | AB238: 86551135.34 | AC238: 87403803.71 | AD238: 88228966.66
B239: Number of billed properties at capped level | C239: nr | N239: 5935.125752 | O239: 6003.175972 | P239: 6070.830551 | Q239: 6138.089489 | R239: 6203.370224 | S239: 6266.672754 | T239: 6327.99708 | U239: 6387.343202 | W239: 5935.125752 | X239: 6003.175972 | Y239: 6070.830551 | Z239: 6138.089489 | AA239: 6203.370224 | AB239: 6266.672754 | AC239: 6327.99708 | AD239: 6387.343202
W240: 110.8992515 | X240: 110.8992515 | Y240: 110.8992515 | Z240: 110.8992515 | AA240: 110.8992515 | AB240: 110.8992515 | AC240: 110.8992515 | AD240: 110.8992515
B242: Non-Domestic Unmeasured Sewerage
B244: Tariff multipliers: Standard
B245: Total number of billed properties | C245: nr | N245: 7207 | O245: 6875 | P245: 6669 | Q245: 6589 | R245: 6511.5 | S245: 6436.5 | T245: 6364 | U245: 6294 | W245: =N245 -> 7207 | X245: 6666 | Y245: 6351 | Z245: 6421 | AA245: 6440.375 | AB245: 6412.25 | AC245: 6339.75 | AD245: 6269.75
B246: Number of billed properties subject to separate standing charge | C246: nr | N246: 6749.710566 | O246: 6438.776209 | P246: 6245.84706 | Q246: 6170.923119 | R246: 6098.340551 | S246: 6028.099356 | T246: 5960.199534 | U246: 5894.641085 | W246: =N246 -> 6749.710566 | X246: =X245-X248 -> 6229.776209 | Y246: =Y245-Y248 -> 5927.84706 | Z246: 6002.923119 | AA246: 6027.215551 | AB246: 6003.849356 | AC246: 5935.949534 | AD246: 5870.391085
B247: Number of £1,000 Capital Value Units charges less than capped value | C247: nr | N247: 46477.61016 | O247: 44336.55749 | P247: 43008.073 | Q247: 42492.1567 | R247: 41992.36278 | S247: 41508.69124 | T247: 41041.14209 | U247: 40589.71532 | W247: 46477.61016 | X247: =X246*X249 -> 42897.41126 | Y247: =Y246*Y249 -> 40818.36725 | Z247: 41335.33102 | AA247: 41502.60548 | AB247: 41341.70896 | AC247: 40874.15981 | AD247: 40422.73304
B248: Number of billed properties at capped level | C248: nr | N248: 457.289434 | O248: 436.2237906 | P248: 423.1529396 | Q248: 418.0768809 | R248: 413.1594491 | S248: 408.4006441 | T248: 403.8004659 | U248: 399.3589146 | W248: 457.289434 | X248: 436.2237906 | Y248: 423.1529396 | Z248: 418.0768809 | AA248: 413.1594491 | AB248: 408.4006441 | AC248: 403.8004659 | AD248: 399.3589146
W249: 6.885867135 | X249: 6.885867135 | Y249: 6.885867135 | Z249: 6.885867135 | AA249: 6.885867135 | AB249: 6.885867135 | AC249: 6.885867135 | AD249: 6.885867135
B251: Domestic Unmeasured Sewerage
B253: Total number of billed properties | C253: nr | N253: =N254+N256 -> 638171.497 | O253: =O254+O256 -> 645309.497 | P253: 652278.497 | Q253: 659078.497 | R253: 665478.497 | S253: 671478.497 | T253: 677103.497 | U253: 682353.497 | W253: =N253 -> 638171.497 | X253: 643961.997 | Y253: 648883 | Z253: 654983 | AA253: 661383 | AB253: 667383 | AC253: 673008 | AD253: 678258
B254: Total number of standard customer properties subject to separate standing charge | C254: nr | N254: 633384.5562 | O254: 640469.0139 | P254: 647385.7392 | Q254: 654134.7323 | R254: 660486.7257 | S254: 666441.7195 | T254: 672024.5263 | U254: 677235.1459 | W254: =N254 -> 633384.5562 | X254: =X253-X256 -> 639121.5139 | Y254: =Y253-Y256 -> 643990.2422 | Z254: 650039.2353 | AA254: 656391.2287 | AB254: 662346.2225 | AC254: 667929.0293 | AD254: 673139.6489
B255: Number of £1,000 Capital Value Unit charges less than capped value | C255: nr | N255: 67094835.8 | O255: 67845296.99 | P255: 68577990.18 | Q255: 69292915.38 | R255: 69965786.15 | S255: 70596602.5 | T255: 71187992.83 | U255: 71739957.14 | W255: 67094835.8 | X255: =X254*X257 -> 67702555.44 | Y255: =Y254*Y257 -> 68218302.98 | Z255: 68859076.73 | AA255: 69531947.5 | AB255: 70162763.85 | AC255: 70754154.18 | AD255: 71306118.49
B256: Number of billed properties at capped level | C256: nr | N256: 4786.940803 | O256: 4840.483125 | P256: 4892.757773 | Q256: 4943.764748 | R256: 4991.771312 | S256: 5036.777466 | T256: 5078.970736 | U256: 5118.351121 | W256: 4786.940803 | X256: 4840.483125 | Y256: 4892.757773 | Z256: 4943.764748 | AA256: 4991.771312 | AB256: 5036.777466 | AC256: 5078.970736 | AD256: 5118.351121
W257: 105.9306469 | X257: 105.9306469 | Y257: 105.9306469 | Z257: 105.9306469 | AA257: 105.9306469 | AB257: 105.9306469 | AC257: 105.9306469 | AD257: 105.9306469
B259: Trade Effluent
B261: Annual chargeable volume (excluding large users) | N261: 4156792 | O261: 4162792 | P261: 4163392 | Q261: 4163992 | R261: 4164592 | S261: 4165192 | T261: 4165792 | U261: 4166392 | W261: =N261 -> 4156792 | X261: 3309760 | Y261: 3982384 | Z261: 4118923 | AA261: =R261 -> 4164592 | AB261: =S261 -> 4165192 | AC261: 4165792 | AD261: 4166392
B262: Annual Chargeable Consumption (Large User) | N262: 2599206 | O262: 2599206 | P262: 2599206 | Q262: 2599206 | R262: 2599206 | S262: 2599206 | T262: 2599206 | U262: 2599206 | W262: =N262 -> 2599206 | X262: 2065812 | Y262: 2482647 | Z262: 2564272 | AA262: =R262 -> 2599206 | AB262: 2599206 | AC262: 2599206 | AD262: 2599206
B263: Total Volume | N263: =SUM(N261:N262) -> 6755998 | O263: =SUM(O261:O262) -> 6761998 | P263: 6762598 | Q263: 6763198 | R263: 6763798 | S263: 6764398 | T263: 6764998 | U263: 6765598 | W263: =SUM(W261:W262) -> 6755998 | X263: 5375572 | Y263: 6465031 | Z263: 6683195 | AA263: 6763798 | AB263: 6764398 | AC263: 6764998 | AD263: 6765598
B266: Allocations:
B268: % Revenue allocated to Revenue groups (net of non-primary revenue) | P268: 2021-22 | Q268: 2022-23 | R268: 2023-24 | S268: 2024-25 | T268: 2025-26 | U268: 2026-27 | Y268: 2021-22 | Z268: 2022-23 | AA268: 2023-24 | AB268: 2024-25 | AC268: 2025-26 | AD268: 2026-27
... 12 more rows

Sheet Calculations
A1: Model_Navigation
C2: =+Inputs!C2 -> Prices | D2: =+Inputs!D2 -> Units | E2: =+Inputs!E2 -> Additional Info | G2: =+Inputs!G2 -> 2012-13 | H2: =+Inputs!H2 -> 2013-14 | I2: =+Inputs!I2 -> 2014-15 | J2: =+Inputs!J2 -> 2015-16 | K2: =+Inputs!K2 -> 2016-17 | L2: =+Inputs!L2 -> 2017-18 | M2: =+Inputs!M2 -> 2018-19 | N2: =+Inputs!N2 -> 2019-20 | O2: =+Inputs!O2 -> 2020-21 | P2: =+Inputs!P2 -> 2021-22 | Q2: =+Inputs!Q2 -> 2022-23 | R2: =+Inputs!R2 -> 2023-24 | S2: =+Inputs!S2 -> 2024-25 | T2: =+Inputs!T2 -> 2025-26 | U2: =+Inputs!U2 -> 2026-27 | V2: =+Inputs!V2 -> PC21
B4: RPI | D4: nr | G4: =Inputs!G5 -> 244.675 | H4: =Inputs!H5 -> 251.733 | I4: =Inputs!I5 -> 256.667 | J4: =Inputs!J5 -> 259.433 | K4: =Inputs!K5 -> 264.992 | L4: =Inputs!L5 -> 274.908 | M4: =Inputs!M5 -> 283.308 | N4: =Inputs!N5 -> 290.642 | O4: =Inputs!O5 -> 294.457 | P4: =Inputs!P5 -> 302.016 | Q4: =Inputs!Q5 -> 308.354 | R4: =Inputs!R5 -> 315.922 | S4: =Inputs!S5 -> 324.907 | T4: =Inputs!T5 -> 334.54 | U4: =Inputs!U5 -> 344.5762
A5: Opex
B6: =+Inputs!B78 -> Operating Expenditure | C6: Nominal | D6: £m | P6: =+Inputs!P78/$M$4*P$4 -> 179.6509914 | Q6: =+Inputs!Q78/$M$4*Q$4 -> 183.1309902 | R6: =+Inputs!R78/$M$4*R$4 -> 185.6495095 | S6: =+Inputs!S78/$M$4*S$4 -> 190.1138118 | T6: =+Inputs!T78/$M$4*T$4 -> 196.0601121 | U6: =+Inputs!U78/$M$4*U$4 -> 202.4540652 | V6: =SUM(P6:U6) -> 1137.05948
B7: =+Inputs!B79 -> BIP | C7: Nominal | D7: £m | P7: =+Inputs!P79/$M$4*P$4 -> 1.348040016 | Q7: =+Inputs!Q79/$M$4*Q$4 -> 1.359040091 | R7: =+Inputs!R79/$M$4*R$4 -> 1.048717364 | S7: =+Inputs!S79/$M$4*S$4 -> 1.057692808 | T7: =+Inputs!T79/$M$4*T$4 -> 0.4295752385 | U7: =+Inputs!U79/$M$4*U$4 -> 0.4405400329 | V7: =SUM(P7:U7) -> 5.68360555
B8: =+Inputs!B80 -> VER | C8: Nominal | D8: £m | P8: =+Inputs!P80/$M$4*P$4 -> 0.4666292362 | Q8: =+Inputs!Q80/$M$4*Q$4 -> 0.4704369547 | R8: =+Inputs!R80/$M$4*R$4 -> 0.4719228139 | S8: =+Inputs!S80/$M$4*S$4 -> 0.4759617635 | T8: =+Inputs!T80/$M$4*T$4 -> 0.4832721433 | U8: =+Inputs!U80/$M$4*U$4 -> 0.4956075371 | V8: =SUM(P8:U8) -> 2.863830449
A9: PPP
B10: PPP
B11: Operating Costs | C11: Nominal | D11: £m | P11: =+Inputs!P92+Inputs!P98+Inputs!P104 -> 24.80646935 | Q11: =+Inputs!Q92+Inputs!Q98+Inputs!Q104 -> 26.19044821 | R11: =+Inputs!R92+Inputs!R98+Inputs!R104 -> 26.73599823 | S11: =+Inputs!S92+Inputs!S98+Inputs!S104 -> 26.07989308 | T11: =+Inputs!T92+Inputs!T98+Inputs!T104 -> 26.67735224 | U11: =+Inputs!U92+Inputs!U98+Inputs!U104 -> 30.49263158
B12: Capital Maintenance | C12: Nominal | D12: £m | P12: =+Inputs!P93+Inputs!P99+Inputs!P105 -> 3.658 | Q12: =+Inputs!Q93+Inputs!Q99+Inputs!Q105 -> 3.658 | R12: =+Inputs!R93+Inputs!R99+Inputs!R105 -> 3.658 | S12: =+Inputs!S93+Inputs!S99+Inputs!S105 -> 3.544333333 | T12: =+Inputs!T93+Inputs!T99+Inputs!T105 -> 3.534 | U12: =+Inputs!U93+Inputs!U99+Inputs!U105 -> 3.534
B13: Capital Repayment of Finance Lease | C13: Nominal | D13: £m | P13: =+Inputs!P94+Inputs!P100+Inputs!P106 -> 8.668 | Q13: =+Inputs!Q94+Inputs!Q100+Inputs!Q106 -> 10.406 | R13: =+Inputs!R94+Inputs!R100+Inputs!R106 -> 11.798 | S13: =+Inputs!S94+Inputs!S100+Inputs!S106 -> 12.866 | T13: =+Inputs!T94+Inputs!T100+Inputs!T106 -> 14.351 | U13: =+Inputs!U94+Inputs!U100+Inputs!U106 -> 17.666
B14: Finance Lease Interest | C14: Nominal | D14: £m | P14: =+Inputs!P95+Inputs!P101+Inputs!P107 -> 16.658 | Q14: =+Inputs!Q95+Inputs!Q101+Inputs!Q107 -> 15.8 | R14: =+Inputs!R95+Inputs!R101+Inputs!R107 -> 14.792 | S14: =+Inputs!S95+Inputs!S101+Inputs!S107 -> 13.66 | T14: =+Inputs!T95+Inputs!T101+Inputs!T107 -> 12.471 | U14: =+Inputs!U95+Inputs!U101+Inputs!U107 -> 11.112
B15: Payment to Contractor / Unitary Charge | C15: Nominal | D15: £m | P15: =SUM(P11:P14) -> 53.79046935 | Q15: 56.05444821 | R15: 56.98399823 | S15: 56.15022641 | T15: 57.03335224 | U15: 62.80463158
B17: PPP Creditor Opening | C17: Nominal | D17: £m | P17: =+Inputs!P111 -> 183.49 | Q17: =+P19 -> 174.822 | R17: =+Q19 -> 164.416 | S17: =+R19 -> 152.618 | T17: =+S19 -> 139.752 | U17: =+T19 -> 125.401
B18: Capital Repayment | C18: Nominal | D18: £m | P18: =-P13 -> -8.668 | Q18: -10.406 | R18: -11.798 | S18: -12.866 | T18: -14.351 | U18: -17.666
B19: PPP Creditor Closing | C19: Nominal | D19: £m | P19: =SUM(P17:P18) -> 174.822 | Q19: =SUM(Q17:Q18) -> 164.416 | R19: 152.618 | S19: 139.752 | T19: 125.401 | U19: 107.735
B21: RCV - Project Clear
B22: Remaining Life | D22: Years | P22: =+Inputs!P88 -> 10 | Q22: =+P22-1 -> 9 | R22: =+Q22-1 -> 8 | S22: =+R22-1 -> 7 | T22: =+S22-1 -> 6 | U22: =+T22-1 -> 5
B23: Closing RCV (previous year) | C23: Nominal | D23: £m | P23: =+Inputs!P89 -> 29.263 | Q23: =+P27 -> 27.01278892 | R23: =+Q27 -> 24.51526193 | S23: =+R27 -> 21.97732722 | T23: =+S27 -> 19.37346412 | U23: =+T27 -> 16.62321497
B24: Indexation | C24: Nominal | D24: £m | P24: =+P23*((P4-O4)/O4) -> 0.7512099118 | Q24: =+Q23*((Q4-P4)/P4) -> 0.5668807486 | R24: 0.6016834621 | S24: 0.625047591 | T24: 0.5743938415 | U24: 0.4986964491
B25: Opening RCV | C25: Nominal | D25: £m | P25: =+P23+P24 -> 30.01420991 | Q25: 27.57966967 | R25: 25.11694539 | S25: 22.60237481 | T25: 19.94785796 | U25: 17.12191142
B26: Depreciation of Capital Grants | C26: Nominal | D26: £m | P26: =-P25/P22 -> -3.001420991 | Q26: -3.064407741 | R26: -3.139618174 | S26: -3.228910687 | T26: -3.324642994 | U26: -3.424382284
B27: Closing RCV | C27: Nominal | D27: £m | P27: =SUM(P25:P26) -> 27.01278892 | Q27: 24.51526193 | R27: 21.97732722 | S27: 19.37346412 | T27: 16.62321497 | U27: 13.69752913
B28: Average Year RCV | C28: Nominal | D28: £m | P28: =(+P23+P27)/2 -> 28.13789446 | Q28: 25.76402542 | R28: 23.24629457 | S28: 20.67539567 | T28: 17.99833954 | U28: 15.16037205
B29: WACC | D29: % | P29: =+Inputs!P72 -> 0.0221 | Q29: =+Inputs!Q72 -> 0.0237 | R29: =+Inputs!R72 -> 0.021 | S29: =+Inputs!S72 -> 0.0187 | T29: =+Inputs!T72 -> 0.0171 | U29: =+Inputs!U72 -> 0.0167
B30: Return on the RCV | C30: Nominal | D30: £m | P30: =+P28*P29/(SQRT(1+P29)) -> 0.615087889 | Q30: 0.6034978308 | R30: 0.4831257222 | S30: 0.3830648323 | T30: 0.3051734335 | U30: 0.2510902903
B32: Unitary charge | C32: Nominal | D32: £m | P32: =+P15 -> 53.79046935 | Q32: 56.05444821 | R32: 56.98399823 | S32: 56.15022641 | T32: 57.03335224 | U32: 62.80463158
B33: Depreciation | C33: Nominal | D33: £m | P33: =-P26 -> 3.001420991 | Q33: 3.064407741 | R33: 3.139618174 | S33: 3.228910687 | T33: 3.324642994 | U33: 3.424382284
B34: Project Clear benefits returned to customers | C34: Nominal | D34: £m | P34: =-Inputs!P109 -> -5.615914617 | Q34: =-Inputs!Q109 -> -6.360246012 | R34: =-Inputs!R109 -> -6.516111799 | S34: =-Inputs!S109 -> -6.700340231 | T34: =-Inputs!T109 -> -6.897204207 | U34: =-Inputs!U109 -> -9.278211443
P35: =SUM(P32:P34) -> 51.17597572 | Q35: 52.75860994 | R35: 53.6075046 | S35: 52.67879686 | T35: 53.46079102 | U35: 56.95080242
A36: Capex
B37: Capex & Disposals
B38: =+Inputs!B32 -> NIAMP
B39: =+Inputs!B33 -> Maintenance Non Infrastruture | C39: Nominal | D39: £m | N39: =+Inputs!N33/$M$4*N$4 -> 52.93933156 | O39: =+Inputs!O33/$M$4*O$4 -> 71.71825555 | P39: =+Inputs!P33/$M$4*P$4 -> 53.24687423 | Q39: =+Inputs!Q33/$M$4*Q$4 -> 78.77358177 | R39: =+Inputs!R33/$M$4*R$4 -> 90.33777272 | S39: =+Inputs!S33/$M$4*S$4 -> 92.80377559 | T39: =+Inputs!T33/$M$4*T$4 -> 93.55729785 | U39: =+Inputs!U33/$M$4*U$4 -> 88.96845267 | V39: =SUM(P39:U39) -> 497.6877548
B40: =+Inputs!B34 -> Enhancement Non Infrastructure | C40: Nominal | D40: £m | N40: =+Inputs!N34/$M$4*N$4 -> 29.08708622 | O40: =+Inputs!O34/$M$4*O$4 -> 39.26403607 | P40: =+Inputs!P34/$M$4*P$4 -> 41.94198793 | Q40: =+Inputs!Q34/$M$4*Q$4 -> 43.56430455 | R40: =+Inputs!R34/$M$4*R$4 -> 58.87157288 | S40: =+Inputs!S34/$M$4*S$4 -> 87.14032358 | T40: =+Inputs!T34/$M$4*T$4 -> 87.10522605 | U40: =+Inputs!U34/$M$4*U$4 -> 70.657378 | V40: 389.280793
B41: =+Inputs!B35 -> Maintenance Infrastruture | C41: Nominal | D41: £m | N41: =+Inputs!N35/$M$4*N$4 -> 35.58925673 | O41: =+Inputs!O35/$M$4*O$4 -> 28.80292696 | P41: =+Inputs!P35/$M$4*P$4 -> 25.05884246 | Q41: =+Inputs!Q35/$M$4*Q$4 -> 41.68382514 | R41: =+Inputs!R35/$M$4*R$4 -> 47.683998 | S41: =+Inputs!S35/$M$4*S$4 -> 44.46788416 | T41: =+Inputs!T35/$M$4*T$4 -> 44.400703 | U41: =+Inputs!U35/$M$4*U$4 -> 41.89817145 | V41: 245.1934242
B42: =+Inputs!B36 -> Enhancement Infrastructure | C42: Nominal | D42: £m | N42: =+Inputs!N36/$M$4*N$4 -> 39.21561482 | O42: =+Inputs!O36/$M$4*O$4 -> 27.80559328 | P42: =+Inputs!P36/$M$4*P$4 -> 40.96872905 | Q42: =+Inputs!Q36/$M$4*Q$4 -> 62.72897341 | R42: =+Inputs!R36/$M$4*R$4 -> 68.84609451 | S42: =+Inputs!S36/$M$4*S$4 -> 79.56129522 | T42: =+Inputs!T36/$M$4*T$4 -> 90.75295907 | U42: =+Inputs!U36/$M$4*U$4 -> 81.65389654 | V42: 424.5119478
B43: =+Inputs!B37 -> Capital Grants and Contributions | C43: Nominal | D43: £m | N43: =+Inputs!N37/$M$4*N$4 -> 15.49499271 | O43: =+Inputs!O37/$M$4*O$4 -> 4.466746922 | P43: =+Inputs!P37/$M$4*P$4 -> 0.4155394118 | Q43: =+Inputs!Q37/$M$4*Q$4 -> 0.1259936698 | R43: =+Inputs!R37/$M$4*R$4 -> 0 | S43: =+Inputs!S37/$M$4*S$4 -> 0 | T43: =+Inputs!T37/$M$4*T$4 -> 0 | U43: =+Inputs!U37/$M$4*U$4 -> 0 | V43: 0.5415330817
B44: =+Inputs!B38 -> Gross Capex | C44: Nominal | D44: £m | N44: =+Inputs!N38/$M$4*N$4 -> 172.326282 | O44: =+Inputs!O38/$M$4*O$4 -> 172.0575588 | P44: =+Inputs!P38/$M$4*P$4 -> 161.6319731 | Q44: =+Inputs!Q38/$M$4*Q$4 -> 226.8766785 | R44: =+Inputs!R38/$M$4*R$4 -> 265.7394381 | S44: =+Inputs!S38/$M$4*S$4 -> 303.9732786 | T44: =+Inputs!T38/$M$4*T$4 -> 315.816186 | U44: =+Inputs!U38/$M$4*U$4 -> 283.1778987 | V44: 1557.215453
B45: =+Inputs!B39 -> Capital Grants and Contributions | C45: Nominal | D45: £m | N45: =+Inputs!N39/$M$4*N$4 -> -15.49499271 | O45: =+Inputs!O39/$M$4*O$4 -> -4.466746922 | P45: =+Inputs!P39/$M$4*P$4 -> -0.4155394118 | Q45: =+Inputs!Q39/$M$4*Q$4 -> -0.1259936698 | R45: =+Inputs!R39/$M$4*R$4 -> 0 | S45: =+Inputs!S39/$M$4*S$4 -> 0 | T45: =+Inputs!T39/$M$4*T$4 -> 0 | U45: =+Inputs!U39/$M$4*U$4 -> 0 | V45: -0.5415330817
B46: =+Inputs!B40 -> Revenue Contributions - Infrastructure Charge | C46: Nominal | D46: £m | N46: =+Inputs!N40/$M$4*N$4 -> -4.788310499 | O46: =+Inputs!O40/$M$4*O$4 -> -5.179348075 | P46: =+Inputs!P40/$M$4*P$4 -> -5.128377496 | Q46: =+Inputs!Q40/$M$4*Q$4 -> -5.236053997 | R46: =+Inputs!R40/$M$4*R$4 -> -5.226977157 | S46: =+Inputs!S40/$M$4*S$4 -> -5.375425001 | T46: =+Inputs!T40/$M$4*T$4 -> -5.389655597 | U46: =+Inputs!U40/$M$4*U$4 -> -5.551521717 | V46: -31.90801096
B47: =+Inputs!B41 -> Revenue Contributions - Other | C47: Nominal | D47: £m | N47: =+Inputs!N41/$M$4*N$4 -> -7.742015456 | O47: =+Inputs!O41/$M$4*O$4 -> -7.371681643 | P47: =+Inputs!P41/$M$4*P$4 -> -7.662014973 | Q47: =+Inputs!Q41/$M$4*Q$4 -> -7.924924099 | R47: =+Inputs!R41/$M$4*R$4 -> -8.119629501 | S47: =+Inputs!S41/$M$4*S$4 -> -8.350625955 | T47: =+Inputs!T41/$M$4*T$4 -> -8.598137005 | U47: =+Inputs!U41/$M$4*U$4 -> -8.855938058 | V47: -49.51126959
B48: =+Inputs!B42 -> Net Capex | C48: Nominal | D48: £m | N48: =+Inputs!N42/$M$4*N$4 -> 144.3009634 | O48: =+Inputs!O42/$M$4*O$4 -> 155.0397821 | P48: =+Inputs!P42/$M$4*P$4 -> 148.4260412 | Q48: =+Inputs!Q42/$M$4*Q$4 -> 213.5897068 | R48: =+Inputs!R42/$M$4*R$4 -> 252.3928315 | S48: =+Inputs!S42/$M$4*S$4 -> 290.2472276 | T48: =+Inputs!T42/$M$4*T$4 -> 301.8283934 | U48: =+Inputs!U42/$M$4*U$4 -> 268.7704389 | V48: 1475.254639
B50: =+Inputs!B44 -> LWW
B51: =+Inputs!B45 -> Maintenance Non Infrastruture | C51: Nominal | D51: £m | N51: =+Inputs!N45/$M$4*N$4 -> 0 | O51: =+Inputs!O45/$M$4*O$4 -> 0.2020358779 | P51: =+Inputs!P45/$M$4*P$4 -> 0.5889951711 | Q51: =+Inputs!Q45/$M$4*Q$4 -> 1.407121475 | R51: =+Inputs!R45/$M$4*R$4 -> 7.096403944 | S51: =+Inputs!S45/$M$4*S$4 -> 20.72007241 | T51: =+Inputs!T45/$M$4*T$4 -> 19.91372872 | U51: =+Inputs!U45/$M$4*U$4 -> 12.17428665 | V51: =SUM(P51:U51) -> 61.90060837
B52: =+Inputs!B46 -> Enhancement Non Infrastructure | C52: Nominal | D52: £m | N52: =+Inputs!N46/$M$4*N$4 -> 0 | O52: =+Inputs!O46/$M$4*O$4 -> 0.8804125022 | P52: =+Inputs!P46/$M$4*P$4 -> 13.029197 | Q52: =+Inputs!Q46/$M$4*Q$4 -> 9.187153267 | R52: =+Inputs!R46/$M$4*R$4 -> 43.18416556 | S52: =+Inputs!S46/$M$4*S$4 -> 72.27666855 | T52: =+Inputs!T46/$M$4*T$4 -> 70.79134778 | U52: =+Inputs!U46/$M$4*U$4 -> 69.90834009 | V52: 278.3768722
B53: =+Inputs!B47 -> Maintenance Infrastruture | C53: Nominal | D53: £m | N53: =+Inputs!N47/$M$4*N$4 -> 0 | O53: =+Inputs!O47/$M$4*O$4 -> 0 | P53: =+Inputs!P47/$M$4*P$4 -> 0.2891484771 | Q53: =+Inputs!Q47/$M$4*Q$4 -> 1.766684625 | R53: =+Inputs!R47/$M$4*R$4 -> 0.7074836584 | S53: =+Inputs!S47/$M$4*S$4 -> 1.940392806 | T53: =+Inputs!T47/$M$4*T$4 -> 3.679775895 | U53: =+Inputs!U47/$M$4*U$4 -> 3.072809996 | V53: 11.45629546
B54: =+Inputs!B48 -> Enhancement Infrastructure | C54: Nominal | D54: £m | N54: =+Inputs!N48/$M$4*N$4 -> 0 | O54: =+Inputs!O48/$M$4*O$4 -> 0.6684512822 | P54: =+Inputs!P48/$M$4*P$4 -> 7.696069517 | Q54: =+Inputs!Q48/$M$4*Q$4 -> 16.50373278 | R54: =+Inputs!R48/$M$4*R$4 -> 16.92194229 | S54: =+Inputs!S48/$M$4*S$4 -> 45.89987871 | T54: =+Inputs!T48/$M$4*T$4 -> 46.21952881 | U54: =+Inputs!U48/$M$4*U$4 -> 44.16782405 | V54: 177.4089762
B55: =+Inputs!B49 -> Capital Grants and Contributions | C55: Nominal | D55: £m | N55: =+Inputs!N49/$M$4*N$4 -> 0 | O55: =+Inputs!O49/$M$4*O$4 -> 0 | P55: =+Inputs!P49/$M$4*P$4 -> 0 | Q55: =+Inputs!Q49/$M$4*Q$4 -> 0 | R55: =+Inputs!R49/$M$4*R$4 -> 0 | S55: =+Inputs!S49/$M$4*S$4 -> 0 | T55: =+Inputs!T49/$M$4*T$4 -> 0 | U55: =+Inputs!U49/$M$4*U$4 -> 0 | V55: 0
B56: =+Inputs!B50 -> Gross Capex | C56: Nominal | D56: £m | N56: =+Inputs!N50/$M$4*N$4 -> 0 | O56: =+Inputs!O50/$M$4*O$4 -> 1.750899662 | P56: =+Inputs!P50/$M$4*P$4 -> 21.60341017 | Q56: =+Inputs!Q50/$M$4*Q$4 -> 28.86469214 | R56: =+Inputs!R50/$M$4*R$4 -> 67.90999546 | S56: =+Inputs!S50/$M$4*S$4 -> 140.8370125 | T56: =+Inputs!T50/$M$4*T$4 -> 140.6043812 | U56: =+Inputs!U50/$M$4*U$4 -> 129.3232608 | V56: 529.1427522
B57: =+Inputs!B51 -> Capital Grants and Contributions | C57: Nominal | D57: £m | N57: =+Inputs!N51/$M$4*N$4 -> 0 | O57: =+Inputs!O51/$M$4*O$4 -> 0 | P57: =+Inputs!P51/$M$4*P$4 -> 0 | Q57: =+Inputs!Q51/$M$4*Q$4 -> 0 | R57: =+Inputs!R51/$M$4*R$4 -> 0 | S57: =+Inputs!S51/$M$4*S$4 -> 0 | T57: =+Inputs!T51/$M$4*T$4 -> 0 | U57: =+Inputs!U51/$M$4*U$4 -> 0 | V57: 0
B58: =+Inputs!B52 -> Revenue Contributions - Infrastructure Charge | C58: Nominal | D58: £m | N58: =+Inputs!N52/$M$4*N$4 -> 0 | O58: =+Inputs!O52/$M$4*O$4 -> 0 | P58: =+Inputs!P52/$M$4*P$4 -> 0 | Q58: =+Inputs!Q52/$M$4*Q$4 -> 0 | R58: =+Inputs!R52/$M$4*R$4 -> 0 | S58: =+Inputs!S52/$M$4*S$4 -> 0 | T58: =+Inputs!T52/$M$4*T$4 -> 0 | U58: =+Inputs!U52/$M$4*U$4 -> 0 | V58: 0
B59: =+Inputs!B53 -> Revenue Contributions - Other | C59: Nominal | D59: £m | N59: =+Inputs!N53/$M$4*N$4 -> 0 | O59: =+Inputs!O53/$M$4*O$4 -> 0 | P59: =+Inputs!P53/$M$4*P$4 -> 0 | Q59: =+Inputs!Q53/$M$4*Q$4 -> 0 | R59: =+Inputs!R53/$M$4*R$4 -> 0 | S59: =+Inputs!S53/$M$4*S$4 -> 0 | T59: =+Inputs!T53/$M$4*T$4 -> 0 | U59: =+Inputs!U53/$M$4*U$4 -> 0 | V59: 0
B60: =+Inputs!B54 -> Net Capex | C60: Nominal | D60: £m | N60: =+Inputs!N54/$M$4*N$4 -> 0 | O60: =+Inputs!O54/$M$4*O$4 -> 1.750899662 | P60: =+Inputs!P54/$M$4*P$4 -> 21.60341017 | Q60: =+Inputs!Q54/$M$4*Q$4 -> 28.86469214 | R60: =+Inputs!R54/$M$4*R$4 -> 67.90999546 | S60: =+Inputs!S54/$M$4*S$4 -> 140.8370125 | T60: =+Inputs!T54/$M$4*T$4 -> 140.6043812 | U60: =+Inputs!U54/$M$4*U$4 -> 129.3232608 | V60: 529.1427522
B62: =+Inputs!B56 -> Total
B63: =+Inputs!B57 -> Maintenance Non Infrastruture | C63: Nominal | D63: £m | N63: =+Inputs!N57/$M$4*N$4 -> 52.93933156 | O63: =+Inputs!O57/$M$4*O$4 -> 71.92029143 | P63: =+Inputs!P57/$M$4*P$4 -> 53.8358694 | Q63: =+Inputs!Q57/$M$4*Q$4 -> 80.18070324 | R63: =+Inputs!R57/$M$4*R$4 -> 97.43417666 | S63: =+Inputs!S57/$M$4*S$4 -> 113.523848 | T63: =+Inputs!T57/$M$4*T$4 -> 113.4710266 | U63: =+Inputs!U57/$M$4*U$4 -> 101.1427393 | V63: =SUM(P63:U63) -> 559.5883632
B64: =+Inputs!B58 -> Enhancement Non Infrastructure | C64: Nominal | D64: £m | N64: =+Inputs!N58/$M$4*N$4 -> 29.08708622 | O64: =+Inputs!O58/$M$4*O$4 -> 40.14444857 | P64: =+Inputs!P58/$M$4*P$4 -> 54.97118494 | Q64: =+Inputs!Q58/$M$4*Q$4 -> 52.75145781 | R64: =+Inputs!R58/$M$4*R$4 -> 102.0557384 | S64: =+Inputs!S58/$M$4*S$4 -> 159.4169921 | T64: =+Inputs!T58/$M$4*T$4 -> 157.8965738 | U64: =+Inputs!U58/$M$4*U$4 -> 140.5657181 | V64: 667.6576652
B65: =+Inputs!B59 -> Maintenance Infrastruture | C65: Nominal | D65: £m | N65: =+Inputs!N59/$M$4*N$4 -> 35.58925673 | O65: =+Inputs!O59/$M$4*O$4 -> 28.80292696 | P65: =+Inputs!P59/$M$4*P$4 -> 25.34799094 | Q65: =+Inputs!Q59/$M$4*Q$4 -> 43.45050976 | R65: =+Inputs!R59/$M$4*R$4 -> 48.39148166 | S65: =+Inputs!S59/$M$4*S$4 -> 46.40827696 | T65: =+Inputs!T59/$M$4*T$4 -> 48.0804789 | U65: =+Inputs!U59/$M$4*U$4 -> 44.97098145 | V65: 256.6497197
B66: =+Inputs!B60 -> Enhancement Infrastructure | C66: Nominal | D66: £m | N66: =+Inputs!N60/$M$4*N$4 -> 39.21561482 | O66: =+Inputs!O60/$M$4*O$4 -> 28.47404456 | P66: =+Inputs!P60/$M$4*P$4 -> 48.66479856 | Q66: =+Inputs!Q60/$M$4*Q$4 -> 79.23270619 | R66: =+Inputs!R60/$M$4*R$4 -> 85.7680368 | S66: =+Inputs!S60/$M$4*S$4 -> 125.4611739 | T66: =+Inputs!T60/$M$4*T$4 -> 136.9724879 | U66: =+Inputs!U60/$M$4*U$4 -> 125.8217206 | V66: 601.920924
B67: =+Inputs!B61 -> Capital Grants and Contributions | C67: Nominal | D67: £m | N67: =+Inputs!N61/$M$4*N$4 -> 15.49499271 | O67: =+Inputs!O61/$M$4*O$4 -> 4.466746922 | P67: =+Inputs!P61/$M$4*P$4 -> 0.4155394118 | Q67: =+Inputs!Q61/$M$4*Q$4 -> 0.1259936698 | R67: =+Inputs!R61/$M$4*R$4 -> 0 | S67: =+Inputs!S61/$M$4*S$4 -> 0 | T67: =+Inputs!T61/$M$4*T$4 -> 0 | U67: =+Inputs!U61/$M$4*U$4 -> 0 | V67: 0.5415330817
B68: =+Inputs!B62 -> Gross Capex | C68: Nominal | D68: £m | N68: =+Inputs!N62/$M$4*N$4 -> 172.326282 | O68: =+Inputs!O62/$M$4*O$4 -> 173.8084584 | P68: =+Inputs!P62/$M$4*P$4 -> 183.2353832 | Q68: =+Inputs!Q62/$M$4*Q$4 -> 255.7413707 | R68: =+Inputs!R62/$M$4*R$4 -> 333.6494336 | S68: =+Inputs!S62/$M$4*S$4 -> 444.810291 | T68: =+Inputs!T62/$M$4*T$4 -> 456.4205672 | U68: =+Inputs!U62/$M$4*U$4 -> 412.5011595 | V68: 2086.358205
B69: =+Inputs!B63 -> Capital Grants and Contributions | C69: Nominal | D69: £m | N69: =+Inputs!N63/$M$4*N$4 -> -15.49499271 | O69: =+Inputs!O63/$M$4*O$4 -> -4.466746922 | P69: =+Inputs!P63/$M$4*P$4 -> -0.4155394118 | Q69: =+Inputs!Q63/$M$4*Q$4 -> -0.1259936698 | R69: =+Inputs!R63/$M$4*R$4 -> 0 | S69: =+Inputs!S63/$M$4*S$4 -> 0 | T69: =+Inputs!T63/$M$4*T$4 -> 0 | U69: =+Inputs!U63/$M$4*U$4 -> 0 | V69: -0.5415330817
B70: =+Inputs!B64 -> Revenue Contributions - Infrastructure Charge | C70: Nominal | D70: £m | N70: =+Inputs!N64/$M$4*N$4 -> -4.788310499 | O70: =+Inputs!O64/$M$4*O$4 -> -5.179348075 | P70: =+Inputs!P64/$M$4*P$4 -> -5.128377496 | Q70: =+Inputs!Q64/$M$4*Q$4 -> -5.236053997 | R70: =+Inputs!R64/$M$4*R$4 -> -5.226977157 | S70: =+Inputs!S64/$M$4*S$4 -> -5.375425001 | T70: =+Inputs!T64/$M$4*T$4 -> -5.389655597 | U70: =+Inputs!U64/$M$4*U$4 -> -5.551521717 | V70: -31.90801096
B71: =+Inputs!B65 -> Revenue Contributions - Other | C71: Nominal | D71: £m | N71: =+Inputs!N65/$M$4*N$4 -> -7.742015456 | O71: =+Inputs!O65/$M$4*O$4 -> -7.371681643 | P71: =+Inputs!P65/$M$4*P$4 -> -7.662014973 | Q71: =+Inputs!Q65/$M$4*Q$4 -> -7.924924099 | R71: =+Inputs!R65/$M$4*R$4 -> -8.119629501 | S71: =+Inputs!S65/$M$4*S$4 -> -8.350625955 | T71: =+Inputs!T65/$M$4*T$4 -> -8.598137005 | U71: =+Inputs!U65/$M$4*U$4 -> -8.855938058 | V71: -49.51126959
B72: =+Inputs!B66 -> Net Capex | C72: Nominal | D72: £m | N72: =+Inputs!N66/$M$4*N$4 -> 144.3009634 | O72: =+Inputs!O66/$M$4*O$4 -> 156.7906818 | P72: =+Inputs!P66/$M$4*P$4 -> 170.0294514 | Q72: =+Inputs!Q66/$M$4*Q$4 -> 242.4543989 | R72: =+Inputs!R66/$M$4*R$4 -> 320.3028269 | S72: =+Inputs!S66/$M$4*S$4 -> 431.0842401 | T72: =+Inputs!T66/$M$4*T$4 -> 442.4327746 | U72: =+Inputs!U66/$M$4*U$4 -> 398.0936997 | V72: 2004.397392
B74: =+Inputs!B68 -> Disposals | C74: Nominal | D74: £m | N74: =+Inputs!N68/$M$4*N$4 -> 0 | O74: =+Inputs!O68/$M$4*O$4 -> 0 | P74: =+Inputs!P68/$M$4*P$4 -> -0.6705204092 | Q74: =+Inputs!Q68/$M$4*Q$4 -> -0.6845917113 | R74: =+Inputs!R68/$M$4*R$4 -> -0.7013937961 | S74: =+Inputs!S68/$M$4*S$4 -> -0.7213418316 | T74: =+Inputs!T68/$M$4*T$4 -> -0.7427285234 | U74: =+Inputs!U68/$M$4*U$4 -> -0.7650103791 | V74: =SUM(P74:U74) -> -4.285586651
B75: =+Inputs!B69 -> Additional depreciation allowance | C75: Nominal | D75: £m | N75: =+Inputs!N69/$M$4*N$4 -> 0 | O75: =+Inputs!O69/$M$4*O$4 -> 0 | P75: =+Inputs!P69/$M$4*P$4 -> 20.04144182 | Q75: =+Inputs!Q69/$M$4*Q$4 -> 20.46202437 | R75: =+Inputs!R69/$M$4*R$4 -> 20.96422833 | S75: =+Inputs!S69/$M$4*S$4 -> 21.56046282 | T75: =+Inputs!T69/$M$4*T$4 -> 22.19969786 | U75: =+Inputs!U69/$M$4*U$4 -> 22.86568879 | V75: =SUM(P75:U75) -> 128.093544
A77: RCV
B78: RCV PC15 Reindexed
B79: =+Inputs!B12 -> Closing RCV (previous year) | C79: Nominal | D79: £m | J79: =+Inputs!J25 -> 2045.5 | K79: =+J88 -> 2133.248441 | L79: =+K88 -> 2244.901091 | M79: =+L88 -> 2396.132847 | N79: =+M88 -> 2537.927927 | O79: =+N88 -> 2672.471102
B80: =+Inputs!B13 -> Indexation | C80: Nominal | D80: £m | J80: =+J79*((J4-I4)/I4) -> 22.04355449 | K80: 45.71017597 | L80: 84.00419341 | M80: 73.21546087 | N80: 65.69939224 | O80: 35.07916012
B81: =+Inputs!B14 -> Opening RCV | C81: Nominal | D81: £m | J81: =SUM(J79:J80) -> 2067.543554 | K81: 2178.958617 | L81: 2328.905285 | M81: 2469.348308 | N81: 2603.627319 | O81: 2707.550262
B82: =+Inputs!B15 -> Total Capital Expenditure | C82: Nominal | D82: £m | J82: =+Inputs!J15/Inputs!J$23*J$4 -> 152.4612516 | K82: =+Inputs!K15/Inputs!K$23*K$4 -> 154.3176738 | L82: =+Inputs!L15/Inputs!L$23*L$4 -> 158.5377406 | M82: =+Inputs!M15/Inputs!M$23*M$4 -> 162.2414644 | N82: =+Inputs!N15/Inputs!N$23*N$4 -> 164.6084279 | O82: =+Inputs!O15/Inputs!O$23*O$4 -> 167.3191109
B83: =+Inputs!B16 -> Grants and Contributions | C83: Nominal | D83: £m | J83: =+Inputs!J16/Inputs!J$23*J$4 -> -6.133793699 | K83: =+Inputs!K16/Inputs!K$23*K$4 -> -6.265225549 | L83: =+Inputs!L16/Inputs!L$23*L$4 -> -6.499670274 | M83: =+Inputs!M16/Inputs!M$23*M$4 -> -6.466693065 | N83: =+Inputs!N16/Inputs!N$23*N$4 -> -6.634096481 | O83: =+Inputs!O16/Inputs!O$23*O$4 -> -6.721176387
B84: =+Inputs!B17 -> Depreciation (net of PPP depr'n) | C84: Nominal | D84: £m | J84: =+Inputs!J17/Inputs!J$23*J$4 -> -58.71972662 | K84: =+Inputs!K17/Inputs!K$23*K$4 -> -59.61807576 | L84: =+Inputs!L17/Inputs!L$23*L$4 -> -61.47789011 | M84: =+Inputs!M17/Inputs!M$23*M$4 -> -62.97625032 | N84: =+Inputs!N17/Inputs!N$23*N$4 -> -64.21887869 | O84: =+Inputs!O17/Inputs!O$23*O$4 -> -64.67145207
B85: =+Inputs!B18 -> Depreciation of Capital Grants | C85: Nominal | D85: £m | J85: =+Inputs!J18/Inputs!J$23*J$4 -> 3.901256074 | K85: =+Inputs!K18/Inputs!K$23*K$4 -> 3.714431239 | L85: =+Inputs!L18/Inputs!L$23*L$4 -> 3.698963504 | M85: =+Inputs!M18/Inputs!M$23*M$4 -> 3.4794707 | N85: =+Inputs!N18/Inputs!N$23*N$4 -> 3.341413905 | O85: =+Inputs!O18/Inputs!O$23*O$4 -> 3.095661895
B86: =+Inputs!B19 -> Infrastructure Renewals Charge | C86: Nominal | D86: £m | J86: =+Inputs!J19/Inputs!J$23*J$4 -> -24.58789982 | K86: =+Inputs!K19/Inputs!K$23*K$4 -> -24.96406844 | L86: =+Inputs!L19/Inputs!L$23*L$4 -> -25.74283448 | M86: =+Inputs!M19/Inputs!M$23*M$4 -> -26.37024766 | N86: =+Inputs!N19/Inputs!N$23*N$4 -> -26.89057744 | O86: =+Inputs!O19/Inputs!O$23*O$4 -> -27.08008494
B87: =+Inputs!B20 -> Disposal of Assets | C87: Nominal | D87: £m | J87: =+Inputs!J20/Inputs!J$23*J$4 -> -1.216201007 | K87: =+Inputs!K20/Inputs!K$23*K$4 -> -1.242261152 | L87: =+Inputs!L20/Inputs!L$23*L$4 -> -1.288746561 | M87: =+Inputs!M20/Inputs!M$23*M$4 -> -1.328125084 | N87: =+Inputs!N20/Inputs!N$23*N$4 -> -1.362506286 | O87: =+Inputs!O20/Inputs!O$23*O$4 -> -1.380390698
B88: =+Inputs!B21 -> Closing RCV | C88: Nominal | D88: £m | J88: =SUM(J81:J87) -> 2133.248441 | K88: 2244.901091 | L88: 2396.132847 | M88: 2537.927927 | N88: 2672.471102 | O88: 2778.111931
B91: RCV - PC21
B92: Closing RCV PC15 | C92: Nominal | D92: £m | P92: =+O88 -> 2778.111931
B93: Adjustments | C93: Nominal | D93: £m | P93: =+Inputs!P28 -> -166.8627426
B94: Closing RCV (previous year) | C94: Nominal | D94: £m | P94: =+P92+P93 -> 2611.249188 | Q94: =+P103 -> 2748.416145 | R94: =+Q103 -> 2903.769995 | S94: =+R103 -> 3127.849407 | T94: =+S103 -> 3465.67752 | U94: =+T103 -> 3826.368447
B95: Indexation | C95: Nominal | D95: £m | P95: =+P94*((P4-O4)/O4) -> 67.03332784 | Q95: 57.67728043 | R95: 71.26786526 | S95: 88.95780263 | T95: 102.7520846 | U95: 114.7910534
B96: =+B81 -> Opening RCV | C96: Nominal | D96: £m | P96: =SUM(P94:P95) -> 2678.282516 | Q96: 2806.093425 | R96: 2975.037861 | S96: 3216.80721 | T96: 3568.429605 | U96: 3941.159501
B97: =+B82 -> Total Capital Expenditure | C97: Nominal | D97: £m | P97: =+P68 -> 183.2353832 | Q97: 255.7413707 | R97: 333.6494336 | S97: 444.810291 | T97: 456.4205672 | U97: 412.5011595
B98: Grants and Contributions | C98: Nominal | D98: £m | P98: =+P69+P70+P71 -> -13.20593188 | Q98: -13.28697177 | R98: -13.34660666 | S98: -13.72605096 | T98: -13.9877926 | U98: -14.40745977
B99: Depreciation (net of PPP depr'n) | C99: Nominal | D99: £m | P99: =-P63-P75 -> -73.87731122 | Q99: =-Q63-Q75 -> -100.6427276 | R99: -118.398405 | S99: -135.0843108 | T99: -135.6707244 | U99: -124.0084281
B100: Depreciation of Capital Grants | C100: Nominal | D100: £m
B101: Infrastructure Renewals Charge | C101: Nominal | D101: £m | P101: =-P65 -> -25.34799094 | Q101: -43.45050976 | R101: -48.39148166 | S101: -46.40827696 | T101: -48.0804789 | U101: -44.97098145
B102: Disposal of Assets | C102: Nominal | D102: £m | P102: =+P74 -> -0.6705204092 | Q102: -0.6845917113 | R102: -0.7013937961 | S102: -0.7213418316 | T102: -0.7427285234 | U102: -0.7650103791
B103: Closing RCV | C103: Nominal | D103: £m | P103: =SUM(P96:P102) -> 2748.416145 | Q103: =SUM(Q96:Q102) -> 2903.769995 | R103: 3127.849407 | S103: 3465.67752 | T103: 3826.368447 | U103: 4169.508781
B105: Average Year RCV | C105: Nominal | D105: £m | P105: =(+P94+P103)/2 -> 2679.832667 | Q105: 2826.09307 | R105: 3015.809701 | S105: 3296.763464 | T105: 3646.022984 | U105: 3997.938614
A107: Return
B108: WACC | D108: % | P108: =+P29 -> 0.0221 | Q108: =+Q29 -> 0.0237 | R108: 0.021 | S108: 0.0187 | T108: 0.0171 | U108: 0.0167
B109: Return on the RCV | C109: Nominal | D109: £m | P109: =+P105*P108/(SQRT(1+P108)) -> 58.58052457 | Q109: 66.19854659 | R109: 62.67731123 | S109: 61.08101453 | T109: 61.82066683 | U109: 66.21496912 | V109: =SUM(P109:U109) -> 376.5730329
B110: Implied Return | D110: % | P110: =+P109/P105 -> 0.02185976957 | Q110: 0.02342405043 | R110: 0.0207829132 | S110: 0.0185275696 | T110: 0.01695564375 | U110: 0.01656227759
A112: Building Blocks
B113: Building Blocks | E113: Tax treatment
B114: Operating costs | C114: Nominal | D114: £m | E114: BIP/VER Adj only | P114: =+P6 -> 179.6509914 | Q114: 183.1309902 | R114: 185.6495095 | S114: 190.1138118 | T114: 196.0601121 | U114: 202.4540652 | V114: =SUM(P114:U114) -> 1137.05948
B115: PPP Unitary Charge | C115: Nominal | D115: £m | E115: PPP Adj | P115: =+P32 -> 53.79046935 | Q115: 56.05444821 | R115: 56.98399823 | S115: 56.15022641 | T115: 57.03335224 | U115: 62.80463158 | V115: =SUM(P115:U115) -> 342.817126
B116: PPP Project Clear Customer Saving | C116: Nominal | D116: £m | E116: PPP Adj | P116: =+P34 -> -5.615914617 | Q116: -6.360246012 | R116: -6.516111799 | S116: -6.700340231 | T116: -6.897204207 | U116: -9.278211443 | V116: -41.36802831
B117: Depreciation of Project Clear | C117: Nominal | D117: £m | E117: Return of | P117: =-P26 -> 3.001420991 | Q117: 3.064407741 | R117: 3.139618174 | S117: 3.228910687 | T117: 3.324642994 | U117: 3.424382284 | V117: 19.18338287
B118: MNI | C118: Nominal | D118: £m | E118: Return of | P118: =-P99 -> 73.87731122 | Q118: 100.6427276 | R118: 118.398405 | S118: 135.0843108 | T118: 135.6707244 | U118: 124.0084281 | V118: 687.6819072
B119: Infrastructure Renewals Charge | C119: Nominal | D119: £m | E119: Return of | P119: =-P101 -> 25.34799094 | Q119: 43.45050976 | R119: 48.39148166 | S119: 46.40827696 | T119: 48.0804789 | U119: 44.97098145 | V119: 256.6497197
B120: Return on the RCV | C120: Nominal | D120: £m | E120: Return on | P120: =+P109 -> 58.58052457 | Q120: 66.19854659 | R120: 62.67731123 | S120: 61.08101453 | T120: 61.82066683 | U120: 66.21496912 | V120: 376.5730329
B121: Return on the RCV - Project Clear | C121: Nominal | D121: £m | E121: Return on | P121: =+P30 -> 0.615087889 | Q121: 0.6034978308 | R121: 0.4831257222 | S121: 0.3830648323 | T121: 0.3051734335 | U121: 0.2510902903 | V121: 2.641039998
B122: Pension Finance Costs | C122: Nominal | D122: £m | E122: Return on | P122: =+P136 -> 0 | Q122: 0 | R122: 0 | S122: 0 | T122: 0 | U122: 0 | V122: 0
B123: Tax | C123: Nominal | D123: £m | E123: Gross up tax rate | P123: =+P235 -> 0 | Q123: =+Q235 -> 0 | R123: 4.27620723 | S123: 2.107747488 | T123: 0.01742002412 | U123: 0 | V123: 6.401374742
B124: Revenue Requirement | C124: Nominal | D124: £m | P124: =SUM(P114:P123) -> 389.2478817 | Q124: =SUM(Q114:Q123) -> 446.7848819 | R124: 473.483545 | S124: 487.8570233 | T124: 495.4153667 | U124: 494.8503366 | V124: 2787.639035
B125: PC15 Overrecovery | C125: Nominal | D125: £m | P125: =-'Solve Tariffs'!P35 -> -10.67379946 | Q125: =-'Solve Tariffs'!Q35 -> -10.89779601 | R125: =-'Solve Tariffs'!R35 -> -11.16526301 | S125: =-'Solve Tariffs'!S35 -> -11.48280939 | T125: =-'Solve Tariffs'!T35 -> -11.82325728 | U125: =-'Solve Tariffs'!U35 -> -12.177955 | V125: -68.22088016
B126: Revenue before smoothing | C126: Nominal | D126: £m | P126: =+P124+P125 -> 378.5740823 | Q126: =+Q124+Q125 -> 435.8870859 | R126: 462.318282 | S126: 476.3742139 | T126: 483.5921094 | U126: 482.6723816 | V126: 2719.418155
B127: Smoothing | C127: Nominal | D127: £m | E127: From Solve Tariffs | P127: 34.5347825 | Q127: -7.376860635 | R127: -18.16543195 | S127: -16.32598535 | T127: -6.684542207 | U127: 11.7552211 | V127: -2.262816548
B128: Revenue | C128: Nominal | D128: £m | P128: =+P126+P127 -> 413.1088647 | Q128: 428.5102253 | R128: 444.15285 | S128: 460.0482286 | T128: 476.9075672 | U128: 494.4276027 | V128: =SUM(V126:V127) -> 2717.155339
A130: Interest
B131: Interest Calc
B132: Average RCV | C132: Nominal | D132: £m | E132: includes project clear | P132: =+P105+P28 -> 2707.970561 | Q132: 2851.857096 | R132: 3039.055996 | S132: 3317.438859 | T132: 3664.021323 | U132: 4013.098986
B133: Gearing for interest and fiannceability | D133: % | P133: =+Inputs!$P73 -> 0.5 | Q133: =+Inputs!$P73 -> 0.5 | R133: =+Inputs!$P73 -> 0.5 | S133: =+Inputs!$P73 -> 0.5 | T133: =+Inputs!$P73 -> 0.5 | U133: =+Inputs!$P73 -> 0.5
B134: Interest Rate | D134: % | P134: =+Inputs!P74 -> 0.0411 | Q134: =+Inputs!Q74 -> 0.0394 | R134: =+Inputs!R74 -> 0.0378 | S134: =+Inputs!S74 -> 0.0363 | T134: =+Inputs!T74 -> 0.0349 | U134: =+Inputs!U74 -> 0.034
B135: Interest on Debt | C135: Nominal | D135: £m | P135: =(+P132*P133)*P134 -> 55.64879503 | Q135: =(+Q132*Q133)*Q134 -> 56.18158478 | R135: 57.43815832 | S135: 60.21151529 | T135: 63.93717209 | U135: 68.22268276
B136: Pension Finance Costs | C136: Nominal | D136: £m | P136: =+Inputs!P84 -> 0 | Q136: =+Inputs!Q84 -> 0 | R136: =+Inputs!R84 -> 0 | S136: =+Inputs!S84 -> 0 | T136: =+Inputs!T84 -> 0 | U136: =+Inputs!U84 -> 0
B137: PPP Interest | C137: Nominal | D137: £m | P137: =+P14 -> 16.658 | Q137: =+Q14 -> 15.8 | R137: 14.792 | S137: 13.66 | T137: 12.471 | U137: 11.112
B138: Total Interest | C138: Nominal | D138: £m | P138: =+P135+P136+P137 -> 72.30679503 | Q138: =+Q135+Q136+Q137 -> 71.98158478 | R138: 72.23015832 | S138: 73.87151529 | T138: 76.40817209 | U138: 79.33468276
A140: Financeability
B141: Financeability
B142: Revenue | C142: Nominal | D142: £m | P142: =+P128 -> 413.1088647 | Q142: 428.5102253 | R142: 444.15285 | S142: 460.0482286 | T142: 476.9075672 | U142: 494.4276027
B143: =B46 -> Revenue Contributions - Infrastructure Charge | C143: Nominal | D143: £m | P143: =-P46 -> 5.128377496 | Q143: 5.236053997 | R143: 5.226977157 | S143: 5.375425001 | T143: 5.389655597 | U143: 5.551521717
B144: =B47 -> Revenue Contributions - Other | C144: Nominal | D144: £m | P144: 7.662014973 | Q144: 7.924924099 | R144: 8.119629501 | S144: 8.350625955 | T144: 8.598137005 | U144: 8.855938058
B145: Other income | C145: Nominal | D145: £m | P145: =+P212 -> 1.531252556 | Q145: 1.528040795 | R145: 1.48363744 | S145: 1.356775052 | T145: 1.306011397 | U145: 1.211406039
B146: =+B114 -> Operating costs | C146: Nominal | D146: £m | E146: including BIP/VER | P146: =-P114+P211 -> -181.4656606 | Q146: -184.9604672 | R146: -187.1701497 | S146: -191.6474664 | T146: -196.9729594 | U146: -203.3902128
B147: =+B215 -> Less PPP opex before customer saving | C147: Nominal | D147: £m | P147: =+P215 -> -24.80646935 | Q147: -26.19044821 | R147: -26.73599823 | S147: -26.07989308 | T147: -26.67735224 | U147: -30.49263158
B148: =+B116 -> PPP Project Clear Customer Saving | C148: Nominal | D148: £m
B149: Tax | C149: Nominal | D149: £m | P149: =-P123 -> 0 | Q149: 0 | R149: -4.27620723 | S149: -2.107747488 | T149: -0.01742002412 | U149: 0
B150: Interest | C150: Nominal | D150: £m | E150: excludes pension interest | P150: =-P138+P136 -> -72.30679503 | Q150: -71.98158478 | R150: -72.23015832 | S150: -73.87151529 | T150: -76.40817209 | U150: -79.33468276
B151: Funds from operations (FFO) | C151: Nominal | D151: £m | P151: =SUM(P142:P150) -> 148.8515848 | Q151: 160.0667439 | R151: 168.5705806 | S151: 181.4244323 | T151: 192.1254674 | U151: 196.8289414
B153: FFO | C153: Nominal | D153: £m | P153: =+P151 -> 148.8515848 | Q153: 160.0667439 | R153: 168.5705806 | S153: 181.4244323 | T153: 192.1254674 | U153: 196.8289414
B154: Interest | C154: Nominal | D154: £m | P154: =-P150 -> 72.30679503 | Q154: 71.98158478 | R154: 72.23015832 | S154: 73.87151529 | T154: 76.40817209 | U154: 79.33468276
B155: FFO Excluding Interest | C155: Nominal | D155: £m | P155: =+P153+P154 -> 221.1583798 | Q155: 232.0483287 | R155: 240.8007389 | S155: 255.2959476 | T155: 268.5336395 | U155: 276.1636242
B156: Interest | C156: Nominal | D156: £m | P156: =+P135+P137 -> 72.30679503 | Q156: 71.98158478 | R156: 72.23015832 | S156: 73.87151529 | T156: 76.40817209 | U156: 79.33468276
B157: FFO Interest Cover | D157: nr | P157: =+P155/P156 -> 3.058611292 | Q157: 3.223717975 | R157: 3.333797745 | S157: 3.455945727 | T157: 3.51446229 | U157: 3.480994876
B159: FFO | C159: Nominal | D159: £m | P159: =+P151 -> 148.8515848 | Q159: 160.0667439 | R159: 168.5705806 | S159: 181.4244323 | T159: 192.1254674 | U159: 196.8289414
B160: =B118 -> MNI | C160: Nominal | D160: £m | P160: =-P118 -> -73.87731122 | Q160: -100.6427276 | R160: -118.398405 | S160: -135.0843108 | T160: -135.6707244 | U160: -124.0084281
B161: =B119 -> Infrastructure Renewals Charge | C161: Nominal | D161: £m | P161: -25.34799094 | Q161: -43.45050976 | R161: -48.39148166 | S161: -46.40827696 | T161: -48.0804789 | U161: -44.97098145
B162: PPP Lease | C162: Nominal | D162: £m | P162: =-P13 -> -8.668 | Q162: -10.406 | R162: -11.798 | S162: -12.866 | T162: -14.351 | U162: -17.666
B163: PPP cap maint | C163: Nominal | D163: £m | P163: =-P12 -> -3.658 | Q163: -3.658 | R163: -3.658 | S163: -3.544333333 | T163: -3.534 | U163: -3.534
B164: Interest | C164: Nominal | D164: £m | P164: =-P150 -> 72.30679503 | Q164: 71.98158478 | R164: 72.23015832 | S164: 73.87151529 | T164: 76.40817209 | U164: 79.33468276
B165: Post Maintenance FFO | C165: Nominal | D165: £m | P165: =SUM(P159:P164) -> 109.6070776 | Q165: 73.89109135 | R165: 58.55485229 | S165: 57.39302652 | T165: 66.89743617 | U165: 85.98421459
B167: Interest | C167: Nominal | D167: £m | P167: =+P164 -> 72.30679503 | Q167: 71.98158478 | R167: 72.23015832 | S167: 73.87151529 | T167: 76.40817209 | U167: 79.33468276
B168: PMICR | D168: nr | P168: =+P165/P167 -> 1.515861374 | Q168: 1.02652771 | R168: 0.8106704131 | S168: 0.776930408 | T168: 0.8755272419 | U168: 1.083816202
B170: FFO | C170: Nominal | D170: £m | P170: =+P151 -> 148.8515848 | Q170: 160.0667439 | R170: 168.5705806 | S170: 181.4244323 | T170: 192.1254674 | U170: 196.8289414
B171: Cash | C171: Nominal | D171: £m | P171: =-Inputs!P155 -> -4 | Q171: =-Inputs!Q155 -> -4 | R171: =-Inputs!R155 -> -4 | S171: =-Inputs!S155 -> -4 | T171: =-Inputs!T155 -> -4 | U171: =-Inputs!U155 -> -4
B172: Loan Notes | C172: Nominal | D172: £m | P172: =+P132*P133 -> 1353.985281 | Q172: 1425.928548 | R172: 1519.527998 | S172: 1658.71943 | T172: 1832.010662 | U172: 2006.549493
B173: PPP | C173: Nominal | D173: £m | P173: =+P19 -> 174.822 | Q173: 164.416 | R173: 152.618 | S173: 139.752 | T173: 125.401 | U173: 107.735
B174: Net Debt | C174: Nominal | D174: £m | P174: =SUM(P171:P173) -> 1524.807281 | Q174: =SUM(Q171:Q173) -> 1586.344548 | R174: 1668.145998 | S174: 1794.47143 | T174: 1953.411662 | U174: 2110.284493
B175: FFO / Net Debt | D175: % | P175: =+P170/P174 -> 0.09761993313 | Q175: 0.1009028866 | R175: 0.1010526542 | S175: 0.1011018784 | T175: 0.09835380385 | U175: 0.09327128264
B177: Cash | C177: Nominal | D177: £m | P177: =+P171 -> -4 | Q177: -4 | R177: -4 | S177: -4 | T177: -4 | U177: -4
B178: Loan Notes | C178: Nominal | D178: £m | P178: 1353.985281 | Q178: 1425.928548 | R178: 1519.527998 | S178: 1658.71943 | T178: 1832.010662 | U178: 2006.549493
B179: Net Debt | C179: Nominal | D179: £m | P179: =+P177+P178 -> 1349.985281 | Q179: 1421.928548 | R179: 1515.527998 | S179: 1654.71943 | T179: 1828.010662 | U179: 2002.549493
B180: RCV | C180: Nominal | D180: £m | P180: =+P132 -> 2707.970561 | Q180: 2851.857096 | R180: 3039.055996 | S180: 3317.438859 | T180: 3664.021323 | U180: 4013.098986
B181: Gearing | D181: % | P181: =+P179/P180 -> 0.4985228791 | Q181: 0.4985974052 | R181: 0.4986838018 | S181: 0.4987942506 | T181: 0.4989083033 | U181: 0.4990032641
B183: Cash | C183: Nominal | D183: £m | P183: =+P177 -> -4 | Q183: -4 | R183: -4 | S183: -4 | T183: -4 | U183: -4
B184: Loan Notes | C184: Nominal | D184: £m | P184: 1353.985281 | Q184: 1425.928548 | R184: 1519.527998 | S184: 1658.71943 | T184: 1832.010662 | U184: 2006.549493
B185: PPP | C185: Nominal | D185: £m | P185: =+P173 -> 174.822 | Q185: 164.416 | R185: 152.618 | S185: 139.752 | T185: 125.401 | U185: 107.735
B186: Total | C186: Nominal | D186: £m | P186: =SUM(P183:P185) -> 1524.807281 | Q186: 1586.344548 | R186: 1668.145998 | S186: 1794.47143 | T186: 1953.411662 | U186: 2110.284493
B187: RCV | C187: Nominal | D187: £m | P187: =+P180 -> 2707.970561 | Q187: 2851.857096 | R187: 3039.055996 | S187: 3317.438859 | T187: 3664.021323 | U187: 4013.098986
B188: Gearing adjusted for PPP | D188: % | P188: =+P186/P187 -> 0.563081188 | Q188: 0.5562496628 | R188: 0.5489026856 | S188: 0.540920724 | T188: 0.5331332679 | U188: 0.5258491007
B190: Financeability Summary | V190: Average
B191: =+B157 -> FFO Interest Cover | D191: nr | P191: =+P157 -> 3.058611292 | Q191: 3.223717975 | R191: 3.333797745 | S191: 3.455945727 | T191: 3.51446229 | U191: 3.480994876 | V191: =AVERAGE(P191:U191) -> 3.344588318
B192: =+B168 -> PMICR | D192: nr | P192: =+P168 -> 1.515861374 | Q192: 1.02652771 | R192: 0.8106704131 | S192: 0.776930408 | T192: 0.8755272419 | U192: 1.083816202 | V192: =AVERAGE(P192:U192) -> 1.014888891
B193: =+B175 -> FFO / Net Debt | D193: % | P193: =+P175 -> 0.09761993313 | Q193: 0.1009028866 | R193: 0.1010526542 | S193: 0.1011018784 | T193: 0.09835380385 | U193: 0.09327128264 | V193: =AVERAGE(P193:U193) -> 0.09871707313
B194: =+B181 -> Gearing | D194: % | P194: =+P181 -> 0.4985228791 | Q194: 0.4985974052 | R194: 0.4986838018 | S194: 0.4987942506 | T194: 0.4989083033 | U194: 0.4990032641 | V194: =AVERAGE(P194:U194) -> 0.4987516507
B195: =+B188 -> Gearing adjusted for PPP | D195: % | P195: =+P188 -> 0.563081188 | Q195: 0.5562496628 | R195: 0.5489026856 | S195: 0.540920724 | T195: 0.5331332679 | U195: 0.5258491007 | V195: =AVERAGE(P195:U195) -> 0.5446894382
A197: Tax
B198: Taxable profit / loss
B199: =+B120 -> Return on the RCV | C199: Nominal | D199: £m | E199: Return on | P199: =+P120 -> 58.58052457 | Q199: 66.19854659 | R199: 62.67731123 | S199: 61.08101453 | T199: 61.82066683 | U199: 66.21496912
B200: =+B121 -> Return on the RCV - Project Clear | C200: Nominal | D200: £m | E200: Return on | P200: 0.615087889 | Q200: 0.6034978308 | R200: 0.4831257222 | S200: 0.3830648323 | T200: 0.3051734335 | U200: 0.2510902903
B201: =+B122 -> Pension Finance Costs | C201: Nominal | D201: £m | E201: Return on | P201: 0 | Q201: 0 | R201: 0 | S201: 0 | T201: 0 | U201: 0
B202: MNI | C202: Nominal | D202: £m | E202: Return of | P202: =+P118 -> 73.87731122 | Q202: 100.6427276 | R202: 118.398405 | S202: 135.0843108 | T202: 135.6707244 | U202: 124.0084281
B203: IRC | C203: Nominal | D203: £m | E203: Return of | P203: 25.34799094 | Q203: 43.45050976 | R203: 48.39148166 | S203: 46.40827696 | T203: 48.0804789 | U203: 44.97098145
B204: =+B117 -> Depreciation of Project Clear | C204: Nominal | D204: £m | E204: Return of | P204: =+P117 -> 3.001420991 | Q204: 3.064407741 | R204: 3.139618174 | S204: 3.228910687 | T204: 3.324642994 | U204: 3.424382284
B205: Interest (excl PPP) | C205: Nominal | D205: £m | E205: Interest | P205: =-P135-P136 -> -55.64879503 | Q205: -56.18158478 | R205: -57.43815832 | S205: -60.21151529 | T205: -63.93717209 | U205: -68.22268276
B206: Capital Allowances | C206: Nominal | D206: £m | E206: Capital Allowances | P206: =-Calculations!P307 -> -185.1401863 | Q206: =-Calculations!Q307 -> -219.4420406 | R206: =-Calculations!R307 -> -101.3076187 | S206: =-Calculations!S307 -> -125.1811732 | T206: =-Calculations!T307 -> -145.8324534 | U206: =-Calculations!U307 -> -159.8540953
B207: minus Depreciation Allowed as a deduction for tax purposes - IRE | C207: Nominal | D207: £m | E207: Capital Allowances | P207: =-Calculations!P308 -> -2.590713305 | Q207: =-Calculations!Q308 -> -2.891313392 | R207: =-Calculations!R308 -> -3.25686792 | S207: =-Calculations!S308 -> -3.66373523 | T207: =-Calculations!T308 -> -4.045664146 | U207: =-Calculations!U308 -> -4.430771755
B208: minus Depreciation Allowed as a deduction for tax purposes - DRE | C208: Nominal | D208: £m | E208: Capital Allowances | P208: =-Calculations!P309 -> -15.46118935 | Q208: =-Calculations!Q309 -> -16.77132741 | R208: =-Calculations!R309 -> -16.82092911 | S208: =-Calculations!S309 -> -17.82145038 | T208: =-Calculations!T309 -> -19.48886936 | U208: =-Calculations!U309 -> -21.21634422
B209: Revenue smoothing | C209: Nominal | D209: £m | E209: Adjustment | P209: =+P127 -> 34.5347825 | Q209: -7.376860635 | R209: -18.16543195 | S209: -16.32598535 | T209: -6.684542207 | U209: 11.7552211
B210: Over recovery | C210: Nominal | D210: £m | E210: Adjustment | P210: =+P125 -> -10.67379946 | Q210: -10.89779601 | R210: -11.16526301 | S210: -11.48280939 | T210: -11.82325728 | U210: -12.177955
B211: BIP/VER | C211: Nominal | D211: £m | E211: Adjustment | P211: =-P7-P8 -> -1.814669252 | Q211: -1.829477046 | R211: -1.520640178 | S211: -1.533654571 | T211: -0.9128473818 | U211: -0.93614757
B212: Other income | C212: Nominal | D212: £m | E212: Adjustment | P212: =+Inputs!P83 -> 1.531252556 | Q212: =+Inputs!Q83 -> 1.528040795 | R212: =+Inputs!R83 -> 1.48363744 | S212: =+Inputs!S83 -> 1.356775052 | T212: =+Inputs!T83 -> 1.306011397 | U212: =+Inputs!U83 -> 1.211406039
B213: Disallowed costs | C213: Nominal | D213: £m | E213: Adjustment | P213: =+Inputs!$N152 -> 0 | Q213: =+Inputs!$N152 -> 0 | R213: =+Inputs!$N152 -> 0 | S213: =+Inputs!$N152 -> 0 | T213: =+Inputs!$N152 -> 0 | U213: =+Inputs!$N152 -> 0
B214: Add back PPP | C214: Nominal | D214: £m | E214: Adjustment | P214: =+P115+P116 -> 48.17455473 | Q214: 49.6942022 | R214: 50.46788643 | S214: 49.44988618 | T214: 50.13614803 | U214: 53.52642013
B215: Less PPP opex before customer saving | C215: Nominal | D215: £m | E215: Adjustment | P215: =-P11 -> -24.80646935 | Q215: -26.19044821 | R215: -26.73599823 | S215: -26.07989308 | T215: -26.67735224 | U215: -30.49263158
B216: Less PPP amortisation | C216: Nominal | D216: £m | E216: Adjustment | P216: =+Inputs!P110 -> -9.023883 | Q216: =+Inputs!Q110 -> -9.31377 | R216: =+Inputs!R110 -> -9.658292 | S216: =+Inputs!S110 -> -10.01096267 | T216: =+Inputs!T110 -> -10.30582333 | U216: =+Inputs!U110 -> -10.64091733
B217: PPP Interest | C217: Nominal | D217: £m | E217: Adjustment | P217: =-P137 -> -16.658 | Q217: -15.8 | R217: -14.792 | S217: -13.66 | T217: -12.471 | U217: -11.112
B218: =+B70 -> Revenue Contributions - Infrastructure Charge | C218: Nominal | D218: £m | E218: Adjustment | P218: =-P70 -> 5.128377496 | Q218: 5.236053997 | R218: 5.226977157 | S218: 5.375425001 | T218: 5.389655597 | U218: 5.551521717
B219: Profit / Loss before gross up | C219: Nominal | D219: £m | P219: =SUM(P199:P218) -> -71.02640218 | Q219: -96.27663152 | R219: 29.40724338 | S219: 16.39648493 | T219: 3.854520145 | U219: -8.169125273
B220: Tax rate | D220: % | P220: =Inputs!P153 -> 0.19 | Q220: =Inputs!Q153 -> 0.19 | R220: =Inputs!R153 -> 0.25 | S220: =Inputs!S153 -> 0.25 | T220: =Inputs!T153 -> 0.25 | U220: =Inputs!U153 -> 0.25
B221: Profit / Loss after gross up | C221: Nominal | D221: £m | P221: =+P219/(1-P220) -> -87.68691628 | Q221: -118.8600389 | R221: 39.20965784 | S221: 21.86197991 | T221: 5.139360193 | U221: -10.89216703
B223: Loss restriction
B224: Profit < loss restriction | C224: Nominal | D224: £m | P224: 5 | Q224: 5 | R224: 5 | S224: 5 | T224: 5 | U224: 5
... 132 more rows

Sheet Solve Tariffs
A1: Model_Navigation
B2: PC15 Revenue Over-Recovery
C3: Prices | D3: Units | E3: Input Ref | M3: =+Inputs!M2 -> 2018-19 | N3: =+Inputs!N2 -> 2019-20 | O3: =+Inputs!O2 -> 2020-21 | P3: =+Inputs!P2 -> 2021-22 | Q3: =+Inputs!Q2 -> 2022-23 | R3: =+Inputs!R2 -> 2023-24 | S3: =+Inputs!S2 -> 2024-25 | T3: =+Inputs!T2 -> 2025-26 | U3: =+Inputs!U2 -> 2026-27 | V3: =+Inputs!V2 -> PC21
B5: RPI | D5: nr | M5: =+Inputs!M5 -> 283.308 | N5: =+Inputs!N5 -> 290.642 | O5: =+Inputs!O5 -> 294.457 | P5: =+Inputs!P5 -> 302.016 | Q5: =+Inputs!Q5 -> 308.354 | R5: =+Inputs!R5 -> 315.922 | S5: =+Inputs!S5 -> 324.907 | T5: =+Inputs!T5 -> 334.54 | U5: =+Inputs!U5 -> 344.5762
B7: Total Revenue | AM7: 2021-22 | AN7: 2021-22 | AO7: =+AM7-AN7 -> 
B8: Total Revenue Requirement | C8: Nominal | D8: £m | P8: =+Calculations!P124 -> 389.2478817 | Q8: =+Calculations!Q124 -> 446.7848819 | R8: =+Calculations!R124 -> 473.483545 | S8: =+Calculations!S124 -> 487.8570233 | T8: =+Calculations!T124 -> 495.4153667 | U8: =+Calculations!U124 -> 494.8503366 | V8: =SUM(P8:U8) -> 2787.639035 | AM8: 197.7136343 | AN8: 197.1040411 | AO8: 0.6095932723
B9: less: non-tariff basket | C9: Nominal | D9: £m | E9: RG10 plus electricty generation income | P9: =-'RG10'!P49/mill-'RG10'!P101/mill -> -13.19244284 | Q9: =-'RG10'!Q49/mill-'RG10'!Q101/mill -> -13.7002318 | R9: =-'RG10'!R49/mill-'RG10'!R101/mill -> -14.13589304 | S9: =-'RG10'!S49/mill-'RG10'!S101/mill -> -14.47444427 | T9: =-'RG10'!T49/mill-'RG10'!T101/mill -> -14.83993098 | U9: =-'RG10'!U49/mill-'RG10'!U101/mill -> -15.22143396 | V9: =SUM(P9:U9) -> -85.5643769 | AM9: -6.7125538 | AN9: -6.7125538 | AO9: 0
B10: Total Revenue Requirement | C10: Nominal | D10: £m | P10: =+SUM(P8:P9) -> 376.0554389 | Q10: 433.0846501 | R10: 459.3476519 | S10: 473.382579 | T10: 480.5754357 | U10: 479.6289027 | V10: =SUM(P10:U10) -> 2702.074658 | AM10: 191.0010805 | AN10: 190.3914873 | AO10: 0.6095932723
AO11: 0
B12: Revenue by Revenue Group pre over (under) recovery | AM12: 2021-22 | AN12: 2021-22
B13: Revenue Group 1: domestic measured water | C13: Nominal | D13: £m | P13: =+P$10*'Customer Versions'!P129 -> 0 | Q13: =+Q$10*'Customer Versions'!Q129 -> 0 | R13: =+R$10*'Customer Versions'!R129 -> 0 | S13: =+S$10*'Customer Versions'!S129 -> 0 | T13: =+T$10*'Customer Versions'!T129 -> 0 | U13: =+U$10*'Customer Versions'!U129 -> 0 | AM13: 46.83044348 | AN13: 46.83044348 | AO13: 0
B14: Revenue Group 2: domestic measured sewerage | C14: Nominal | D14: £m | P14: =+P$10*'Customer Versions'!P130 -> 0 | Q14: =+Q$10*'Customer Versions'!Q130 -> 0 | R14: =+R$10*'Customer Versions'!R130 -> 0 | S14: =+S$10*'Customer Versions'!S130 -> 0 | T14: =+T$10*'Customer Versions'!T130 -> 0 | U14: =+U$10*'Customer Versions'!U130 -> 0 | AM14: 30.08624427 | AN14: 30.08624427 | AO14: 0
B15: Revenue Group 3: domestic unmeasured water | C15: Nominal | D15: £m | P15: =+P$10*'Customer Versions'!P131 -> 126.7283301 | Q15: =+Q$10*'Customer Versions'!Q131 -> 146.2929691 | R15: =+R$10*'Customer Versions'!R131 -> 155.6629961 | S15: =+S$10*'Customer Versions'!S131 -> 157.5150251 | T15: =+T$10*'Customer Versions'!T131 -> 156.1773221 | U15: =+U$10*'Customer Versions'!U131 -> 155.0534852 | AM15: 45.45418313 | AN15: 45.45418313 | AO15: 0
B16: Revenue Group 4: domestic unmeasured sewerage | C16: Nominal | D16: £m | P16: =+P$10*'Customer Versions'!P132 -> 153.4607272 | Q16: =+Q$10*'Customer Versions'!Q132 -> 172.9161399 | R16: =+R$10*'Customer Versions'!R132 -> 181.7537594 | S16: =+S$10*'Customer Versions'!S132 -> 190.0747544 | T16: =+T$10*'Customer Versions'!T132 -> 196.4043492 | U16: =+U$10*'Customer Versions'!U132 -> 196.6908168 | AM16: 0 | AN16: 0 | AO16: 0
B17: Revenue Group 5: non-domestic measured water | C17: Nominal | D17: £m | P17: =+P$10*'Customer Versions'!P133 -> 40.02570298 | Q17: =+Q$10*'Customer Versions'!Q133 -> 48.34865457 | R17: =+R$10*'Customer Versions'!R133 -> 52.63727084 | S17: =+S$10*'Customer Versions'!S133 -> 53.25610686 | T17: =+T$10*'Customer Versions'!T133 -> 52.89878672 | U17: =+U$10*'Customer Versions'!U133 -> 52.56271684 | AM17: 87.04255453 | AN17: 87.04255453 | AO17: 0
B18: Revenue Group 6: non-domestic measured sewerage | C18: Nominal | D18: £m | P18: =+P$10*'Customer Versions'!P134 -> 25.18310191 | Q18: =+Q$10*'Customer Versions'!Q134 -> 30.51658417 | R18: =+R$10*'Customer Versions'!R134 -> 32.29916416 | S18: =+S$10*'Customer Versions'!S134 -> 33.83515442 | T18: =+T$10*'Customer Versions'!T134 -> 35.10480073 | U18: =+U$10*'Customer Versions'!U134 -> 35.26590267 | AM18: 31.29658201 | AN18: 31.29658201 | AO18: 0
B19: Revenue Group 7: non-domestic unmeasured water | C19: Nominal | D19: £m | P19: =+P$10*'Customer Versions'!P135 -> 1.736679402 | Q19: =+Q$10*'Customer Versions'!Q135 -> 2.05926026 | R19: =+R$10*'Customer Versions'!R135 -> 2.232641112 | S19: =+S$10*'Customer Versions'!S135 -> 2.283706892 | T19: =+T$10*'Customer Versions'!T135 -> 2.273419334 | U19: =+U$10*'Customer Versions'!U135 -> 2.263827623 | AM19: 0 | AN19: 0 | AO19: 0
B20: Revenue Group 8: non-domestic unmeasured sewerage | C20: Nominal | D20: £m | P20: =+P$10*'Customer Versions'!P136 -> 2.207879087 | Q20: =+Q$10*'Customer Versions'!Q136 -> 2.5607815 | R20: =+R$10*'Customer Versions'!R136 -> 2.74808104 | S20: =+S$10*'Customer Versions'!S136 -> 2.911853215 | T20: =+T$10*'Customer Versions'!T136 -> 3.032033801 | U20: =+U$10*'Customer Versions'!U136 -> 3.057996044 | AM20: 0.8238929868 | AN20: 0.2142997145 | AO20: 0.6095932723
B21: Revenue Group 9: trade effluent | C21: Nominal | D21: £m | P21: =+P$10*'Customer Versions'!P137 -> 26.71301822 | Q21: =+Q$10*'Customer Versions'!Q137 -> 30.39026067 | R21: =+R$10*'Customer Versions'!R137 -> 32.01373928 | S21: =+S$10*'Customer Versions'!S137 -> 33.50597818 | T21: =+T$10*'Customer Versions'!T137 -> 34.68472374 | U21: =+U$10*'Customer Versions'!U137 -> 34.73415744 | AM21: 241.5339004 | AN21: 240.9243071 | AO21: 0.6095932723
B22: Non-tariff basket | C22: Nominal | D22: £m | P22: =-P9 -> 13.19244284 | Q22: 13.7002318 | R22: 14.13589304 | S22: 14.47444427 | T22: 14.83993098 | U22: 15.22143396 | V22: =SUM(P22:U22) -> 85.5643769 | AM22: -5.599588815 | AN22: -5.599588815 | AO22: 0
B23: Total | C23: Nominal | D23: £m | P23: =SUM(P13:P22) -> 389.2478817 | Q23: 446.7848819 | R23: 473.483545 | S23: 487.8570233 | T23: 495.4153667 | U23: 494.8503366 | V23: =SUM(P23:U23) -> 2787.639035 | AM23: 235.9343116 | AN23: 235.3247183 | AO23: 0.6095932723
B25: PC15 Revenue over (under) recover
B26: Revenue Group 1: domestic measured water | C26: Nominal | D26: £m | P26: =+Inputs!$P159/Inputs!$P$170*P$5/$M$5 -> 0 | Q26: =+Inputs!$P159/Inputs!$P$170*Q$5/$M$5 -> 0 | R26: =+Inputs!$P159/Inputs!$P$170*R$5/$M$5 -> 0 | S26: =+Inputs!$P159/Inputs!$P$170*S$5/$M$5 -> 0 | T26: =+Inputs!$P159/Inputs!$P$170*T$5/$M$5 -> 0 | U26: =+Inputs!$P159/Inputs!$P$170*U$5/$M$5 -> 0
B27: Revenue Group 2: domestic measured sewerage | C27: Nominal | D27: £m | P27: =+Inputs!$P160/Inputs!$P$170*P$5/$M$5 -> 0 | Q27: =+Inputs!$P160/Inputs!$P$170*Q$5/$M$5 -> 0 | R27: =+Inputs!$P160/Inputs!$P$170*R$5/$M$5 -> 0 | S27: =+Inputs!$P160/Inputs!$P$170*S$5/$M$5 -> 0 | T27: =+Inputs!$P160/Inputs!$P$170*T$5/$M$5 -> 0 | U27: =+Inputs!$P160/Inputs!$P$170*U$5/$M$5 -> 0
B28: Revenue Group 3: domestic unmeasured water | C28: Nominal | D28: £m | P28: =+Inputs!$P161/Inputs!$P$170*P$5/$M$5 -> 3.860605568 | Q28: =+Inputs!$P161/Inputs!$P$170*Q$5/$M$5 -> 3.941622859 | R28: =+Inputs!$P161/Inputs!$P$170*R$5/$M$5 -> 4.038362975 | S28: =+Inputs!$P161/Inputs!$P$170*S$5/$M$5 -> 4.153216297 | T28: =+Inputs!$P161/Inputs!$P$170*T$5/$M$5 -> 4.276352864 | U28: =+Inputs!$P161/Inputs!$P$170*U$5/$M$5 -> 4.40464345
B29: Revenue Group 4: domestic unmeasured sewerage | C29: Nominal | D29: £m | P29: =+Inputs!$P162/Inputs!$P$170*P$5/$M$5 -> 3.49785464 | Q29: =+Inputs!$P162/Inputs!$P$170*Q$5/$M$5 -> 3.571259369 | R29: =+Inputs!$P162/Inputs!$P$170*R$5/$M$5 -> 3.658909573 | S29: =+Inputs!$P162/Inputs!$P$170*S$5/$M$5 -> 3.762971026 | T29: =+Inputs!$P162/Inputs!$P$170*T$5/$M$5 -> 3.874537413 | U29: =+Inputs!$P162/Inputs!$P$170*U$5/$M$5 -> 3.990773535
B30: Revenue Group 5: non-domestic measured water | C30: Nominal | D30: £m | P30: =+Inputs!$P163/Inputs!$P$170*P$5/$M$5 -> 2.176881358 | Q30: =+Inputs!$P163/Inputs!$P$170*Q$5/$M$5 -> 2.222564614 | R30: =+Inputs!$P163/Inputs!$P$170*R$5/$M$5 -> 2.277113505 | S30: =+Inputs!$P163/Inputs!$P$170*S$5/$M$5 -> 2.341875899 | T30: =+Inputs!$P163/Inputs!$P$170*T$5/$M$5 -> 2.411308969 | U30: =+Inputs!$P163/Inputs!$P$170*U$5/$M$5 -> 2.483648238
B31: Revenue Group 6: non-domestic measured sewerage | C31: Nominal | D31: £m | P31: =+Inputs!$P164/Inputs!$P$170*P$5/$M$5 -> 0.8220919599 | Q31: =+Inputs!$P164/Inputs!$P$170*Q$5/$M$5 -> 0.8393440884 | R31: =+Inputs!$P164/Inputs!$P$170*R$5/$M$5 -> 0.8599442949 | S31: =+Inputs!$P164/Inputs!$P$170*S$5/$M$5 -> 0.884401596 | T31: =+Inputs!$P164/Inputs!$P$170*T$5/$M$5 -> 0.9106227626 | U31: =+Inputs!$P164/Inputs!$P$170*U$5/$M$5 -> 0.9379414455
B32: Revenue Group 7: non-domestic unmeasured water | C32: Nominal | D32: £m | P32: =+Inputs!$P165/Inputs!$P$170*P$5/$M$5 -> 0 | Q32: =+Inputs!$P165/Inputs!$P$170*Q$5/$M$5 -> 0 | R32: =+Inputs!$P165/Inputs!$P$170*R$5/$M$5 -> 0 | S32: =+Inputs!$P165/Inputs!$P$170*S$5/$M$5 -> 0 | T32: =+Inputs!$P165/Inputs!$P$170*T$5/$M$5 -> 0 | U32: =+Inputs!$P165/Inputs!$P$170*U$5/$M$5 -> 0
B33: Revenue Group 8: non-domestic unmeasured sewerage | C33: Nominal | D33: £m | P33: =+Inputs!$P166/Inputs!$P$170*P$5/$M$5 -> 0 | Q33: =+Inputs!$P166/Inputs!$P$170*Q$5/$M$5 -> 0 | R33: =+Inputs!$P166/Inputs!$P$170*R$5/$M$5 -> 0 | S33: =+Inputs!$P166/Inputs!$P$170*S$5/$M$5 -> 0 | T33: =+Inputs!$P166/Inputs!$P$170*T$5/$M$5 -> 0 | U33: =+Inputs!$P166/Inputs!$P$170*U$5/$M$5 -> 0
B34: Revenue Group 9: trade effluent | C34: Nominal | D34: £m | P34: =+Inputs!$P167/Inputs!$P$170*P$5/$M$5 -> 0.3163659364 | Q34: =+Inputs!$P167/Inputs!$P$170*Q$5/$M$5 -> 0.3230050791 | R34: =+Inputs!$P167/Inputs!$P$170*R$5/$M$5 -> 0.3309326637 | S34: =+Inputs!$P167/Inputs!$P$170*S$5/$M$5 -> 0.3403445755 | T34: =+Inputs!$P167/Inputs!$P$170*T$5/$M$5 -> 0.3504352762 | U34: =+Inputs!$P167/Inputs!$P$170*U$5/$M$5 -> 0.3609483345
B35: Total | C35: Nominal | D35: £m | P35: =SUM(P26:P34) -> 10.67379946 | Q35: 10.89779601 | R35: 11.16526301 | S35: 11.48280939 | T35: 11.82325728 | U35: 12.177955 | V35: =SUM(P35:U35) -> 68.22088016
B37: Total Revenue post over (under) recovery - Pre smoothing | X37: NPV | Z37: ND Unmeasured Solve
B38: Revenue Group 1: domestic measured water | C38: Nominal | D38: £m | P38: =+P13-P26 -> 0 | Q38: 0 | R38: 0 | S38: 0 | T38: 0 | U38: 0 | V38: =+SUM(P38:U38) -> 0 | X38: =+NPV(Inputs!$P$75,P38:U38) -> 0 | Y38: =+X38 -> 0 | Z38: =-Y38/Y$48*(Y$57+Y$58) -> 0
B39: Revenue Group 2: domestic measured sewerage | C39: Nominal | D39: £m | P39: 0 | Q39: 0 | R39: 0 | S39: 0 | T39: 0 | U39: 0 | V39: =+SUM(P39:U39) -> 0 | X39: =+NPV(Inputs!$P$75,P39:U39) -> 0 | Y39: =+X39 -> 0 | Z39: =-Y39/Y$48*(Y$57+Y$58) -> 0
B40: Revenue Group 3: domestic unmeasured water | C40: Nominal | D40: £m | P40: 122.8677245 | Q40: 142.3513462 | R40: 151.6246331 | S40: 153.3618088 | T40: 151.9009693 | U40: 150.6488418 | V40: 872.7553238 | X40: =+NPV(Inputs!$P$75,P40:U40) -> 763.1317675 | Y40: =+X40 -> 763.1317675 | Z40: =-Y40/Y$48*(Y$57+Y$58) -> 0.6996123751
B41: Revenue Group 4: domestic unmeasured sewerage | C41: Nominal | D41: £m | P41: 149.9628726 | Q41: 169.3448805 | R41: 178.0948498 | S41: 186.3117833 | T41: 192.5298118 | U41: 192.7000433 | V41: 1068.944241 | X41: =+NPV(Inputs!$P$75,P41:U41) -> 933.3124413 | Y41: 933.3124413 | Z41: =-Y41/Y$48*(Y$57+Y$58) -> 0.8556280338
B42: Revenue Group 5: non-domestic measured water | C42: Nominal | D42: £m | P42: 37.84882162 | Q42: 46.12608995 | R42: 50.36015734 | S42: 50.91423096 | T42: 50.48747775 | U42: 50.0790686 | V42: 285.8158462 | X42: =+NPV(Inputs!$P$75,P42:U42) -> 249.5883511 | Y42: 249.5883511 | Z42: =-Y42/Y$48*(Y$57+Y$58) -> 0.2288138256
B43: Revenue Group 6: non-domestic measured sewerage | C43: Nominal | D43: £m | P43: 24.36100995 | Q43: 29.67724008 | R43: 31.43921987 | S43: 32.95075282 | T43: 34.19417797 | U43: 34.32796123 | V43: 186.9503619 | X43: =+NPV(Inputs!$P$75,P43:U43) -> 162.9941749 | Y43: 162.9941749 | Z43: =-Y43/Y$48*(Y$57+Y$58) -> 0.1494273292
B44: Revenue Group 7: non-domestic unmeasured water | C44: Nominal | D44: £m | P44: 1.736679402 | Q44: 2.05926026 | R44: 2.232641112 | S44: 2.283706892 | T44: 2.273419334 | U44: 2.263827623 | V44: 12.84953462 | X44: =+NPV(Inputs!$P$75,P44:U44) -> 11.2215571 | Z44: 0
B45: Revenue Group 8: non-domestic unmeasured sewerage | C45: Nominal | D45: £m | P45: 2.207879087 | Q45: 2.5607815 | R45: 2.74808104 | S45: 2.911853215 | T45: 3.032033801 | U45: 3.057996044 | V45: 16.51862469 | X45: =+NPV(Inputs!$P$75,P45:U45) -> 14.4005786 | Z45: 0
B46: Revenue Group 9: trade effluent | C46: Nominal | D46: £m | P46: 26.39665228 | Q46: 30.0672556 | R46: 31.68280662 | S46: 33.1656336 | T46: 34.33428847 | U46: 34.37320911 | V46: 190.0198457 | X46: =+NPV(Inputs!$P$75,P46:U46) -> 165.8698129 | Y46: 165.8698129 | Z46: 0.152063613
B47: Non-tariff basket | C47: Nominal | D47: £m | P47: =+P22 -> 13.19244284 | Q47: 13.7002318 | R47: 14.13589304 | S47: 14.47444427 | T47: 14.83993098 | U47: 15.22143396 | V47: 85.5643769 | X47: =+NPV(Inputs!$P$75,P47:U47) -> 74.86736871 | Z47: 0
B48: Total | C48: Nominal | D48: £m | P48: =SUM(P38:P47) -> 378.5740823 | Q48: 435.8870859 | R48: 462.318282 | S48: 476.3742139 | T48: 483.5921094 | U48: 482.6723816 | V48: 2719.418155 | X48: =+NPV(Inputs!$P$75,P48:U48) -> 2375.386052 | Y48: =SUM(Y38:Y47) -> 2274.896548 | Z48: =SUM(Z38:Z47) -> 2.085545177
B50: Tariff Basket Revenue - Smoothed | X50: NPV | Y50: Diff
B51: Revenue Group 1: domestic measured water | C51: Nominal | D51: £m | P51: =+Revenue!P15 -> 0 | Q51: =+Revenue!Q15 -> 0 | R51: =+Revenue!R15 -> 0 | S51: =+Revenue!S15 -> 0 | T51: =+Revenue!T15 -> 0 | U51: =+Revenue!U15 -> 0 | V51: =+SUM(P51:U51) -> 0 | X51: =+NPV(Inputs!$P$75,P51:U51) -> 0 | Y51: =+X51-X38 -> 0
B52: Revenue Group 2: domestic measured sewerage | C52: Nominal | D52: £m | P52: =+Revenue!P16 -> 0 | Q52: =+Revenue!Q16 -> 0 | R52: =+Revenue!R16 -> 0 | S52: =+Revenue!S16 -> 0 | T52: =+Revenue!T16 -> 0 | U52: =+Revenue!U16 -> 0 | V52: 0 | X52: =+NPV(Inputs!$P$75,P52:U52) -> 0 | Y52: 0
B53: Revenue Group 3: domestic unmeasured water | C53: Nominal | D53: £m | P53: =+Revenue!P17 -> 130.13431 | Q53: =+Revenue!Q17 -> 135.4401786 | R53: =+Revenue!R17 -> 141.5455066 | S53: =+Revenue!S17 -> 148.4197869 | T53: =+Revenue!T17 -> 155.7439336 | U53: =+Revenue!U17 -> 163.4183049 | V53: 874.7020207 | X53: =+NPV(Inputs!$P$75,P53:U53) -> 763.831183 | Y53: 0.6994155108
B54: Revenue Group 4: domestic unmeasured sewerage | C54: Nominal | D54: £m | P54: =+Revenue!P18 -> 164.8413929 | Q54: =+Revenue!Q18 -> 169.2291326 | R54: =+Revenue!R18 -> 174.4015279 | S54: =+Revenue!S18 -> 180.2934219 | T54: =+Revenue!T18 -> 186.4851447 | U54: =+Revenue!U18 -> 192.8355327 | V54: 1068.086153 | X54: =+NPV(Inputs!$P$75,P54:U54) -> 934.1678272 | Y54: 0.8553859122
B55: Revenue Group 5: non-domestic measured water | C55: Nominal | D55: £m | P55: =+Revenue!P19 -> 44.27062736 | Q55: =+Revenue!Q19 -> 46.30933588 | R55: =+Revenue!R19 -> 47.69425686 | S55: =+Revenue!S19 -> 48.31675965 | T55: =+Revenue!T19 -> 49.00558396 | U55: =+Revenue!U19 -> 49.72118104 | V55: 285.3177447 | X55: =+NPV(Inputs!$P$75,P55:U55) -> 249.8180889 | Y55: 0.2297377793
B56: Revenue Group 6: non-domestic measured sewerage | C56: Nominal | D56: £m | P56: =+Revenue!P20 -> 28.0110315 | Q56: =+Revenue!Q20 -> 29.84231194 | R56: =+Revenue!R20 -> 31.04083736 | S56: =+Revenue!S20 -> 31.76851309 | T56: =+Revenue!T20 -> 32.54373936 | U56: =+Revenue!U20 -> 33.34890638 | V56: 186.5553396 | X56: =+NPV(Inputs!$P$75,P56:U56) -> 163.1441854 | Y56: 0.1500105462
B57: Revenue Group 7: non-domestic unmeasured water | C57: Nominal | D57: £m | P57: =+Revenue!P21 -> 1.940471757 | Q57: =+Revenue!Q21 -> 1.998816023 | R57: =+Revenue!R21 -> 2.050815292 | S57: =+Revenue!S21 -> 2.09662454 | T57: =+Revenue!T21 -> 2.1298946 | U57: =+Revenue!U21 -> 2.164033009 | V57: 12.38065522 | X57: =+NPV(Inputs!$P$75,P57:U57) -> 10.84038749 | Y57: =+X57-X44 -> -0.3811696126
B58: Revenue Group 8: non-domestic unmeasured sewerage | C58: Nominal | D58: £m | P58: =+Revenue!P22 -> 2.271533354 | Q58: =+Revenue!Q22 -> 2.337814783 | R58: =+Revenue!R22 -> 2.397902325 | S58: =+Revenue!S22 -> 2.453109164 | T58: =+Revenue!T22 -> 2.49729523 | U58: =+Revenue!U22 -> 2.543826674 | V58: 14.50148153 | X58: =+NPV(Inputs!$P$75,P58:U58) -> 12.69620304 | Y58: -1.704375564
B59: Revenue Group 9: trade effluent | C59: Nominal | D59: £m | P59: =+Revenue!P23 -> 28.44705505 | Q59: =+Revenue!Q23 -> 29.65240361 | R59: =+Revenue!R23 -> 30.8861104 | S59: =+Revenue!S23 -> 32.22556924 | T59: =+Revenue!T23 -> 33.66204423 | U59: =+Revenue!U23 -> 35.17438404 | V59: 190.0475666 | X59: =+NPV(Inputs!$P$75,P59:U59) -> 166.0224311 | Y59: 0.1526181699
B60: Non-tariff basket | C60: Nominal | D60: £m | P60: =+Revenue!P24 -> 13.19244284 | Q60: =+Revenue!Q24 -> 13.7002318 | R60: =+Revenue!R24 -> 14.13589304 | S60: =+Revenue!S24 -> 14.47444427 | T60: =+Revenue!T24 -> 14.83993098 | U60: =+Revenue!U24 -> 15.22143396 | V60: =+SUM(P60:U60) -> 85.5643769 | X60: =+NPV(Inputs!$P$75,P60:U60) -> 74.86736871
B61: Total | C61: Nominal | D61: £m | P61: =SUM(P51:P60) -> 413.1088647 | Q61: 428.5102253 | R61: 444.1528498 | S61: 460.0482287 | T61: 476.9075666 | U61: 494.4276027 | V61: 2717.155338 | X61: =+NPV(Inputs!$P$75,P61:U61) -> 2375.387675 | Y61: =+X61-X48 -> 0.001622741798
B63: Revenue Smoothing | P63: =+P61-P48 -> 34.5347825 | Q63: =+Q61-Q48 -> -7.376860635 | R63: -18.1654322 | S63: -16.32598517 | T63: -6.684542764 | U63: 11.7552211
P64: =+Calculations!P127-P63 -> 0 | Q64: =+Calculations!Q127-Q63 -> 0 | R64: =+Calculations!R127-R63 -> 2.511367825e-07 | S64: =+Calculations!S127-S63 -> -1.802821998e-07 | T64: =+Calculations!T127-T63 -> 5.56814939e-07 | U64: =+Calculations!U127-U63 -> 0
B65: Percentage change in tariffs per revenue group
B66: Revenue Group 1: domestic measured water | C66: % | D66: %
B67: Revenue Group 2: domestic measured sewerage | C67: % | D67: % | N67: 21/22 real | X67: 18.8
B68: Revenue Group 3: domestic unmeasured water | C68: % | D68: % | N68: =+'Charge Caps'!P40 -> -0.01692565999 | Q68: 0.03044965721 | R68: =$Q68-Inputs!$Q$6+Inputs!R$6 -> 0.03400723387 | S68: =$Q68-Inputs!$Q$6+Inputs!S$6 -> 0.03790457851 | T68: =$Q68-Inputs!$Q$6+Inputs!T$6 -> 0.0391124981 | U68: =$Q68-Inputs!$Q$6+Inputs!U$6 -> 0.03946401407
B69: Revenue Group 4: domestic unmeasured sewerage | C69: % | D69: % | N69: =+'Charge Caps'!P41 -> -0.01704052824 | Q69: 0.0170356766 | R69: =$Q69-Inputs!$Q$6+Inputs!R$6 -> 0.02059325326 | S69: =$Q69-Inputs!$Q$6+Inputs!S$6 -> 0.0244905979 | T69: =$Q69-Inputs!$Q$6+Inputs!T$6 -> 0.02569851748 | U69: =$Q69-Inputs!$Q$6+Inputs!U$6 -> 0.02605003346
B70: Revenue Group 5: non-domestic measured water | C70: % | D70: % | N70: =+'Charge Caps'!P42 -> -0.0183149743 | Q70: 0.003031507222 | R70: =$Q70-Inputs!$Q$6+Inputs!R$6 -> 0.006589083883 | S70: =$Q70-Inputs!$Q$6+Inputs!S$6 -> 0.01048642852 | T70: =$Q70-Inputs!$Q$6+Inputs!T$6 -> 0.0116943481 | U70: =$Q70-Inputs!$Q$6+Inputs!U$6 -> 0.01204586408
B71: Revenue Group 6: non-domestic measured sewerage | C71: % | D71: % | N71: =+'Charge Caps'!P43 -> -0.01744404481 | Q71: 0.01193979315 | R71: =$Q71-Inputs!$Q$6+Inputs!R$6 -> 0.01549736982 | S71: =$Q71-Inputs!$Q$6+Inputs!S$6 -> 0.01939471445 | T71: =$Q71-Inputs!$Q$6+Inputs!T$6 -> 0.02060263404 | U71: =$Q71-Inputs!$Q$6+Inputs!U$6 -> 0.02095415001
B72: Revenue Group 7: non-domestic unmeasured water | C72: % | D72: % | N72: =+'Charge Caps'!P44 -> -0.01482737059 | Q72: =Inputs!$Q$6 -> 0.02098564314 | R72: =Inputs!R6 -> 0.02454321981 | S72: =Inputs!S6 -> 0.02844056444 | T72: =Inputs!T6 -> 0.02964848403 | U72: =Inputs!U6 -> 0.03
B73: Revenue Group 8: non-domestic unmeasured sewerage | C73: % | D73: % | N73: =+'Charge Caps'!P45 -> -0.01502125927 | Q73: =Inputs!Q6 -> 0.02098564314 | R73: =Inputs!R6 -> 0.02454321981 | S73: =Inputs!S6 -> 0.02844056444 | T73: =Inputs!T6 -> 0.02964848403 | U73: =Inputs!U6 -> 0.03
B74: Revenue Group 9: trade effluent | C74: % | D74: % | N74: =+'Charge Caps'!P46 -> -0.01730771824 | Q74: 0.03588428007 | R74: =$Q74-Inputs!$Q$6+Inputs!R$6 -> 0.03944185673 | S74: =$Q74-Inputs!$Q$6+Inputs!S$6 -> 0.04333920137 | T74: =$Q74-Inputs!$Q$6+Inputs!T$6 -> 0.04454712095 | U74: =$Q74-Inputs!$Q$6+Inputs!U$6 -> 0.04489863692
Q76: =+'Charge Caps'!Q47 -> 0.0002708034835 | R76: =+'Charge Caps'!R47 -> -0.0001254219013 | S76: =+'Charge Caps'!S47 -> -0.0001328187957 | T76: =+'Charge Caps'!T47 -> -7.178362072e-05 | U76: =+'Charge Caps'!U47 -> 3.898202657e-05
S78: =SUM(Q76:U76) -> -2.023880768e-05

Sheet Tariffs
A1: Model_Navigation
B2: List of tariffs
C3: Units | D3: Field Type | E3: Reference | L3: =+Inputs!L2 -> 2017-18 | M3: =+Inputs!M2 -> 2018-19 | N3: =+Inputs!N2 -> 2019-20 | O3: =+Inputs!O2 -> 2020-21 | P3: =+Inputs!P2 -> 2021-22 | Q3: =+Inputs!Q2 -> 2022-23 | R3: =+Inputs!R2 -> 2023-24 | S3: =+Inputs!S2 -> 2024-25 | T3: =+Inputs!T2 -> 2025-26 | U3: =+Inputs!U2 -> 2026-27
B5: Revenue Group 1: Domestic measured water
B6: Standing Charge | C6: £ | D6: I/C | E6: Tariff.RG1.L1 | L6: 0 | M6: 0 | N6: 0 | O6: 0 | P6: =+O6*(1+'Solve Tariffs'!P$66) -> 0 | Q6: =+P6*(1+'Solve Tariffs'!Q$66) -> 0 | R6: =+Q6*(1+'Solve Tariffs'!R$66) -> 0 | S6: =+R6*(1+'Solve Tariffs'!S$66) -> 0 | T6: =+S6*(1+'Solve Tariffs'!T$66) -> 0 | U6: =+T6*(1+'Solve Tariffs'!U$66) -> 0
B7: Volumetric Charge | C7: £ | D7: I/C | E7: Tariff.RG1.L2 | L7: 0 | M7: 0 | N7: 0 | O7: 0 | P7: =+O7*(1+'Solve Tariffs'!P$66) -> 0 | Q7: =+P7*(1+'Solve Tariffs'!Q$66) -> 0 | R7: =+Q7*(1+'Solve Tariffs'!R$66) -> 0 | S7: =+R7*(1+'Solve Tariffs'!S$66) -> 0 | T7: =+S7*(1+'Solve Tariffs'!T$66) -> 0 | U7: =+T7*(1+'Solve Tariffs'!U$66) -> 0 | W7: `
B8: Single person assessed volumetric charge | C8: £ | D8: I/C | E8: Tariff.RG1.L3 | L8: 0 | M8: 0 | N8: 0 | O8: 0 | P8: =+O8*(1+'Solve Tariffs'!P$66) -> 0 | Q8: =+P8*(1+'Solve Tariffs'!Q$66) -> 0 | R8: =+Q8*(1+'Solve Tariffs'!R$66) -> 0 | S8: =+R8*(1+'Solve Tariffs'!S$66) -> 0 | T8: =+S8*(1+'Solve Tariffs'!T$66) -> 0 | U8: =+T8*(1+'Solve Tariffs'!U$66) -> 0
B9: Two person assessed volumetric charge | C9: £ | D9: I/C | E9: Tariff.RG1.L4 | L9: 0 | M9: 0 | N9: 0 | O9: 0 | P9: =+O9*(1+'Solve Tariffs'!P$66) -> 0 | Q9: =+P9*(1+'Solve Tariffs'!Q$66) -> 0 | R9: =+Q9*(1+'Solve Tariffs'!R$66) -> 0 | S9: =+R9*(1+'Solve Tariffs'!S$66) -> 0 | T9: =+S9*(1+'Solve Tariffs'!T$66) -> 0 | U9: =+T9*(1+'Solve Tariffs'!U$66) -> 0
B10: Multi-person assessed volumetric charge | C10: £ | D10: I/C | E10: Tariff.RG1.L5 | L10: 0 | M10: 0 | N10: 0 | O10: 0 | P10: =+O10*(1+'Solve Tariffs'!P$66) -> 0 | Q10: =+P10*(1+'Solve Tariffs'!Q$66) -> 0 | R10: =+Q10*(1+'Solve Tariffs'!R$66) -> 0 | S10: =+R10*(1+'Solve Tariffs'!S$66) -> 0 | T10: =+S10*(1+'Solve Tariffs'!T$66) -> 0 | U10: =+T10*(1+'Solve Tariffs'!U$66) -> 0
B12: Revenue Group 2: Domestic measured sewerage
B13: Standing Charge | C13: £ | D13: I/C | E13: Tariff.RG2.L6 | L13: 0 | M13: 0 | N13: 0 | O13: 0 | P13: =+O13*(1+'Solve Tariffs'!P$67) -> 0 | Q13: =+P13*(1+'Solve Tariffs'!Q$67) -> 0 | R13: =+Q13*(1+'Solve Tariffs'!R$67) -> 0 | S13: =+R13*(1+'Solve Tariffs'!S$67) -> 0 | T13: =+S13*(1+'Solve Tariffs'!T$67) -> 0 | U13: =+T13*(1+'Solve Tariffs'!U$67) -> 0
B14: Volumetric Charge | C14: £ | D14: I/C | E14: Tariff.RG2.L7 | L14: 0 | M14: 0 | N14: 0 | O14: 0 | P14: =+O14*(1+'Solve Tariffs'!P$67) -> 0 | Q14: =+P14*(1+'Solve Tariffs'!Q$67) -> 0 | R14: =+Q14*(1+'Solve Tariffs'!R$67) -> 0 | S14: =+R14*(1+'Solve Tariffs'!S$67) -> 0 | T14: =+S14*(1+'Solve Tariffs'!T$67) -> 0 | U14: =+T14*(1+'Solve Tariffs'!U$67) -> 0
B15: Single person assessed volumetric charge | C15: £ | D15: I/C | E15: Tariff.RG2.L8 | L15: 0 | M15: 0 | N15: 0 | O15: 0 | P15: =+O15*(1+'Solve Tariffs'!P$67) -> 0 | Q15: =+P15*(1+'Solve Tariffs'!Q$67) -> 0 | R15: =+Q15*(1+'Solve Tariffs'!R$67) -> 0 | S15: =+R15*(1+'Solve Tariffs'!S$67) -> 0 | T15: =+S15*(1+'Solve Tariffs'!T$67) -> 0 | U15: =+T15*(1+'Solve Tariffs'!U$67) -> 0
B16: Two person assessed volumetric charge | C16: £ | D16: I/C | E16: Tariff.RG2.L9 | L16: 0 | M16: 0 | N16: 0 | O16: 0 | P16: =+O16*(1+'Solve Tariffs'!P$67) -> 0 | Q16: =+P16*(1+'Solve Tariffs'!Q$67) -> 0 | R16: =+Q16*(1+'Solve Tariffs'!R$67) -> 0 | S16: =+R16*(1+'Solve Tariffs'!S$67) -> 0 | T16: =+S16*(1+'Solve Tariffs'!T$67) -> 0 | U16: =+T16*(1+'Solve Tariffs'!U$67) -> 0
B17: Multi-person assessed volumetric charge | C17: £ | D17: I/C | E17: Tariff.RG2.L10 | L17: 0 | M17: 0 | N17: 0 | O17: 0 | P17: =+O17*(1+'Solve Tariffs'!P$67) -> 0 | Q17: =+P17*(1+'Solve Tariffs'!Q$67) -> 0 | R17: =+Q17*(1+'Solve Tariffs'!R$67) -> 0 | S17: =+R17*(1+'Solve Tariffs'!S$67) -> 0 | T17: =+S17*(1+'Solve Tariffs'!T$67) -> 0 | U17: =+T17*(1+'Solve Tariffs'!U$67) -> 0
B19: Revenue Group 3: Domestic unmeasured water
B20: Standing charge | C20: £ | D20: I/C | E20: Tariff.RG3.L11 | L20: 0 | M20: 0 | N20: 0 | O20: 0 | P20: 0 | Q20: =+P20*(1+'Solve Tariffs'!Q$68) -> 0 | R20: =+Q20*(1+'Solve Tariffs'!R$68) -> 0 | S20: =+R20*(1+'Solve Tariffs'!S$68) -> 0 | T20: =+S20*(1+'Solve Tariffs'!T$68) -> 0 | U20: =+T20*(1+'Solve Tariffs'!U$68) -> 0
B21: Variable charge | C21: £ | D21: I/C | E21: Tariff.RG3.L12 | L21: 1.5196 | M21: 1.5232 | N21: 1.5164 | O21: 1.494 | P21: 1.507 | Q21: =+P21*(1+'Solve Tariffs'!Q$68) -> 1.552887633 | R21: =+Q21*(1+'Solve Tariffs'!R$68) -> 1.605697046 | S21: =+R21*(1+'Solve Tariffs'!S$68) -> 1.666560316 | T21: =+S21*(1+'Solve Tariffs'!T$68) -> 1.731743653 | U21: =+T21*(1+'Solve Tariffs'!U$68) -> 1.800085209
B22: Capped charge | C22: £ | D22: I/C | E22: Tariff.RG3.L13 | L22: 607.81 | M22: 609.27 | N22: 606.53 | O22: 597.61 | P22: 602.74 | Q22: =+P22*(1+'Solve Tariffs'!Q$68) -> 621.0932264 | R22: =+Q22*(1+'Solve Tariffs'!R$68) -> 642.214889 | S22: =+R22*(1+'Solve Tariffs'!S$68) -> 666.5577737 | T22: =+S22*(1+'Solve Tariffs'!T$68) -> 692.6285133 | U22: =+T22*(1+'Solve Tariffs'!U$68) -> 719.9624147
B23: Affordability tariff for properties with capital value up to and including £70k | C23: £ | D23: I/C | E23: Tariff.RG3.L14 | L23: 46.44 | M23: 46.55 | N23: 46.34 | O23: 45.66 | P23: 46.05 | Q23: =+P23*(1+'Solve Tariffs'!Q$68) -> 47.45220671 | R23: =+Q23*(1+'Solve Tariffs'!R$68) -> 49.06592501 | S23: =+R23*(1+'Solve Tariffs'!S$68) -> 50.92574821 | T23: =+S23*(1+'Solve Tariffs'!T$68) -> 52.91758144 | U23: =+T23*(1+'Solve Tariffs'!U$68) -> 55.00592162
B24: Affordability tariff for properties with capital value over £70,000 and up to and including £100,000 | C24: £ | D24: I/C | E24: Tariff.RG3.L15 | L24: 69.65 | M24: 69.82 | N24: 69.51 | O24: 68.49 | P24: 69.08 | Q24: =+P24*(1+'Solve Tariffs'!Q$68) -> 71.18346232 | R24: =+Q24*(1+'Solve Tariffs'!R$68) -> 73.60421497 | S24: =+R24*(1+'Solve Tariffs'!S$68) -> 76.39415172 | T24: =+S24*(1+'Solve Tariffs'!T$68) -> 79.38211783 | U24: =+T24*(1+'Solve Tariffs'!U$68) -> 82.51485484
B25: Affordability tariff for properties with capital value over £100,000 | C25: £ | D25: I/C | E25: Tariff.RG3.L16 | L25: 92.86 | M25: 93.08 | N25: 92.66 | O25: 91.3 | P25: 92.08 | Q25: =+P25*(1+'Solve Tariffs'!Q$68) -> 94.88380444 | R25: =+Q25*(1+'Solve Tariffs'!R$68) -> 98.11054016 | S25: =+R25*(1+'Solve Tariffs'!S$68) -> 101.8293788 | T25: =+S25*(1+'Solve Tariffs'!T$68) -> 105.8121802 | U25: =+T25*(1+'Solve Tariffs'!U$68) -> 109.9879536
B26: Flat rate charge | C26: £ | D26: I/C | E26: Tariff.RG3.L17 | L26: 2.89 | M26: 2.9 | N26: 2.89 | O26: 2.85 | P26: 2.87 | Q26: =+P26*(1+'Solve Tariffs'!Q$68) -> 2.957390516 | R26: =+Q26*(1+'Solve Tariffs'!R$68) -> 3.057963187 | S26: =+R26*(1+'Solve Tariffs'!S$68) -> 3.173873993 | T26: =+S26*(1+'Solve Tariffs'!T$68) -> 3.298012133 | U26: =+T26*(1+'Solve Tariffs'!U$68) -> 3.428164931
B28: Revenue group 4: Domestic unmeasured sewerage
B29: Standing Charge | C29: £ | D29: I/C | E29: Tariff.RG4.L18 | L29: 0 | M29: 0 | N29: 0 | O29: 0 | P29: 0 | Q29: =+P29*(1+'Solve Tariffs'!Q$69) -> 0 | R29: =+Q29*(1+'Solve Tariffs'!R$69) -> 0 | S29: =+R29*(1+'Solve Tariffs'!S$69) -> 0 | T29: =+S29*(1+'Solve Tariffs'!T$69) -> 0 | U29: =+T29*(1+'Solve Tariffs'!U$69) -> 0
B30: Variable Charge | C30: £ | D30: I/C | E30: Tariff.RG4.L19 | L30: 2.1843 | M30: 2.2435 | N30: 2.2975 | O30: 2.329 | P30: 2.349 | Q30: =+P30*(1+'Solve Tariffs'!Q$69) -> 2.389016804 | R30: =+Q30*(1+'Solve Tariffs'!R$69) -> 2.438214432 | S30: =+R30*(1+'Solve Tariffs'!S$69) -> 2.497927762 | T30: =+S30*(1+'Solve Tariffs'!T$69) -> 2.562120802 | U30: =+T30*(1+'Solve Tariffs'!U$69) -> 2.628864135
B31: Capped charge | C31: £ | D31: I/C | E31: Tariff.RG4.L20 | L31: 873.67 | M31: 897.36 | N31: 918.97 | O31: 931.47 | P31: 939.47 | Q31: =+P31*(1+'Solve Tariffs'!Q$69) -> 955.4745071 | R31: =+Q31*(1+'Solve Tariffs'!R$69) -> 975.1508356 | S31: =+R31*(1+'Solve Tariffs'!S$69) -> 999.0328626 | T31: =+S31*(1+'Solve Tariffs'!T$69) -> 1024.706526 | U31: =+T31*(1+'Solve Tariffs'!U$69) -> 1051.400165
B32: Affordability tariff for properties with capital value up to and including £70,000 | C32: £ | D32: I/C | E32: Tariff.RG4.L21 | L32: 53.9 | M32: 55.36 | N32: 56.69 | O32: 57.46 | P32: 57.95 | Q32: =+P32*(1+'Solve Tariffs'!Q$69) -> 58.93721746 | R32: =+Q32*(1+'Solve Tariffs'!R$69) -> 60.1509265 | S32: =+R32*(1+'Solve Tariffs'!S$69) -> 61.62405866 | T32: =+S32*(1+'Solve Tariffs'!T$69) -> 63.20770561 | U32: =+T32*(1+'Solve Tariffs'!U$69) -> 64.85426845
B33: Affordability tariff for properties with capital value over £70,000 and up to and including £100,000 | C33: £ | D33: I/C | E33: Tariff.RG4.L22 | L33: 80.86 | M33: 83.05 | N33: 85.05 | O33: 86.21 | P33: 86.95 | Q33: =+P33*(1+'Solve Tariffs'!Q$69) -> 88.43125208 | R33: =+Q33*(1+'Solve Tariffs'!R$69) -> 90.25233925 | S33: =+R33*(1+'Solve Tariffs'!S$69) -> 92.462673 | T33: =+S33*(1+'Solve Tariffs'!T$69) -> 94.83882662 | U33: =+T33*(1+'Solve Tariffs'!U$69) -> 97.30938123
B34: Affordability tariff for properties with capital value over £100,000 | C34: £ | D34: I/C | E34: Tariff.RG4.L23 | L34: 107.81 | M34: 110.73 | N34: 113.4 | O34: 114.94 | P34: 115.93 | Q34: =+P34*(1+'Solve Tariffs'!Q$69) -> 117.904946 | R34: =+Q34*(1+'Solve Tariffs'!R$69) -> 120.3329924 | S34: =+R34*(1+'Solve Tariffs'!S$69) -> 123.2800193 | T34: =+S34*(1+'Solve Tariffs'!T$69) -> 126.4481331 | U34: =+T34*(1+'Solve Tariffs'!U$69) -> 129.7421112
B35: Flat rate charge | C35: £ | D35: I/C | E35: Tariff.RG4.L24 | L35: 3.84 | M35: 3.94 | N35: 4.03 | O35: 4.08 | P35: 4.12 | Q35: =+P35*(1+'Solve Tariffs'!Q$69) -> 4.190186988 | R35: =+Q35*(1+'Solve Tariffs'!R$69) -> 4.276476569 | S35: =+R35*(1+'Solve Tariffs'!S$69) -> 4.381210038 | T35: =+S35*(1+'Solve Tariffs'!T$69) -> 4.49380064 | U35: =+T35*(1+'Solve Tariffs'!U$69) -> 4.610864297
B38: Revenue group 5: Non-domestic measured water
B39: Existing customers: Up to 20mm | C39: £ | D39: I/C | E39: Tariff.RG5.L25 | L39: 66 | M39: 68 | N39: 69 | O39: =+N39 -> 69 | P39: 69 | Q39: =+P39*(1+'Solve Tariffs'!Q$70) -> 69.209174 | R39: =+Q39*(1+'Solve Tariffs'!R$70) -> 69.66519905 | S39: =+R39*(1+'Solve Tariffs'!S$70) -> 70.39573818 | T39: =+S39*(1+'Solve Tariffs'!T$70) -> 71.21897045 | U39: =+T39*(1+'Solve Tariffs'!U$70) -> 72.07686449
B40: Existing customers: Over 20mm up to 25mm | C40: £ | D40: I/C | E40: Tariff.RG5.L26 | L40: 111 | M40: 114 | N40: 116 | O40: 117 | P40: 118 | Q40: =+P40*(1+'Solve Tariffs'!Q$70) -> 118.3577179 | R40: =+Q40*(1+'Solve Tariffs'!R$70) -> 119.1375868 | S40: =+R40*(1+'Solve Tariffs'!S$70) -> 120.3869146 | T40: =+S40*(1+'Solve Tariffs'!T$70) -> 121.7947611 | U40: =+T40*(1+'Solve Tariffs'!U$70) -> 123.2618842
B41: Existing customers: Over 25mm up to 40mm | C41: £ | D41: I/C | E41: Tariff.RG5.L27 | L41: 205 | M41: 211 | N41: 215 | O41: 217 | P41: 218 | Q41: =+P41*(1+'Solve Tariffs'!Q$70) -> 218.6608686 | R41: =+Q41*(1+'Solve Tariffs'!R$70) -> 220.1016434 | S41: =+R41*(1+'Solve Tariffs'!S$70) -> 222.4097235 | T41: =+S41*(1+'Solve Tariffs'!T$70) -> 225.0106603 | U41: =+T41*(1+'Solve Tariffs'!U$70) -> 227.7211081
B42: Existing customers: Over 40mm up to 50mm | C42: £ | D42: I/C | E42: Tariff.RG5.L28 | L42: 321 | M42: 331 | N42: 338 | O42: 341 | P42: 343 | Q42: =+P42*(1+'Solve Tariffs'!Q$70) -> 344.039807 | R42: =+Q42*(1+'Solve Tariffs'!R$70) -> 346.3067141 | S42: =+R42*(1+'Solve Tariffs'!S$70) -> 349.9382347 | T42: =+S42*(1+'Solve Tariffs'!T$70) -> 354.0305343 | U42: =+T42*(1+'Solve Tariffs'!U$70) -> 358.295138
B43: Existing customers: Over 50mm up to 75mm | C43: £ | D43: I/C | E43: Tariff.RG5.L29 | L43: 636 | M43: 657 | N43: 671 | O43: 678 | P43: 683 | Q43: =+P43*(1+'Solve Tariffs'!Q$70) -> 685.0705194 | R43: =+Q43*(1+'Solve Tariffs'!R$70) -> 689.5845066 | S43: =+R43*(1+'Solve Tariffs'!S$70) -> 696.8157852 | T43: =+S43*(1+'Solve Tariffs'!T$70) -> 704.9645915 | U43: =+T43*(1+'Solve Tariffs'!U$70) -> 713.4564992
B44: Existing customers: Over 75mm up to 100mm | C44: £ | D44: I/C | E44: Tariff.RG5.L30 | L44: 1151 | M44: 1189 | N44: 1215 | O44: 1229 | P44: 1239 | Q44: =+P44*(1+'Solve Tariffs'!Q$70) -> 1242.756037 | R44: =+Q44*(1+'Solve Tariffs'!R$70) -> 1250.944661 | S44: =+R44*(1+'Solve Tariffs'!S$70) -> 1264.062603 | T44: =+S44*(1+'Solve Tariffs'!T$70) -> 1278.844991 | U44: =+T44*(1+'Solve Tariffs'!U$70) -> 1294.249784
B45: Existing customers: Over 100mm | C45: £ | D45: I/C | E45: Tariff.RG5.L31 | L45: 1636 | M45: 1690 | N45: 1727 | O45: 1747 | P45: 1762 | Q45: =+P45*(1+'Solve Tariffs'!Q$70) -> 1767.341516 | R45: =+Q45*(1+'Solve Tariffs'!R$70) -> 1778.986677 | S45: =+R45*(1+'Solve Tariffs'!S$70) -> 1797.641894 | T45: =+S45*(1+'Solve Tariffs'!T$70) -> 1818.664144 | U45: =+T45*(1+'Solve Tariffs'!U$70) -> 1840.571525
B46: New customers: Up to 20mm | C46: £ | D46: I/C | E46: Tariff.RG5.L32 | L46: 66 | M46: 68 | N46: 69 | O46: 69 | P46: 69 | Q46: =+P46*(1+'Solve Tariffs'!Q$70) -> 69.209174 | R46: =+Q46*(1+'Solve Tariffs'!R$70) -> 69.66519905 | S46: =+R46*(1+'Solve Tariffs'!S$70) -> 70.39573818 | T46: =+S46*(1+'Solve Tariffs'!T$70) -> 71.21897045 | U46: =+T46*(1+'Solve Tariffs'!U$70) -> 72.07686449
B47: New customers: Over 20mm up to 25mm | C47: £ | D47: I/C | E47: Tariff.RG5.L33 | L47: 111 | M47: 114 | N47: 116 | O47: 117 | P47: 118 | Q47: =+P47*(1+'Solve Tariffs'!Q$70) -> 118.3577179 | R47: =+Q47*(1+'Solve Tariffs'!R$70) -> 119.1375868 | S47: =+R47*(1+'Solve Tariffs'!S$70) -> 120.3869146 | T47: =+S47*(1+'Solve Tariffs'!T$70) -> 121.7947611 | U47: =+T47*(1+'Solve Tariffs'!U$70) -> 123.2618842
B48: New customers: Over 25mm up to 40mm | C48: £ | D48: I/C | E48: Tariff.RG5.L34 | L48: 205 | M48: 211 | N48: 215 | O48: 217 | P48: 218 | Q48: =+P48*(1+'Solve Tariffs'!Q$70) -> 218.6608686 | R48: =+Q48*(1+'Solve Tariffs'!R$70) -> 220.1016434 | S48: =+R48*(1+'Solve Tariffs'!S$70) -> 222.4097235 | T48: =+S48*(1+'Solve Tariffs'!T$70) -> 225.0106603 | U48: =+T48*(1+'Solve Tariffs'!U$70) -> 227.7211081
B49: New customers: Over 40mm up to 50mm | C49: £ | D49: I/C | E49: Tariff.RG5.L35 | L49: 321 | M49: 331 | N49: 338 | O49: 341 | P49: 343 | Q49: =+P49*(1+'Solve Tariffs'!Q$70) -> 344.039807 | R49: =+Q49*(1+'Solve Tariffs'!R$70) -> 346.3067141 | S49: =+R49*(1+'Solve Tariffs'!S$70) -> 349.9382347 | T49: =+S49*(1+'Solve Tariffs'!T$70) -> 354.0305343 | U49: =+T49*(1+'Solve Tariffs'!U$70) -> 358.295138
B50: New customers: Over 50mm up to 75mm | C50: £ | D50: I/C | E50: Tariff.RG5.L36 | L50: 636 | M50: 657 | N50: 671 | O50: 678 | P50: 683 | Q50: =+P50*(1+'Solve Tariffs'!Q$70) -> 685.0705194 | R50: =+Q50*(1+'Solve Tariffs'!R$70) -> 689.5845066 | S50: =+R50*(1+'Solve Tariffs'!S$70) -> 696.8157852 | T50: =+S50*(1+'Solve Tariffs'!T$70) -> 704.9645915 | U50: =+T50*(1+'Solve Tariffs'!U$70) -> 713.4564992
B51: New customers: Over 75mm up to 100mm | C51: £ | D51: I/C | E51: Tariff.RG5.L37 | L51: 1151 | M51: 1189 | N51: 1215 | O51: 1229 | P51: 1239 | Q51: =+P51*(1+'Solve Tariffs'!Q$70) -> 1242.756037 | R51: =+Q51*(1+'Solve Tariffs'!R$70) -> 1250.944661 | S51: =+R51*(1+'Solve Tariffs'!S$70) -> 1264.062603 | T51: =+S51*(1+'Solve Tariffs'!T$70) -> 1278.844991 | U51: =+T51*(1+'Solve Tariffs'!U$70) -> 1294.249784
B52: New customers: Over 100mm | C52: £ | D52: I/C | E52: Tariff.RG5.L38 | L52: 1636 | M52: 1690 | N52: 1727 | O52: 1747 | P52: 1762 | Q52: =+P52*(1+'Solve Tariffs'!Q$70) -> 1767.341516 | R52: =+Q52*(1+'Solve Tariffs'!R$70) -> 1778.986677 | S52: =+R52*(1+'Solve Tariffs'!S$70) -> 1797.641894 | T52: =+S52*(1+'Solve Tariffs'!T$70) -> 1818.664144 | U52: =+T52*(1+'Solve Tariffs'!U$70) -> 1840.571525
B53: Volumetric charge: Existing customers | C53: £ | D53: I/C | E53: Tariff.RG5.L39 | L53: 1.04 | M53: 1.07 | N53: 1.093 | O53: 1.106 | P53: 1.115 | Q53: =+P53*(1+'Solve Tariffs'!Q$70) -> 1.118380131 | R53: =+Q53*(1+'Solve Tariffs'!R$70) -> 1.125749231 | S53: =+R53*(1+'Solve Tariffs'!S$70) -> 1.13755432 | T53: =+S53*(1+'Solve Tariffs'!T$70) -> 1.150857276 | U53: =+T53*(1+'Solve Tariffs'!U$70) -> 1.164720346
B54: Volumetric charge: New customers | C54: £ | D54: I/C | E54: Tariff.RG5.L40 | L54: 1.04 | M54: 1.07 | N54: 1.093 | O54: 1.106 | P54: 1.115 | Q54: =+P54*(1+'Solve Tariffs'!Q$70) -> 1.118380131 | R54: =+Q54*(1+'Solve Tariffs'!R$70) -> 1.125749231 | S54: =+R54*(1+'Solve Tariffs'!S$70) -> 1.13755432 | T54: =+S54*(1+'Solve Tariffs'!T$70) -> 1.150857276 | U54: =+T54*(1+'Solve Tariffs'!U$70) -> 1.164720346
B55: Domestic allowance tariff | C55: £ | D55: I/C | E55: Tariff.RG5.L41 | L55: 1.04 | M55: 1.07 | N55: 1.093 | O55: 1.106 | P55: 1.115 | Q55: =+P55*(1+'Solve Tariffs'!Q$70) -> 1.118380131 | R55: =+Q55*(1+'Solve Tariffs'!R$70) -> 1.125749231 | S55: =+R55*(1+'Solve Tariffs'!S$70) -> 1.13755432 | T55: =+S55*(1+'Solve Tariffs'!T$70) -> 1.150857276 | U55: =+T55*(1+'Solve Tariffs'!U$70) -> 1.164720346
B58: Revenue group 6: Non-domestic measured sewerage
B59: Existing customers: Up to 20mm | C59: £ | D59: I/C | E59: Tariff.RG6.L42 | L59: 78 | M59: 81 | N59: 83 | O59: 84 | P59: 85 | Q59: =+P59*(1+'Solve Tariffs'!Q$71) -> 86.01488242 | R59: =+Q59*(1+'Solve Tariffs'!R$71) -> 87.34788686 | S59: =+R59*(1+'Solve Tariffs'!S$71) -> 89.04197418 | T59: =+S59*(1+'Solve Tariffs'!T$71) -> 90.87647339 | U59: =+T59*(1+'Solve Tariffs'!U$71) -> 92.78071265
B60: Existing customers: Over 20mm up to 25mm | C60: £ | D60: I/C | E60: Tariff.RG6.L43 | L60: 130 | M60: 135 | N60: 139 | O60: 141 | P60: 142 | Q60: =+P60*(1+'Solve Tariffs'!Q$71) -> 143.6954506 | R60: =+Q60*(1+'Solve Tariffs'!R$71) -> 145.9223522 | S60: =+R60*(1+'Solve Tariffs'!S$71) -> 148.7524745 | T60: =+S60*(1+'Solve Tariffs'!T$71) -> 151.8171673 | U60: =+T60*(1+'Solve Tariffs'!U$71) -> 154.998367
B61: Existing customers: Over 25mm up to 40mm | C61: £ | D61: I/C | E61: Tariff.RG6.L44 | L61: 239 | M61: 248 | N61: 255 | O61: 260 | P61: 262 | Q61: =+P61*(1+'Solve Tariffs'!Q$71) -> 265.1282258 | R61: =+Q61*(1+'Solve Tariffs'!R$71) -> 269.237016 | S61: =+R61*(1+'Solve Tariffs'!S$71) -> 274.458791 | T61: =+S61*(1+'Solve Tariffs'!T$71) -> 280.113365 | U61: =+T61*(1+'Solve Tariffs'!U$71) -> 285.9829025
B62: Existing customers: Over 40mm up to 50mm | C62: £ | D62: I/C | E62: Tariff.RG6.L45 | L62: 375 | M62: 389 | N62: 401 | O62: 409 | P62: 412 | Q62: =+P62*(1+'Solve Tariffs'!Q$71) -> 416.9191948 | R62: =+Q62*(1+'Solve Tariffs'!R$71) -> 423.3803457 | S62: =+R62*(1+'Solve Tariffs'!S$71) -> 431.5916866 | T62: =+S62*(1+'Solve Tariffs'!T$71) -> 440.4836122 | U62: =+T62*(1+'Solve Tariffs'!U$71) -> 449.7135719
B63: Existing customers: Over 50mm up to 75mm | C63: £ | D63: I/C | E63: Tariff.RG6.L46 | L63: 740 | M63: 768 | N63: 792 | O63: 808 | P63: 814 | Q63: =+P63*(1+'Solve Tariffs'!Q$71) -> 823.7189916 | R63: =+Q63*(1+'Solve Tariffs'!R$71) -> 836.4844695 | S63: =+R63*(1+'Solve Tariffs'!S$71) -> 852.7078469 | T63: =+S63*(1+'Solve Tariffs'!T$71) -> 870.2758746 | U63: =+T63*(1+'Solve Tariffs'!U$71) -> 888.5117658
B64: Existing customers: Over 75mm up to 100mm | C64: £ | D64: I/C | E64: Tariff.RG6.L47 | L64: 1338 | M64: 1389 | N64: 1433 | O64: 1462 | P64: 1474 | Q64: =+P64*(1+'Solve Tariffs'!Q$71) -> 1491.599255 | R64: =+Q64*(1+'Solve Tariffs'!R$71) -> 1514.71512 | S64: =+R64*(1+'Solve Tariffs'!S$71) -> 1544.092588 | T64: =+S64*(1+'Solve Tariffs'!T$71) -> 1575.904962 | U64: =+T64*(1+'Solve Tariffs'!U$71) -> 1608.926711
B65: Existing customers: Over 100mm | C65: £ | D65: I/C | E65: Tariff.RG6.L48 | L65: 1905 | M65: 1978 | N65: 2041 | O65: 2083 | P65: 2100 | Q65: =+P65*(1+'Solve Tariffs'!Q$71) -> 2125.073566 | R65: =+Q65*(1+'Solve Tariffs'!R$71) -> 2158.006617 | S65: =+R65*(1+'Solve Tariffs'!S$71) -> 2199.860539 | T65: =+S65*(1+'Solve Tariffs'!T$71) -> 2245.18346 | U65: =+T65*(1+'Solve Tariffs'!U$71) -> 2292.229371
B66: New customers: Up to 20mm | C66: £ | D66: I/C | E66: Tariff.RG6.L49 | L66: 78 | M66: 81 | N66: 83 | O66: 84 | P66: 85 | Q66: =+P66*(1+'Solve Tariffs'!Q$71) -> 86.01488242 | R66: =+Q66*(1+'Solve Tariffs'!R$71) -> 87.34788686 | S66: =+R66*(1+'Solve Tariffs'!S$71) -> 89.04197418 | T66: =+S66*(1+'Solve Tariffs'!T$71) -> 90.87647339 | U66: =+T66*(1+'Solve Tariffs'!U$71) -> 92.78071265
B67: New customers: Over 20mm up to 25mm | C67: £ | D67: I/C | E67: Tariff.RG6.L50 | L67: 130 | M67: 135 | N67: 139 | O67: 141 | P67: 142 | Q67: =+P67*(1+'Solve Tariffs'!Q$71) -> 143.6954506 | R67: =+Q67*(1+'Solve Tariffs'!R$71) -> 145.9223522 | S67: =+R67*(1+'Solve Tariffs'!S$71) -> 148.7524745 | T67: =+S67*(1+'Solve Tariffs'!T$71) -> 151.8171673 | U67: =+T67*(1+'Solve Tariffs'!U$71) -> 154.998367
B68: New customers: Over 25mm up to 40mm | C68: £ | D68: I/C | E68: Tariff.RG6.L51 | L68: 239 | M68: 248 | N68: 255 | O68: 260 | P68: 262 | Q68: =+P68*(1+'Solve Tariffs'!Q$71) -> 265.1282258 | R68: =+Q68*(1+'Solve Tariffs'!R$71) -> 269.237016 | S68: =+R68*(1+'Solve Tariffs'!S$71) -> 274.458791 | T68: =+S68*(1+'Solve Tariffs'!T$71) -> 280.113365 | U68: =+T68*(1+'Solve Tariffs'!U$71) -> 285.9829025
B69: New customers: Over 40mm up to 50mm | C69: £ | D69: I/C | E69: Tariff.RG6.L52 | L69: 375 | M69: 389 | N69: 401 | O69: 409 | P69: 412 | Q69: =+P69*(1+'Solve Tariffs'!Q$71) -> 416.9191948 | R69: =+Q69*(1+'Solve Tariffs'!R$71) -> 423.3803457 | S69: =+R69*(1+'Solve Tariffs'!S$71) -> 431.5916866 | T69: =+S69*(1+'Solve Tariffs'!T$71) -> 440.4836122 | U69: =+T69*(1+'Solve Tariffs'!U$71) -> 449.7135719
B70: New customers: Over 50mm up to 75mm | C70: £ | D70: I/C | E70: Tariff.RG6.L53 | L70: 740 | M70: 768 | N70: 792 | O70: 808 | P70: 814 | Q70: =+P70*(1+'Solve Tariffs'!Q$71) -> 823.7189916 | R70: =+Q70*(1+'Solve Tariffs'!R$71) -> 836.4844695 | S70: =+R70*(1+'Solve Tariffs'!S$71) -> 852.7078469 | T70: =+S70*(1+'Solve Tariffs'!T$71) -> 870.2758746 | U70: =+T70*(1+'Solve Tariffs'!U$71) -> 888.5117658
B71: New customers: Over 75mm up to 100mm | C71: £ | D71: I/C | E71: Tariff.RG6.L54 | L71: 1338 | M71: 1389 | N71: 1433 | O71: 1462 | P71: 1474 | Q71: =+P71*(1+'Solve Tariffs'!Q$71) -> 1491.599255 | R71: =+Q71*(1+'Solve Tariffs'!R$71) -> 1514.71512 | S71: =+R71*(1+'Solve Tariffs'!S$71) -> 1544.092588 | T71: =+S71*(1+'Solve Tariffs'!T$71) -> 1575.904962 | U71: =+T71*(1+'Solve Tariffs'!U$71) -> 1608.926711
B72: New customers: Over 100mm | C72: £ | D72: I/C | E72: Tariff.RG6.L55 | L72: 1905 | M72: 1978 | N72: 2041 | O72: 2083 | P72: 2100 | Q72: =+P72*(1+'Solve Tariffs'!Q$71) -> 2125.073566 | R72: =+Q72*(1+'Solve Tariffs'!R$71) -> 2158.006617 | S72: =+R72*(1+'Solve Tariffs'!S$71) -> 2199.860539 | T72: =+S72*(1+'Solve Tariffs'!T$71) -> 2245.18346 | U72: =+T72*(1+'Solve Tariffs'!U$71) -> 2292.229371
B73: Volumetric charge- existing customers | C73: £ | D73: I/C | E73: Tariff.RG6.L56 | L73: 1.7 | M73: 1.76 | N73: 1.816 | O73: 1.853 | P73: 1.868 | Q73: =+P73*(1+'Solve Tariffs'!Q$71) -> 1.890303534 | R73: =+Q73*(1+'Solve Tariffs'!R$71) -> 1.919598267 | S73: =+R73*(1+'Solve Tariffs'!S$71) -> 1.956828327 | T73: =+S73*(1+'Solve Tariffs'!T$71) -> 1.997144145 | U73: =+T73*(1+'Solve Tariffs'!U$71) -> 2.038992603
B74: Volumetric charge- new customers | C74: £ | D74: I/C | E74: Tariff.RG6.L57 | L74: 1.7 | M74: 1.76 | N74: 1.816 | O74: 1.853 | P74: 1.868 | Q74: =+P74*(1+'Solve Tariffs'!Q$71) -> 1.890303534 | R74: =+Q74*(1+'Solve Tariffs'!R$71) -> 1.919598267 | S74: =+R74*(1+'Solve Tariffs'!S$71) -> 1.956828327 | T74: =+S74*(1+'Solve Tariffs'!T$71) -> 1.997144145 | U74: =+T74*(1+'Solve Tariffs'!U$71) -> 2.038992603
B75: Domestic allowance tariff | C75: £ | D75: I/C | E75: Tariff.RG6.L58 | L75: 1.7 | M75: 1.76 | N75: 1.816 | O75: 1.853 | P75: 1.868 | Q75: =+P75*(1+'Solve Tariffs'!Q$71) -> 1.890303534 | R75: =+Q75*(1+'Solve Tariffs'!R$71) -> 1.919598267 | S75: =+R75*(1+'Solve Tariffs'!S$71) -> 1.956828327 | T75: =+S75*(1+'Solve Tariffs'!T$71) -> 1.997144145 | U75: =+T75*(1+'Solve Tariffs'!U$71) -> 2.038992603
B77: Revenue Group 7: Non-domestic unmeasured water
B78: Standing charge | C78: £ | D78: I/C | E78: Tariff.RG7.L59 | L78: 56.3 | M78: 58.48 | N78: 60.34 | O78: 61.7 | P78: =31.11*2 -> 62.22 | Q78: =+P78*(1+'Solve Tariffs'!Q$72) -> 63.52572672 | R78: =+Q78*(1+'Solve Tariffs'!R$72) -> 65.08485259 | S78: =+R78*(1+'Solve Tariffs'!S$72) -> 66.93590253 | T78: =+S78*(1+'Solve Tariffs'!T$72) -> 68.92045057 | U78: =+T78*(1+'Solve Tariffs'!U$72) -> 70.98806409
B79: Variable charge | C79: £ | D79: I/C | E79: Tariff.RG7.L60 | L79: 21.62 | M79: 22.45 | N79: 23.16 | O79: 23.68 | P79: =11.94*2 -> 23.88 | Q79: =+P79*(1+'Solve Tariffs'!Q$72) -> 24.38113716 | R79: =+Q79*(1+'Solve Tariffs'!R$72) -> 24.97952877 | S79: =+R79*(1+'Solve Tariffs'!S$72) -> 25.68996066 | T79: =+S79*(1+'Solve Tariffs'!T$72) -> 26.45162905 | U79: =+T79*(1+'Solve Tariffs'!U$72) -> 27.24517792
B80: Capped charge | C80: £ | D80: I/C | E80: Tariff.RG7.L61 | L80: 875 | M80: 900 | N80: 920 | O80: 940 | P80: =470*2 -> 940 | Q80: =+P80*(1+'Solve Tariffs'!Q$72) -> 959.7265046 | R80: =+Q80*(1+'Solve Tariffs'!R$72) -> 983.2812831 | S80: =+R80*(1+'Solve Tariffs'!S$72) -> 1011.246358 | T80: =+S80*(1+'Solve Tariffs'!T$72) -> 1041.228279 | U80: =+T80*(1+'Solve Tariffs'!U$72) -> 1072.465128
B81: Other revenue flat rate charge | C81: £ | D81: I/C | E81: Tariff.RG7.L62 | L81: 220 | M81: 228.53 | N81: 235.82 | O81: 241 | P81: 245 | Q81: =+P81*(1+'Solve Tariffs'!Q$72) -> 250.1414826 | R81: =+Q81*(1+'Solve Tariffs'!R$72) -> 256.28076 | S81: =+R81*(1+'Solve Tariffs'!S$72) -> 263.5695294 | T81: =+S81*(1+'Solve Tariffs'!T$72) -> 271.3839664 | U81: =+T81*(1+'Solve Tariffs'!U$72) -> 279.5254854
B83: Revenue Group 8: Non-domestic unmeasured sewerage
B84: Standing charge | C84: £ | D84: I/C | E84: Tariff.RG8.L63 | L84: 78.38 | M84: 81.42 | N84: 84 | O84: 85.88 | P84: =43.31*2 -> 86.62 | Q84: =+P84*(1+'Solve Tariffs'!Q$73) -> 88.43777641 | R84: =+Q84*(1+'Solve Tariffs'!R$73) -> 90.60832419 | S84: =+R84*(1+'Solve Tariffs'!S$73) -> 93.18527608 | T84: =+S84*(1+'Solve Tariffs'!T$73) -> 95.94807825 | U84: =+T84*(1+'Solve Tariffs'!U$73) -> 98.82652059
B85: Variable charge | C85: £ | D85: I/C | E85: Tariff.RG8.L64 | L85: 29.51 | M85: 30.65 | N85: 31.62 | O85: 32.34 | P85: =16.3*2 -> 32.6 | Q85: =+P85*(1+'Solve Tariffs'!Q$73) -> 33.28413197 | R85: =+Q85*(1+'Solve Tariffs'!R$73) -> 34.10103173 | S85: =+R85*(1+'Solve Tariffs'!S$73) -> 35.07088432 | T85: =+S85*(1+'Solve Tariffs'!T$73) -> 36.11068288 | U85: =+T85*(1+'Solve Tariffs'!U$73) -> 37.19400336
B86: Capped charge | C86: £ | D86: I/C | E86: Tariff.RG8.L65 | L86: 930 | M86: 960 | N86: 990 | O86: 1010 | P86: =505*2 -> 1010 | Q86: =+P86*(1+'Solve Tariffs'!Q$73) -> 1031.1955 | R86: =+Q86*(1+'Solve Tariffs'!R$73) -> 1056.504357 | S86: =+R86*(1+'Solve Tariffs'!S$73) -> 1086.551938 | T86: =+S86*(1+'Solve Tariffs'!T$73) -> 1118.766555 | U86: =+T86*(1+'Solve Tariffs'!U$73) -> 1152.329552
B88: Revenue Group 9: Trade effluent
B89: Reception and conveyance charge (R) | C89: £/m3 | D89: I/C | E89: Tariff.RG9.L66 | L89: 0.2091 | M89: 0.2172 | N89: 0.2241 | O89: 0.2291 | P89: 0.231 | Q89: =+P89*(1+'Solve Tariffs'!Q$74) -> 0.2392892687 | R89: =+Q89*(1+'Solve Tariffs'!R$74) -> 0.2487272817 | S89: =+R89*(1+'Solve Tariffs'!S$74) -> 0.2595069235 | T89: =+S89*(1+'Solve Tariffs'!T$74) -> 0.2710672098 | U89: =+T89*(1+'Solve Tariffs'!U$74) -> 0.283237758
B90: Volumetric treatment charge (V) | C90: £/m3 | D90: I/C | E90: Tariff.RG9.L67 | L90: 0.2358 | M90: 0.2449 | N90: 0.2527 | O90: 0.2583 | P90: 0.2605 | Q90: =+P90*(1+'Solve Tariffs'!Q$74) -> 0.269847855 | R90: =+Q90*(1+'Solve Tariffs'!R$74) -> 0.2804911554 | S90: =+R90*(1+'Solve Tariffs'!S$74) -> 0.2926474181 | T90: =+S90*(1+'Solve Tariffs'!T$74) -> 0.305684018 | U90: =+T90*(1+'Solve Tariffs'!U$74) -> 0.3194088137
B91: Biological treatment charge (B) | C91: £/m3 | D91: I/C | E91: Tariff.RG9.L68 | L91: 0.1561 | M91: 0.1621 | N91: 0.1672 | O91: 0.1709 | P91: 0.1723 | Q91: =+P91*(1+'Solve Tariffs'!Q$74) -> 0.1784828615 | R91: =+Q91*(1+'Solve Tariffs'!R$74) -> 0.1855225569 | S91: =+R91*(1+'Solve Tariffs'!S$74) -> 0.1935629564 | T91: =+S91*(1+'Solve Tariffs'!T$74) -> 0.2021856288 | U91: =+T91*(1+'Solve Tariffs'!U$74) -> 0.2112634879
B92: Treatment and disposal of sludge charge (S) | C92: £/m3 | D92: I/C | E92: Tariff.RG9.L69 | L92: 0.1821 | M92: 0.1891 | N92: 0.1951 | O92: 0.1994 | P92: 0.2011 | Q92: =+P92*(1+'Solve Tariffs'!Q$74) -> 0.2083163287 | R92: =+Q92*(1+'Solve Tariffs'!R$74) -> 0.2165327115 | S92: =+R92*(1+'Solve Tariffs'!S$74) -> 0.2259170663 | T92: =+S92*(1+'Solve Tariffs'!T$74) -> 0.2359810212 | U92: =+T92*(1+'Solve Tariffs'!U$74) -> 0.2465762474
B93: Standard unit cost | C93: £/m3 | D93: I/C | E93: Tariff.RG9.L70 | L93: 0.7831 | M93: 0.8133 | N93: 0.8391 | O93: 0.8577 | P93: 0.865 | Q93: =+P93*(1+'Solve Tariffs'!Q$74) -> 0.8960399023 | R93: =+Q93*(1+'Solve Tariffs'!R$74) -> 0.9313813797 | S93: =+R93*(1+'Solve Tariffs'!S$74) -> 0.9717467049 | T93: =+S93*(1+'Solve Tariffs'!T$74) -> 1.015035223 | U93: =+T93*(1+'Solve Tariffs'!U$74) -> 1.060608921

Sheet Revenue
A1: Model_Navigation
B2: Revenue summary by tariff basket and revenue group
D3: Units | E3: Reference | P3: =+Inputs!P2 -> 2021-22 | Q3: =+Inputs!Q2 -> 2022-23 | R3: =+Inputs!R2 -> 2023-24 | S3: =+Inputs!S2 -> 2024-25 | T3: =+Inputs!T2 -> 2025-26 | U3: =+Inputs!U2 -> 2026-27 | V3: =+Inputs!V2 -> PC21
B5: Tariff basket revenue summary
D6: £ | P6: =+'Charge Cap Workings'!P6+'Charge Cap Workings'!P7 -> 44.27062736 | Q6: =+'Charge Cap Workings'!Q6+'Charge Cap Workings'!Q7 -> 46.30933588 | R6: =+'Charge Cap Workings'!R6+'Charge Cap Workings'!R7 -> 47.69425686 | S6: =+'Charge Cap Workings'!S6+'Charge Cap Workings'!S7 -> 48.31675965 | T6: =+'Charge Cap Workings'!T6+'Charge Cap Workings'!T7 -> 49.00558396 | U6: =+'Charge Cap Workings'!U6+'Charge Cap Workings'!U7 -> 49.72118104
B7: Tariff Basket 2: Measured Sewerage | D7: £ | P7: =+'Charge Cap Workings'!P8+'Charge Cap Workings'!P9 -> 28.0110315 | Q7: =+'Charge Cap Workings'!Q8+'Charge Cap Workings'!Q9 -> 29.84231194 | R7: =+'Charge Cap Workings'!R8+'Charge Cap Workings'!R9 -> 31.04083736 | S7: =+'Charge Cap Workings'!S8+'Charge Cap Workings'!S9 -> 31.76851309 | T7: =+'Charge Cap Workings'!T8+'Charge Cap Workings'!T9 -> 32.54373936 | U7: =+'Charge Cap Workings'!U8+'Charge Cap Workings'!U9 -> 33.34890638
B8: Tariff Basket 1: Unmeasured Water | D8: £ | P8: =+'Charge Cap Workings'!P10+'Charge Cap Workings'!P11 -> 132.0747818 | Q8: =+'Charge Cap Workings'!Q10+'Charge Cap Workings'!Q11 -> 137.4389947 | R8: =+'Charge Cap Workings'!R10+'Charge Cap Workings'!R11 -> 143.5963219 | S8: =+'Charge Cap Workings'!S10+'Charge Cap Workings'!S11 -> 150.5164114 | T8: =+'Charge Cap Workings'!T10+'Charge Cap Workings'!T11 -> 157.8738282 | U8: =+'Charge Cap Workings'!U10+'Charge Cap Workings'!U11 -> 165.582338
B9: Tariff Basket 4: Unmeasured Sewerage | D9: £ | P9: =+'Charge Cap Workings'!P12+'Charge Cap Workings'!P13 -> 167.1129262 | Q9: =+'Charge Cap Workings'!Q12+'Charge Cap Workings'!Q13 -> 171.5669474 | R9: =+'Charge Cap Workings'!R12+'Charge Cap Workings'!R13 -> 176.7994302 | S9: =+'Charge Cap Workings'!S12+'Charge Cap Workings'!S13 -> 182.746531 | T9: =+'Charge Cap Workings'!T12+'Charge Cap Workings'!T13 -> 188.9824399 | U9: =+'Charge Cap Workings'!U12+'Charge Cap Workings'!U13 -> 195.3793594
B10: Tariff Basket 5: Trade Effluent | D10: £ | P10: =+'Charge Cap Workings'!P14 -> 28.44705505 | Q10: =+'Charge Cap Workings'!Q14 -> 29.65240361 | R10: =+'Charge Cap Workings'!R14 -> 30.8861104 | S10: =+'Charge Cap Workings'!S14 -> 32.22556924 | T10: =+'Charge Cap Workings'!T14 -> 33.66204423 | U10: =+'Charge Cap Workings'!U14 -> 35.17438404
B11: Non tariff basket revenue (Water and sewerage) | D11: £ | P11: =+'Charge Cap Workings'!P15+'Charge Cap Workings'!P16 -> 13.19244284 | Q11: =+'Charge Cap Workings'!Q15+'Charge Cap Workings'!Q16 -> 13.7002318 | R11: =+'Charge Cap Workings'!R15+'Charge Cap Workings'!R16 -> 14.13589304 | S11: =+'Charge Cap Workings'!S15+'Charge Cap Workings'!S16 -> 14.47444427 | T11: =+'Charge Cap Workings'!T15+'Charge Cap Workings'!T16 -> 14.83993098 | U11: =+'Charge Cap Workings'!U15+'Charge Cap Workings'!U16 -> 15.22143396
B12: Total revenue | D12: £ | P12: =SUM(P6:P11) -> 413.1088647 | Q12: 428.5102253 | R12: 444.1528498 | S12: 460.0482287 | T12: 476.9075666 | U12: 494.4276027 | V12: =SUM(P12:U12) -> 2717.155338
B14: Revenue group revenue summary
B15: Revenue Group 1: domestic measured water | D15: £ | P15: =+'Charge Cap Workings'!P7 -> 0 | Q15: =+'Charge Cap Workings'!Q7 -> 0 | R15: =+'Charge Cap Workings'!R7 -> 0 | S15: =+'Charge Cap Workings'!S7 -> 0 | T15: =+'Charge Cap Workings'!T7 -> 0 | U15: =+'Charge Cap Workings'!U7 -> 0
B16: Revenue Group 2: domestic measured sewerage | D16: £ | P16: =+'Charge Cap Workings'!P8 -> 0 | Q16: =+'Charge Cap Workings'!Q8 -> 0 | R16: =+'Charge Cap Workings'!R8 -> 0 | S16: =+'Charge Cap Workings'!S8 -> 0 | T16: =+'Charge Cap Workings'!T8 -> 0 | U16: =+'Charge Cap Workings'!U8 -> 0
B17: Revenue Group 3: domestic unmeasured water | D17: £ | P17: =+'Charge Cap Workings'!P11 -> 130.13431 | Q17: =+'Charge Cap Workings'!Q11 -> 135.4401786 | R17: =+'Charge Cap Workings'!R11 -> 141.5455066 | S17: =+'Charge Cap Workings'!S11 -> 148.4197869 | T17: =+'Charge Cap Workings'!T11 -> 155.7439336 | U17: =+'Charge Cap Workings'!U11 -> 163.4183049
B18: Revenue Group 4: domestic unmeasured sewerage | D18: £ | P18: =+'Charge Cap Workings'!P12 -> 164.8413929 | Q18: =+'Charge Cap Workings'!Q12 -> 169.2291326 | R18: =+'Charge Cap Workings'!R12 -> 174.4015279 | S18: =+'Charge Cap Workings'!S12 -> 180.2934219 | T18: =+'Charge Cap Workings'!T12 -> 186.4851447 | U18: =+'Charge Cap Workings'!U12 -> 192.8355327
B19: Revenue Group 5: non-domestic measured water | D19: £ | P19: =+'Charge Cap Workings'!P6 -> 44.27062736 | Q19: =+'Charge Cap Workings'!Q6 -> 46.30933588 | R19: =+'Charge Cap Workings'!R6 -> 47.69425686 | S19: =+'Charge Cap Workings'!S6 -> 48.31675965 | T19: =+'Charge Cap Workings'!T6 -> 49.00558396 | U19: =+'Charge Cap Workings'!U6 -> 49.72118104
B20: Revenue Group 6: non-domestic measured sewerage | D20: £ | P20: =+'Charge Cap Workings'!P9 -> 28.0110315 | Q20: =+'Charge Cap Workings'!Q9 -> 29.84231194 | R20: =+'Charge Cap Workings'!R9 -> 31.04083736 | S20: =+'Charge Cap Workings'!S9 -> 31.76851309 | T20: =+'Charge Cap Workings'!T9 -> 32.54373936 | U20: =+'Charge Cap Workings'!U9 -> 33.34890638
B21: Revenue Group 7: non-domestic unmeasured water | D21: £ | P21: =+'Charge Cap Workings'!P10 -> 1.940471757 | Q21: =+'Charge Cap Workings'!Q10 -> 1.998816023 | R21: =+'Charge Cap Workings'!R10 -> 2.050815292 | S21: =+'Charge Cap Workings'!S10 -> 2.09662454 | T21: =+'Charge Cap Workings'!T10 -> 2.1298946 | U21: =+'Charge Cap Workings'!U10 -> 2.164033009
B22: Revenue Group 8: non-domestic unmeasured sewerage | D22: £ | P22: =+'Charge Cap Workings'!P13 -> 2.271533354 | Q22: =+'Charge Cap Workings'!Q13 -> 2.337814783 | R22: =+'Charge Cap Workings'!R13 -> 2.397902325 | S22: =+'Charge Cap Workings'!S13 -> 2.453109164 | T22: =+'Charge Cap Workings'!T13 -> 2.49729523 | U22: =+'Charge Cap Workings'!U13 -> 2.543826674
B23: Revenue Group 9: trade effluent | D23: £ | P23: =+'Charge Cap Workings'!P14 -> 28.44705505 | Q23: =+'Charge Cap Workings'!Q14 -> 29.65240361 | R23: =+'Charge Cap Workings'!R14 -> 30.8861104 | S23: =+'Charge Cap Workings'!S14 -> 32.22556924 | T23: =+'Charge Cap Workings'!T14 -> 33.66204423 | U23: =+'Charge Cap Workings'!U14 -> 35.17438404
B24: Revenue Group 10: Non-tariff basket revenue (water and sewerage) | D24: £ | P24: =+'Charge Cap Workings'!P15+'Charge Cap Workings'!P16 -> 13.19244284 | Q24: =+'Charge Cap Workings'!Q15+'Charge Cap Workings'!Q16 -> 13.7002318 | R24: =+'Charge Cap Workings'!R15+'Charge Cap Workings'!R16 -> 14.13589304 | S24: =+'Charge Cap Workings'!S15+'Charge Cap Workings'!S16 -> 14.47444427 | T24: =+'Charge Cap Workings'!T15+'Charge Cap Workings'!T16 -> 14.83993098 | U24: =+'Charge Cap Workings'!U15+'Charge Cap Workings'!U16 -> 15.22143396
B25: Total revenue | D25: £ | P25: =SUM(P15:P24) -> 413.1088647 | Q25: 428.5102253 | R25: 444.1528498 | S25: 460.0482287 | T25: 476.9075666 | U25: 494.4276027 | V25: =SUM(P25:U25) -> 2717.155338
B28: Subsidy and Charges
B30: Subsidy per revenue group
B31: Revenue Group 3: domestic unmeasured water (all subsidy) | D31: £ | P31: =P17 -> 130.13431 | Q31: 135.4401786 | R31: 141.5455066 | S31: 148.4197869 | T31: 155.7439336 | U31: 163.4183049
B32: Revenue Group 4: domestic unmeasured sewerage (all subsidy) | D32: £ | P32: =P18 -> 164.8413929 | Q32: 169.2291326 | R32: 174.4015279 | S32: 180.2934219 | T32: 186.4851447 | U32: 192.8355327
B33: Revenue Group 5: non-domestic measured water (domestic allowance) | D33: £ | P33: ='RG5'!P83/mill -> 10.42456316 | Q33: ='RG5'!Q83/mill -> 10.550587 | R33: ='RG5'!R83/mill -> 10.73554881 | S33: ='RG5'!S83/mill -> 10.88716724 | T33: ='RG5'!T83/mill -> 11.05398299 | U33: ='RG5'!U83/mill -> 11.22711096
B34: Revenue Group 6: non-domestic measured sewerage (domestic allowance) | D34: £ | P34: ='RG6'!P83/mill -> 6.549859932 | Q34: ='RG6'!Q83/mill -> 6.766797062 | R34: ='RG6'!R83/mill -> 6.985181981 | S34: ='RG6'!S83/mill -> 7.169476544 | T34: ='RG6'!T83/mill -> 7.363320676 | U34: ='RG6'!U83/mill -> 7.564713531
B35: Revenue Group 7: non-domestic unmeasured water (50% subsidy) | D35: £ | P35: =P21/2 -> 0.9702358784 | Q35: 0.9994080115 | R35: 1.025407646 | S35: 1.04831227 | T35: 1.0649473 | U35: 1.082016504
B36: Revenue Group 8: non-domestic unmeasured sewerage (50% subsidy) | D36: £ | P36: =P22/2 -> 1.135766677 | Q36: 1.168907392 | R36: 1.198951163 | S36: 1.226554582 | T36: 1.248647615 | U36: 1.271913337
B37: Total Subsidy (excludes Roads Drainage recharge) | P37: =SUM(P31:P36) -> 314.0561285 | Q37: 324.1550107 | R37: 335.8921241 | S37: 349.0447194 | T37: 362.9599769 | U37: 377.399592 | V37: =SUM(P37:U37) -> 2063.507552
B39: Roads Drainage recharge | P39: ='RG9'!P47/mill -> 23.25091418 | Q39: ='RG9'!Q47/mill -> 24.0852565 | R39: ='RG9'!R47/mill -> 25.03522373 | S39: ='RG9'!S47/mill -> 26.12023034 | T39: ='RG9'!T47/mill -> 27.2838114 | U39: ='RG9'!U47/mill -> 28.50881734 | V39: =SUM(P39:U39) -> 154.2842535
B41: Revenue from charges
B42: Revenue Group 5: non-domestic measured water (exclude DA) | D42: £ | P42: =('RG5'!P89-'RG5'!P83)/mill -> 33.8460642 | Q42: =('RG5'!Q89-'RG5'!Q83)/mill -> 35.75874888 | R42: =('RG5'!R89-'RG5'!R83)/mill -> 36.95870805 | S42: =('RG5'!S89-'RG5'!S83)/mill -> 37.42959241 | T42: =('RG5'!T89-'RG5'!T83)/mill -> 37.95160097 | U42: =('RG5'!U89-'RG5'!U83)/mill -> 38.49407008
B43: Revenue Group 6: non-domestic measured sewerage (exclude DA) | D43: £ | P43: =('RG6'!P89-'RG6'!P83)/mill -> 21.46117157 | Q43: =('RG6'!Q89-'RG6'!Q83)/mill -> 23.07551487 | R43: =('RG6'!R89-'RG6'!R83)/mill -> 24.05565538 | S43: =('RG6'!S89-'RG6'!S83)/mill -> 24.59903654 | T43: =('RG6'!T89-'RG6'!T83)/mill -> 25.18041868 | U43: =('RG6'!U89-'RG6'!U83)/mill -> 25.78419285
B44: Revenue Group 7: non-domestic unmeasured water (50% revenue) | D44: £ | P44: =P35 -> 0.9702358784 | Q44: 0.9994080115 | R44: 1.025407646 | S44: 1.04831227 | T44: 1.0649473 | U44: 1.082016504
B45: Revenue Group 8: non-domestic unmeasured sewerage (50% revenue) | D45: £ | P45: 1.135766677 | Q45: 1.168907392 | R45: 1.198951163 | S45: 1.226554582 | T45: 1.248647615 | U45: 1.271913337
B46: Revenue Group 9: trade effluent only (excludes Roads Drainage) | D46: £ | P46: ='RG9'!P50/mill -> 5.196140867 | Q46: ='RG9'!Q50/mill -> 5.567147111 | R46: ='RG9'!R50/mill -> 5.850886671 | S46: ='RG9'!S50/mill -> 6.105338907 | T46: ='RG9'!T50/mill -> 6.378232836 | U46: ='RG9'!U50/mill -> 6.665566701
B47: Revenue Group 10: Non-tariff basket revenue (water and sewerage) | D47: £ | P47: =P24 -> 13.19244284 | Q47: 13.7002318 | R47: 14.13589304 | S47: 14.47444427 | T47: 14.83993098 | U47: 15.22143396
B48: Total | P48: =SUM(P42:P47) -> 75.80182203 | Q48: 80.26995807 | R48: 83.22550195 | S48: 84.88327898 | T48: 86.66377839 | U48: 88.51919342 | V48: =SUM(P48:U48) -> 499.3635328
B50: Overall total check (should equal row no 18) | P50: =SUM(P37+P39+P48) -> 413.1088647 | Q50: 428.5102253 | R50: 444.1528498 | S50: 460.0482287 | T50: 476.9075666 | U50: 494.4276027 | V50: =SUM(P50:U50) -> 2717.155338
P51: =+ROUND(P50,2)=+ROUND(P25,2) -> TRUE | Q51: TRUE | R51: TRUE | S51: TRUE | T51: TRUE | U51: TRUE

Sheet RG1
A1: Model_Navigation
B2: Domestic measured water
B3: Tariff basket: | C3: 3
B4: Revenue group: | C4: 1
D6: =+Revenue!D3 -> Units | E6: =+Revenue!E3 -> Reference | M6: =+Inputs!M2 -> 2018-19 | N6: =+Inputs!N2 -> 2019-20 | O6: =+Inputs!O2 -> 2020-21 | P6: =+Inputs!P2 -> 2021-22 | Q6: =+Inputs!Q2 -> 2022-23 | R6: =+Inputs!R2 -> 2023-24 | S6: =+Inputs!S2 -> 2024-25 | T6: =+Inputs!T2 -> 2025-26 | U6: =+Inputs!U2 -> 2026-27
B7: Tariff multipliers: Domestic Properties - billed on measured basis
B8: Total number of billed properties subject to standing charge | D8: nr | M8: 0 | N8: 0 | O8: 0 | P8: 0 | Q8: 0 | R8: 0 | S8: 0 | T8: 0 | U8: 0
B9: Number of single person assessed properties | D9: nr | M9: 0 | N9: 0 | O9: 0 | P9: 0 | Q9: 0 | R9: 0 | S9: 0 | T9: 0 | U9: 0
B10: Number of two person assessed properties | D10: nr | M10: 0 | N10: 0 | O10: 0 | P10: 0 | Q10: 0 | R10: 0 | S10: 0 | T10: 0 | U10: 0
B11: Number of multi-person assessed properties | D11: nr | M11: 0 | N11: 0 | O11: 0 | P11: 0 | Q11: 0 | R11: 0 | S11: 0 | T11: 0 | U11: 0
B12: Total number of billed properties | D12: nr | M12: =SUM(M8:M11) -> 0 | N12: 0 | O12: 0 | P12: 0 | Q12: 0 | R12: 0 | S12: 0 | T12: 0 | U12: 0
B14: Tariff multipliers: Volumes - Measured household Properties
B15: Volume subject to volumetric charge | D15: m3 | M15: 0 | N15: 0 | O15: 0 | P15: 0 | Q15: 0 | R15: 0 | S15: 0 | T15: 0 | U15: 0
B16: Total Volume | D16: m3 | M16: =M15 -> 0 | N16: =N15 -> 0 | O16: 0 | P16: 0 | Q16: 0 | R16: 0 | S16: 0 | T16: 0 | U16: 0
B18: Tariffs:
B19: Standing Charge | D19: £ | M19: =Tariffs!M6 -> 0 | N19: =Tariffs!N6 -> 0 | O19: =Tariffs!O6 -> 0 | P19: =Tariffs!P6 -> 0 | Q19: =Tariffs!Q6 -> 0 | R19: =Tariffs!R6 -> 0 | S19: =Tariffs!S6 -> 0 | T19: =Tariffs!T6 -> 0 | U19: =Tariffs!U6 -> 0
B20: Volumetric Charge | D20: £ | M20: =Tariffs!M7 -> 0 | N20: =Tariffs!N7 -> 0 | O20: =Tariffs!O7 -> 0 | P20: =Tariffs!P7 -> 0 | Q20: =Tariffs!Q7 -> 0 | R20: =Tariffs!R7 -> 0 | S20: =Tariffs!S7 -> 0 | T20: =Tariffs!T7 -> 0 | U20: =Tariffs!U7 -> 0
B21: Single person assessed volumetric charge | D21: £ | M21: =Tariffs!M8 -> 0 | N21: =Tariffs!N8 -> 0 | O21: =Tariffs!O8 -> 0 | P21: =Tariffs!P8 -> 0 | Q21: =Tariffs!Q8 -> 0 | R21: =Tariffs!R8 -> 0 | S21: =Tariffs!S8 -> 0 | T21: =Tariffs!T8 -> 0 | U21: =Tariffs!U8 -> 0
B22: Two person assessed volumetric charge | D22: £ | M22: =Tariffs!M9 -> 0 | N22: =Tariffs!N9 -> 0 | O22: =Tariffs!O9 -> 0 | P22: =Tariffs!P9 -> 0 | Q22: =Tariffs!Q9 -> 0 | R22: =Tariffs!R9 -> 0 | S22: =Tariffs!S9 -> 0 | T22: =Tariffs!T9 -> 0 | U22: =Tariffs!U9 -> 0
B23: Multi-person assessed volumetric charge | D23: £ | M23: =Tariffs!M10 -> 0 | N23: =Tariffs!N10 -> 0 | O23: =Tariffs!O10 -> 0 | P23: =Tariffs!P10 -> 0 | Q23: =Tariffs!Q10 -> 0 | R23: =Tariffs!R10 -> 0 | S23: =Tariffs!S10 -> 0 | T23: =Tariffs!T10 -> 0 | U23: =Tariffs!U10 -> 0
B25: Revenue: P&Q=Charging Year
B26: Standing Charge | D26: £ | M26: =M8*M19 -> 0 | N26: =N8*N19 -> 0 | O26: 0 | P26: 0 | Q26: 0 | R26: 0 | S26: 0 | T26: 0 | U26: 0
B27: Volumetric Charge | D27: £ | M27: =M15*M20 -> 0 | N27: =N15*N20 -> 0 | O27: 0 | P27: 0 | Q27: 0 | R27: 0 | S27: 0 | T27: 0 | U27: 0
B28: Single person assessed properties | D28: £ | M28: =M9*M21 -> 0 | N28: =N9*N21 -> 0 | O28: 0 | P28: 0 | Q28: 0 | R28: 0 | S28: 0 | T28: 0 | U28: 0
B29: Two person assessed properties | D29: £ | M29: =M10*M22 -> 0 | N29: =N10*N22 -> 0 | O29: 0 | P29: 0 | Q29: 0 | R29: 0 | S29: 0 | T29: 0 | U29: 0
B30: Multi-person assessed properties | D30: £ | M30: =M11*M23 -> 0 | N30: =N11*N23 -> 0 | O30: 0 | P30: 0 | Q30: 0 | R30: 0 | S30: 0 | T30: 0 | U30: 0
B31: Total Revenue | D31: £ | M31: =SUM(M26:M30) -> 0 | N31: 0 | O31: 0 | P31: 0 | Q31: 0 | R31: 0 | S31: 0 | T31: 0 | U31: 0
B33: Revenue: P=Charging Year; Q=Weighting Year - Bt(j)
B34: Standing Charge | D34: £ | O34: =O19*M8 -> 0 | P34: =P19*N8 -> 0 | Q34: 0 | R34: 0 | S34: 0 | T34: 0 | U34: 0
B35: Volumetric Charge | D35: £ | O35: =O20*M15 -> 0 | P35: =P20*N15 -> 0 | Q35: 0 | R35: 0 | S35: 0 | T35: 0 | U35: 0
B36: Single person assessed properties | D36: £ | O36: =O21*M9 -> 0 | P36: =P21*N9 -> 0 | Q36: 0 | R36: 0 | S36: 0 | T36: 0 | U36: 0
B37: Two person assessed properties | D37: £ | O37: =O22*M10 -> 0 | P37: =P22*N10 -> 0 | Q37: 0 | R37: 0 | S37: 0 | T37: 0 | U37: 0
B38: Multi-person assessed properties | D38: £ | O38: =O23*M11 -> 0 | P38: =P23*N11 -> 0 | Q38: 0 | R38: 0 | S38: 0 | T38: 0 | U38: 0
B39: Total Revenue | D39: £ | O39: =SUM(O34:O38) -> 0 | P39: 0 | Q39: 0 | R39: 0 | S39: 0 | T39: 0 | U39: 0
B41: Revenue: P=Prior Year; Q=Weighting Year - Bt-1(j)
B42: Standing Charge | D42: £ | O42: =N19*M8 -> 0 | P42: =O19*N8 -> 0 | Q42: 0 | R42: 0 | S42: 0 | T42: 0 | U42: 0
B43: Volumetric Charge | D43: £ | O43: =N20*M15 -> 0 | P43: =O20*N15 -> 0 | Q43: 0 | R43: 0 | S43: 0 | T43: 0 | U43: 0
B44: Single person assessed properties | D44: £ | O44: =N21*M9 -> 0 | P44: =O21*N9 -> 0 | Q44: 0 | R44: 0 | S44: 0 | T44: 0 | U44: 0
B45: Two person assessed properties | D45: £ | O45: =N22*M10 -> 0 | P45: =O22*N10 -> 0 | Q45: 0 | R45: 0 | S45: 0 | T45: 0 | U45: 0
B46: Multi-person assessed properties | D46: £ | O46: =N23*M11 -> 0 | P46: =O23*N11 -> 0 | Q46: 0 | R46: 0 | S46: 0 | T46: 0 | U46: 0
B47: Total Revenue | D47: £ | O47: =SUM(O42:O46) -> 0 | P47: 0 | Q47: 0 | R47: 0 | S47: 0 | T47: 0 | U47: 0

Sheet RG2
A1: Model_Navigation
B2: Domestic measured sewerage
B3: Tariff basket: | C3: 4
B4: Revenue group: | C4: 2
D6: =+'RG1'!D6 -> Units | E6: =+'RG1'!E6 -> Reference | M6: =+Inputs!M2 -> 2018-19 | N6: =+Inputs!N2 -> 2019-20 | O6: =+Inputs!O2 -> 2020-21 | P6: =+Inputs!P2 -> 2021-22 | Q6: =+Inputs!Q2 -> 2022-23 | R6: =+Inputs!R2 -> 2023-24 | S6: =+Inputs!S2 -> 2024-25 | T6: =+Inputs!T2 -> 2025-26 | U6: =+Inputs!U2 -> 2026-27
B7: Tariff multipliers: Domestic Properties - billed on measured basis
B8: Total number of billed properties subject to standing charge | D8: nr | M8: 0 | N8: 0 | O8: 0 | P8: 0 | Q8: 0 | R8: 0 | S8: 0 | T8: 0 | U8: 0
B9: Number of single person assessed properties | D9: nr | M9: 0 | N9: 0 | O9: 0 | P9: 0 | Q9: 0 | R9: 0 | S9: 0 | T9: 0 | U9: 0
B10: Number of two person assessed properties | D10: nr | M10: 0 | N10: 0 | O10: 0 | P10: 0 | Q10: 0 | R10: 0 | S10: 0 | T10: 0 | U10: 0
B11: Number of multi-person assessed properties | D11: nr | M11: 0 | N11: 0 | O11: 0 | P11: 0 | Q11: 0 | R11: 0 | S11: 0 | T11: 0 | U11: 0
B12: Total number of billed properties | D12: nr | M12: =SUM(M8:M11) -> 0 | N12: =SUM(N8:N11) -> 0 | O12: 0 | P12: 0 | Q12: 0 | R12: 0 | S12: 0 | T12: 0 | U12: 0
B14: Tariff multipliers: Volumes - Measured household Properties
B15: Volume subject to volumetric charge | D15: m3 | M15: 0 | N15: 0 | O15: 0 | P15: 0 | Q15: 0 | R15: 0 | S15: 0 | T15: 0 | U15: 0
B16: Total Volume | D16: m3 | M16: =M15 -> 0 | N16: =N15 -> 0 | O16: 0 | P16: 0 | Q16: 0 | R16: 0 | S16: 0 | T16: 0 | U16: 0
B18: Tariffs:
B19: Standing Charge | D19: £ | M19: =Tariffs!M13 -> 0 | N19: =Tariffs!N13 -> 0 | O19: =Tariffs!O13 -> 0 | P19: =Tariffs!P13 -> 0 | Q19: =Tariffs!Q13 -> 0 | R19: =Tariffs!R13 -> 0 | S19: =Tariffs!S13 -> 0 | T19: =Tariffs!T13 -> 0 | U19: =Tariffs!U13 -> 0
B20: Volumetric Charge | D20: £ | M20: =Tariffs!M14 -> 0 | N20: =Tariffs!N14 -> 0 | O20: =Tariffs!O14 -> 0 | P20: =Tariffs!P14 -> 0 | Q20: =Tariffs!Q14 -> 0 | R20: =Tariffs!R14 -> 0 | S20: =Tariffs!S14 -> 0 | T20: =Tariffs!T14 -> 0 | U20: =Tariffs!U14 -> 0
B21: Single person assessed volumetric charge | D21: £ | M21: =Tariffs!M15 -> 0 | N21: =Tariffs!N15 -> 0 | O21: =Tariffs!O15 -> 0 | P21: =Tariffs!P15 -> 0 | Q21: =Tariffs!Q15 -> 0 | R21: =Tariffs!R15 -> 0 | S21: =Tariffs!S15 -> 0 | T21: =Tariffs!T15 -> 0 | U21: =Tariffs!U15 -> 0
B22: Two person assessed volumetric charge | D22: £ | M22: =Tariffs!M16 -> 0 | N22: =Tariffs!N16 -> 0 | O22: =Tariffs!O16 -> 0 | P22: =Tariffs!P16 -> 0 | Q22: =Tariffs!Q16 -> 0 | R22: =Tariffs!R16 -> 0 | S22: =Tariffs!S16 -> 0 | T22: =Tariffs!T16 -> 0 | U22: =Tariffs!U16 -> 0
B23: Multi-person assessed volumetric charge | D23: £ | M23: =Tariffs!M17 -> 0 | N23: =Tariffs!N17 -> 0 | O23: =Tariffs!O17 -> 0 | P23: =Tariffs!P17 -> 0 | Q23: =Tariffs!Q17 -> 0 | R23: =Tariffs!R17 -> 0 | S23: =Tariffs!S17 -> 0 | T23: =Tariffs!T17 -> 0 | U23: =Tariffs!U17 -> 0
B25: Revenue - Measured household Properties
B26: Standing Charge | D26: £ | M26: =M8*M19 -> 0 | N26: =N8*N19 -> 0 | O26: 0 | P26: 0 | Q26: 0 | R26: 0 | S26: 0 | T26: 0 | U26: 0
B27: Volumetric Charge | D27: £ | M27: =M15*M20 -> 0 | N27: =N15*N20 -> 0 | O27: 0 | P27: 0 | Q27: 0 | R27: 0 | S27: 0 | T27: 0 | U27: 0
B28: Single person assessed properties | D28: £ | M28: =M9*M21 -> 0 | N28: =N9*N21 -> 0 | O28: 0 | P28: 0 | Q28: 0 | R28: 0 | S28: 0 | T28: 0 | U28: 0
B29: Two person assessed properties | D29: £ | M29: =M10*M22 -> 0 | N29: =N10*N22 -> 0 | O29: 0 | P29: 0 | Q29: 0 | R29: 0 | S29: 0 | T29: 0 | U29: 0
B30: Multi-person assessed properties | D30: £ | M30: =M11*M23 -> 0 | N30: =N11*N23 -> 0 | O30: 0 | P30: 0 | Q30: 0 | R30: 0 | S30: 0 | T30: 0 | U30: 0
B31: Total Revenue | D31: £ | M31: =SUM(M26:M30) -> 0 | N31: 0 | O31: 0 | P31: 0 | Q31: 0 | R31: 0 | S31: 0 | T31: 0 | U31: 0
B34: Revenue: P=Charging Year; Q=Weighting Year - Bt(j)
B35: Standing Charge | D35: £ | O35: =O19*M8 -> 0 | P35: =P19*N8 -> 0 | Q35: 0 | R35: 0 | S35: 0 | T35: 0 | U35: 0
B36: Volumetric Charge | D36: £ | O36: =O20*M15 -> 0 | P36: =P20*N15 -> 0 | Q36: 0 | R36: 0 | S36: 0 | T36: 0 | U36: 0
B37: Single person assessed properties | D37: £ | O37: =O21*M9 -> 0 | P37: =P21*N9 -> 0 | Q37: 0 | R37: 0 | S37: 0 | T37: 0 | U37: 0
B38: Two person assessed properties | D38: £ | O38: =O22*M10 -> 0 | P38: =P22*N10 -> 0 | Q38: 0 | R38: 0 | S38: 0 | T38: 0 | U38: 0
B39: Multi-person assessed properties | D39: £ | O39: =O23*M11 -> 0 | P39: =P23*N11 -> 0 | Q39: 0 | R39: 0 | S39: 0 | T39: 0 | U39: 0
B40: Total Revenue | D40: £ | O40: =SUM(O35:O39) -> 0 | P40: 0 | Q40: 0 | R40: 0 | S40: 0 | T40: 0 | U40: 0
B42: Revenue: P=Prior Year; Q=Weighting Year - Bt-1(j)
B43: Standing Charge | D43: £ | O43: =N19*M8 -> 0 | P43: =O19*N8 -> 0 | Q43: 0 | R43: 0 | S43: 0 | T43: 0 | U43: 0
B44: Volumetric Charge | D44: £ | O44: =N20*M15 -> 0 | P44: =O20*N15 -> 0 | Q44: 0 | R44: 0 | S44: 0 | T44: 0 | U44: 0
B45: Single person assessed properties | D45: £ | O45: =N21*M9 -> 0 | P45: =O21*N9 -> 0 | Q45: 0 | R45: 0 | S45: 0 | T45: 0 | U45: 0
B46: Two person assessed properties | D46: £ | O46: =N22*M10 -> 0 | P46: =O22*N10 -> 0 | Q46: 0 | R46: 0 | S46: 0 | T46: 0 | U46: 0
B47: Multi-person assessed properties | D47: £ | O47: =N23*M11 -> 0 | P47: =O23*N11 -> 0 | Q47: 0 | R47: 0 | S47: 0 | T47: 0 | U47: 0
B48: Total Revenue | D48: £ | O48: =SUM(O43:O47) -> 0 | P48: 0 | Q48: 0 | R48: 0 | S48: 0 | T48: 0 | U48: 0

Sheet RG3
A1: Model_Navigation
B2: Domestic unmeasured water
B3: Tariff basket: | C3: 1
B4: Revenue group: | C4: 3
D6: =+'RG2'!D6 -> Units | E6: =+'RG2'!E6 -> Reference | M6: =+Inputs!M2 -> 2018-19 | N6: =+Inputs!N2 -> 2019-20 | O6: =+Inputs!O2 -> 2020-21 | P6: =+Inputs!P2 -> 2021-22 | Q6: =+Inputs!Q2 -> 2022-23 | R6: =+Inputs!R2 -> 2023-24 | S6: =+Inputs!S2 -> 2024-25 | T6: =+Inputs!T2 -> 2025-26 | U6: =+Inputs!U2 -> 2026-27
B7: Tariff multipliers: Standard
B8: Total number of billed properties | D8: nr | M8: =+M9+M11 -> 740316 | N8: =+N9+N11 -> 750064.9 | O8: 756914.9 | P8: 762840 | Q8: 770465 | R8: 778715 | S8: 786715 | T8: 794465 | U8: 801965
B9: Total number of standard customer properties subject to variable charge | D9: nr | M9: 734458 | N9: ='Customer Versions'!N97 -> 744129.7742 | O9: ='Customer Versions'!O97 -> 750911.724 | P9: ='Customer Versions'!P97 -> 756769.1694 | Q9: ='Customer Versions'!Q97 -> 764326.9105 | R9: ='Customer Versions'!R97 -> 772511.6298 | S9: ='Customer Versions'!S97 -> 780448.3272 | T9: ='Customer Versions'!T97 -> 788137.0029 | U9: ='Customer Versions'!U97 -> 795577.6568
B10: Number of £1,000 Capital Value Unit charges less than capped value | D10: nr | M10: 81450833 | N10: ='Customer Versions'!N98 -> 82523434.99 | O10: ='Customer Versions'!O98 -> 83275548.15 | P10: ='Customer Versions'!P98 -> 83925134.46 | Q10: ='Customer Versions'!Q98 -> 84763282.29 | R10: ='Customer Versions'!R98 -> 85670961.53 | S10: ='Customer Versions'!S98 -> 86551135.34 | T10: ='Customer Versions'!T98 -> 87403803.71 | U10: ='Customer Versions'!U98 -> 88228966.66
B11: Number of billed properties at capped level | D11: nr | M11: 5858 | N11: ='Customer Versions'!N99 -> 5935.125752 | O11: ='Customer Versions'!O99 -> 6003.175972 | P11: ='Customer Versions'!P99 -> 6070.830551 | Q11: ='Customer Versions'!Q99 -> 6138.089489 | R11: ='Customer Versions'!R99 -> 6203.370224 | S11: ='Customer Versions'!S99 -> 6266.672754 | T11: ='Customer Versions'!T99 -> 6327.99708 | U11: ='Customer Versions'!U99 -> 6387.343202
B13: Tariff multipliers: Affordability
B14: Number of properties with capital value up to and including £70,000 | D14: nr | M14: 0 | N14: 0 | O14: 0 | P14: 0 | Q14: 0 | R14: 0 | S14: 0 | T14: 0 | U14: 0
B15: Number of properties with capital value over £70,000 and up to and including £100,000 | D15: nr | M15: 0 | N15: 0 | O15: 0 | P15: 0 | Q15: 0 | R15: 0 | S15: 0 | T15: 0 | U15: 0
B16: Number of properties with capital value over £100,000 | D16: nr | M16: 0 | N16: 0 | O16: 0 | P16: 0 | Q16: 0 | R16: 0 | S16: 0 | T16: 0 | U16: 0
B17: Total | D17: nr | M17: =SUM(M14:M16) -> 0 | N17: 0 | O17: 0 | P17: 0 | Q17: 0 | R17: 0 | S17: 0 | T17: 0 | U17: 0
B19: Tariffs: Standard
B20: Standing charge | D20: £ | M20: =Tariffs!M20 -> 0 | N20: =Tariffs!N20 -> 0 | O20: =Tariffs!O20 -> 0 | P20: =Tariffs!P20 -> 0 | Q20: =Tariffs!Q20 -> 0 | R20: =Tariffs!R20 -> 0 | S20: =Tariffs!S20 -> 0 | T20: =Tariffs!T20 -> 0 | U20: =Tariffs!U20 -> 0
B21: Variable charge | D21: £ | M21: =Tariffs!M21 -> 1.5232 | N21: =Tariffs!N21 -> 1.5164 | O21: =Tariffs!O21 -> 1.494 | P21: =Tariffs!P21 -> 1.507 | Q21: =Tariffs!Q21 -> 1.552887633 | R21: =Tariffs!R21 -> 1.605697046 | S21: =Tariffs!S21 -> 1.666560316 | T21: =Tariffs!T21 -> 1.731743653 | U21: =Tariffs!U21 -> 1.800085209
B22: Capped charge | D22: £ | M22: =Tariffs!M22 -> 609.27 | N22: =Tariffs!N22 -> 606.53 | O22: =Tariffs!O22 -> 597.61 | P22: =Tariffs!P22 -> 602.74 | Q22: =Tariffs!Q22 -> 621.0932264 | R22: =Tariffs!R22 -> 642.214889 | S22: =Tariffs!S22 -> 666.5577737 | T22: =Tariffs!T22 -> 692.6285133 | U22: =Tariffs!U22 -> 719.9624147
B24: Tariffs: Affordability
B25: Affordability tariff for properties with capital value up to and including £70,000 | D25: £ | M25: =Tariffs!M23 -> 46.55 | N25: =Tariffs!N23 -> 46.34 | O25: =Tariffs!O23 -> 45.66 | P25: =Tariffs!P23 -> 46.05 | Q25: =Tariffs!Q23 -> 47.45220671 | R25: =Tariffs!R23 -> 49.06592501 | S25: =Tariffs!S23 -> 50.92574821 | T25: =Tariffs!T23 -> 52.91758144 | U25: =Tariffs!U23 -> 55.00592162
B26: Affordability tariff for properties with capital value over £70,000 and up to and including £100,000 | D26: £ | M26: =Tariffs!M24 -> 69.82 | N26: =Tariffs!N24 -> 69.51 | O26: =Tariffs!O24 -> 68.49 | P26: =Tariffs!P24 -> 69.08 | Q26: =Tariffs!Q24 -> 71.18346232 | R26: =Tariffs!R24 -> 73.60421497 | S26: =Tariffs!S24 -> 76.39415172 | T26: =Tariffs!T24 -> 79.38211783 | U26: =Tariffs!U24 -> 82.51485484
B27: Affordability tariff for properties with capital value over £100,000 | D27: £ | M27: =Tariffs!M25 -> 93.08 | N27: =Tariffs!N25 -> 92.66 | O27: =Tariffs!O25 -> 91.3 | P27: =Tariffs!P25 -> 92.08 | Q27: =Tariffs!Q25 -> 94.88380444 | R27: =Tariffs!R25 -> 98.11054016 | S27: =Tariffs!S25 -> 101.8293788 | T27: =Tariffs!T25 -> 105.8121802 | U27: =Tariffs!U25 -> 109.9879536
B29: Standing tariff revenue
B30: Standing Charge Revenue | D30: £ | M30: =M9*M20 -> 0 | N30: =N9*N20 -> 0 | O30: 0 | P30: 0 | Q30: 0 | R30: 0 | S30: 0 | T30: 0 | U30: 0
B31: Variable Charge Revenue from uncapped properties | D31: £ | M31: =M10*M21 -> 124065908.8 | N31: =N10*N21 -> 125138536.8 | O31: 124413668.9 | P31: 126475177.6 | Q31: 131627852.8 | R31: 137561609.9 | S31: 144242687.5 | T31: 151360982.4 | U31: 158819657.9
B32: Total Capped Revenue | D32: £ | M32: =M11*M22 -> 3569103.66 | N32: =N11*N22 -> 3599831.822 | O32: 3587557.992 | P32: 3659132.406 | Q32: 3812325.805 | R32: 3983896.72 | S32: 4177099.439 | T32: 4382951.21 | U32: 4598647.035
B33: Total Standard Customer Revenue | D33: £ | M33: =SUM(M30:M32) -> 127635012.5 | N33: =SUM(N30:N32) -> 128738368.6 | O33: 128001226.9 | P33: 130134310 | Q33: 135440178.6 | R33: 141545506.6 | S33: 148419786.9 | T33: 155743933.6 | U33: 163418304.9
B35: Afforability tariff revenue
B36: Revenue from properties with capital value up to and including £70,000 | D36: £ | M36: =M14*M25 -> 0 | N36: =N14*N25 -> 0 | O36: 0 | P36: 0 | Q36: 0 | R36: 0 | S36: 0 | T36: 0 | U36: 0
B37: Revenue from properties with capital value over £70,000 and up to and including £100,000 | D37: £ | M37: =M15*M26 -> 0 | N37: =N15*N26 -> 0 | O37: 0 | P37: 0 | Q37: 0 | R37: 0 | S37: 0 | T37: 0 | U37: 0
B38: Revenue from properties with capital value over £100,000 | D38: £ | M38: =M16*M27 -> 0 | N38: =N16*N27 -> 0 | O38: 0 | P38: 0 | Q38: 0 | R38: 0 | S38: 0 | T38: 0 | U38: 0
B39: Total revenue from affordability tariffs | D39: £ | M39: =SUM(M36:M38) -> 0 | N39: =SUM(N36:N38) -> 0 | O39: 0 | P39: 0 | Q39: 0 | R39: 0 | S39: 0 | T39: 0 | U39: 0
B42: Void Properties
B43: Number of void properties | D43: nr | E43: TariffM.T10.L85 | M43: 38746 | N43: 38532 | O43: 38973.79531 | P43: 39413.02204 | Q43: 39849.6802 | R43: 40273.49547 | S43: 40684.46785 | T43: 41082.59735 | U43: 41467.88396
B45: Revenue
B46: Total Standard Customer Revenue | D46: £ | M46: =M33 -> 127635012.5 | N46: =N33 -> 128738368.6 | O46: 128001226.9 | P46: 130134310 | Q46: 135440178.6 | R46: 141545506.6 | S46: 148419786.9 | T46: 155743933.6 | U46: 163418304.9
B47: Total revenue from affordability tariffs | D47: £ | M47: =M39 -> 0 | N47: =N39 -> 0 | O47: 0 | P47: 0 | Q47: 0 | R47: 0 | S47: 0 | T47: 0 | U47: 0
B48: Low Income Protection Subsidy | D48: £ | E48: TariffM.T10.L86 | M48: 0 | N48: 0 | O48: 0 | P48: 0 | Q48: 0 | R48: 0 | S48: 0 | T48: 0 | U48: 0
B49: Total | D49: £ | M49: =SUM(M46:M48) -> 127635012.5 | N49: 128738368.6 | O49: 128001226.9 | P49: 130134310 | Q49: 135440178.6 | R49: 141545506.6 | S49: 148419786.9 | T49: 155743933.6 | U49: 163418304.9
B52: Revenue: P=Charging Year; Q&N=Prior Year - At(i)
B53: Total Standard Customer Revenue | D53: £ | O53: =SUMPRODUCT(O20:O22,N9:N11) -> 126836902.4 | P53: 129114605.3 | Q53: 134096855.2 | R53: 140046124.5 | S53: 146910729.4 | T53: 154224855.5 | U53: 161890214.4
B54: Total revenue from affordability tariffs | D54: £ | O54: =SUMPRODUCT(O25:O27,N14:N16) -> 0 | P54: 0 | Q54: 0 | R54: 0 | S54: 0 | T54: 0 | U54: 0
B55: Low Income Protection Subsidy | D55: £ | O55: =+N48 -> 0 | P55: 0 | Q55: 0 | R55: 0 | S55: 0 | T55: 0 | U55: 0
B56: Total | D56: £ | O56: =SUM(O53:O55) -> 126836902.4 | P56: 129114605.3 | Q56: 134096855.2 | R56: 140046124.5 | S56: 146910729.4 | T56: 154224855.5 | U56: 161890214.4
B57: Chargeable Supplies (N) | D57: nr | O57: =N8 -> 750064.9 | P57: =O8 -> 756914.9 | Q57: 762840 | R57: 770465 | S57: 778715 | T57: 786715 | U57: 794465
B59: Revenue: P=Prior Year; Q&N=Weighting Year - At-1(i)
B60: Total Standard Customer Revenue | D60: £ | O60: =SUMPRODUCT(N20:N22,M9:M11) -> 127065095.9 | P60: =SUMPRODUCT(O20:O22,N9:N11) -> 126836902.4 | Q60: 129114605.3 | R60: 134096855.2 | S60: 140046124.5 | T60: 146910729.4 | U60: 154224855.5
B61: Total revenue from affordability tariffs | D61: £ | O61: =SUMPRODUCT(N25:N27,M14:M16) -> 0 | P61: =SUMPRODUCT(O25:O27,N14:N16) -> 0 | Q61: 0 | R61: 0 | S61: 0 | T61: 0 | U61: 0
B62: Low Income Protection Subsidy | D62: £ | O62: =+M48 -> 0 | P62: =+N48 -> 0 | Q62: 0 | R62: 0 | S62: 0 | T62: 0 | U62: 0
B63: Total | D63: £ | O63: =SUM(O60:O62) -> 127065095.9 | P63: 126836902.4 | Q63: 129114605.3 | R63: 134096855.2 | S63: 140046124.5 | T63: 146910729.4 | U63: 154224855.5
B64: Chargeable Supplies (N) | D64: nr | O64: =M8 -> 740316 | P64: =N8 -> 750064.9 | Q64: 756914.9 | R64: 762840 | S64: 770465 | T64: 778715 | U64: 786715

Sheet RG4
A1: Model_Navigation
B2: Customer base: Domestic unmeasured sewerage
B3: Tariff basket: | C3: 2
B4: Revenue group: | C4: 4
D6: =+'RG3'!D6 -> Units | E6: =+'RG3'!E6 -> Reference | M6: =+Inputs!M2 -> 2018-19 | N6: =+Inputs!N2 -> 2019-20 | O6: =+Inputs!O2 -> 2020-21 | P6: =+Inputs!P2 -> 2021-22 | Q6: =+Inputs!Q2 -> 2022-23 | R6: =+Inputs!R2 -> 2023-24 | S6: =+Inputs!S2 -> 2024-25 | T6: =+Inputs!T2 -> 2025-26 | U6: =+Inputs!U2 -> 2026-27
B7: Tariff multipliers: Standard
B8: Total number of billed properties | D8: nr | M8: =+M9+M11 -> 629513 | N8: 638171.497 | O8: 643961.997 | P8: 648883 | Q8: 654983 | R8: 661383 | S8: 667383 | T8: 673008 | U8: 678258
B9: Total number of standard customer properties subject to separate standing charge | D9: nr | M9: 624791 | N9: ='Customer Versions'!N114 -> 633384.5562 | O9: ='Customer Versions'!O114 -> 639121.5139 | P9: ='Customer Versions'!P114 -> 643990.2422 | Q9: ='Customer Versions'!Q114 -> 650039.2353 | R9: ='Customer Versions'!R114 -> 656391.2287 | S9: ='Customer Versions'!S114 -> 662346.2225 | T9: ='Customer Versions'!T114 -> 667929.0293 | U9: ='Customer Versions'!U114 -> 673139.6489
B10: Number of £1,000 Capital Value Unit charges less than capped value | D10: nr | M10: 66184568 | N10: ='Customer Versions'!N115 -> 67094835.8 | O10: ='Customer Versions'!O115 -> 67702555.44 | P10: ='Customer Versions'!P115 -> 68218302.98 | Q10: ='Customer Versions'!Q115 -> 68859076.73 | R10: ='Customer Versions'!R115 -> 69531947.5 | S10: ='Customer Versions'!S115 -> 70162763.85 | T10: ='Customer Versions'!T115 -> 70754154.18 | U10: ='Customer Versions'!U115 -> 71306118.49
B11: Number of billed properties at capped level | D11: nr | M11: 4722 | N11: ='Customer Versions'!N116 -> 4786.940803 | O11: ='Customer Versions'!O116 -> 4840.483125 | P11: ='Customer Versions'!P116 -> 4892.757773 | Q11: ='Customer Versions'!Q116 -> 4943.764748 | R11: ='Customer Versions'!R116 -> 4991.771312 | S11: ='Customer Versions'!S116 -> 5036.777466 | T11: ='Customer Versions'!T116 -> 5078.970736 | U11: ='Customer Versions'!U116 -> 5118.351121
B13: Tariff multipliers: Affordability
B14: Number of properties with capital value up to and including £70,000 | D14: nr | M14: 0 | N14: 0 | O14: 0 | P14: 0 | Q14: 0 | R14: 0 | S14: 0 | T14: 0 | U14: 0
B15: Number of properties with capital value over £70,000 and up to and including £100,000 | D15: nr | M15: 0 | N15: 0 | O15: 0 | P15: 0 | Q15: 0 | R15: 0 | S15: 0 | T15: 0 | U15: 0
B16: Number of properties with capital value over £100,000 | D16: nr | M16: 0 | N16: 0 | O16: 0 | P16: 0 | Q16: 0 | R16: 0 | S16: 0 | T16: 0 | U16: 0
B17: Total | D17: nr | M17: =SUM(M14:M16) -> 0 | N17: =SUM(N14:N16) -> 0 | O17: 0 | P17: 0 | Q17: 0 | R17: 0 | S17: 0 | T17: 0 | U17: 0
B20: Tariffs: Standard
B21: Standing charge | D21: £ | M21: =Tariffs!M29 -> 0 | N21: =Tariffs!N29 -> 0 | O21: =Tariffs!O29 -> 0 | P21: =Tariffs!P29 -> 0 | Q21: =Tariffs!Q29 -> 0 | R21: =Tariffs!R29 -> 0 | S21: =Tariffs!S29 -> 0 | T21: =Tariffs!T29 -> 0 | U21: =Tariffs!U29 -> 0
B22: Variable charge | D22: £ | M22: =Tariffs!M30 -> 2.2435 | N22: =Tariffs!N30 -> 2.2975 | O22: =Tariffs!O30 -> 2.329 | P22: =Tariffs!P30 -> 2.349 | Q22: =Tariffs!Q30 -> 2.389016804 | R22: =Tariffs!R30 -> 2.438214432 | S22: =Tariffs!S30 -> 2.497927762 | T22: =Tariffs!T30 -> 2.562120802 | U22: =Tariffs!U30 -> 2.628864135
B23: Capped charge | D23: £ | M23: =Tariffs!M31 -> 897.36 | N23: =Tariffs!N31 -> 918.97 | O23: =Tariffs!O31 -> 931.47 | P23: =Tariffs!P31 -> 939.47 | Q23: =Tariffs!Q31 -> 955.4745071 | R23: =Tariffs!R31 -> 975.1508356 | S23: =Tariffs!S31 -> 999.0328626 | T23: =Tariffs!T31 -> 1024.706526 | U23: =Tariffs!U31 -> 1051.400165
B25: Tariffs: Affordability
B26: Affordability tariff for properties with capital value up to and including £70,000 | D26: £ | M26: =Tariffs!M32 -> 55.36 | N26: =Tariffs!N32 -> 56.69 | O26: =Tariffs!O32 -> 57.46 | P26: =Tariffs!P32 -> 57.95 | Q26: =Tariffs!Q32 -> 58.93721746 | R26: =Tariffs!R32 -> 60.1509265 | S26: =Tariffs!S32 -> 61.62405866 | T26: =Tariffs!T32 -> 63.20770561 | U26: =Tariffs!U32 -> 64.85426845
B27: Affordability tariff for properties with capital value over £70,000 and up to and including £100,000 | D27: £ | M27: =Tariffs!M33 -> 83.05 | N27: =Tariffs!N33 -> 85.05 | O27: =Tariffs!O33 -> 86.21 | P27: =Tariffs!P33 -> 86.95 | Q27: =Tariffs!Q33 -> 88.43125208 | R27: =Tariffs!R33 -> 90.25233925 | S27: =Tariffs!S33 -> 92.462673 | T27: =Tariffs!T33 -> 94.83882662 | U27: =Tariffs!U33 -> 97.30938123
B28: Affordability tariff for properties with capital value over £100,000 | D28: £ | M28: =Tariffs!M34 -> 110.73 | N28: =Tariffs!N34 -> 113.4 | O28: =Tariffs!O34 -> 114.94 | P28: =Tariffs!P34 -> 115.93 | Q28: =Tariffs!Q34 -> 117.904946 | R28: =Tariffs!R34 -> 120.3329924 | S28: =Tariffs!S34 -> 123.2800193 | T28: =Tariffs!T34 -> 126.4481331 | U28: =Tariffs!U34 -> 129.7421112
B30: Standing tariff revenue
B31: Standing Charge Revenue | D31: £ | M31: =M9*M21 -> 0 | N31: =N9*N21 -> 0 | O31: 0 | P31: 0 | Q31: 0 | R31: 0 | S31: 0 | T31: 0 | U31: 0
B32: Variable Charge Revenue from uncapped properties | D32: £ | M32: =M10*M22 -> 148485078.3 | N32: 154150385.3 | O32: 157679251.6 | P32: 160244793.7 | Q32: 164505491.4 | R32: 169533797.9 | S32: 175261515.7 | T32: 181280690.3 | U32: 187454097.5
B33: Total Capped Revenue | D33: £ | M33: 4237333.92 | N33: 4399054.99 | O33: 4508764.816 | P33: 4596599.145 | Q33: 4723641.185 | R33: 4867729.966 | S33: 5031906.211 | T33: 5204454.459 | U33: 5381435.215
B34: Total Standard Customer Revenue | D34: £ | M34: =SUM(M31:M33) -> 152722412.2 | N34: =SUM(N31:N33) -> 158549440.2 | O34: 162188016.4 | P34: 164841392.9 | Q34: 169229132.6 | R34: 174401527.9 | S34: 180293421.9 | T34: 186485144.7 | U34: 192835532.7
B36: Afforability tariff revenue
B37: Revenue from properties with capital value up to and including £70,000 | D37: £ | M37: =M14*M26 -> 0 | N37: =N14*N26 -> 0 | O37: 0 | P37: 0 | Q37: 0 | R37: 0 | S37: 0 | T37: 0 | U37: 0
B38: Revenue from properties with capital value over £70,000 and up to and including £100,000 | D38: £ | M38: =M15*M27 -> 0 | N38: 0 | O38: 0 | P38: 0 | Q38: 0 | R38: 0 | S38: 0 | T38: 0 | U38: 0
B39: Revenue from properties with capital value over £100,000 | D39: £ | M39: 0 | N39: 0 | O39: 0 | P39: 0 | Q39: 0 | R39: 0 | S39: 0 | T39: 0 | U39: 0
B40: Total revenue from affordability tariffs | D40: £ | M40: =SUM(M37:M39) -> 0 | N40: =SUM(N37:N39) -> 0 | O40: 0 | P40: 0 | Q40: 0 | R40: 0 | S40: 0 | T40: 0 | U40: 0
B43: Void Properties
B44: Number of void properties | D44: nr | M44: 33699 | N44: 33524.02904 | O44: 33908.4046 | P44: 34290.54541 | Q44: 34670.45148 | R44: 35039.18384 | S44: 35396.7425 | T44: 35743.12744 | U44: 36078.33868
B46: Revenue
B47: Total Standard Customer Revenue | D47: £ | M47: =M34 -> 152722412.2 | N47: =N34 -> 158549440.2 | O47: 162188016.4 | P47: 164841392.9 | Q47: 169229132.6 | R47: 174401527.9 | S47: 180293421.9 | T47: 186485144.7 | U47: 192835532.7
B48: Total revenue from affordability tariffs | D48: £ | M48: =M40 -> 0 | N48: =N40 -> 0 | O48: 0 | P48: 0 | Q48: 0 | R48: 0 | S48: 0 | T48: 0 | U48: 0
B49: Low Income Protection Subsidy | D49: £ | M49: 0 | N49: 0 | O49: 0 | P49: 0 | Q49: 0 | R49: 0 | S49: 0 | T49: 0 | U49: 0
B50: Total | D50: £ | M50: =SUM(M47:M49) -> 152722412.2 | N50: 158549440.2 | O50: 162188016.4 | P50: 164841392.9 | Q50: 169229132.6 | R50: 174401527.9 | S50: 180293421.9 | T50: 186485144.7 | U50: 192835532.7
B53: Revenue: P=Charging Year; Q&N=Prior Year - At(i)
B54: Total Standard Customer Revenue | D54: £ | O54: =SUMPRODUCT(O21:O23,N9:N11) -> 160722764.3 | P54: 163580791.4 | Q54: 167649577.5 | R54: 172714111 | S54: 178672725.6 | T54: 184926695.5 | U54: 191343089
B55: Total revenue from affordability tariffs | D55: £ | O55: =SUMPRODUCT(O26:O28,N14:N16) -> 0 | P55: 0 | Q55: 0 | R55: 0 | S55: 0 | T55: 0 | U55: 0
B56: Low Income Protection Subsidy | D56: £ | O56: =+N49 -> 0 | P56: =+O49 -> 0 | Q56: 0 | R56: 0 | S56: 0 | T56: 0 | U56: 0
B57: Total | D57: £ | O57: =SUM(O54:O56) -> 160722764.3 | P57: 163580791.4 | Q57: 167649577.5 | R57: 172714111 | S57: 178672725.6 | T57: 184926695.5 | U57: 191343089
B58: Chargeable Supplies (N) | D58: nr | O58: =N8 -> 638171.497 | P58: =O8 -> 643961.997 | Q58: 648883 | R58: 654983 | S58: 661383 | T58: 667383 | U58: 673008
B60: Revenue: P=Prior Year; Q&N=Weighting Year - At-1(i)
B61: Total Standard Customer Revenue | D61: £ | O61: =SUMPRODUCT(N21:N23,M9:M11) -> 156398421.3 | P61: =SUMPRODUCT(O21:O23,N9:N11) -> 160722764.3 | Q61: 163580791.4 | R61: 167649577.5 | S61: 172714111 | T61: 178672725.6 | U61: 184926695.5
B62: Total revenue from affordability tariffs | D62: £ | O62: =SUMPRODUCT(N26:N28,M14:M16) -> 0 | P62: =SUMPRODUCT(O26:O28,N14:N16) -> 0 | Q62: 0 | R62: 0 | S62: 0 | T62: 0 | U62: 0
B63: Low Income Protection Subsidy | D63: £ | O63: =+M49 -> 0 | P63: =+N49 -> 0 | Q63: 0 | R63: 0 | S63: 0 | T63: 0 | U63: 0
B64: Total | D64: £ | O64: =SUM(O61:O63) -> 156398421.3 | P64: 160722764.3 | Q64: 163580791.4 | R64: 167649577.5 | S64: 172714111 | T64: 178672725.6 | U64: 184926695.5
B65: Chargeable Supplies (N) | D65: nr | O65: =M8 -> 629513 | P65: =N8 -> 638171.497 | Q65: 643961.997 | R65: 648883 | S65: 654983 | T65: 661383 | U65: 667383

Sheet RG5
A1: Model_Navigation
B2: Non-domestic measured water | C2: excludes revenue from large users
B3: Tariff basket: | C3: 3
B4: Revenue group: | C4: 5
D6: =+'RG4'!D6 -> Units | E6: =+'RG4'!E6 -> Reference | M6: =+Inputs!M2 -> 2018-19 | N6: =+Inputs!N2 -> 2019-20 | O6: =+Inputs!O2 -> 2020-21 | P6: =+Inputs!P2 -> 2021-22 | Q6: =+Inputs!Q2 -> 2022-23 | R6: =+Inputs!R2 -> 2023-24 | S6: =+Inputs!S2 -> 2024-25 | T6: =+Inputs!T2 -> 2025-26 | U6: =+Inputs!U2 -> 2026-27
B7: Tariff multipliers: Supply pipe size - existing customers
B8: Up to 20mm | D8: nr | M8: 59792 | N8: ='Customer Versions'!N12 -> 60000 | O8: ='Customer Versions'!O12 -> 60704 | P8: ='Customer Versions'!P12 -> 59794 | Q8: ='Customer Versions'!Q12 -> 60560 | R8: ='Customer Versions'!R12 -> 61595 | S8: ='Customer Versions'!S12 -> 61792 | T8: ='Customer Versions'!T12 -> 61989 | U8: ='Customer Versions'!U12 -> 62186
B9: Over 20mm up to 25mm | D9: nr | M9: 6612 | N9: ='Customer Versions'!N13 -> 6655 | O9: ='Customer Versions'!O13 -> 6677 | P9: ='Customer Versions'!P13 -> 6681 | Q9: ='Customer Versions'!Q13 -> 6697 | R9: ='Customer Versions'!R13 -> 6743 | S9: ='Customer Versions'!S13 -> 6765 | T9: ='Customer Versions'!T13 -> 6787 | U9: ='Customer Versions'!U13 -> 6809
B10: Over 25mm up to 40mm | D10: nr | M10: 1163 | N10: ='Customer Versions'!N14 -> 1155 | O10: ='Customer Versions'!O14 -> 1169 | P10: ='Customer Versions'!P14 -> 1178 | Q10: ='Customer Versions'!Q14 -> 1187 | R10: ='Customer Versions'!R14 -> 1196 | S10: ='Customer Versions'!S14 -> 1205 | T10: ='Customer Versions'!T14 -> 1214 | U10: ='Customer Versions'!U14 -> 1223
B11: Over 40mm up to 50mm | D11: nr | M11: 1266 | N11: ='Customer Versions'!N15 -> 1268 | O11: ='Customer Versions'!O15 -> 1279 | P11: ='Customer Versions'!P15 -> 1289 | Q11: ='Customer Versions'!Q15 -> 1299 | R11: ='Customer Versions'!R15 -> 1309 | S11: ='Customer Versions'!S15 -> 1319 | T11: ='Customer Versions'!T15 -> 1329 | U11: ='Customer Versions'!U15 -> 1339
B12: Over 50mm up to 75mm | D12: nr | M12: 923 | N12: ='Customer Versions'!N16 -> 930 | O12: ='Customer Versions'!O16 -> 939 | P12: ='Customer Versions'!P16 -> 946 | Q12: ='Customer Versions'!Q16 -> 953 | R12: ='Customer Versions'!R16 -> 960 | S12: ='Customer Versions'!S16 -> 967 | T12: ='Customer Versions'!T16 -> 974 | U12: ='Customer Versions'!U16 -> 981
B13: Over 75mm up to 100mm | D13: nr | M13: 476 | N13: ='Customer Versions'!N17 -> 476 | O13: ='Customer Versions'!O17 -> 481 | P13: ='Customer Versions'!P17 -> 485 | Q13: ='Customer Versions'!Q17 -> 489 | R13: ='Customer Versions'!R17 -> 493 | S13: ='Customer Versions'!S17 -> 497 | T13: ='Customer Versions'!T17 -> 501 | U13: ='Customer Versions'!U17 -> 505
B14: Over 100mm | D14: nr | M14: 100 | N14: ='Customer Versions'!N18 -> 121 | O14: ='Customer Versions'!O18 -> 122 | P14: ='Customer Versions'!P18 -> 123 | Q14: ='Customer Versions'!Q18 -> 124 | R14: ='Customer Versions'!R18 -> 125 | S14: ='Customer Versions'!S18 -> 126 | T14: ='Customer Versions'!T18 -> 127 | U14: ='Customer Versions'!U18 -> 128
B15: Total | D15: nr | M15: =SUM(M8:M14) -> 70332 | N15: 70605 | O15: 71371 | P15: 70496 | Q15: 71309 | R15: 72421 | S15: 72671 | T15: 72921 | U15: 73171
B17: Tariff multipliers: Supply pipe size - new customers
B18: Up to 20mm | D18: nr | M18: 208 | N18: ='Customer Versions'!N22 -> 704 | O18: ='Customer Versions'!O22 -> -910 | P18: ='Customer Versions'!P22 -> 766 | Q18: ='Customer Versions'!Q22 -> 557 | R18: ='Customer Versions'!R22 -> 197 | S18: ='Customer Versions'!S22 -> 197 | T18: ='Customer Versions'!T22 -> 197 | U18: ='Customer Versions'!U22 -> 197
B19: Over 20mm up to 25mm | D19: nr | M19: 43 | N19: ='Customer Versions'!N23 -> 22 | O19: ='Customer Versions'!O23 -> 4 | P19: ='Customer Versions'!P23 -> 16 | Q19: ='Customer Versions'!Q23 -> 27 | R19: ='Customer Versions'!R23 -> 22 | S19: ='Customer Versions'!S23 -> 22 | T19: ='Customer Versions'!T23 -> 22 | U19: ='Customer Versions'!U23 -> 22
B20: Over 25mm up to 40mm | D20: nr | M20: -8 | N20: ='Customer Versions'!N24 -> 14 | O20: ='Customer Versions'!O24 -> 9 | P20: ='Customer Versions'!P24 -> 9 | Q20: ='Customer Versions'!Q24 -> 9 | R20: ='Customer Versions'!R24 -> 9 | S20: ='Customer Versions'!S24 -> 9 | T20: ='Customer Versions'!T24 -> 9 | U20: ='Customer Versions'!U24 -> 9
B21: Over 40mm up to 50mm | D21: nr | M21: 2 | N21: ='Customer Versions'!N25 -> 11 | O21: ='Customer Versions'!O25 -> 10 | P21: ='Customer Versions'!P25 -> 10 | Q21: ='Customer Versions'!Q25 -> 10 | R21: ='Customer Versions'!R25 -> 10 | S21: ='Customer Versions'!S25 -> 10 | T21: ='Customer Versions'!T25 -> 10 | U21: ='Customer Versions'!U25 -> 10
B22: Over 50mm up to 75mm | D22: nr | M22: 7 | N22: ='Customer Versions'!N26 -> 9 | O22: ='Customer Versions'!O26 -> 7 | P22: ='Customer Versions'!P26 -> 7 | Q22: ='Customer Versions'!Q26 -> 7 | R22: ='Customer Versions'!R26 -> 7 | S22: ='Customer Versions'!S26 -> 7 | T22: ='Customer Versions'!T26 -> 7 | U22: ='Customer Versions'!U26 -> 7
B23: Over 75mm up to 100mm | D23: nr | M23: 0 | N23: ='Customer Versions'!N27 -> 5 | O23: ='Customer Versions'!O27 -> 4 | P23: ='Customer Versions'!P27 -> 4 | Q23: ='Customer Versions'!Q27 -> 4 | R23: ='Customer Versions'!R27 -> 4 | S23: ='Customer Versions'!S27 -> 4 | T23: ='Customer Versions'!T27 -> 4 | U23: ='Customer Versions'!U27 -> 4
B24: Over 100mm | D24: nr | M24: 21 | N24: ='Customer Versions'!N28 -> 1 | O24: ='Customer Versions'!O28 -> 1 | P24: ='Customer Versions'!P28 -> 1 | Q24: ='Customer Versions'!Q28 -> 1 | R24: ='Customer Versions'!R28 -> 1 | S24: ='Customer Versions'!S28 -> 1 | T24: ='Customer Versions'!T28 -> 1 | U24: ='Customer Versions'!U28 -> 1
B25: Total | D25: nr | M25: =SUM(M18:M24) -> 273 | N25: 766 | O25: -875 | P25: 813 | Q25: 615 | R25: 250 | S25: 250 | T25: 250 | U25: 250
B27: Standing charge tariffs - existing customers
B28: Up to 20mm | D28: £ | M28: =Tariffs!M39 -> 68 | N28: =Tariffs!N39 -> 69 | O28: =Tariffs!O39 -> 69 | P28: =Tariffs!P39 -> 69 | Q28: =Tariffs!Q39 -> 69.209174 | R28: =Tariffs!R39 -> 69.66519905 | S28: =Tariffs!S39 -> 70.39573818 | T28: =Tariffs!T39 -> 71.21897045 | U28: =Tariffs!U39 -> 72.07686449
B29: Over 20mm up to 25mm | D29: £ | M29: =Tariffs!M40 -> 114 | N29: =Tariffs!N40 -> 116 | O29: =Tariffs!O40 -> 117 | P29: =Tariffs!P40 -> 118 | Q29: =Tariffs!Q40 -> 118.3577179 | R29: =Tariffs!R40 -> 119.1375868 | S29: =Tariffs!S40 -> 120.3869146 | T29: =Tariffs!T40 -> 121.7947611 | U29: =Tariffs!U40 -> 123.2618842
B30: Over 25mm up to 40mm | D30: £ | M30: =Tariffs!M41 -> 211 | N30: =Tariffs!N41 -> 215 | O30: =Tariffs!O41 -> 217 | P30: =Tariffs!P41 -> 218 | Q30: =Tariffs!Q41 -> 218.6608686 | R30: =Tariffs!R41 -> 220.1016434 | S30: =Tariffs!S41 -> 222.4097235 | T30: =Tariffs!T41 -> 225.0106603 | U30: =Tariffs!U41 -> 227.7211081
B31: Over 40mm up to 50mm | D31: £ | M31: =Tariffs!M42 -> 331 | N31: =Tariffs!N42 -> 338 | O31: =Tariffs!O42 -> 341 | P31: =Tariffs!P42 -> 343 | Q31: =Tariffs!Q42 -> 344.039807 | R31: =Tariffs!R42 -> 346.3067141 | S31: =Tariffs!S42 -> 349.9382347 | T31: =Tariffs!T42 -> 354.0305343 | U31: =Tariffs!U42 -> 358.295138
B32: Over 50mm up to 75mm | D32: £ | M32: =Tariffs!M43 -> 657 | N32: =Tariffs!N43 -> 671 | O32: =Tariffs!O43 -> 678 | P32: =Tariffs!P43 -> 683 | Q32: =Tariffs!Q43 -> 685.0705194 | R32: =Tariffs!R43 -> 689.5845066 | S32: =Tariffs!S43 -> 696.8157852 | T32: =Tariffs!T43 -> 704.9645915 | U32: =Tariffs!U43 -> 713.4564992
B33: Over 75mm up to 100mm | D33: £ | M33: =Tariffs!M44 -> 1189 | N33: =Tariffs!N44 -> 1215 | O33: =Tariffs!O44 -> 1229 | P33: =Tariffs!P44 -> 1239 | Q33: =Tariffs!Q44 -> 1242.756037 | R33: =Tariffs!R44 -> 1250.944661 | S33: =Tariffs!S44 -> 1264.062603 | T33: =Tariffs!T44 -> 1278.844991 | U33: =Tariffs!U44 -> 1294.249784
B34: Over 100mm | D34: £ | M34: =Tariffs!M45 -> 1690 | N34: =Tariffs!N45 -> 1727 | O34: =Tariffs!O45 -> 1747 | P34: =Tariffs!P45 -> 1762 | Q34: =Tariffs!Q45 -> 1767.341516 | R34: =Tariffs!R45 -> 1778.986677 | S34: =Tariffs!S45 -> 1797.641894 | T34: =Tariffs!T45 -> 1818.664144 | U34: =Tariffs!U45 -> 1840.571525
B36: Standing charge tariffs - new customers
B37: Up to 20mm | D37: £ | M37: =Tariffs!M46 -> 68 | N37: =Tariffs!N46 -> 69 | O37: =Tariffs!O46 -> 69 | P37: =Tariffs!P46 -> 69 | Q37: =Tariffs!Q46 -> 69.209174 | R37: =Tariffs!R46 -> 69.66519905 | S37: =Tariffs!S46 -> 70.39573818 | T37: =Tariffs!T46 -> 71.21897045 | U37: =Tariffs!U46 -> 72.07686449
B38: Over 20mm up to 25mm | D38: £ | M38: =Tariffs!M47 -> 114 | N38: =Tariffs!N47 -> 116 | O38: =Tariffs!O47 -> 117 | P38: =Tariffs!P47 -> 118 | Q38: =Tariffs!Q47 -> 118.3577179 | R38: =Tariffs!R47 -> 119.1375868 | S38: =Tariffs!S47 -> 120.3869146 | T38: =Tariffs!T47 -> 121.7947611 | U38: =Tariffs!U47 -> 123.2618842
B39: Over 25mm up to 40mm | D39: £ | M39: =Tariffs!M48 -> 211 | N39: =Tariffs!N48 -> 215 | O39: =Tariffs!O48 -> 217 | P39: =Tariffs!P48 -> 218 | Q39: =Tariffs!Q48 -> 218.6608686 | R39: =Tariffs!R48 -> 220.1016434 | S39: =Tariffs!S48 -> 222.4097235 | T39: =Tariffs!T48 -> 225.0106603 | U39: =Tariffs!U48 -> 227.7211081
B40: Over 40mm up to 50mm | D40: £ | M40: =Tariffs!M49 -> 331 | N40: =Tariffs!N49 -> 338 | O40: =Tariffs!O49 -> 341 | P40: =Tariffs!P49 -> 343 | Q40: =Tariffs!Q49 -> 344.039807 | R40: =Tariffs!R49 -> 346.3067141 | S40: =Tariffs!S49 -> 349.9382347 | T40: =Tariffs!T49 -> 354.0305343 | U40: =Tariffs!U49 -> 358.295138
B41: Over 50mm up to 75mm | D41: £ | M41: =Tariffs!M50 -> 657 | N41: =Tariffs!N50 -> 671 | O41: =Tariffs!O50 -> 678 | P41: =Tariffs!P50 -> 683 | Q41: =Tariffs!Q50 -> 685.0705194 | R41: =Tariffs!R50 -> 689.5845066 | S41: =Tariffs!S50 -> 696.8157852 | T41: =Tariffs!T50 -> 704.9645915 | U41: =Tariffs!U50 -> 713.4564992
B42: Over 75mm up to 100mm | D42: £ | M42: =Tariffs!M51 -> 1189 | N42: =Tariffs!N51 -> 1215 | O42: =Tariffs!O51 -> 1229 | P42: =Tariffs!P51 -> 1239 | Q42: =Tariffs!Q51 -> 1242.756037 | R42: =Tariffs!R51 -> 1250.944661 | S42: =Tariffs!S51 -> 1264.062603 | T42: =Tariffs!T51 -> 1278.844991 | U42: =Tariffs!U51 -> 1294.249784
B43: Over 100mm | D43: £ | M43: =Tariffs!M52 -> 1690 | N43: =Tariffs!N52 -> 1727 | O43: =Tariffs!O52 -> 1747 | P43: =Tariffs!P52 -> 1762 | Q43: =Tariffs!Q52 -> 1767.341516 | R43: =Tariffs!R52 -> 1778.986677 | S43: =Tariffs!S52 -> 1797.641894 | T43: =Tariffs!T52 -> 1818.664144 | U43: =Tariffs!U52 -> 1840.571525
B45: Revenue - Standing charges - Existing Customers
B46: Up to 20mm | D46: £ | M46: =M8*M28 -> 4065856 | N46: 4140000 | O46: 4188576 | P46: 4125786 | Q46: 4191307.577 | R46: 4291027.936 | S46: 4349893.454 | T46: 4414792.759 | U46: 4482171.895
B47: Over 20mm up to 25mm | D47: £ | M47: =M9*M29 -> 753768 | N47: =N9*N29 -> 771980 | O47: 781209 | P47: 788358 | Q47: 792641.6365 | R47: 803344.7477 | S47: 814417.4771 | T47: 826621.0433 | U47: 839290.1695
B48: Over 25mm up to 40mm | D48: £ | M48: =M10*M30 -> 245393 | N48: 248325 | O48: 253673 | P48: 256804 | Q48: 259550.451 | R48: 263241.5655 | S48: 268003.7169 | T48: 273162.9416 | U48: 278502.9152
B49: Over 40mm up to 50mm | D49: £ | M49: =M11*M31 -> 419046 | N49: 428584 | O49: 436139 | P49: 442127 | Q49: 446907.7093 | R49: 453315.4888 | S49: 461568.5316 | T49: 470506.58 | U49: 479757.1897
B50: Over 50mm up to 75mm | D50: £ | M50: =M12*M32 -> 606411 | N50: 624030 | O50: 636642 | P50: 646118 | Q50: 652872.205 | R50: 662001.1263 | S50: 673820.8643 | T50: 686635.5122 | U50: 699900.8257
B51: Over 75mm up to 100mm | D51: £ | M51: =M13*M33 -> 565964 | N51: 578340 | O51: 591149 | P51: 600915 | Q51: 607707.7023 | R51: 616715.718 | S51: 628239.1137 | T51: 640701.3405 | U51: 653596.1409
B52: Over 100mm | D52: £ | M52: =M14*M34 -> 169000 | N52: 208967 | O52: 213134 | P52: 216726 | Q52: 219150.3479 | R52: 222373.3347 | S52: 226502.8786 | T52: 230970.3463 | U52: 235593.1552
B53: Total | D53: £ | M53: =SUM(M46:M52) -> 6825438 | N53: 7000226 | O53: 7100522 | P53: 7076834 | Q53: 7170137.629 | R53: 7312019.916 | S53: 7422446.036 | T53: 7543390.523 | U53: 7668812.291
B55: Revenue - Standing charges - New Customers
B56: Up to 20mm | D56: £ | M56: =M18*M37 -> 14144 | N56: 48576 | O56: -62790 | P56: 52854 | Q56: 38549.50992 | R56: 13724.04421 | S56: 13867.96042 | T56: 14030.13718 | U56: 14199.1423
B57: Over 20mm up to 25mm | D57: £ | M57: =M19*M38 -> 4902 | N57: 2552 | O57: 468 | P57: 1888 | Q57: 3195.658382 | R57: 2621.026909 | S57: 2648.512121 | T57: 2679.484743 | U57: 2711.761452
B58: Over 25mm up to 40mm | D58: £ | M58: =M20*M39 -> -1688 | N58: 3010 | O58: 1953 | P58: 1962 | Q58: 1967.947817 | R58: 1980.91479 | S58: 2001.687512 | T58: 2025.095942 | U58: 2049.489973
B59: Over 40mm up to 50mm | D59: £ | M59: =M21*M40 -> 662 | N59: 3718 | O59: 3410 | P59: 3430 | Q59: 3440.39807 | R59: 3463.067141 | S59: 3499.382347 | T59: 3540.305343 | U59: 3582.95138
B60: Over 50mm up to 75mm | D60: £ | M60: =M22*M41 -> 4599 | N60: 6039 | O60: 4746 | P60: 4781 | Q60: 4795.493636 | R60: 4827.091546 | S60: 4877.710496 | T60: 4934.752141 | U60: 4994.195494
B61: Over 75mm up to 100mm | D61: £ | M61: =M23*M42 -> 0 | N61: 6075 | O61: 4916 | P61: 4956 | Q61: 4971.02415 | R61: 5003.778645 | S61: 5056.250412 | T61: 5115.379964 | U61: 5176.999136
B62: Over 100mm | D62: £ | M62: =M24*M43 -> 35490 | N62: 1727 | O62: 1747 | P62: 1762 | Q62: 1767.341516 | R62: 1778.986677 | S62: 1797.641894 | T62: 1818.664144 | U62: 1840.571525
B63: Total | D63: £ | M63: =SUM(M56:M62) -> 58109 | N63: 71697 | O63: -45550 | P63: 71633 | Q63: 58687.37349 | R63: 33398.90992 | S63: 33749.1452 | T63: 34143.81946 | U63: 34555.11126
B66: Tariffs: Customer Volume
B67: Volume subject to volumetric charge - existing customers inc. DAV | D67: m3 | M67: =35103224.4844375+M81 -> 44655029.48 | N67: ='Customer Versions'!N32+N81 -> 35034612.63 | O67: ='Customer Versions'!O32+O81 -> 28407544 | P67: ='Customer Versions'!P32+P81 -> 33285922 | Q67: ='Customer Versions'!Q32+Q81 -> 34900360.2 | R67: ='Customer Versions'!R32+R81 -> 35510312.8 | S67: ='Customer Versions'!S32+S81 -> 35570529.06 | T67: ='Customer Versions'!T32+T81 -> 35630745.32 | U67: ='Customer Versions'!U32+U81 -> 35690961.59
B68: Volume subject to volumetric charge - new customers | D68: m3 | M68: 0 | N68: ='Customer Versions'!N33 -> 247131 | O68: ='Customer Versions'!O33 -> 66904 | P68: ='Customer Versions'!P33 -> 7495.36 | Q68: ='Customer Versions'!Q33 -> 43492.8 | R68: ='Customer Versions'!R33 -> 331451 | S68: ='Customer Versions'!S33 -> 349131 | T68: ='Customer Versions'!T33 -> 366811 | U68: ='Customer Versions'!U33 -> 384491
B69: Total volume | D69: m3 | M69: =SUM(M67:M68) -> 44655029.48 | N69: 35281743.63 | O69: 28474448 | P69: 33293417.36 | Q69: 34943853 | R69: 35841763.8 | S69: 35919660.06 | T69: 35997556.32 | U69: 36075452.59
B71: Volumetric Tariffs
B72: Volumetric charge - existing customers | D72: £ | M72: =Tariffs!M53 -> 1.07 | N72: =Tariffs!N53 -> 1.093 | O72: =Tariffs!O53 -> 1.106 | P72: =Tariffs!P53 -> 1.115 | Q72: =Tariffs!Q53 -> 1.118380131 | R72: =Tariffs!R53 -> 1.125749231 | S72: =Tariffs!S53 -> 1.13755432 | T72: =Tariffs!T53 -> 1.150857276 | U72: =Tariffs!U53 -> 1.164720346
B73: Volumetric charge - new customers | D73: £ | M73: =Tariffs!M54 -> 1.07 | N73: =Tariffs!N54 -> 1.093 | O73: =Tariffs!O54 -> 1.106 | P73: =Tariffs!P54 -> 1.115 | Q73: =Tariffs!Q54 -> 1.118380131 | R73: =Tariffs!R54 -> 1.125749231 | S73: =Tariffs!S54 -> 1.13755432 | T73: =Tariffs!T54 -> 1.150857276 | U73: =Tariffs!U54 -> 1.164720346
B75: Revenue - Volumetric charges
B76: Revenue from volumetric charge - existing customers | D76: £ | M76: =M67*M72 -> 47780881.55 | N76: =N67*N72 -> 38292831.6 | O76: =O67*O72 -> 31418743.66 | P76: =P67*P72 -> 37113803.03 | Q76: 39031869.4 | R76: =R67*R72 -> 39975707.32 | S76: 40463408.99 | T76: 41005902.51 | U76: 41569989.15
B77: Revenue from volumetric charge - new customers | D77: £ | M77: =M68*M73 -> 0 | N77: =N68*N73 -> 270114.183 | O77: 73995.824 | P77: 8357.3264 | Q77: 48641.48334 | R77: 373130.7084 | S77: 397155.4773 | T77: 422147.1083 | U77: 447824.4907
B78: Total volumetric Revenue | D78: £ | M78: =SUM(M76:M77) -> 47780881.55 | N78: =SUM(N76:N77) -> 38562945.79 | O78: =SUM(O76:O77) -> 31492739.49 | P78: 37122160.36 | Q78: 39080510.88 | R78: 40348838.03 | S78: 40860564.47 | T78: 41428049.62 | U78: 42017813.64
B80: Domestic Allowance
B81: Domestic Allowance Volume | D81: m3 | M81: 9551805 | N81: ='Customer Versions'!N37 -> 9299079 | O81: ='Customer Versions'!O37 -> 9287775 | P81: ='Customer Versions'!P37 -> 9349384 | Q81: ='Customer Versions'!Q37 -> 9433811.2 | R81: ='Customer Versions'!R37 -> 9536359 | S81: ='Customer Versions'!S37 -> 9570679 | T81: ='Customer Versions'!T37 -> 9604999 | U81: ='Customer Versions'!U37 -> 9639319
B82: Tariff applicable to Domestic Allowance | D82: £ | M82: =Tariffs!M55 -> 1.07 | N82: =Tariffs!N55 -> 1.093 | O82: =Tariffs!O55 -> 1.106 | P82: =Tariffs!P55 -> 1.115 | Q82: =Tariffs!Q55 -> 1.118380131 | R82: =Tariffs!R55 -> 1.125749231 | S82: =Tariffs!S55 -> 1.13755432 | T82: =Tariffs!T55 -> 1.150857276 | U82: =Tariffs!U55 -> 1.164720346
B83: Domestic Allowance Revenue | D83: £ | M83: =M81*M82 -> 10220431.35 | N83: =N81*N82 -> 10163893.35 | O83: 10272279.15 | P83: 10424563.16 | Q83: 10550587 | R83: 10735548.81 | S83: 10887167.24 | T83: 11053982.99 | U83: 11227110.96
B85: Revenue: P&Q=Charging Year
B86: Standing charge | D86: £ | M86: =M53+M63 -> 6883547 | N86: =N53+N63 -> 7071923 | O86: 7054972 | P86: 7148467 | Q86: 7228825.003 | R86: 7345418.826 | S86: 7456195.181 | T86: 7577534.342 | U86: 7703367.402
B87: Volumetric | D87: £ | M87: =M78 -> 47780881.55 | N87: =N78 -> 38562945.79 | O87: =O78 -> 31492739.49 | P87: =P78 -> 37122160.36 | Q87: 39080510.88 | R87: 40348838.03 | S87: 40860564.47 | T87: 41428049.62 | U87: 42017813.64
B88: Assessed Charges revenue | D88: £ | M88: 0 | N88: 0 | O88: 0 | P88: 0 | Q88: 0 | R88: 0 | S88: 0 | T88: 0 | U88: 0
B89: Total non-domestic measured water revenue | D89: £ | M89: =SUM(M86:M88) -> 54664428.55 | N89: 45634868.79 | O89: 38547711.49 | P89: 44270627.36 | Q89: 46309335.88 | R89: 47694256.86 | S89: 48316759.65 | T89: 49005583.96 | U89: =SUM(U86:U88) -> 49721181.04
B91: Revenue: P=Charging Year; Q=Weighting Year - Bt(j)
B92: Standing charge | D92: £ | O92: =SUMPRODUCT(M8:M14,O28:O34)+SUMPRODUCT(M18:M24,O37:O43) -> 7028589 | P92: 7122261 | Q92: 7098287.473 | R92: 7217382.268 | S92: 7352760.376 | T92: 7509246.704 | U92: 7634257.18
B93: Volumetric | D93: £ | O93: =(O72*M67)+(O73*M68) -> 49388462.61 | P93: 39339144.15 | Q93: 31845256.87 | R93: 37480038.99 | S93: 39750530.93 | T93: 41248754.65 | U93: 41836358.91
B94: Assessed Charges revenue | D94: £ | O94: =M88 -> 0 | P94: =N88 -> 0 | Q94: 0 | R94: 0 | S94: 0 | T94: 0 | U94: 0
B95: Total non-domestic measured water revenue | D95: £ | O95: =SUM(O92:O94) -> 56417051.61 | P95: =SUM(P92:P94) -> 46461405.15 | Q95: 38943544.35 | R95: 44697421.26 | S95: 47103291.31 | T95: 48758001.36 | U95: 49470616.09
B97: Revenue: P=Prior Year; Q=Weighting Year - Bt-1(j)
B98: Standing charge | D98: £ | O98: =SUMPRODUCT(M8:M14,N28:N34)+SUMPRODUCT(M18:M24,N37:N43) -> 7000226 | P98: 7100522 | Q98: 7076834 | R98: 7170137.629 | S98: 7276456.337 | T98: 7422446.036 | U98: 7543390.523
B99: Volumetric | D99: £ | O99: =(N72*M67)+(N73*M68) -> 48807947.23 | P99: 39021608.45 | Q99: 31749009.52 | R99: 37234696.45 | S99: 39338015.64 | T99: 40771953.24 | U99: 41338402.13
B100: Assessed Charges revenue | D100: £ | O100: =N88 -> 0 | P100: =O88 -> 0 | Q100: 0 | R100: 0 | S100: 0 | T100: 0 | U100: 0
B101: Total non-domestic measured water revenue | D101: £ | O101: =SUM(O98:O100) -> 55808173.23 | P101: =SUM(P98:P100) -> 46122130.45 | Q101: 38825843.52 | R101: 44404834.08 | S101: 46614471.98 | T101: 48194399.27 | U101: 48881792.66

Sheet RG6
A1: Model_Navigation
B2: Customer base: Non-domestic measured sewerage | C2: (excludes revenue from large user tariffs)
B3: Tariff basket: | C3: 4
B4: Revenue group: | C4: 6
D6: =+'RG5'!D6 -> Units | E6: =+'RG5'!E6 -> Reference | M6: =+Inputs!M2 -> 2018-19 | N6: =+Inputs!N2 -> 2019-20 | O6: =+Inputs!O2 -> 2020-21 | P6: =+Inputs!P2 -> 2021-22 | Q6: =+Inputs!Q2 -> 2022-23 | R6: =+Inputs!R2 -> 2023-24 | S6: =+Inputs!S2 -> 2024-25 | T6: =+Inputs!T2 -> 2025-26 | U6: =+Inputs!U2 -> 2026-27
B7: Tariff multipliers: Standing Charge: Supply pipe size- existing customers
B8: Up to 20mm | D8: nr | M8: 16230 | N8: ='Customer Versions'!N50 -> 16458 | O8: ='Customer Versions'!O50 -> 16752 | P8: ='Customer Versions'!P50 -> 15610 | Q8: ='Customer Versions'!Q50 -> 16348 | R8: ='Customer Versions'!R50 -> 17307 | S8: ='Customer Versions'!S50 -> 17455 | T8: ='Customer Versions'!T50 -> 17603 | U8: ='Customer Versions'!U50 -> 17741
B9: Over 20mm up to 25mm | D9: nr | M9: 4714 | N9: ='Customer Versions'!N51 -> 4707 | O9: ='Customer Versions'!O51 -> 4725 | P9: ='Customer Versions'!P51 -> 4728 | Q9: ='Customer Versions'!Q51 -> 4741 | R9: ='Customer Versions'!R51 -> 4779 | S9: ='Customer Versions'!S51 -> 4796 | T9: ='Customer Versions'!T51 -> 4813 | U9: ='Customer Versions'!U51 -> 4828
B10: Over 25mm up to 40mm | D10: nr | M10: 1057 | N10: ='Customer Versions'!N52 -> 1048 | O10: ='Customer Versions'!O52 -> 1060 | P10: ='Customer Versions'!P52 -> 1067 | Q10: ='Customer Versions'!Q52 -> 1074 | R10: ='Customer Versions'!R52 -> 1081 | S10: ='Customer Versions'!S52 -> 1088 | T10: ='Customer Versions'!T52 -> 1095 | U10: ='Customer Versions'!U52 -> 1101
B11: Over 40mm up to 50mm | D11: nr | M11: 1125 | N11: ='Customer Versions'!N53 -> 1120 | O11: ='Customer Versions'!O53 -> 1129 | P11: ='Customer Versions'!P53 -> 1137 | Q11: ='Customer Versions'!Q53 -> 1145 | R11: ='Customer Versions'!R53 -> 1153 | S11: ='Customer Versions'!S53 -> 1161 | T11: ='Customer Versions'!T53 -> 1169 | U11: ='Customer Versions'!U53 -> 1176
B12: Over 50mm up to 75mm | D12: nr | M12: 796 | N12: ='Customer Versions'!N54 -> 808 | O12: ='Customer Versions'!O54 -> 815 | P12: ='Customer Versions'!P54 -> 821 | Q12: ='Customer Versions'!Q54 -> 827 | R12: ='Customer Versions'!R54 -> 833 | S12: ='Customer Versions'!S54 -> 838 | T12: ='Customer Versions'!T54 -> 843 | U12: ='Customer Versions'!U54 -> 848
B13: Over 75mm up to 100mm | D13: nr | M13: 429 | N13: ='Customer Versions'!N55 -> 429 | O13: ='Customer Versions'!O55 -> 433 | P13: ='Customer Versions'!P55 -> 436 | Q13: ='Customer Versions'!Q55 -> 439 | R13: ='Customer Versions'!R55 -> 442 | S13: ='Customer Versions'!S55 -> 445 | T13: ='Customer Versions'!T55 -> 448 | U13: ='Customer Versions'!U55 -> 451
B14: Over 100mm | D14: nr | M14: 88 | N14: ='Customer Versions'!N56 -> 110 | O14: ='Customer Versions'!O56 -> 111 | P14: ='Customer Versions'!P56 -> 112 | Q14: ='Customer Versions'!Q56 -> 113 | R14: ='Customer Versions'!R56 -> 114 | S14: ='Customer Versions'!S56 -> 115 | T14: ='Customer Versions'!T56 -> 116 | U14: ='Customer Versions'!U56 -> 117
B15: Total | D15: nr | M15: =SUM(M8:M14) -> 24439 | N15: 24680 | O15: 25025 | P15: 23911 | Q15: 24687 | R15: 25709 | S15: 25898 | T15: 26087 | U15: 26262
B17: Tariff multipliers: Standing Charge: Supply pipe size- new customers
B18: Up to 20mm | D18: nr | M18: 228 | N18: ='Customer Versions'!N60 -> 294 | O18: ='Customer Versions'!O60 -> -1142 | P18: ='Customer Versions'!P60 -> 738 | Q18: ='Customer Versions'!Q60 -> 509 | R18: ='Customer Versions'!R60 -> 148 | S18: ='Customer Versions'!S60 -> 148 | T18: ='Customer Versions'!T60 -> 138 | U18: ='Customer Versions'!U60 -> 138
B19: Over 20mm up to 25mm | D19: nr | M19: -7 | N19: ='Customer Versions'!N61 -> 18 | O19: ='Customer Versions'!O61 -> 3 | P19: ='Customer Versions'!P61 -> 13 | Q19: ='Customer Versions'!Q61 -> 22 | R19: ='Customer Versions'!R61 -> 17 | S19: ='Customer Versions'!S61 -> 17 | T19: ='Customer Versions'!T61 -> 15 | U19: ='Customer Versions'!U61 -> 15
B20: Over 25mm up to 40mm | D20: nr | M20: -9 | N20: ='Customer Versions'!N62 -> 12 | O20: ='Customer Versions'!O62 -> 7 | P20: ='Customer Versions'!P62 -> 7 | Q20: ='Customer Versions'!Q62 -> 7 | R20: ='Customer Versions'!R62 -> 7 | S20: ='Customer Versions'!S62 -> 7 | T20: ='Customer Versions'!T62 -> 6 | U20: ='Customer Versions'!U62 -> 6
B21: Over 40mm up to 50mm | D21: nr | M21: -5 | N21: ='Customer Versions'!N63 -> 9 | O21: ='Customer Versions'!O63 -> 8 | P21: ='Customer Versions'!P63 -> 8 | Q21: ='Customer Versions'!Q63 -> 8 | R21: ='Customer Versions'!R63 -> 8 | S21: ='Customer Versions'!S63 -> 8 | T21: ='Customer Versions'!T63 -> 7 | U21: ='Customer Versions'!U63 -> 7
B22: Over 50mm up to 75mm | D22: nr | M22: 12 | N22: ='Customer Versions'!N64 -> 7 | O22: ='Customer Versions'!O64 -> 6 | P22: ='Customer Versions'!P64 -> 6 | Q22: ='Customer Versions'!Q64 -> 6 | R22: ='Customer Versions'!R64 -> 5 | S22: ='Customer Versions'!S64 -> 5 | T22: ='Customer Versions'!T64 -> 5 | U22: ='Customer Versions'!U64 -> 5
B23: Over 75mm up to 100mm | D23: nr | M23: 0 | N23: ='Customer Versions'!N65 -> 4 | O23: ='Customer Versions'!O65 -> 3 | P23: ='Customer Versions'!P65 -> 3 | Q23: ='Customer Versions'!Q65 -> 3 | R23: ='Customer Versions'!R65 -> 3 | S23: ='Customer Versions'!S65 -> 3 | T23: ='Customer Versions'!T65 -> 3 | U23: ='Customer Versions'!U65 -> 3
B24: Over 100mm | D24: nr | M24: 22 | N24: ='Customer Versions'!N66 -> 1 | O24: ='Customer Versions'!O66 -> 1 | P24: ='Customer Versions'!P66 -> 1 | Q24: ='Customer Versions'!Q66 -> 1 | R24: ='Customer Versions'!R66 -> 1 | S24: ='Customer Versions'!S66 -> 1 | T24: ='Customer Versions'!T66 -> 1 | U24: ='Customer Versions'!U66 -> 1
B25: Total | D25: nr | M25: =SUM(M18:M24) -> 241 | N25: 345 | O25: -1114 | P25: 776 | Q25: 556 | R25: 189 | S25: 189 | T25: 175 | U25: 175
B27: Revenue - Standing charges - Existing Customers
B28: Up to 20mm | D28: £ | M28: =Tariffs!M59 -> 81 | N28: =Tariffs!N59 -> 83 | O28: =Tariffs!O59 -> 84 | P28: =Tariffs!P59 -> 85 | Q28: =Tariffs!Q59 -> 86.01488242 | R28: =Tariffs!R59 -> 87.34788686 | S28: =Tariffs!S59 -> 89.04197418 | T28: =Tariffs!T59 -> 90.87647339 | U28: =Tariffs!U59 -> 92.78071265
B29: Over 20mm up to 25mm | D29: £ | M29: =Tariffs!M60 -> 135 | N29: =Tariffs!N60 -> 139 | O29: =Tariffs!O60 -> 141 | P29: =Tariffs!P60 -> 142 | Q29: =Tariffs!Q60 -> 143.6954506 | R29: =Tariffs!R60 -> 145.9223522 | S29: =Tariffs!S60 -> 148.7524745 | T29: =Tariffs!T60 -> 151.8171673 | U29: =Tariffs!U60 -> 154.998367
B30: Over 25mm up to 40mm | D30: £ | M30: =Tariffs!M61 -> 248 | N30: =Tariffs!N61 -> 255 | O30: =Tariffs!O61 -> 260 | P30: =Tariffs!P61 -> 262 | Q30: =Tariffs!Q61 -> 265.1282258 | R30: =Tariffs!R61 -> 269.237016 | S30: =Tariffs!S61 -> 274.458791 | T30: =Tariffs!T61 -> 280.113365 | U30: =Tariffs!U61 -> 285.9829025
B31: Over 40mm up to 50mm | D31: £ | M31: =Tariffs!M62 -> 389 | N31: =Tariffs!N62 -> 401 | O31: =Tariffs!O62 -> 409 | P31: =Tariffs!P62 -> 412 | Q31: =Tariffs!Q62 -> 416.9191948 | R31: =Tariffs!R62 -> 423.3803457 | S31: =Tariffs!S62 -> 431.5916866 | T31: =Tariffs!T62 -> 440.4836122 | U31: =Tariffs!U62 -> 449.7135719
B32: Over 50mm up to 75mm | D32: £ | M32: =Tariffs!M63 -> 768 | N32: =Tariffs!N63 -> 792 | O32: =Tariffs!O63 -> 808 | P32: =Tariffs!P63 -> 814 | Q32: =Tariffs!Q63 -> 823.7189916 | R32: =Tariffs!R63 -> 836.4844695 | S32: =Tariffs!S63 -> 852.7078469 | T32: =Tariffs!T63 -> 870.2758746 | U32: =Tariffs!U63 -> 888.5117658
B33: Over 75mm up to 100mm | D33: £ | M33: =Tariffs!M64 -> 1389 | N33: =Tariffs!N64 -> 1433 | O33: =Tariffs!O64 -> 1462 | P33: =Tariffs!P64 -> 1474 | Q33: =Tariffs!Q64 -> 1491.599255 | R33: =Tariffs!R64 -> 1514.71512 | S33: =Tariffs!S64 -> 1544.092588 | T33: =Tariffs!T64 -> 1575.904962 | U33: =Tariffs!U64 -> 1608.926711
B34: Over 100mm | D34: £ | M34: =Tariffs!M65 -> 1978 | N34: =Tariffs!N65 -> 2041 | O34: =Tariffs!O65 -> 2083 | P34: =Tariffs!P65 -> 2100 | Q34: =Tariffs!Q65 -> 2125.073566 | R34: =Tariffs!R65 -> 2158.006617 | S34: =Tariffs!S65 -> 2199.860539 | T34: =Tariffs!T65 -> 2245.18346 | U34: =Tariffs!U65 -> 2292.229371
B36: Revenue - Standing charges - New Customers
B37: Up to 20mm | D37: £ | M37: =Tariffs!M66 -> 81 | N37: =Tariffs!N66 -> 83 | O37: =Tariffs!O66 -> 84 | P37: =Tariffs!P66 -> 85 | Q37: =Tariffs!Q66 -> 86.01488242 | R37: =Tariffs!R66 -> 87.34788686 | S37: =Tariffs!S66 -> 89.04197418 | T37: =Tariffs!T66 -> 90.87647339 | U37: =Tariffs!U66 -> 92.78071265
B38: Over 20mm up to 25mm | D38: £ | M38: =Tariffs!M67 -> 135 | N38: =Tariffs!N67 -> 139 | O38: =Tariffs!O67 -> 141 | P38: =Tariffs!P67 -> 142 | Q38: =Tariffs!Q67 -> 143.6954506 | R38: =Tariffs!R67 -> 145.9223522 | S38: =Tariffs!S67 -> 148.7524745 | T38: =Tariffs!T67 -> 151.8171673 | U38: =Tariffs!U67 -> 154.998367
B39: Over 25mm up to 40mm | D39: £ | M39: =Tariffs!M68 -> 248 | N39: =Tariffs!N68 -> 255 | O39: =Tariffs!O68 -> 260 | P39: =Tariffs!P68 -> 262 | Q39: =Tariffs!Q68 -> 265.1282258 | R39: =Tariffs!R68 -> 269.237016 | S39: =Tariffs!S68 -> 274.458791 | T39: =Tariffs!T68 -> 280.113365 | U39: =Tariffs!U68 -> 285.9829025
B40: Over 40mm up to 50mm | D40: £ | M40: =Tariffs!M69 -> 389 | N40: =Tariffs!N69 -> 401 | O40: =Tariffs!O69 -> 409 | P40: =Tariffs!P69 -> 412 | Q40: =Tariffs!Q69 -> 416.9191948 | R40: =Tariffs!R69 -> 423.3803457 | S40: =Tariffs!S69 -> 431.5916866 | T40: =Tariffs!T69 -> 440.4836122 | U40: =Tariffs!U69 -> 449.7135719
B41: Over 50mm up to 75mm | D41: £ | M41: =Tariffs!M70 -> 768 | N41: =Tariffs!N70 -> 792 | O41: =Tariffs!O70 -> 808 | P41: =Tariffs!P70 -> 814 | Q41: =Tariffs!Q70 -> 823.7189916 | R41: =Tariffs!R70 -> 836.4844695 | S41: =Tariffs!S70 -> 852.7078469 | T41: =Tariffs!T70 -> 870.2758746 | U41: =Tariffs!U70 -> 888.5117658
B42: Over 75mm up to 100mm | D42: £ | M42: =Tariffs!M71 -> 1389 | N42: =Tariffs!N71 -> 1433 | O42: =Tariffs!O71 -> 1462 | P42: =Tariffs!P71 -> 1474 | Q42: =Tariffs!Q71 -> 1491.599255 | R42: =Tariffs!R71 -> 1514.71512 | S42: =Tariffs!S71 -> 1544.092588 | T42: =Tariffs!T71 -> 1575.904962 | U42: =Tariffs!U71 -> 1608.926711
B43: Over 100mm | D43: £ | M43: =Tariffs!M72 -> 1978 | N43: =Tariffs!N72 -> 2041 | O43: =Tariffs!O72 -> 2083 | P43: =Tariffs!P72 -> 2100 | Q43: =Tariffs!Q72 -> 2125.073566 | R43: =Tariffs!R72 -> 2158.006617 | S43: =Tariffs!S72 -> 2199.860539 | T43: =Tariffs!T72 -> 2245.18346 | U43: =Tariffs!U72 -> 2292.229371
B45: Standing charge revenue- existing customers
B46: Up to 20mm | D46: £ | M46: =M8*M28 -> 1314630 | N46: =N8*N28 -> 1366014 | O46: 1407168 | P46: 1326850 | Q46: 1406171.298 | R46: 1511729.878 | S46: 1554227.659 | T46: 1599698.561 | U46: 1646022.623
B47: Over 20mm up to 25mm | D47: £ | M47: =M9*M29 -> 636390 | N47: 654273 | O47: 666225 | P47: 671376 | Q47: 681260.1314 | R47: 697362.921 | S47: 713416.8678 | T47: 730696.0263 | U47: 748332.1159
B48: Over 25mm up to 40mm | D48: £ | M48: =M10*M30 -> 262136 | N48: 267240 | O48: 275600 | P48: 279554 | Q48: 284747.7145 | R48: 291045.2143 | S48: 298611.1646 | T48: 306724.1347 | U48: 314867.1757
B49: Over 40mm up to 50mm | D49: £ | M49: =M11*M31 -> 437625 | N49: 449120 | O49: 461761 | P49: 468444 | Q49: 477372.478 | R49: 488157.5386 | S49: 501077.9482 | T49: 514925.3427 | U49: 528863.1605
B50: Over 50mm up to 75mm | D50: £ | M50: =M12*M32 -> 611328 | N50: 639936 | O50: 658520 | P50: 668294 | Q50: 681215.6061 | R50: 696791.5631 | S50: 714569.1757 | T50: 733642.5623 | U50: 753457.9774
B51: Over 75mm up to 100mm | D51: £ | M51: =M13*M33 -> 595881 | N51: 614757 | O51: 633046 | P51: 642664 | Q51: 654812.073 | R51: 669504.0832 | S51: 687121.2015 | T51: 706005.423 | U51: 725625.9467
B52: Over 100mm | D52: £ | M52: =M14*M34 -> 174064 | N52: 224510 | O52: 231213 | P52: 235200 | Q52: 240133.3129 | R52: 246012.7543 | S52: 252983.9619 | T52: 260441.2814 | U52: 268190.8364
B53: Total | D53: £ | M53: =SUM(M46:M52) -> 4032054 | N53: =SUM(N46:N52) -> 4215850 | O53: 4333533 | P53: 4292382 | Q53: 4425712.614 | R53: 4600603.952 | S53: 4722007.979 | T53: 4852133.332 | U53: 4985359.836
B55: Standing charge revenue- new customers
B56: Up to 20mm | D56: £ | M56: =M18*M37 -> 18468 | N56: =N18*N37 -> 24402 | O56: -95928 | P56: 62730 | Q56: 43781.57515 | R56: 12927.48726 | S56: 13178.21218 | T56: 12540.95333 | U56: 12803.73835
B57: Over 20mm up to 25mm | D57: £ | M57: =M19*M38 -> -945 | N57: 2502 | O57: 423 | P57: 1846 | Q57: 3161.299914 | R57: 2480.679987 | S57: 2528.792067 | T57: 2277.25751 | U57: 2324.975505
B58: Over 25mm up to 40mm | D58: £ | M58: -2232 | N58: 3060 | O58: =O20*O39 -> 1820 | P58: 1834 | Q58: 1855.897581 | R58: 1884.659112 | S58: 1921.211537 | T58: 1680.68019 | U58: 1715.897415
B59: Over 40mm up to 50mm | D59: £ | M59: -1945 | N59: =N21*N40 -> 3609 | O59: =O21*O40 -> 3272 | P59: 3296 | Q59: 3335.353558 | R59: 3387.042766 | S59: 3452.733493 | T59: 3083.385285 | U59: 3147.995003
B60: Over 50mm up to 75mm | D60: £ | M60: 9216 | N60: =N22*N41 -> 5544 | O60: =O22*O41 -> 4848 | P60: 4884 | Q60: 4942.31395 | R60: 4182.422347 | S60: 4263.539234 | T60: 4351.379373 | U60: 4442.558829
B61: Over 75mm up to 100mm | D61: £ | M61: 0 | N61: 5732 | O61: =O23*O42 -> 4386 | P61: 4422 | Q61: 4474.797765 | R61: 4544.145361 | S61: 4632.277763 | T61: 4727.714886 | U61: 4826.780133
B62: Over 100mm | D62: £ | M62: =M24*M43 -> 43516 | N62: 2041 | O62: =O24*O43 -> 2083 | P62: 2100 | Q62: 2125.073566 | R62: 2158.006617 | S62: 2199.860539 | T62: 2245.18346 | U62: 2292.229371
B63: Total | D63: £ | M63: =SUM(M56:M62) -> 66078 | N63: =SUM(N56:N62) -> 46890 | O63: -79096 | P63: 81112 | Q63: 63676.31148 | R63: 31564.44344 | S63: 32176.62681 | T63: 30906.55403 | U63: 31554.1746
B65: Tariffs: volumetric charge
B66: Volumetric charge- existing customers | D66: £ | M66: =Tariffs!M73 -> 1.76 | N66: =Tariffs!N73 -> 1.816 | O66: =Tariffs!O73 -> 1.853 | P66: =Tariffs!P73 -> 1.868 | Q66: =Tariffs!Q73 -> 1.890303534 | R66: =Tariffs!R73 -> 1.919598267 | S66: =Tariffs!S73 -> 1.956828327 | T66: =Tariffs!T73 -> 1.997144145 | U66: =Tariffs!U73 -> 2.038992603
B67: Volumetric charge- new customers | D67: £ | M67: =Tariffs!M74 -> 1.76 | N67: =Tariffs!N74 -> 1.816 | O67: =Tariffs!O74 -> 1.853 | P67: =Tariffs!P74 -> 1.868 | Q67: =Tariffs!Q74 -> 1.890303534 | R67: =Tariffs!R74 -> 1.919598267 | S67: =Tariffs!S74 -> 1.956828327 | T67: =Tariffs!T74 -> 1.997144145 | U67: =Tariffs!U74 -> 2.038992603
B70: Customer volume
B71: Volume subject to volumetric charge- existing customers inc. DAV | D71: m3 | M71: 13635358.9 | N71: ='Customer Versions'!N70+N81 -> 13450117.58 | O71: ='Customer Versions'!O70+O81 -> 10394398 | P71: ='Customer Versions'!P70+P81 -> 12601160 | Q71: ='Customer Versions'!Q70+Q81 -> 13374283 | R71: ='Customer Versions'!R70+R81 -> 13635319.63 | S71: ='Customer Versions'!S70+S81 -> 13670234.17 | T71: ='Customer Versions'!T70+T81 -> 13703300.71 | U71: ='Customer Versions'!U70+U81 -> 13736367.26
B72: Volume subject to volumetric charge- new customers | D72: m3 | M72: 0 | N72: ='Customer Versions'!N71 -> 67810 | O72: ='Customer Versions'!O71 -> -60852 | P72: ='Customer Versions'!P71 -> 52768 | Q72: ='Customer Versions'!Q71 -> 37808 | R72: ='Customer Versions'!R71 -> 122074 | S72: ='Customer Versions'!S71 -> 134926 | T72: ='Customer Versions'!T71 -> 146826 | U72: ='Customer Versions'!U71 -> 158726
B73: Total volume | D73: m3 | M73: =SUM(M71:M72) -> 13635358.9 | N73: 13517927.58 | O73: 10333546 | P73: 12653928 | Q73: 13412091 | R73: 13757393.63 | S73: 13805160.17 | T73: 13850126.71 | U73: 13895093.26
B75: Revenue - volumetric charges
B76: Revenue from volumetric charge-existing customers | D76: £ | M76: =M66*M71 -> 23998231.67 | N76: 24425413.52 | O76: 19260819.49 | P76: 23538966.88 | Q76: 25281454.41 | R76: 26174335.92 | S76: 26750301.46 | T76: 27367466.79 | U76: 28008351.23
B77: Revenue from volumetric charge-new customers | D77: £ | M77: =M67*M72 -> 0 | N77: =N67*N72 -> 123142.96 | O77: -112758.756 | P77: 98570.624 | Q77: 71468.596 | R77: 234333.0388 | S77: 264027.0188 | T77: 293232.6862 | U77: 323641.1399
B78: Total volumetric charge | D78: £ | M78: =SUM(M76:M77) -> 23998231.67 | N78: =SUM(N76:N77) -> 24548556.48 | O78: =SUM(O76:O77) -> 19148060.74 | P78: 23637537.5 | Q78: 25352923.01 | R78: 26408668.96 | S78: 27014328.48 | T78: 27660699.47 | U78: 28331992.37
B80: Domestic Allowance
B81: Domestic Allowance Volume | D81: m3 | M81: 3892648 | N81: ='Customer Versions'!N75 -> 3530865 | O81: ='Customer Versions'!O75 -> 3403917 | P81: ='Customer Versions'!P75 -> 3506349 | Q81: ='Customer Versions'!Q75 -> 3579741 | R81: ='Customer Versions'!R75 -> 3638877 | S81: ='Customer Versions'!S75 -> 3663825 | T81: ='Customer Versions'!T75 -> 3686925 | U81: ='Customer Versions'!U75 -> 3710025
B82: Tariff applicable to Domestic Allowance | D82: £ | M82: =Tariffs!M75 -> 1.76 | N82: =Tariffs!N75 -> 1.816 | O82: =Tariffs!O75 -> 1.853 | P82: =Tariffs!P75 -> 1.868 | Q82: =Tariffs!Q75 -> 1.890303534 | R82: =Tariffs!R75 -> 1.919598267 | S82: =Tariffs!S75 -> 1.956828327 | T82: =Tariffs!T75 -> 1.997144145 | U82: =Tariffs!U75 -> 2.038992603
B83: Domestic Allowance Revenue | D83: £ | M83: =M81*M82 -> 6851060.48 | N83: =N81*N82 -> 6412050.84 | O83: =O81*O82 -> 6307458.201 | P83: 6549859.932 | Q83: 6766797.062 | R83: 6985181.981 | S83: 7169476.544 | T83: 7363320.676 | U83: 7564713.531
B85: Revenue: Non-domestic sewerage
B86: Standing Charge | D86: £ | M86: =M53+M63 -> 4098132 | N86: =N53+N63 -> 4262740 | O86: =O53+O63 -> 4254437 | P86: 4373494 | Q86: 4489388.925 | R86: 4632168.396 | S86: 4754184.606 | T86: 4883039.886 | U86: 5016914.01
B87: Volumetric | D87: £ | M87: =M78 -> 23998231.67 | N87: =N78 -> 24548556.48 | O87: =O78 -> 19148060.74 | P87: =P78 -> 23637537.5 | Q87: 25352923.01 | R87: 26408668.96 | S87: 27014328.48 | T87: 27660699.47 | U87: 28331992.37
B88: Assessed Charges revenue | D88: £ | M88: 0 | N88: 0 | O88: 0 | P88: 0 | Q88: 0 | R88: 0 | S88: 0 | T88: 0 | U88: 0
B89: Total non-domestic measured sewerage revenue | D89: £ | M89: =SUM(M86:M88) -> 28096363.67 | N89: 28811296.48 | O89: 23402497.74 | P89: 28011031.5 | Q89: 29842311.94 | R89: 31040837.36 | S89: 31768513.09 | T89: 32543739.36 | U89: 33348906.38
B91: Revenue: P=Charging Year; Q=Weighting Year - Bt(j)
B92: Standing Charge | D92: £ | O92: =SUMPRODUCT(M8:M14,O28:O34)+SUMPRODUCT(M18:M24,O37:O43) -> 4285911 | P92: =SUMPRODUCT(N8:N14,P28:P34)+SUMPRODUCT(N18:N24,P37:P43) -> 4372490 | Q92: =SUMPRODUCT(O8:O14,Q28:Q34)+SUMPRODUCT(O18:O24,Q37:Q43) -> 4343632.153 | R92: =SUMPRODUCT(P8:P14,R28:R34)+SUMPRODUCT(P18:P24,R37:R43) -> 4494299.519 | S92: =SUMPRODUCT(Q8:Q14,S28:S34)+SUMPRODUCT(Q18:Q24,S37:S43) -> 4647382.424 | T92: =SUMPRODUCT(R8:R14,T28:T34)+SUMPRODUCT(R18:R24,T37:T43) -> 4819293.781 | U92: =SUMPRODUCT(S8:S14,U28:U34)+SUMPRODUCT(S18:S24,U37:U43) -> 4953805.661
B93: Volumetric | D93: £ | O93: =(O66*M71)+(O67*M72) -> 25266320.05 | P93: 25251488.72 | Q93: 19533538.52 | R93: 24290458.25 | S93: 26245159.59 | T93: 27475498.13 | U93: 28148619.47
B94: Assessed Charges revenue | D94: £ | O94: =M88 -> 0 | P94: =N88 -> 0 | Q94: 0 | R94: 0 | S94: 0 | T94: 0 | U94: 0
B95: Total non-domestic measured sewerage revenue | D95: £ | O95: =SUM(O92:O94) -> 29552231.05 | P95: =SUM(P92:P94) -> 29623978.72 | Q95: 23877170.67 | R95: 28784757.77 | S95: 30892542.01 | T95: 32294791.91 | U95: 33102425.13
B97: Revenue: P=Prior Year; Q=Weighting Year - Bt-1(j)
B98: Standing Charge | D98: £ | O98: =SUMPRODUCT(M8:M14,N28:N34)+SUMPRODUCT(M18:M24,N37:N43) -> 4215850 | P98: 4333533 | Q98: 4292382 | R98: 4425712.614 | S98: 4558962.646 | T98: 4722007.979 | U98: 4852133.332
B99: Volumetric | D99: £ | O99: =(N66*M71)+(N67*M72) -> 24761811.77 | P99: 25048719.8 | Q99: 19303063.93 | R99: 23919764.81 | S99: 25745826.63 | T99: 26920857.56 | U99: 27570894.8
B100: Assessed Charges revenue | D100: £ | O100: =N88 -> 0 | P100: =O88 -> 0 | Q100: 0 | R100: 0 | S100: 0 | T100: 0 | U100: 0
B101: Total non-domestic measured sewerage revenue | D101: £ | O101: =SUM(O98:O100) -> 28977661.77 | P101: 29382252.8 | Q101: 23595445.93 | R101: 28345477.43 | S101: 30304789.28 | T101: 31642865.53 | U101: 32423028.14

Sheet RG7
A1: Model_Navigation
B2: Customer base: Non domestic unmeasured water
B3: Tariff basket: | C3: 1
B4: Revenue group: | C4: 7
D6: =+Revenue!D3 -> Units | E6: =+Revenue!E3 -> Reference | M6: =+Inputs!M2 -> 2018-19 | N6: =+Inputs!N2 -> 2019-20 | O6: =+Inputs!O2 -> 2020-21 | P6: =+Inputs!P2 -> 2021-22 | Q6: =+Inputs!Q2 -> 2022-23 | R6: =+Inputs!R2 -> 2023-24 | S6: =+Inputs!S2 -> 2024-25 | T6: =+Inputs!T2 -> 2025-26 | U6: =+Inputs!U2 -> 2026-27
B7: Tariff multipliers: Standard
B8: Total number of billed properties | D8: nr | M8: 8613 | N8: ='Customer Versions'!N88 -> 8422 | O8: ='Customer Versions'!O88 -> 7772 | P8: ='Customer Versions'!P88 -> 7397 | Q8: ='Customer Versions'!Q88 -> 7484.5 | R8: ='Customer Versions'!R88 -> 7509.5 | S8: ='Customer Versions'!S88 -> 7472 | T8: ='Customer Versions'!T88 -> 7372 | U8: ='Customer Versions'!U88 -> 7272
B9: Number of billed properties subject to separate standing charge | D9: nr | M9: 8256 | N9: ='Customer Versions'!N89 -> 8069.520047 | O9: ='Customer Versions'!O89 -> 7436.260961 | P9: ='Customer Versions'!P89 -> 7071.724033 | Q9: ='Customer Versions'!Q89 -> 7163.409261 | R9: ='Customer Versions'!R89 -> 7192.59449 | S9: ='Customer Versions'!S89 -> 7159.279719 | T9: ='Customer Versions'!T89 -> 7063.464947 | U9: ='Customer Versions'!U89 -> 6967.650176
B10: Number of £1,000 Capital Value Units charges less than capped value | D10: nr | M10: 57821 | N10: ='Customer Versions'!N90 -> 57088.74027 | O10: ='Customer Versions'!O90 -> 52608.67661 | P10: ='Customer Versions'!P90 -> 50029.71852 | Q10: ='Customer Versions'!Q90 -> 50678.35613 | R10: ='Customer Versions'!R90 -> 50884.83036 | S10: ='Customer Versions'!S90 -> 50649.14121 | T10: ='Customer Versions'!T90 -> 49971.28868 | U10: ='Customer Versions'!U90 -> 49293.43614
B11: Number of billed properties at capped level | D11: nr | M11: 357 | N11: ='Customer Versions'!N91 -> 352.4799531 | O11: ='Customer Versions'!O91 -> 335.7390387 | P11: ='Customer Versions'!P91 -> 325.2759672 | Q11: ='Customer Versions'!Q91 -> 321.0907386 | R11: ='Customer Versions'!R91 -> 316.90551 | S11: ='Customer Versions'!S91 -> 312.7202814 | T11: ='Customer Versions'!T91 -> 308.5350528 | U11: ='Customer Versions'!U91 -> 304.3498242
B13: Tariffs: Standard
B14: Standing charge | D14: £ | M14: =Tariffs!M78 -> 58.48 | N14: =Tariffs!N78 -> 60.34 | O14: =Tariffs!O78 -> 61.7 | P14: =Tariffs!P78 -> 62.22 | Q14: =Tariffs!Q78 -> 63.52572672 | R14: =Tariffs!R78 -> 65.08485259 | S14: =Tariffs!S78 -> 66.93590253 | T14: =Tariffs!T78 -> 68.92045057 | U14: =Tariffs!U78 -> 70.98806409
B15: Variable charge | D15: £ | M15: =Tariffs!M79 -> 22.45 | N15: =Tariffs!N79 -> 23.16 | O15: =Tariffs!O79 -> 23.68 | P15: =Tariffs!P79 -> 23.88 | Q15: =Tariffs!Q79 -> 24.38113716 | R15: =Tariffs!R79 -> 24.97952877 | S15: =Tariffs!S79 -> 25.68996066 | T15: =Tariffs!T79 -> 26.45162905 | U15: =Tariffs!U79 -> 27.24517792
B16: Capped charge | D16: £ | M16: =Tariffs!M80 -> 900 | N16: =Tariffs!N80 -> 920 | O16: =Tariffs!O80 -> 940 | P16: =Tariffs!P80 -> 940 | Q16: =Tariffs!Q80 -> 959.7265046 | R16: =Tariffs!R80 -> 983.2812831 | S16: =Tariffs!S80 -> 1011.246358 | T16: =Tariffs!T80 -> 1041.228279 | U16: =Tariffs!U80 -> 1072.465128
B18: Void properties
B19: Number of void properties | D19: £ | M19: 5479 | N19: 5137.42 | O19: 4893.42 | P19: 4740.92 | Q19: 4679.92 | R19: 4618.92 | S19: 4557.92 | T19: 4496.92 | U19: 4435.92
B21: Revenue: Standard
B22: Standing charge revenue | D22: £ | M22: =M9*M14 -> 482810.88 | N22: =N9*N14 -> 486914.8396 | O22: 458817.3013 | P22: 440002.6693 | Q22: 455060.7791 | R22: 468128.9521 | S22: 479212.8495 | T22: 486817.1868 | U22: 494619.9972
B23: Variable Charge Revenue from uncapped properties | D23: £ | M23: =M10*M15 -> 1298081.45 | N23: =N10*N15 -> 1322175.225 | O23: 1245773.462 | P23: 1194709.678 | Q23: 1235595.952 | R23: 1271079.084 | S23: 1301174.445 | T23: 1321821.991 | U23: 1343008.438
B24: Total capped revenue | D24: £ | M24: =M11*M16 -> 321300 | N24: =N11*N16 -> 324281.5569 | O24: 315594.6964 | P24: 305759.4091 | Q24: 308159.2922 | R24: 311607.2565 | S24: 316237.2455 | T24: 321255.4221 | U24: 326404.573
B25: Total | D25: £ | M25: =SUM(M22:M24) -> 2102192.33 | N25: 2133371.621 | O25: 2020185.46 | P25: 1940471.757 | Q25: 1998816.023 | R25: 2050815.292 | S25: 2096624.54 | T25: 2129894.6 | U25: 2164033.009
B27: Revenue: P=Charging Year; Q&N=Prior Year - At(i)
B28: Standard charge revenue | D28: £ | O28: =O14*N9 -> 497889.3869 | P28: 462684.157 | Q28: 449236.4083 | R28: 466229.4358 | S28: 481442.8038 | T28: 493420.784 | U28: 501421.7024
B29: Variable charge revenue from uncapped properties | D29: £ | O29: =O15*N10 -> 1351861.369 | P29: 1256295.198 | Q29: 1219781.429 | R29: 1265921.455 | S29: 1307229.29 | T29: 1339752.295 | U29: 1361476.651
B30: Total capped revenue | D30: £ | O30: =N11*O16 -> 331331.1559 | P30: 315594.6964 | Q30: 312175.967 | R30: 315722.5134 | S30: 320469.5427 | T30: 325613.2005 | U30: 330893.0847
B31: Total | D31: £ | O31: =SUM(O28:O30) -> 2181081.912 | P31: 2034574.051 | Q31: 1981193.805 | R31: 2047873.404 | S31: 2109141.637 | T31: 2158786.28 | U31: 2193791.438
B32: Total Chargeable Supplies (N) | D32: nr | O32: =N8 -> 8422 | P32: 7772 | Q32: 7397 | R32: 7484.5 | S32: 7509.5 | T32: 7472 | U32: 7372
B34: Revenue: P=Prior Year; Q&N=Weighting Year - At-1(i)
B35: Standard charge revenue | D35: £ | O35: =N14*M9 -> 498167.04 | P35: 497889.3869 | Q35: 462684.157 | R35: 449236.4083 | S35: 466229.4358 | T35: 481442.8038 | U35: 493420.784
B36: Variable charge revenue from uncapped properties | D36: £ | O36: =N15*M10 -> 1339134.36 | P36: =O15*N10 -> 1351861.369 | Q36: 1256295.198 | R36: 1219781.429 | S36: 1265921.455 | T36: 1307229.29 | U36: 1339752.295
B37: Total capped revenue | D37: £ | O37: =M11*N16 -> 328440 | P37: =N11*O16 -> 331331.1559 | Q37: 315594.6964 | R37: 312175.967 | S37: 315722.5134 | T37: 320469.5427 | U37: 325613.2005
B38: Total | D38: £ | O38: =SUM(O35:O37) -> 2165741.4 | P38: 2181081.912 | Q38: 2034574.051 | R38: 1981193.805 | S38: 2047873.404 | T38: 2109141.637 | U38: 2158786.28
B39: Total Chargeable Supplies (N) | D39: nr | O39: =M8 -> 8613 | P39: =N8 -> 8422 | Q39: 7772 | R39: 7397 | S39: 7484.5 | T39: 7509.5 | U39: 7472

Sheet RG8
A1: Model_Navigation
B2: Customer base: Non-domestic unmeasured sewerage
B3: Tariff basket: | C3: 2
B4: Revenue group: | C4: 8
D6: =+'RG7'!D6 -> Units | E6: =+'RG7'!E6 -> Reference | M6: =+Inputs!M2 -> 2018-19 | N6: =+Inputs!N2 -> 2019-20 | O6: =+Inputs!O2 -> 2020-21 | P6: =+Inputs!P2 -> 2021-22 | Q6: =+Inputs!Q2 -> 2022-23 | R6: =+Inputs!R2 -> 2023-24 | S6: =+Inputs!S2 -> 2024-25 | T6: =+Inputs!T2 -> 2025-26 | U6: =+Inputs!U2 -> 2026-27
B7: Tariff multipliers: Standard
B8: Total number of billed properties | D8: nr | M8: =+M9+M11 -> 7362 | N8: 7207 | O8: 6666 | P8: 6351 | Q8: 6421 | R8: 6440.375 | S8: 6412.25 | T8: 6339.75 | U8: 6269.75
B9: Number of billed properties subject to separate standing charge | D9: nr | M9: 6899 | N9: ='Customer Versions'!N106 -> 6749.710566 | O9: ='Customer Versions'!O106 -> 6229.776209 | P9: ='Customer Versions'!P106 -> 5927.84706 | Q9: ='Customer Versions'!Q106 -> 6002.923119 | R9: ='Customer Versions'!R106 -> 6027.215551 | S9: ='Customer Versions'!S106 -> 6003.849356 | T9: ='Customer Versions'!T106 -> 5935.949534 | U9: ='Customer Versions'!U106 -> 5870.391085
B10: Number of £1,000 Capital Value Unit charges less than capped value | D10: nr | M10: 47058 | N10: ='Customer Versions'!N107 -> 46477.61016 | O10: ='Customer Versions'!O107 -> 42897.41126 | P10: ='Customer Versions'!P107 -> 40818.36725 | Q10: ='Customer Versions'!Q107 -> 41335.33102 | R10: ='Customer Versions'!R107 -> 41502.60548 | S10: ='Customer Versions'!S107 -> 41341.70896 | T10: ='Customer Versions'!T107 -> 40874.15981 | U10: ='Customer Versions'!U107 -> 40422.73304
B11: Number of billed properties at capped level | D11: nr | M11: 463 | N11: ='Customer Versions'!N108 -> 457.289434 | O11: ='Customer Versions'!O108 -> 436.2237906 | P11: ='Customer Versions'!P108 -> 423.1529396 | Q11: ='Customer Versions'!Q108 -> 418.0768809 | R11: ='Customer Versions'!R108 -> 413.1594491 | S11: ='Customer Versions'!S108 -> 408.4006441 | T11: ='Customer Versions'!T108 -> 403.8004659 | U11: ='Customer Versions'!U108 -> 399.3589146
B13: Tariffs: Standard
B14: Standing charge | D14: £ | M14: =Tariffs!M84 -> 81.42 | N14: =Tariffs!N84 -> 84 | O14: =Tariffs!O84 -> 85.88 | P14: =Tariffs!P84 -> 86.62 | Q14: =Tariffs!Q84 -> 88.43777641 | R14: =Tariffs!R84 -> 90.60832419 | S14: =Tariffs!S84 -> 93.18527608 | T14: =Tariffs!T84 -> 95.94807825 | U14: =Tariffs!U84 -> 98.82652059
B15: Variable charge | D15: £ | M15: =Tariffs!M85 -> 30.65 | N15: =Tariffs!N85 -> 31.62 | O15: =Tariffs!O85 -> 32.34 | P15: =Tariffs!P85 -> 32.6 | Q15: =Tariffs!Q85 -> 33.28413197 | R15: =Tariffs!R85 -> 34.10103173 | S15: =Tariffs!S85 -> 35.07088432 | T15: =Tariffs!T85 -> 36.11068288 | U15: =Tariffs!U85 -> 37.19400336
B16: Capped charge | D16: £ | M16: =Tariffs!M86 -> 960 | N16: =Tariffs!N86 -> 990 | O16: =Tariffs!O86 -> 1010 | P16: =Tariffs!P86 -> 1010 | Q16: =Tariffs!Q86 -> 1031.1955 | R16: =Tariffs!R86 -> 1056.504357 | S16: =Tariffs!S86 -> 1086.551938 | T16: =Tariffs!T86 -> 1118.766555 | U16: =Tariffs!U86 -> 1152.329552
B18: Void Properties
B19: Number of void properties | D19: £ | M19: 5029 | N19: 4726.4264 | O19: 4501.9464 | P19: 4361.6464 | Q19: 4305.5264 | R19: 4249.4064 | S19: 4193.2864 | T19: 4137.1664 | U19: 4081.0464
B21: Revenue
B22: Standing charge revenue | D22: £ | M22: =M9*M14 -> 561716.58 | N22: =N9*N14 -> 566975.6875 | O22: 535013.1809 | P22: 513470.1124 | Q22: 530885.1726 | R22: 546115.9006 | S22: 559470.3598 | T22: 569542.9504 | U22: 580150.3255
B23: Variable charge revenue from uncapped properties | D23: £ | M23: =M10*M15 -> 1442327.7 | N23: 1469622.033 | O23: 1387302.28 | P23: 1330678.772 | Q23: 1375810.613 | R23: 1415281.666 | S23: 1449890.293 | T23: 1475993.823 | U23: 1503483.269
B24: Total capped revenue | D24: £ | M24: 444480 | N24: 452716.5397 | O24: 440586.0285 | P24: 427384.469 | Q24: 431118.9981 | R24: 436504.7583 | S24: 443748.5112 | T24: 451758.4564 | U24: 460193.0792
B25: Total standard customer revenue | D25: £ | M25: =SUM(M22:M24) -> 2448524.28 | N25: 2489314.26 | O25: 2362901.489 | P25: 2271533.354 | Q25: 2337814.783 | R25: 2397902.325 | S25: 2453109.164 | T25: 2497295.23 | U25: 2543826.674
B28: Revenue: P=Charging Year; Q&N=Prior Year - At(i)
B29: Standing charge revenue | D29: £ | O29: =O14*N9 -> 579665.1434 | P29: 539623.2153 | Q29: 524245.6129 | R29: 543914.8041 | S29: 561647.7451 | T29: 576057.8078 | U29: 586629.2389
B30: Variable charge revenue from uncapped properties | D30: £ | O30: =O15*N10 -> 1503085.912 | P30: 1398455.607 | Q30: 1358603.922 | R30: 1409577.435 | S30: 1455533.076 | T30: 1492877.342 | U30: 1520273.638
B31: Total capped revenue | D31: £ | O31: =O16*N11 -> 461862.3284 | P31: 440586.0285 | Q31: 436353.4069 | R31: 441700.0464 | S31: 448919.2 | T31: 456904.9818 | U31: 465311.2101
B32: Total standard customer revenue | D32: £ | O32: =SUM(O29:O31) -> 2544613.384 | P32: 2378664.851 | Q32: 2319202.942 | R32: 2395192.285 | S32: 2466100.021 | T32: 2525840.132 | U32: 2572214.086
B33: Chargeable Supplies (N) | D33: nr | O33: =N8 -> 7207 | P33: =O8 -> 6666 | Q33: 6351 | R33: 6421 | S33: 6440.375 | T33: 6412.25 | U33: 6339.75
B35: Revenue: P=Prior Year; Q&N=Weighting Year - At-1(i)
B36: Standing charge revenue | D36: £ | O36: =N14*M9 -> 579516 | P36: =O14*N9 -> 579665.1434 | Q36: 539623.2153 | R36: 524245.6129 | S36: 543914.8041 | T36: 561647.7451 | U36: 576057.8078
B37: Variable charge revenue from uncapped properties | D37: £ | O37: =N15*M10 -> 1487973.96 | P37: =O15*N10 -> 1503085.912 | Q37: 1398455.607 | R37: 1358603.922 | S37: 1409577.435 | T37: 1455533.076 | U37: 1492877.342
B38: Total capped revenue | D38: £ | O38: =N16*M11 -> 458370 | P38: =O16*N11 -> 461862.3284 | Q38: 440586.0285 | R38: 436353.4069 | S38: 441700.0464 | T38: 448919.2 | U38: 456904.9818
B39: Total standard customer revenue | D39: £ | O39: =SUM(O36:O38) -> 2525859.96 | P39: 2544613.384 | Q39: 2378664.851 | R39: 2319202.942 | S39: 2395192.285 | T39: 2466100.021 | U39: 2525840.132
B40: Chargeable Supplies (N) | D40: nr | O40: =M8 -> 7362 | P40: =N8 -> 7207 | Q40: 6666 | R40: 6351 | S40: 6421 | T40: 6440.375 | U40: 6412.25

Sheet RG9
A1: Model_Navigation
B2: Customer base: Trade effluent and Roads Drainage | C2: (excludes revenue from large user tariffs)
B3: Tariff basket: | C3: 5
B4: Revenue group: | C4: 9
D6: =+Revenue!D3 -> Units | E6: =+Revenue!E3 -> Reference | M6: =+Inputs!M2 -> 2018-19 | N6: =+Inputs!N2 -> 2019-20 | O6: =+Inputs!O2 -> 2020-21 | P6: =+Inputs!P2 -> 2021-22 | Q6: =+Inputs!Q2 -> 2022-23 | R6: =+Inputs!R2 -> 2023-24 | S6: =+Inputs!S2 -> 2024-25 | T6: =+Inputs!T2 -> 2025-26 | U6: =+Inputs!U2 -> 2026-27
B7: Tariff multipliers: Supply points
B8: Number of discharge points charged for trade effluent | D8: nr | M8: 988 | N8: 988 | O8: 1012 | P8: 1036 | Q8: 1060 | R8: 1084 | S8: 1108 | T8: 1132 | U8: 1156
B10: Tariff multipliers: Standard strength (regional strength)
B11: Settled chemical oxygen demand (COD) (Os) | D11: mg/l | M11: 260 | N11: 260 | O11: 260 | P11: 260 | Q11: 260 | R11: 260 | S11: 260 | T11: 260 | U11: 260
B12: Total suspended solids (SS) | D12: mg/l | M12: 240 | N12: 240 | O12: 240 | P12: 240 | Q12: 240 | R12: 240 | S12: 240 | T12: 240 | U12: 240
B14: Tariff multipliers: Annual volumes and weighted average strengths
B15: Trade effluent weighted average strength (COD) (Ot) | D15: mg/l | M15: 1011.512718 | N15: 987 | O15: 987 | P15: 987 | Q15: 987 | R15: 987 | S15: 987 | T15: 987 | U15: 987
B16: Trade effluent weighted average strength (SS) (St) | D16: mg/l | M16: 193.0115051 | N16: 190 | O16: 190 | P16: 190 | Q16: 190 | R16: 190 | S16: 190 | T16: 190 | U16: 190
B17: Annual chargeable volume (excluding large users) | D17: m3 | M17: 4189049.173 | N17: ='Customer Versions'!N121 -> 4156792 | O17: ='Customer Versions'!O121 -> 3309760 | P17: ='Customer Versions'!P121 -> 3982384 | Q17: ='Customer Versions'!Q121 -> 4118923 | R17: ='Customer Versions'!R121 -> 4164592 | S17: ='Customer Versions'!S121 -> 4165192 | T17: ='Customer Versions'!T121 -> 4165792 | U17: ='Customer Versions'!U121 -> 4166392
B19: Tariffs:
B20: Reception and conveyance charge (R) | D20: £/m3 | M20: =Tariffs!M89 -> 0.2172 | N20: =Tariffs!N89 -> 0.2241 | O20: =Tariffs!O89 -> 0.2291 | P20: =Tariffs!P89 -> 0.231 | Q20: =Tariffs!Q89 -> 0.2392892687 | R20: =Tariffs!R89 -> 0.2487272817 | S20: =Tariffs!S89 -> 0.2595069235 | T20: =Tariffs!T89 -> 0.2710672098 | U20: =Tariffs!U89 -> 0.283237758
B21: Volumetric treatment charge (V) | D21: £/m3 | M21: =Tariffs!M90 -> 0.2449 | N21: =Tariffs!N90 -> 0.2527 | O21: =Tariffs!O90 -> 0.2583 | P21: =Tariffs!P90 -> 0.2605 | Q21: =Tariffs!Q90 -> 0.269847855 | R21: =Tariffs!R90 -> 0.2804911554 | S21: =Tariffs!S90 -> 0.2926474181 | T21: =Tariffs!T90 -> 0.305684018 | U21: =Tariffs!U90 -> 0.3194088137
B22: Biological treatment charge (B) | D22: £/m3 | M22: =Tariffs!M91 -> 0.1621 | N22: =Tariffs!N91 -> 0.1672 | O22: =Tariffs!O91 -> 0.1709 | P22: =Tariffs!P91 -> 0.1723 | Q22: =Tariffs!Q91 -> 0.1784828615 | R22: =Tariffs!R91 -> 0.1855225569 | S22: =Tariffs!S91 -> 0.1935629564 | T22: =Tariffs!T91 -> 0.2021856288 | U22: =Tariffs!U91 -> 0.2112634879
B23: Treatment and disposal of sludge charge (S) | D23: £/m3 | M23: =Tariffs!M92 -> 0.1891 | N23: =Tariffs!N92 -> 0.1951 | O23: =Tariffs!O92 -> 0.1994 | P23: =Tariffs!P92 -> 0.2011 | Q23: =Tariffs!Q92 -> 0.2083163287 | R23: =Tariffs!R92 -> 0.2165327115 | S23: =Tariffs!S92 -> 0.2259170663 | T23: =Tariffs!T92 -> 0.2359810212 | U23: =Tariffs!U92 -> 0.2465762474
B24: Standard unit cost | D24: £/m3 | M24: =Tariffs!M93 -> 0.8133 | N24: =Tariffs!N93 -> 0.8391 | O24: =Tariffs!O93 -> 0.8577 | P24: =Tariffs!P93 -> 0.865 | Q24: =Tariffs!Q93 -> 0.8960399023 | R24: =Tariffs!R93 -> 0.9313813797 | S24: =Tariffs!S93 -> 0.9717467049 | T24: =Tariffs!T93 -> 1.015035223 | U24: =Tariffs!U93 -> 1.060608921
B25: large user tariff | M25: =SUM((M20+M21)+(M15/M11)*M22)+((M16/M12)*M23) -> 1.244816257 | N25: =SUM((N20+N21)+(N15/N11)*N22)+((N16/N12)*N23) -> 1.26597109 | O25: 1.294021026 | P25: 1.304781474 | Q25: 1.351602618 | R25: 1.404912335 | S25: 1.465800114 | T25: 1.531097289 | U25: 1.59984147
B27: Sewerage Surface Water Volumes
B28: Total Sewage Volume (post MUR, MLE) | D28: Mm3 | M28: 97.68269368 | N28: 98.06782771 | O28: 98.45570186 | P28: 104.7751135 | Q28: 104.856259 | R28: 104.9279294 | S28: 104.9894263 | T28: 104.9159383 | U28: 104.8795206
B29: Infiltration (assumed at 60%) | D29: Mm3 | M29: =M28*60% -> 58.60961621 | N29: =N28*60% -> 58.84069662 | O29: 59.07342112 | P29: 62.86506808 | Q29: 62.91375542 | R29: 62.95675762 | S29: 62.9936558 | T29: 62.94956297 | U29: 62.92771239
B30: Total Sewerage (Wastewater) | D30: Mm3 | M30: 261.1993099 | N30: 261.8155243 | O30: 262.436123 | P30: 272.5471815 | Q30: 272.6770145 | R30: 272.791687 | S30: 272.8900821 | T30: 272.7725012 | U30: 272.714233
B31: Total Drainage (excluding sewage) entering WWTW | D31: Mm3 | M31: =M30-M28 -> 163.5166162 | N31: =N30-N28 -> 163.7476966 | O31: 163.9804211 | P31: 167.7720681 | Q31: 167.8207554 | R31: =R30-R28 -> 167.8637576 | S31: 167.9006558 | T31: 167.856563 | U31: 167.8347124
B32: Surface Water Drainage and infil entering works | D32: Mm3 | M32: =M29+M33 -> 131.1914178 | N32: =N29+N33 -> 131.4224982 | O32: 131.6552227 | P32: 135.4468697 | Q32: 135.495557 | R32: =R29+R33 -> 135.5385592 | S32: 135.5754574 | T32: 135.5313646 | U32: 135.509514
B33: Surface Water Drainage to treatment (excld RD) | D33: Mm3 | M33: =M41-M43 -> 72.58180161 | N33: =N41-N43 -> 72.58180161 | O33: 72.58180161 | P33: 72.58180161 | Q33: 72.58180161 | R33: 72.58180161 | S33: 72.58180161 | T33: 72.58180161 | U33: 72.58180161
B34: Surface Water Drainage volume to storm sewer (ex Infil and Roads Drainage) | D34: Mm3 | M34: =M33*(1-M45)/M45 -> 71.57049738 | N34: =N33*(1-N45)/N45 -> 71.57049738 | O34: 71.57049738 | P34: 71.57049738 | Q34: 71.57049738 | R34: 71.57049738 | S34: 71.57049738 | T34: 71.57049738 | U34: 71.57049738
B36: Surface Water Drainage Costs
B37: Surface Water Drainage Costs (volume to storm sewer (ex inf, RD)) | D37: p/m3 | M37: =(M32*10^6*(M20+M21)+M34*10^6*M20)/M32/10^6*100 -> 58.05918365 | N37: =(N32*10^6*(N20+N21)+N34*10^6*N20)/N32/10^6*100 -> 59.88411169 | O37: =(O32*10^6*(O20+O21)+O34*10^6*O20)/O32/10^6*100 -> 61.19434903 | P37: =(P32*10^6*(P20+P21)+P34*10^6*P20)/P32/10^6*100 -> 61.35610335 | Q37: 63.55327956 | R37: 66.0557706 | S37: 68.9148455 | T37: 71.98945887 | U37: 75.22409923
B40: Roads Drainage:
B41: Total SWD volume to treatment (incl infiltration and Roads Drainage) | D41: Mm3 | M41: 104.907 | N41: 104.907 | O41: 104.907 | P41: 104.907 | Q41: 104.907 | R41: 104.907 | S41: 104.907 | T41: 104.907 | U41: 104.907
B42: Total Road Drainage (million m3 per annum) | D42: Mm3 | M42: 64.2 | N42: 64.2 | O42: 64.2 | P42: 64.2 | Q42: 64.2 | R42: 64.2 | S42: 64.2 | T42: 64.2 | U42: 64.2
B43: Road Drainage to combined sewer | D43: Mm3 | M43: =M42*M45 -> 32.32519839 | N43: 32.32519839 | O43: 32.32519839 | P43: 32.32519839 | Q43: 32.32519839 | R43: 32.32519839 | S43: 32.32519839 | T43: 32.32519839 | U43: 32.32519839
B44: Road Drainage to storm sewer | D44: Mm3 | M44: =M42*M46 -> 31.87480161 | N44: 31.87480161 | O44: 31.87480161 | P44: 31.87480161 | Q44: 31.87480161 | R44: 31.87480161 | S44: 31.87480161 | T44: 31.87480161 | U44: 31.87480161
B45: Percentage Urban Combine Sewers | D45: % | M45: 0.5035077631 | N45: 0.5035077631 | O45: 0.5035077631 | P45: 0.5035077631 | Q45: 0.5035077631 | R45: 0.5035077631 | S45: 0.5035077631 | T45: 0.5035077631 | U45: 0.5035077631
B46: Percentage Urban Separate Sewers | D46: % | M46: 0.4964922369 | N46: 0.4964922369 | O46: 0.4964922369 | P46: 0.4964922369 | Q46: 0.4964922369 | R46: 0.4964922369 | S46: 0.4964922369 | T46: 0.4964922369 | U46: 0.4964922369
B47: Road Drainage Revenue | D47: £ | M47: =M42*1000000*M45*(M20+M21)+M42*1000000*M46*(M20) -> 21860681.09 | N47: 22555797.63 | O47: 23057818.74 | P47: 23250914.18 | Q47: 24085256.5 | R47: 25035223.73 | S47: 26120230.34 | T47: 27283811.4 | U47: 28508817.34
B49: Revenue
B50: Total Revenue Trade Effluent | D50: £ | M50: =IF(M11=0,"0",+M17*((M20+M21)+((M15/M11)*M22)+((M16/M12)*M23))) -> 5214596.51 | N50: 5262378.498 | O50: 4282899.03 | P50: 5196140.867 | Q50: 5567147.111 | R50: 5850886.671 | S50: 6105338.907 | T50: 6378232.836 | U50: =IF(U11=0,"0",+U17*((U20+U21)+((U15/U11)*U22)+((U16/U12)*U23))) -> 6665566.701
B51: Total Revenue Trade Effluent and Roads Drainage | D51: £ | M51: =M50+M47 -> 27075277.6 | N51: =N50+N47 -> 27818176.13 | O51: 27340717.77 | P51: 28447055.05 | Q51: 29652403.61 | R51: 30886110.4 | S51: 32225569.24 | T51: 33662044.23 | U51: 35174384.04
B53: Revenue: P=Charging Year; Q=Weighting Year - Bt(j)
B54: Total Revenue Trade Effluent | D54: £ | O54: =IF(M11=0,"0",+M17*((O20+O21)+((M15/M11)*O22)+((M16/M12)*O23))) -> 5498694.581 | P54: 5423705.194 | Q54: 4473480.282 | R54: 5594900.404 | S54: 6037517.801 | T54: 6376395.519 | U54: =IF(S11=0,"0",+S17*((U20+U21)+((S15/S11)*U22)+((S16/S12)*U23))) -> 6663646.891
B55: Total Revenue Roads Drainage | D55: £ | O55: =M42*1000000*M45*(O20+O21)+M42*1000000*M46*(O20) -> 23057818.74 | P55: 23250914.18 | Q55: 24085256.5 | R55: 25035223.73 | S55: 26120230.34 | T55: 27283811.4 | U55: 28508817.34
B56: Total | D56: £ | O56: =SUM(O54:O55) -> 28556513.32 | P56: =SUM(P54:P55) -> 28674619.37 | Q56: 28558736.78 | R56: 30630124.14 | S56: 32157748.14 | T56: 33660206.91 | U56: 35172464.23
B58: Revenue: P=Prior Year; Q=Weighting Year - Bt-1(j)
B59: Total Revenue Trade Effluent | D59: £ | O59: =IF(M11=0,"0",+M17*((N20+N21)+((M15/M11)*N22)+((M16/M12)*N23))) -> 5379504.709 | P59: 5378976.247 | Q59: 4318513.533 | R59: 5382600.641 | S59: 5786725.73 | T59: 6104459.427 | U59: =IF(S11=0,"0",+S17*((T20+T21)+((S15/S11)*T22)+((S16/S12)*T23))) -> 6377314.178
B60: Total Revenue Roads Drainage | D60: £ | O60: =M42*1000000*M45*(N20+N21)+M42*1000000*M46*(N20) -> 22555797.63 | P60: 23057818.74 | Q60: 23250914.18 | R60: 24085256.5 | S60: 25035223.73 | T60: 26120230.34 | U60: 27283811.4
B61: Total | D61: £ | O61: =SUM(O59:O60) -> 27935302.34 | P61: =SUM(P59:P60) -> 28436794.99 | Q61: 27569427.71 | R61: 29467857.14 | S61: 30821949.46 | T61: 32224689.76 | U61: 33661125.57

Sheet RG10
A1: Model_Navigation
B2: Customer base: Non-tariff basket
B3: Tariff basket: | C3: Non-Tariff
B4: Revenue group: | C4: 10
D6: =+Revenue!D3 -> Units | E6: =+Revenue!E3 -> Reference | M6: =+Inputs!M2 -> 2018-19 | N6: =+Inputs!N2 -> 2019-20 | O6: =+Inputs!O2 -> 2020-21 | P6: =+Inputs!P2 -> 2021-22 | Q6: =+Inputs!Q2 -> 2022-23 | R6: =+Inputs!R2 -> 2023-24 | S6: =+Inputs!S2 -> 2024-25 | T6: =+Inputs!T2 -> 2025-26 | U6: =+Inputs!U2 -> 2026-27
B7: Water revenue - Other charges
B8: Metering services | D8: £ | M8: 0 | N8: 0 | O8: 0 | P8: 0 | Q8: 0 | R8: 0 | S8: 0 | T8: 0 | U8: 0
B9: Building water | D9: £ | M9: 0 | N9: 0 | O9: 0 | P9: 0 | Q9: 0 | R9: 0 | S9: 0 | T9: 0 | U9: 0
B10: Electricity Generation | D10: £ | M10: 0 | N10: 0 | O10: 0 | P10: =+Inputs!P85/2*mill -> 597678.9923 | Q10: =+Inputs!Q85/2*mill -> 615756.238 | R10: =+Inputs!R85/2*mill -> 633766.2581 | S10: =+Inputs!S85/2*mill -> 651812.4137 | T10: =+Inputs!T85/2*mill -> 671366.7861 | U10: =+Inputs!U85/2*mill -> 691507.7897
B11: Miscellaneous charges not included above | D11: £ | M11: 668058.49 | N11: 664795 | O11: 733763.4299 | P11: 766725.2328 | Q11: 802913.9768 | R11: 827001.3961 | S11: 851811.438 | T11: 877365.7811 | U11: 903686.7546
B12: Total | D12: £ | M12: =SUM(M8:M11) -> 668058.49 | N12: =SUM(N8:N11) -> 664795 | O12: 733763.4299 | P12: 1364404.225 | Q12: 1418670.215 | R12: 1460767.654 | S12: 1503623.852 | T12: 1548732.567 | U12: 1595194.544
B14: Tariff multipliers: Large user Tariff Volumes
B15: Annual consumption between 0 and 100,000 m³ | D15: m2 | M15: 2136571 | N15: ='Customer Versions'!N40 -> 2036571 | O15: ='Customer Versions'!O40 -> 1675340 | P15: ='Customer Versions'!P40 -> 1972989 | Q15: ='Customer Versions'!Q40 -> 2014186 | R15: ='Customer Versions'!R40 -> 2042680.713 | S15: ='Customer Versions'!S40 -> 2044717.284 | T15: ='Customer Versions'!T40 -> 2046753.855 | U15: ='Customer Versions'!U40 -> 2048790.426
B16: Annual consumption between 100,000m³ and 250,000 m³ | D16: m3 | M16: 1797351.516 | N16: ='Customer Versions'!N41 -> 1747351.516 | O16: ='Customer Versions'!O41 -> 1437420 | P16: ='Customer Versions'!P41 -> 1692799 | Q16: ='Customer Versions'!Q41 -> 1728146 | R16: ='Customer Versions'!R41 -> 1752593.571 | S16: ='Customer Versions'!S41 -> 1754340.923 | T16: ='Customer Versions'!T41 -> 1756088.274 | U16: ='Customer Versions'!U41 -> 1757835.626
B17: Annual consumption between 250,000m³ and 500,000 m³ | D17: m3 | M17: 1141503.674 | N17: ='Customer Versions'!N42 -> 991503.6744 | O17: ='Customer Versions'!O42 -> 815638 | P17: ='Customer Versions'!P42 -> 960549 | Q17: ='Customer Versions'!Q42 -> 980606 | R17: ='Customer Versions'!R42 -> 994478.1854 | S17: ='Customer Versions'!S42 -> 995469.6891 | T17: ='Customer Versions'!T42 -> 996461.1928 | U17: ='Customer Versions'!U42 -> 997452.6964
B18: Annual consumption over 500,000 m³ | D18: m3 | M18: 1664297.838 | N18: ='Customer Versions'!N43 -> 1664297.838 | O18: ='Customer Versions'!O43 -> 1369097 | P18: ='Customer Versions'!P43 -> 1612338 | Q18: ='Customer Versions'!Q43 -> 1646005 | R18: ='Customer Versions'!R43 -> 1669290.732 | S18: ='Customer Versions'!S43 -> 1670955.03 | T18: ='Customer Versions'!T43 -> 1672619.328 | U18: ='Customer Versions'!U43 -> 1674283.625
B19: Total Large User annual consumption m³ | D19: m3 | M19: =SUM(M15:M18) -> 6739724.029 | N19: =SUM(N15:N18) -> 6439724.029 | O19: 5297495 | P19: 6238675 | Q19: 6368943 | R19: 6459043.201 | S19: 6465482.925 | T19: =SUM(T15:T18) -> 6471922.649 | U19: 6478362.373
B21: Tariffs: Large user tariffs
B22: On annnual consumption up to 100,000m³ | D22: £ | M22: =+Tariffs!M53 -> 1.07 | N22: =+Tariffs!N53 -> 1.093 | O22: =+Tariffs!O53 -> 1.106 | P22: =+Tariffs!P53 -> 1.115 | Q22: =+Tariffs!Q53 -> 1.118380131 | R22: =+Tariffs!R53 -> 1.125749231 | S22: =+Tariffs!S53 -> 1.13755432 | T22: =+Tariffs!T53 -> 1.150857276 | U22: =+Tariffs!U53 -> 1.164720346
B23: On annnual consumption between 100,000m³ and 250,000 m³ | D23: £ | M23: =M22*0.8 -> 0.856 | N23: =N22*0.8 -> 0.8744 | O23: 0.8848 | P23: 0.892 | Q23: 0.8947041044 | R23: 0.9005993848 | S23: 0.9100434559 | T23: 0.9206858209 | U23: 0.9317762771 | V23: calculated from line 11 with 20% discount
B24: On annual consumption between 250,000m³ and 500,000 m³ | D24: £ | M24: =M22*0.75 -> 0.8025 | N24: =N22*0.75 -> 0.81975 | O24: 0.8295 | P24: 0.83625 | Q24: 0.8387850979 | R24: 0.8443119233 | S24: 0.8531657399 | T24: 0.8631429571 | U24: 0.8735402598 | V24: calculated from line 11 with 25% discount
B25: On annual consumption over 500,000 m³ | D25: £ | M25: =M22*0.7 -> 0.749 | N25: =N22*0.7 -> 0.7651 | O25: 0.7742 | P25: 0.7805 | Q25: 0.7828660914 | R25: 0.7880244617 | S25: 0.7962880239 | T25: 0.8056000933 | U25: 0.8153042425 | V25: calculated from line 11 with 30% discount
B27: Large user tariff revenue
B28: Large user revenue on annual consumption up to 100,000m³ | D28: £ | M28: =M15*M22 -> 2286130.97 | N28: =N15*N22 -> 2225972.103 | O28: 1852926.04 | P28: 2199882.735 | Q28: 2252625.602 | R28: 2299546.242 | S28: 2325976.979 | T28: 2355521.566 | U28: 2386267.895
B29: Large user revenue on annual consumption between 100,000m³ and 250,000 m³ | D29: £ | M29: =M16*M23 -> 1538532.898 | N29: =N16*N23 -> 1527884.166 | O29: 1271829.216 | P29: 1509976.708 | Q29: 1546179.319 | R29: 1578384.692 | S29: 1596526.476 | T29: 1616805.574 | U29: 1637909.535
B30: Large user revenue on annual consumption between 250,000m³ and 500,000 m³ | D30: £ | M30: =M17*M24 -> 916056.6987 | N30: =N17*N24 -> 812785.1371 | O30: 676571.721 | P30: 803259.1012 | Q30: 822517.6997 | R30: 839649.7894 | S30: 849300.6339 | T30: 860088.4605 | U30: 871315.0876
B31: Large user revenue on annual consumption over 500,000 m³ | D31: £ | M31: =M18*M25 -> 1246559.081 | N31: 1273354.276 | O31: 1059954.897 | P31: 1258429.809 | Q31: 1288601.501 | R31: 1315441.93 | S31: 1330561.479 | T31: 1347462.286 | U31: 1365050.543
B32: Standing Charge revenue | D32: £ | M32: 31083.92 | N32: 31083.92 | O32: 31083.92 | P32: 31083.92 | Q32: 31083.92 | R32: 31083.92 | S32: 31083.92 | T32: 31083.92 | U32: 31083.92
B33: Total Large user revenue | D33: £ | M33: =SUM(M28:M32) -> 6018363.568 | N33: =SUM(N28:N32) -> 5871079.602 | O33: 4892365.794 | P33: 5802632.273 | Q33: 5941008.041 | R33: =SUM(R28:R32) -> 6064106.574 | S33: 6133449.488 | T33: =SUM(T28:T32) -> 6210961.807 | U33: 6291626.98
B35: Lock up garages
B36: Number of lock up garages | D36: nr | M36: 0 | N36: 0 | O36: 0 | P36: 0 | Q36: 0 | R36: 0 | S36: 0 | T36: 0 | U36: 0
B37: Flat rate charge | D37: £ | M37: =Tariffs!M26 -> 2.9 | N37: =Tariffs!N26 -> 2.89 | O37: =Tariffs!O26 -> 2.85 | P37: =Tariffs!P26 -> 2.87 | Q37: =Tariffs!Q26 -> 2.957390516 | R37: =Tariffs!R26 -> 3.057963187 | S37: =Tariffs!S26 -> 3.173873993 | T37: =Tariffs!T26 -> 3.298012133 | U37: =Tariffs!U26 -> 3.428164931
B38: Revenue from lock up garages | D38: £ | M38: =M36*M37 -> 0 | N38: =N36*N37 -> 0 | O38: 0 | P38: 0 | Q38: 0 | R38: 0 | S38: 0 | T38: 0 | U38: 0
B40: Other revenue
B41: Number of cattle troughs | D41: nr | M41: 0 | N41: 0 | O41: 0 | P41: 0 | Q41: 0 | R41: 0 | S41: 0 | T41: 0 | U41: 0
B42: Flat rate charge | D42: £ | M42: =Tariffs!M81 -> 228.53 | N42: =Tariffs!N81 -> 235.82 | O42: =Tariffs!O81 -> 241 | P42: =Tariffs!P81 -> 245 | Q42: =Tariffs!Q81 -> 250.1414826 | R42: =Tariffs!R81 -> 256.28076 | S42: =Tariffs!S81 -> 263.5695294 | T42: =Tariffs!T81 -> 271.3839664 | U42: =Tariffs!U81 -> 279.5254854
B43: Revenue from cattle troughs | D43: £ | M43: =M41*M42 -> 0 | N43: =N41*N42 -> 0 | O43: =O41*O42 -> 0 | P43: 0 | Q43: 0 | R43: 0 | S43: 0 | T43: 0 | U43: 0
B45: Total water non-tariff basket Revenue
B46: Revenue from other charges | D46: £ | M46: =M12 -> 668058.49 | N46: =N12 -> 664795 | O46: 733763.4299 | P46: =P12 -> 1364404.225 | Q46: 1418670.215 | R46: 1460767.654 | S46: 1503623.852 | T46: 1548732.567 | U46: 1595194.544
B47: Large user tariff revenue | D47: £ | M47: =M33 -> 6018363.568 | N47: =N33 -> 5871079.602 | O47: 4892365.794 | P47: 5802632.273 | Q47: 5941008.041 | R47: 6064106.574 | S47: 6133449.488 | T47: 6210961.807 | U47: 6291626.98
B48: Other revenue | D48: £ | M48: =M43+M38 -> 0 | N48: =N43+N38 -> 0 | O48: 0 | P48: 0 | Q48: 0 | R48: 0 | S48: 0 | T48: 0 | U48: 0
B49: Total revenue | D49: £ | M49: =SUM(M46:M48) -> 6686422.058 | N49: 6535874.602 | O49: 5626129.224 | P49: 7167036.498 | Q49: 7359678.256 | R49: 7524874.228 | S49: 7637073.34 | T49: 7759694.375 | U49: 7886821.524
B52: Tariff basket: | D52: Non-Tariff
B53: Revenue group: | D53: 10
B55: Sewerage revenue - Other charges
B56: Metering Services - sewerage | D56: £ | M56: 0 | N56: 0 | O56: 0 | P56: 0 | Q56: 0 | R56: 0 | S56: 0 | T56: 0 | U56: 0
B57: Metering Services - trade effluent | D57: £ | M57: 0 | N57: 0 | O57: 0 | P57: 0 | Q57: 0 | R57: 0 | S57: 0 | T57: 0 | U57: 0
B58: Sewerage inspection fees | D58: £ | M58: 0 | N58: 0 | O58: 0 | P58: 0 | Q58: 0 | R58: 0 | S58: 0 | T58: 0 | U58: 0
B59: Tankered waste disposal charges (excluding trade effluent charges) | D59: £ | M59: 0 | N59: 0 | O59: 0 | P59: 0 | Q59: 0 | R59: 0 | S59: 0 | T59: 0 | U59: 0
B60: Electricty Generation | D60: £ | M60: 0 | N60: 0 | O60: 0 | P60: =+P10 -> 597678.9923 | Q60: =+Q10 -> 615756.238 | R60: 633766.2581 | S60: 651812.4137 | T60: 671366.7861 | U60: 691507.7897
B61: Miscellaneous charges not included above | D61: £ | M61: 334095.84 | N61: 312555 | O61: 300026.1478 | P61: 309026.9322 | Q61: 318297.7402 | R61: 327846.6724 | S61: 337682.0726 | T61: 347812.5348 | U61: 358246.9108
B62: Total | D62: £ | M62: =SUM(M56:M61) -> 334095.84 | N62: 312555 | O62: 300026.1478 | P62: 906705.9246 | Q62: 934053.9782 | R62: 961612.9305 | S62: 989494.4863 | T62: 1019179.321 | U62: 1049754.701
B64: Tariff multipliers: Large user Tariff Volumes (Sewerage)
B65: Annual consumption up to 100,000m³ | D65: m2 | M65: 689228.9898 | N65: ='Customer Versions'!N78 -> 689228.9898 | O65: ='Customer Versions'!O78 -> 566979 | P65: ='Customer Versions'!P78 -> 667711 | Q65: ='Customer Versions'!Q78 -> 681653 | R65: ='Customer Versions'!R78 -> 691296.6767 | S65: ='Customer Versions'!S78 -> 691985.9057 | T65: ='Customer Versions'!T78 -> 692675.1347 | U65: ='Customer Versions'!U78 -> 693364.3637
B66: Annual consumption between 100,000m³ and 250,000 m³ | D66: m3 | M66: 333980.5619 | N66: ='Customer Versions'!N79 -> 333980.5619 | O66: ='Customer Versions'!O79 -> 274742 | P66: ='Customer Versions'!P79 -> 323554 | Q66: ='Customer Versions'!Q79 -> 330310 | R66: ='Customer Versions'!R79 -> 334982.5036 | S66: ='Customer Versions'!S79 -> 335316.4841 | T66: ='Customer Versions'!T79 -> 335650.4647 | U66: ='Customer Versions'!U79 -> 335984.4453
B67: Annual consumption between 250,000m³ and 500,000 m³ | D67: m3 | M67: 0 | N67: ='Customer Versions'!N80 -> 0 | O67: ='Customer Versions'!O80 -> 0 | P67: ='Customer Versions'!P80 -> 0 | Q67: ='Customer Versions'!Q80 -> 0 | R67: ='Customer Versions'!R80 -> 0 | S67: ='Customer Versions'!S80 -> 0 | T67: ='Customer Versions'!T80 -> 0 | U67: ='Customer Versions'!U80 -> 0
B68: Annual consumption over 500,000 m³ | D68: m3 | M68: 0 | N68: ='Customer Versions'!N81 -> 0 | O68: ='Customer Versions'!O81 -> 0 | P68: ='Customer Versions'!P81 -> 0 | Q68: ='Customer Versions'!Q81 -> 0 | R68: ='Customer Versions'!R81 -> 0 | S68: ='Customer Versions'!S81 -> 0 | T68: ='Customer Versions'!T81 -> 0 | U68: ='Customer Versions'!U81 -> 0
B69: Total Large User annual consumption m³ | D69: m3 | M69: =SUM(M65:M68) -> 1023209.552 | N69: =SUM(N65:N68) -> 1023209.552 | O69: 841721 | P69: 991265 | Q69: 1011963 | R69: 1026279.18 | S69: =SUM(S65:S68) -> 1027302.39 | T69: 1028325.599 | U69: 1029348.809
B71: Tariffs: Large user tariffs (Sewerage)
B72: On annnual consumption up to 100,000m³ | D72: £ | M72: =+Tariffs!M73 -> 1.76 | N72: =+Tariffs!N73 -> 1.816 | O72: =+Tariffs!O73 -> 1.853 | P72: =+Tariffs!P73 -> 1.868 | Q72: =+Tariffs!Q73 -> 1.890303534 | R72: =+Tariffs!R73 -> 1.919598267 | S72: =+Tariffs!S73 -> 1.956828327 | T72: =+Tariffs!T73 -> 1.997144145 | U72: =+Tariffs!U73 -> 2.038992603
B73: On annnual consumption between 100,000m³ and 250,000 m³ | D73: £ | M73: =M72 -> 1.76 | N73: =N72 -> 1.816 | O73: 1.853 | P73: 1.868 | Q73: 1.890303534 | R73: =R72 -> 1.919598267 | S73: 1.956828327 | T73: 1.997144145 | U73: 2.038992603 | V73: linked to line 72 row 44
B74: On annual consumption between 250,000m³ and 500,000 m³ | D74: £ | M74: =M73 -> 1.76 | N74: 1.816 | O74: 1.853 | P74: 1.868 | Q74: 1.890303534 | R74: 1.919598267 | S74: 1.956828327 | T74: 1.997144145 | U74: 2.038992603 | V74: linked to line 72 row 44
B75: On annual consumption over 500,000 m³ | D75: £ | M75: =M74 -> 1.76 | N75: 1.816 | O75: 1.853 | P75: 1.868 | Q75: 1.890303534 | R75: 1.919598267 | S75: 1.956828327 | T75: 1.997144145 | U75: 2.038992603 | V75: linked to line 72 row 44
B77: Large user tariff revenue (Sewerage)
B78: Large user revenue on annual consumption up to 100,000m³ | D78: £ | M78: =M65*M72 -> 1213043.022 | N78: =N65*N72 -> 1251639.845 | O78: 1050612.087 | P78: 1247284.148 | Q78: 1288531.075 | R78: 1327011.902 | S78: 1354097.622 | T78: 1383372.089 | U78: 1413764.809
B79: Large user revenue on annual consumption between 100,000m³ and 250,000 m³ | D79: £ | M79: =M66*M73 -> 587805.7889 | N79: 606508.7004 | O79: 509096.926 | P79: 604398.872 | Q79: 624386.1602 | R79: 643031.8332 | S79: 656156.7946 | T79: 670342.3602 | U79: 685069.7985
B80: Large user revenue on annual consumption between 250,000m³ and 500,000 m³ | D80: £ | M80: =M67*M74 -> 0 | N80: 0 | O80: 0 | P80: 0 | Q80: 0 | R80: 0 | S80: 0 | T80: 0 | U80: 0
B81: Large user revenue on annual consumption over 500,000 m³ | D81: £ | M81: =M68*M75 -> 0 | N81: 0 | O81: 0 | P81: 0 | Q81: 0 | R81: 0 | S81: 0 | T81: 0 | U81: 0
B82: Standing Charge revenue | D82: £ | M82: 27705.58 | N82: 27705.58 | O82: 27705.58 | P82: 27705.58 | Q82: 27705.58 | R82: 27705.58 | S82: 27705.58 | T82: 27705.58 | U82: 27705.58
B83: Total Large user revenue (sewerage) | D83: £ | M83: =SUM(M78:M82) -> 1828554.391 | N83: =SUM(N78:N82) -> 1885854.126 | O83: 1587414.593 | P83: 1879388.6 | Q83: 1940622.815 | R83: 1997749.316 | S83: =SUM(S78:S82) -> 2037959.997 | T83: 2081420.03 | U83: 2126540.187
B85: Large User (Trade Effluent)
B86: Annual Chargeable Consumption | D86: m3 | M86: 2720152.827 | N86: ='Customer Versions'!N122 -> 2599206 | O86: ='Customer Versions'!O122 -> 2065812 | P86: ='Customer Versions'!P122 -> 2482647 | Q86: ='Customer Versions'!Q122 -> 2564272 | R86: ='Customer Versions'!R122 -> 2599206 | S86: ='Customer Versions'!S122 -> 2599206 | T86: ='Customer Versions'!T122 -> 2599206 | U86: ='Customer Versions'!U122 -> 2599206
B87: Tariff (explain formula) | D87: £/m3 | M87: =+'RG9'!M25 -> 1.244816257 | N87: =+'RG9'!N25 -> 1.26597109 | O87: =+'RG9'!O25 -> 1.294021026 | P87: =+'RG9'!P25 -> 1.304781474 | Q87: =+'RG9'!Q25 -> 1.351602618 | R87: =+'RG9'!R25 -> 1.404912335 | S87: =+'RG9'!S25 -> 1.465800114 | T87: =+'RG9'!T25 -> 1.531097289 | U87: =+'RG9'!U25 -> 1.59984147
B88: Trade Effluent Large User Revenue | D88: £ | M88: =M86*M87 -> 3386090.46 | N88: =N86*N87 -> 3290519.652 | O88: 2673204.163 | P88: =P86*P87 -> 3239311.813 | Q88: 3465876.749 | R88: 3651656.571 | S88: 3809916.45 | T88: 3979637.259 | U88: 4158317.547
B89: Trade Effluent total volume (chargeable volume) | D89: m3 | M89: ='RG9'!M17+'RG10'!M86 -> 6909202 | N89: ='RG9'!N17+'RG10'!N86 -> 6755998 | O89: ='RG9'!O17+'RG10'!O86 -> 5375572 | P89: ='RG9'!P17+'RG10'!P86 -> 6465031 | Q89: ='RG9'!Q17+'RG10'!Q86 -> 6683195 | R89: ='RG9'!R17+'RG10'!R86 -> 6763798 | S89: ='RG9'!S17+'RG10'!S86 -> 6764398 | T89: ='RG9'!T17+'RG10'!T86 -> 6764998 | U89: ='RG9'!U17+'RG10'!U86 -> 6765598
B91: Lock up garages
B92: Number of lock up garages | D92: nr | M92: 0 | N92: 0 | O92: 0 | P92: 0 | Q92: 0 | R92: 0 | S92: 0 | T92: 0 | U92: 0
B93: Flat rate charge | D93: £ | M93: =Tariffs!M35 -> 3.94 | N93: =Tariffs!N35 -> 4.03 | O93: =Tariffs!O35 -> 4.08 | P93: =Tariffs!P35 -> 4.12 | Q93: =Tariffs!Q35 -> 4.190186988 | R93: =Tariffs!R35 -> 4.276476569 | S93: =Tariffs!S35 -> 4.381210038 | T93: =Tariffs!T35 -> 4.49380064 | U93: =Tariffs!U35 -> 4.610864297
B94: Revenue from lock up garages | D94: £ | M94: =M92*M93 -> 0 | N94: =N92*N93 -> 0 | O94: 0 | P94: 0 | Q94: 0 | R94: 0 | S94: 0 | T94: 0 | U94: 0
B96: Total Wastewater non tarriff basket revenue
B97: Revenue from other charges | D97: £ | M97: =M62 -> 334095.84 | N97: =N62 -> 312555 | O97: 300026.1478 | P97: 906705.9246 | Q97: 934053.9782 | R97: 961612.9305 | S97: 989494.4863 | T97: 1019179.321 | U97: 1049754.701
B98: Large user tariff revenue (sewerage) | D98: £ | M98: =M83 -> 1828554.391 | N98: =N83 -> 1885854.126 | O98: 1587414.593 | P98: 1879388.6 | Q98: 1940622.815 | R98: 1997749.316 | S98: 2037959.997 | T98: 2081420.03 | U98: 2126540.187
B99: Large user tariff revenue (trade effluent) | D99: £ | M99: =M88 -> 3386090.46 | N99: =N88 -> 3290519.652 | O99: 2673204.163 | P99: 3239311.813 | Q99: 3465876.749 | R99: 3651656.571 | S99: 3809916.45 | T99: 3979637.259 | U99: 4158317.547
B100: Revenue from lock up garages | D100: £ | M100: =+M94 -> 0 | N100: =+N94 -> 0 | O100: 0 | P100: 0 | Q100: 0 | R100: 0 | S100: 0 | T100: 0 | U100: 0
B101: Total revenue | D101: £ | M101: =SUM(M97:M100) -> 5548740.691 | N101: =SUM(N97:N100) -> 5488928.778 | O101: 4560644.904 | P101: =SUM(P97:P100) -> 6025406.338 | Q101: 6340553.542 | R101: 6611018.817 | S101: 6837370.933 | T101: 7080236.61 | U101: 7334612.435

Sheet Charge Cap Workings
A1: Model_Navigation
B2: Customer base: charge cap workings
D4: Basket | E4: Rev. Group | M4: =+Inputs!M2 -> 2018-19 | N4: =+Inputs!N2 -> 2019-20 | O4: =+Inputs!O2 -> 2020-21 | P4: =+Inputs!P2 -> 2021-22 | Q4: =+Inputs!Q2 -> 2022-23 | R4: =+Inputs!R2 -> 2023-24 | S4: =+Inputs!S2 -> 2024-25 | T4: =+Inputs!T2 -> 2025-26 | U4: =+Inputs!U2 -> 2026-27
B5: Revenue: Charging Year
A6: 1 | B6: Water - primary revenue: non-domestic measured water charges | D6: 3 | E6: 5 | M6: =+'RG5'!M89/mill -> 54.66442855 | N6: =+'RG5'!N89/mill -> 45.63486879 | O6: =+'RG5'!O89/mill -> 38.54771149 | P6: =+'RG5'!P89/mill -> 44.27062736 | Q6: =+'RG5'!Q89/mill -> 46.30933588 | R6: =+'RG5'!R89/mill -> 47.69425686 | S6: =+'RG5'!S89/mill -> 48.31675965 | T6: =+'RG5'!T89/mill -> 49.00558396 | U6: =+'RG5'!U89/mill -> 49.72118104
A7: =+A6+1 -> 2 | B7: Water - primary revenue: domestic measured water charges | D7: 3 | E7: 1 | M7: =+'RG1'!M31/mill -> 0 | N7: =+'RG1'!N31/mill -> 0 | O7: =+'RG1'!O31/mill -> 0 | P7: =+'RG1'!P31/mill -> 0 | Q7: =+'RG1'!Q31/mill -> 0 | R7: =+'RG1'!R31/mill -> 0 | S7: =+'RG1'!S31/mill -> 0 | T7: =+'RG1'!T31/mill -> 0 | U7: =+'RG1'!U31/mill -> 0
A8: =+A7+1 -> 3 | B8: Waste water - primary revenue: domestic measured sewerage charges | D8: 4 | E8: 2 | M8: =+'RG2'!M31/mill -> 0 | N8: =+'RG2'!N31/mill -> 0 | O8: =+'RG2'!O31/mill -> 0 | P8: =+'RG2'!P31/mill -> 0 | Q8: =+'RG2'!Q31/mill -> 0 | R8: =+'RG2'!R31/mill -> 0 | S8: =+'RG2'!S31/mill -> 0 | T8: =+'RG2'!T31/mill -> 0 | U8: =+'RG2'!U31/mill -> 0
A9: 4 | B9: Waste water - primary revenue: non-domestic measured sewerage charges | D9: 4 | E9: 6 | M9: =+'RG6'!M89/mill -> 28.09636367 | N9: =+'RG6'!N89/mill -> 28.81129648 | O9: =+'RG6'!O89/mill -> 23.40249774 | P9: =+'RG6'!P89/mill -> 28.0110315 | Q9: =+'RG6'!Q89/mill -> 29.84231194 | R9: =+'RG6'!R89/mill -> 31.04083736 | S9: =+'RG6'!S89/mill -> 31.76851309 | T9: =+'RG6'!T89/mill -> 32.54373936 | U9: =+'RG6'!U89/mill -> 33.34890638
A10: 5 | B10: Water - primary revenue: non-domestic unmeasured water charges | D10: 1 | E10: 7 | M10: =+'RG7'!M25/mill -> 2.10219233 | N10: =+'RG7'!N25/mill -> 2.133371621 | O10: =+'RG7'!O25/mill -> 2.02018546 | P10: =+'RG7'!P25/mill -> 1.940471757 | Q10: =+'RG7'!Q25/mill -> 1.998816023 | R10: =+'RG7'!R25/mill -> 2.050815292 | S10: =+'RG7'!S25/mill -> 2.09662454 | T10: =+'RG7'!T25/mill -> 2.1298946 | U10: =+'RG7'!U25/mill -> 2.164033009
A11: 6 | B11: Water - primary revenue: domestic unmeasured water charges | D11: 1 | E11: 3 | M11: =+'RG3'!M49/mill -> 127.6350125 | N11: =+'RG3'!N49/mill -> 128.7383686 | O11: =+'RG3'!O49/mill -> 128.0012269 | P11: =+'RG3'!P49/mill -> 130.13431 | Q11: =+'RG3'!Q49/mill -> 135.4401786 | R11: =+'RG3'!R49/mill -> 141.5455066 | S11: =+'RG3'!S49/mill -> 148.4197869 | T11: =+'RG3'!T49/mill -> 155.7439336 | U11: =+'RG3'!U49/mill -> 163.4183049
A12: 7 | B12: Waste water - primary revenue: domestic unmeasured sewerage charges | D12: 2 | E12: 4 | M12: =+'RG4'!M50/mill -> 152.7224122 | N12: =+'RG4'!N50/mill -> 158.5494402 | O12: =+'RG4'!O50/mill -> 162.1880164 | P12: =+'RG4'!P50/mill -> 164.8413929 | Q12: =+'RG4'!Q50/mill -> 169.2291326 | R12: =+'RG4'!R50/mill -> 174.4015279 | S12: =+'RG4'!S50/mill -> 180.2934219 | T12: =+'RG4'!T50/mill -> 186.4851447 | U12: =+'RG4'!U50/mill -> 192.8355327
A13: 8 | B13: Waste water - primary revenue: non-domestic unmeasured sewerage charges | D13: 2 | E13: 8 | M13: =+'RG8'!M25/mill -> 2.44852428 | N13: =+'RG8'!N25/mill -> 2.48931426 | O13: =+'RG8'!O25/mill -> 2.362901489 | P13: =+'RG8'!P25/mill -> 2.271533354 | Q13: =+'RG8'!Q25/mill -> 2.337814783 | R13: =+'RG8'!R25/mill -> 2.397902325 | S13: =+'RG8'!S25/mill -> 2.453109164 | T13: =+'RG8'!T25/mill -> 2.49729523 | U13: =+'RG8'!U25/mill -> 2.543826674
A14: 9 | B14: Waste water - primary revenue: trade effluent and roads drainage charges | D14: 5 | E14: 9 | M14: =+'RG9'!M51/mill -> 27.0752776 | N14: =+'RG9'!N51/mill -> 27.81817613 | O14: =+'RG9'!O51/mill -> 27.34071777 | P14: =+'RG9'!P51/mill -> 28.44705505 | Q14: =+'RG9'!Q51/mill -> 29.65240361 | R14: =+'RG9'!R51/mill -> 30.8861104 | S14: =+'RG9'!S51/mill -> 32.22556924 | T14: =+'RG9'!T51/mill -> 33.66204423 | U14: =+'RG9'!U51/mill -> 35.17438404
A15: 10 | B15: Water: - non-primary revenue : Non tariff basket water revenue | D15: Non-tariff | E15: 10 | M15: =+'RG10'!M49/mill -> 6.686422058 | N15: =+'RG10'!N49/mill -> 6.535874602 | O15: =+'RG10'!O49/mill -> 5.626129224 | P15: =+'RG10'!P49/mill -> 7.167036498 | Q15: =+'RG10'!Q49/mill -> 7.359678256 | R15: =+'RG10'!R49/mill -> 7.524874228 | S15: =+'RG10'!S49/mill -> 7.63707334 | T15: =+'RG10'!T49/mill -> 7.759694375 | U15: =+'RG10'!U49/mill -> 7.886821524
A16: 11 | B16: Waste water: - non-primary revenue : Non tariff basket sewerage revenue | D16: Non-tariff | E16: 10 | M16: =+'RG10'!M101/mill -> 5.548740691 | N16: =+'RG10'!N101/mill -> 5.488928778 | O16: =+'RG10'!O101/mill -> 4.560644904 | P16: =+'RG10'!P101/mill -> 6.025406338 | Q16: =+'RG10'!Q101/mill -> 6.340553542 | R16: =+'RG10'!R101/mill -> 6.611018817 | S16: =+'RG10'!S101/mill -> 6.837370933 | T16: =+'RG10'!T101/mill -> 7.08023661 | U16: =+'RG10'!U101/mill -> 7.334612435
A17: 12 | B17: Total | M17: =SUM(M6:M16) -> 406.9793739 | N17: 406.1996396 | O17: 394.0500314 | P17: 413.1088647 | Q17: 428.5102253 | R17: 444.1528498 | S17: 460.0482287 | T17: 476.9075666 | U17: 494.4276027
B19: Revenue: Weighting Year
A20: 1 | B20: Water - primary revenue: non-domestic measured water charges | D20: 3 | E20: 5 | O20: =M6 -> 54.66442855 | P20: =N6 -> 45.63486879 | Q20: =O6 -> 38.54771149 | R20: =P6 -> 44.27062736 | S20: =Q6 -> 46.30933588 | T20: =R6 -> 47.69425686 | U20: =S6 -> 48.31675965
A21: =+A20+1 -> 2 | B21: Water - primary revenue: domestic measured water charges | D21: 3 | E21: 1 | O21: =M7 -> 0 | P21: 0 | Q21: 0 | R21: 0 | S21: 0 | T21: 0 | U21: 0
A22: 3 | B22: Waste water - primary revenue: domestic measured sewerage charges | D22: 4 | E22: 2 | O22: 0 | P22: =N8 -> 0 | Q22: 0 | R22: 0 | S22: 0 | T22: 0 | U22: 0
A23: 4 | B23: Waste water - primary revenue: non-domestic measured sewerage charges | D23: 4 | E23: 6 | O23: 28.09636367 | P23: =N9 -> 28.81129648 | Q23: 23.40249774 | R23: 28.0110315 | S23: 29.84231194 | T23: 31.04083736 | U23: 31.76851309
A24: 5 | B24: Water - primary revenue: non-domestic unmeasured water charges | D24: 1 | E24: 7 | O24: 2.10219233 | P24: 2.133371621 | Q24: 2.02018546 | R24: 1.940471757 | S24: 1.998816023 | T24: 2.050815292 | U24: 2.09662454
A25: 6 | B25: Water - primary revenue: domestic unmeasured water charges | D25: 1 | E25: 3 | O25: 127.6350125 | P25: 128.7383686 | Q25: 128.0012269 | R25: 130.13431 | S25: 135.4401786 | T25: 141.5455066 | U25: 148.4197869
A26: 7 | B26: Waste water - primary revenue: domestic unmeasured sewerage charges | D26: 2 | E26: 4 | O26: 152.7224122 | P26: 158.5494402 | Q26: 162.1880164 | R26: 164.8413929 | S26: 169.2291326 | T26: 174.4015279 | U26: 180.2934219
A27: 8 | B27: Waste water - primary revenue: non-domestic unmeasured sewerage charges | D27: 2 | E27: 8 | O27: 2.44852428 | P27: 2.48931426 | Q27: 2.362901489 | R27: 2.271533354 | S27: 2.337814783 | T27: 2.397902325 | U27: 2.453109164
A28: 9 | B28: Waste water - primary revenue: trade effluent and roads drainage charges | D28: 5 | E28: 9 | O28: 27.0752776 | P28: 27.81817613 | Q28: 27.34071777 | R28: 28.44705505 | S28: 29.65240361 | T28: 30.8861104 | U28: 32.22556924
A29: 10 | B29: Total | O29: =SUM(O20:O28) -> 394.7442111 | P29: 394.1748362 | Q29: 383.8632573 | R29: 399.9164219 | S29: 414.8099935 | T29: 430.0169567 | U29: 445.5737845
B31: Revenue : A(t)i or B(t)j
A32: =+A29+1 -> 11 | B32: Water - primary revenue: non-domestic measured water charges | D32: 3 | E32: 5 | O32: =+'RG5'!O95/mill -> 56.41705161 | P32: =+'RG5'!P95/mill -> 46.46140515 | Q32: =+'RG5'!Q95/mill -> 38.94354435 | R32: =+'RG5'!R95/mill -> 44.69742126 | S32: =+'RG5'!S95/mill -> 47.10329131 | T32: =+'RG5'!T95/mill -> 48.75800136 | U32: =+'RG5'!U95/mill -> 49.47061609
A33: =+A32+1 -> 12 | B33: Water - primary revenue: domestic measured water charges | D33: 3 | E33: 1 | O33: =+'RG1'!O39/mill -> 0 | P33: =+'RG1'!P39/mill -> 0 | Q33: =+'RG1'!Q39/mill -> 0 | R33: =+'RG1'!R39/mill -> 0 | S33: =+'RG1'!S39/mill -> 0 | T33: =+'RG1'!T39/mill -> 0 | U33: =+'RG1'!U39/mill -> 0
A34: 13 | B34: Waste water - primary revenue: domestic measured sewerage charges | D34: 4 | E34: 2 | O34: =+'RG2'!O40/mill -> 0 | P34: =+'RG2'!P40/mill -> 0 | Q34: =+'RG2'!Q40/mill -> 0 | R34: =+'RG2'!R40/mill -> 0 | S34: =+'RG2'!S40/mill -> 0 | T34: =+'RG2'!T40/mill -> 0 | U34: =+'RG2'!U40/mill -> 0
A35: 14 | B35: Waste water - primary revenue: non-domestic measured sewerage charges | D35: 4 | E35: 6 | O35: =+'RG6'!O95/mill -> 29.55223105 | P35: =+'RG6'!P95/mill -> 29.62397872 | Q35: =+'RG6'!Q95/mill -> 23.87717067 | R35: =+'RG6'!R95/mill -> 28.78475777 | S35: =+'RG6'!S95/mill -> 30.89254201 | T35: =+'RG6'!T95/mill -> 32.29479191 | U35: =+'RG6'!U95/mill -> 33.10242513
A36: 15 | B36: Water - primary revenue: non-domestic unmeasured water charges | D36: 1 | E36: 7 | O36: =+'RG7'!O31/mill -> 2.181081912 | P36: =+'RG7'!P31/mill -> 2.034574051 | Q36: =+'RG7'!Q31/mill -> 1.981193805 | R36: =+'RG7'!R31/mill -> 2.047873404 | S36: =+'RG7'!S31/mill -> 2.109141637 | T36: =+'RG7'!T31/mill -> 2.15878628 | U36: =+'RG7'!U31/mill -> 2.193791438
A37: 16 | B37: Water - primary revenue: domestic unmeasured water charges | D37: 1 | E37: 3 | O37: =+'RG3'!O56/mill -> 126.8369024 | P37: =+'RG3'!P56/mill -> 129.1146053 | Q37: =+'RG3'!Q56/mill -> 134.0968552 | R37: =+'RG3'!R56/mill -> 140.0461245 | S37: =+'RG3'!S56/mill -> 146.9107294 | T37: =+'RG3'!T56/mill -> 154.2248555 | U37: =+'RG3'!U56/mill -> 161.8902144
A38: 17 | B38: Waste water - primary revenue: domestic unmeasured sewerage charges | D38: 2 | E38: 4 | O38: =+'RG4'!O57/mill -> 160.7227643 | P38: =+'RG4'!P57/mill -> 163.5807914 | Q38: =+'RG4'!Q57/mill -> 167.6495775 | R38: =+'RG4'!R57/mill -> 172.714111 | S38: =+'RG4'!S57/mill -> 178.6727256 | T38: =+'RG4'!T57/mill -> 184.9266955 | U38: =+'RG4'!U57/mill -> 191.343089
A39: 18 | B39: Waste water - primary revenue: non-domestic unmeasured sewerage charges | D39: 2 | E39: 8 | O39: =+'RG8'!O32/mill -> 2.544613384 | P39: =+'RG8'!P32/mill -> 2.378664851 | Q39: =+'RG8'!Q32/mill -> 2.319202942 | R39: =+'RG8'!R32/mill -> 2.395192285 | S39: =+'RG8'!S32/mill -> 2.466100021 | T39: =+'RG8'!T32/mill -> 2.525840132 | U39: =+'RG8'!U32/mill -> 2.572214086
A40: 19 | B40: Waste water - primary revenue: trade effluent charges | D40: 5 | E40: 9 | O40: =+'RG9'!O56/mill -> 28.55651332 | P40: =+'RG9'!P56/mill -> 28.67461937 | Q40: =+'RG9'!Q56/mill -> 28.55873678 | R40: =+'RG9'!R56/mill -> 30.63012414 | S40: =+'RG9'!S56/mill -> 32.15774814 | T40: =+'RG9'!T56/mill -> 33.66020691 | U40: =+'RG9'!U56/mill -> 35.17246423
A41: 20 | B41: Total | O41: =SUM(O32:O40) -> 406.811158 | P41: 401.8686389 | Q41: 397.4262812 | R41: 421.3156043 | S41: 440.3122781 | T41: 458.5491777 | U41: 475.7448143
B43: Revenue : A(t-1)I or B(t-1)j
A44: =+A41+1 -> 21 | B44: Water - primary revenue: non-domestic measured water charges | D44: 3 | E44: 5 | O44: =+'RG5'!O101/mill -> 55.80817323 | P44: =+'RG5'!P101/mill -> 46.12213045 | Q44: =+'RG5'!Q101/mill -> 38.82584352 | R44: =+'RG5'!R101/mill -> 44.40483408 | S44: =+'RG5'!S101/mill -> 46.61447198 | T44: =+'RG5'!T101/mill -> 48.19439927 | U44: =+'RG5'!U101/mill -> 48.88179266
A45: =+A44+1 -> 22 | B45: Water - primary revenue: domestic measured water charges | D45: 3 | E45: 1 | O45: =+'RG1'!O47/mill -> 0 | P45: =+'RG1'!P47/mill -> 0 | Q45: =+'RG1'!Q47/mill -> 0 | R45: =+'RG1'!R47/mill -> 0 | S45: =+'RG1'!S47/mill -> 0 | T45: =+'RG1'!T47/mill -> 0 | U45: =+'RG1'!U47/mill -> 0
A46: 23 | B46: Waste water - primary revenue: domestic measured sewerage charges | D46: 4 | E46: 2 | O46: =+'RG2'!O48/mill -> 0 | P46: =+'RG2'!P48/mill -> 0 | Q46: =+'RG2'!Q48/mill -> 0 | R46: =+'RG2'!R48/mill -> 0 | S46: =+'RG2'!S48/mill -> 0 | T46: =+'RG2'!T48/mill -> 0 | U46: =+'RG2'!U48/mill -> 0
A47: 24 | B47: Waste water - primary revenue: non-domestic measured sewerage charges | D47: 4 | E47: 6 | O47: =+'RG6'!O101/mill -> 28.97766177 | P47: =+'RG6'!P101/mill -> 29.3822528 | Q47: =+'RG6'!Q101/mill -> 23.59544593 | R47: =+'RG6'!R101/mill -> 28.34547743 | S47: =+'RG6'!S101/mill -> 30.30478928 | T47: =+'RG6'!T101/mill -> 31.64286553 | U47: =+'RG6'!U101/mill -> 32.42302814
A48: 25 | B48: Water - primary revenue: non-domestic unmeasured water charges | D48: 1 | E48: 7 | O48: =+'RG7'!O38/mill -> 2.1657414 | P48: =+'RG7'!P38/mill -> 2.181081912 | Q48: =+'RG7'!Q38/mill -> 2.034574051 | R48: =+'RG7'!R38/mill -> 1.981193805 | S48: =+'RG7'!S38/mill -> 2.047873404 | T48: =+'RG7'!T38/mill -> 2.109141637 | U48: =+'RG7'!U38/mill -> 2.15878628
A49: 26 | B49: Water - primary revenue: domestic unmeasured water charges | D49: 1 | E49: 3 | O49: =+'RG3'!O63/mill -> 127.0650959 | P49: =+'RG3'!P63/mill -> 126.8369024 | Q49: =+'RG3'!Q63/mill -> 129.1146053 | R49: =+'RG3'!R63/mill -> 134.0968552 | S49: =+'RG3'!S63/mill -> 140.0461245 | T49: =+'RG3'!T63/mill -> 146.9107294 | U49: =+'RG3'!U63/mill -> 154.2248555
A50: 27 | B50: Waste water - primary revenue: domestic unmeasured sewerage charges | D50: 2 | E50: 4 | O50: =+'RG4'!O64/mill -> 156.3984213 | P50: =+'RG4'!P64/mill -> 160.7227643 | Q50: =+'RG4'!Q64/mill -> 163.5807914 | R50: =+'RG4'!R64/mill -> 167.6495775 | S50: =+'RG4'!S64/mill -> 172.714111 | T50: =+'RG4'!T64/mill -> 178.6727256 | U50: =+'RG4'!U64/mill -> 184.9266955
A51: 28 | B51: Waste water - primary revenue: non-domestic unmeasured sewerage charges | D51: 2 | E51: 8 | O51: =+'RG8'!O39/mill -> 2.52585996 | P51: =+'RG8'!P39/mill -> 2.544613384 | Q51: =+'RG8'!Q39/mill -> 2.378664851 | R51: =+'RG8'!R39/mill -> 2.319202942 | S51: =+'RG8'!S39/mill -> 2.395192285 | T51: =+'RG8'!T39/mill -> 2.466100021 | U51: =+'RG8'!U39/mill -> 2.525840132
A52: 29 | B52: Waste water - primary revenue: trade effluent charges | D52: 5 | E52: 9 | O52: =+'RG9'!O61/mill -> 27.93530234 | P52: =+'RG9'!P61/mill -> 28.43679499 | Q52: =+'RG9'!Q61/mill -> 27.56942771 | R52: =+'RG9'!R61/mill -> 29.46785714 | S52: =+'RG9'!S61/mill -> 30.82194946 | T52: =+'RG9'!T61/mill -> 32.22468976 | U52: =+'RG9'!U61/mill -> 33.66112557
A53: 30 | B53: Total | O53: =SUM(O44:O52) -> 400.8762559 | P53: 396.2265403 | Q53: 387.0993528 | R53: 408.2649981 | S53: 424.9445119 | T53: 442.2206512 | U53: 458.8021238
B55: Unmeasured Chargeable Supplies: N (t-1)
A56: =+A53+1 -> 31 | B56: Water - primary revenue: non-domestic unmeasured water charges | D56: 1 | E56: 7 | O56: ='RG7'!O32 -> 8422 | P56: ='RG7'!P32 -> 7772 | Q56: ='RG7'!Q32 -> 7397 | R56: ='RG7'!R32 -> 7484.5 | S56: ='RG7'!S32 -> 7509.5 | T56: ='RG7'!T32 -> 7472 | U56: ='RG7'!U32 -> 7372
A57: =+A56+1 -> 32 | B57: Water - primary revenue: domestic unmeasured water charges | D57: 1 | E57: 3 | O57: ='RG3'!O57 -> 750064.9 | P57: ='RG3'!P57 -> 756914.9 | Q57: ='RG3'!Q57 -> 762840 | R57: ='RG3'!R57 -> 770465 | S57: ='RG3'!S57 -> 778715 | T57: ='RG3'!T57 -> 786715 | U57: ='RG3'!U57 -> 794465
A58: =+A57+1 -> 33 | B58: Waste water - primary revenue: domestic unmeasured sewerage charges | D58: 2 | E58: 4 | O58: ='RG4'!O58 -> 638171.497 | P58: ='RG4'!P58 -> 643961.997 | Q58: ='RG4'!Q58 -> 648883 | R58: ='RG4'!R58 -> 654983 | S58: ='RG4'!S58 -> 661383 | T58: ='RG4'!T58 -> 667383 | U58: ='RG4'!U58 -> 673008
A59: =+A58+1 -> 34 | B59: Waste water - primary revenue: non-domestic unmeasured sewerage charges | D59: 2 | E59: 8 | O59: ='RG8'!O33 -> 7207 | P59: ='RG8'!P33 -> 6666 | Q59: ='RG8'!Q33 -> 6351 | R59: ='RG8'!R33 -> 6421 | S59: ='RG8'!S33 -> 6440.375 | T59: ='RG8'!T33 -> 6412.25 | U59: ='RG8'!U33 -> 6339.75
B61: Unmeasured Chargeable Supplies: N (t-2)
A62: =+A59+1 -> 35 | B62: Water - primary revenue: non-domestic unmeasured water charges | D62: 1 | E62: 7 | O62: ='RG7'!O39 -> 8613 | P62: ='RG7'!P39 -> 8422 | Q62: ='RG7'!Q39 -> 7772 | R62: ='RG7'!R39 -> 7397 | S62: ='RG7'!S39 -> 7484.5 | T62: ='RG7'!T39 -> 7509.5 | U62: ='RG7'!U39 -> 7472
A63: =+A62+1 -> 36 | B63: Water - primary revenue: domestic unmeasured water charges | D63: 1 | E63: 3 | O63: ='RG3'!O64 -> 740316 | P63: ='RG3'!P64 -> 750064.9 | Q63: ='RG3'!Q64 -> 756914.9 | R63: ='RG3'!R64 -> 762840 | S63: ='RG3'!S64 -> 770465 | T63: ='RG3'!T64 -> 778715 | U63: ='RG3'!U64 -> 786715
A64: =+A63+1 -> 37 | B64: Waste water - primary revenue: domestic unmeasured sewerage charges | D64: 2 | E64: 4 | O64: ='RG4'!O65 -> 629513 | P64: ='RG4'!P65 -> 638171.497 | Q64: ='RG4'!Q65 -> 643961.997 | R64: ='RG4'!R65 -> 648883 | S64: ='RG4'!S65 -> 654983 | T64: ='RG4'!T65 -> 661383 | U64: ='RG4'!U65 -> 667383
A65: =+A64+1 -> 38 | B65: Waste water - primary revenue: non-domestic unmeasured sewerage charges | D65: 2 | E65: 8 | O65: ='RG8'!O40 -> 7362 | P65: ='RG8'!P40 -> 7207 | Q65: ='RG8'!Q40 -> 6666 | R65: ='RG8'!R40 -> 6351 | S65: ='RG8'!S40 -> 6421 | T65: ='RG8'!T40 -> 6440.375 | U65: ='RG8'!U40 -> 6412.25
B67: Charge cap calculations - per tariff basket
A68: =+A65+1 -> 39 | B68: Charge cap - Tariff Basket 1: Unmeasured Water Supply | D68: 1 | O68: =(SUM(O36:O37)/SUM(O56:O57))/(SUM(O48:O49)/SUM(O62:O63))-1 -> -0.01422759308 | P68: 0.00827676482 | Q68: 0.03010565089 | R68: 0.03385737612 | S68: 0.03770350269 | T68: 0.03889328378 | U68: 0.03922984066
A69: =+A68+1 -> 40 | B69: Charge cap - Tariff Basket 2: Unmeasured Sewerage Services | D69: 2 | O69: =(SUM(O38:O39)/SUM(O58:O59))/(SUM(O50:O51)/SUM(O64:O65))-1 -> 0.01379202725 | P69: 0.008287375934 | Q69: 0.01695907833 | R69: 0.02063314879 | S69: 0.02448953995 | T69: 0.02568367395 | U69: 0.02602175069
A70: =+A69+1 -> 41 | B70: Charge cap - Tariff Basket 3: Measured Water Supply | D70: 3 | O70: =SUM(O32:O33)/SUM(O44:O45)-1 -> 0.01091020093 | P70: 0.007356006527 | Q70: 0.003031507222 | R70: 0.006589083883 | S70: 0.01048642852 | T70: 0.0116943481 | U70: 0.01204586408
A71: =+A70+1 -> 42 | B71: Charge cap - Tariff Basket 4: Measured Sewerage Services | D71: 4 | O71: =SUM(O34:O35)/SUM(O46:O47)-1 -> 0.01982800697 | P71: 0.008226936011 | Q71: 0.01193979315 | R71: 0.01549736982 | S71: 0.01939471445 | T71: 0.02060263404 | U71: 0.02095415001
A72: =+A71+1 -> 43 | B72: Charge cap - Tariff Basket 5: Trade effluent | D72: 5 | O72: =O40/O52-1 -> 0.02223748916 | P72: 0.008363262586 | Q72: 0.03588428007 | R72: 0.03944185673 | S72: 0.04333920137 | T72: 0.04454712095 | U72: 0.04489863692
A73: =+A72+1 -> 44 | B73: WACI - Tariff basket | O73: =(O68*SUM(O24:O25)+O69*SUM(O26:O27)+O70*SUM(O20:O21)+O71*SUM(O22:O23)+O72*O28)/O29 -> 0.005192868078 | P73: 0.008176963153 | Q73: 0.0210553931 | R73: 0.02442404403 | S73: 0.02828533895 | T73: 0.02953128887 | U73: 0.02997192253
B75: Charge cap calculations - per revenue group
A76: =+A73+1 -> 45 | B76: Charge cap - Revenue Group 1: Domestic measured water | D76: 3 | E76: 1 | O76: =IF(VLOOKUP($E76,$E$44:O$52,COLUMN()-4,FALSE)=0,0,(VLOOKUP($E76,$E$32:O$40,COLUMN()-4,FALSE)/VLOOKUP($E76,$E$44:O$52,COLUMN()-4,FALSE)-1)) -> 0 | P76: =IF(VLOOKUP($E76,$E$44:P$52,COLUMN()-4,FALSE)=0,0,(VLOOKUP($E76,$E$32:P$40,COLUMN()-4,FALSE)/VLOOKUP($E76,$E$44:P$52,COLUMN()-4,FALSE)-1)) -> 0 | Q76: =IF(VLOOKUP($E76,$E$44:Q$52,COLUMN()-4,FALSE)=0,0,(VLOOKUP($E76,$E$32:Q$40,COLUMN()-4,FALSE)/VLOOKUP($E76,$E$44:Q$52,COLUMN()-4,FALSE)-1)) -> 0 | R76: =IF(VLOOKUP($E76,$E$44:R$52,COLUMN()-4,FALSE)=0,0,(VLOOKUP($E76,$E$32:R$40,COLUMN()-4,FALSE)/VLOOKUP($E76,$E$44:R$52,COLUMN()-4,FALSE)-1)) -> 0 | S76: =IF(VLOOKUP($E76,$E$44:S$52,COLUMN()-4,FALSE)=0,0,(VLOOKUP($E76,$E$32:S$40,COLUMN()-4,FALSE)/VLOOKUP($E76,$E$44:S$52,COLUMN()-4,FALSE)-1)) -> 0 | T76: =IF(VLOOKUP($E76,$E$44:T$52,COLUMN()-4,FALSE)=0,0,(VLOOKUP($E76,$E$32:T$40,COLUMN()-4,FALSE)/VLOOKUP($E76,$E$44:T$52,COLUMN()-4,FALSE)-1)) -> 0 | U76: =IF(VLOOKUP($E76,$E$44:U$52,COLUMN()-4,FALSE)=0,0,(VLOOKUP($E76,$E$32:U$40,COLUMN()-4,FALSE)/VLOOKUP($E76,$E$44:U$52,COLUMN()-4,FALSE)-1)) -> 0
A77: =+A76+1 -> 46 | B77: Charge cap - Revenue Group 2: Domestic measured sewerage | D77: 4 | E77: 2 | O77: =IF(VLOOKUP($E77,$E$44:O$52,COLUMN()-4,FALSE)=0,0,(VLOOKUP($E77,$E$32:O$40,COLUMN()-4,FALSE)/VLOOKUP($E77,$E$44:O$52,COLUMN()-4,FALSE)-1)) -> 0 | P77: =IF(VLOOKUP($E77,$E$44:P$52,COLUMN()-4,FALSE)=0,0,(VLOOKUP($E77,$E$32:P$40,COLUMN()-4,FALSE)/VLOOKUP($E77,$E$44:P$52,COLUMN()-4,FALSE)-1)) -> 0 | Q77: =IF(VLOOKUP($E77,$E$44:Q$52,COLUMN()-4,FALSE)=0,0,(VLOOKUP($E77,$E$32:Q$40,COLUMN()-4,FALSE)/VLOOKUP($E77,$E$44:Q$52,COLUMN()-4,FALSE)-1)) -> 0 | R77: =IF(VLOOKUP($E77,$E$44:R$52,COLUMN()-4,FALSE)=0,0,(VLOOKUP($E77,$E$32:R$40,COLUMN()-4,FALSE)/VLOOKUP($E77,$E$44:R$52,COLUMN()-4,FALSE)-1)) -> 0 | S77: =IF(VLOOKUP($E77,$E$44:S$52,COLUMN()-4,FALSE)=0,0,(VLOOKUP($E77,$E$32:S$40,COLUMN()-4,FALSE)/VLOOKUP($E77,$E$44:S$52,COLUMN()-4,FALSE)-1)) -> 0 | T77: =IF(VLOOKUP($E77,$E$44:T$52,COLUMN()-4,FALSE)=0,0,(VLOOKUP($E77,$E$32:T$40,COLUMN()-4,FALSE)/VLOOKUP($E77,$E$44:T$52,COLUMN()-4,FALSE)-1)) -> 0 | U77: =IF(VLOOKUP($E77,$E$44:U$52,COLUMN()-4,FALSE)=0,0,(VLOOKUP($E77,$E$32:U$40,COLUMN()-4,FALSE)/VLOOKUP($E77,$E$44:U$52,COLUMN()-4,FALSE)-1)) -> 0
A78: 47 | B78: Charge cap - Revenue Group 3: Domestic unmeasured water | D78: 1 | E78: 3 | O78: =(O37/O57)/(O49/O63)-1 -> -0.01476994572 | P78: 0.008745320834 | Q78: 0.03052093251 | R78: 0.03402977566 | S78: 0.03790306461 | T78: 0.03911105872 | U78: 0.03946264685
A79: 48 | B79: Charge cap - Revenue Group 4: Domestic unmeasured sewerage | D79: 2 | E79: 4 | O79: 0.01370672666 | P79: 0.008630452579 | Q79: 0.01710081088 | R79: 0.02061448193 | S79: 0.02448933382 | T79: 0.02569735306 | U79: 0.02604896029
A80: 49 | B80: Charge cap - Revenue Group 5: Non-domestic measured water | D80: 3 | E80: 5 | O80: =IF(VLOOKUP($E80,$E$44:O$52,COLUMN()-4,FALSE)=0,0,(VLOOKUP($E80,$E$32:O$40,COLUMN()-4,FALSE)/VLOOKUP($E80,$E$44:O$52,COLUMN()-4,FALSE)-1)) -> 0.01091020093 | P80: =IF(VLOOKUP($E80,$E$44:P$52,COLUMN()-4,FALSE)=0,0,(VLOOKUP($E80,$E$32:P$40,COLUMN()-4,FALSE)/VLOOKUP($E80,$E$44:P$52,COLUMN()-4,FALSE)-1)) -> 0.007356006527 | Q80: =IF(VLOOKUP($E80,$E$44:Q$52,COLUMN()-4,FALSE)=0,0,(VLOOKUP($E80,$E$32:Q$40,COLUMN()-4,FALSE)/VLOOKUP($E80,$E$44:Q$52,COLUMN()-4,FALSE)-1)) -> 0.003031507222 | R80: =IF(VLOOKUP($E80,$E$44:R$52,COLUMN()-4,FALSE)=0,0,(VLOOKUP($E80,$E$32:R$40,COLUMN()-4,FALSE)/VLOOKUP($E80,$E$44:R$52,COLUMN()-4,FALSE)-1)) -> 0.006589083883 | S80: =IF(VLOOKUP($E80,$E$44:S$52,COLUMN()-4,FALSE)=0,0,(VLOOKUP($E80,$E$32:S$40,COLUMN()-4,FALSE)/VLOOKUP($E80,$E$44:S$52,COLUMN()-4,FALSE)-1)) -> 0.01048642852 | T80: =IF(VLOOKUP($E80,$E$44:T$52,COLUMN()-4,FALSE)=0,0,(VLOOKUP($E80,$E$32:T$40,COLUMN()-4,FALSE)/VLOOKUP($E80,$E$44:T$52,COLUMN()-4,FALSE)-1)) -> 0.0116943481 | U80: =IF(VLOOKUP($E80,$E$44:U$52,COLUMN()-4,FALSE)=0,0,(VLOOKUP($E80,$E$32:U$40,COLUMN()-4,FALSE)/VLOOKUP($E80,$E$44:U$52,COLUMN()-4,FALSE)-1)) -> 0.01204586408
